Workbook

Sheet Mapa SGR (hidden)
B2: DESCRIPCIÓN | D2: CANTIDAD | E2: VALOR SGR | F2: VALOR OTRAS FUENTES | G2: VALOR TOTAL | H2: ESTADOS
H3: NO HA MIGRADO A GESPROY | I3: SIN CONTRATAR | J3: CONTRATADO SIN ACTA DE INICIO | K3: CONTRATADO EN EJECUCIÓN | L3: TERMINADO | M3: PARA CIERRE | N3: CERRADO | O3: DESAPROBADO
B4: TOTAL PROYECTOS APROBADOS | D4: =MAX(Tabla2[N°]) -> 225 | E4: =SUM('Proyectos en Ejecución'!I7:I228) -> 1.435250759e+12 | F4: =G4-E4 -> 3.757723742e+12 | G4: =SUM('Proyectos en Ejecución'!H7:H228) -> 5.192974501e+12 | H4: =COUNTIFS('Proyectos en Ejecución'!$U$7:$U$277, H$3) -> 0 | I4: =COUNTIFS('Proyectos en Ejecución'!$U$7:$U$277, I$3) -> 2 | J4: =COUNTIFS('Proyectos en Ejecución'!$U$7:$U$277, J$3) -> 1 | K4: =COUNTIFS('Proyectos en Ejecución'!$U$7:$U$277, K$3) -> 84 | L4: =COUNTIFS('Proyectos en Ejecución'!$U$7:$U$277, L$3) -> 13 | M4: =COUNTIFS('Proyectos en Ejecución'!$U$7:$U$277, M$3) -> 12 | N4: =COUNTIFS('Proyectos en Ejecución'!$U$7:$U$277, N$3) -> 106 | O4: =COUNTIFS('Proyectos en Ejecución'!$U$7:$U$277, O$3) -> 6
B5: TOTAL PROYECTOS EJECUCIÓN | D5: =SUM(H4:M4) -> 112 | E5: =GETPIVOTDATA("Suma de VALOR SGR",Hoja1!$A$4) -> 7.750065576e+11 | F5: =G5-E5 -> 1.268494313e+11 | G5: =GETPIVOTDATA("Suma de VALOR PROYECTO",Hoja1!$A$4) -> 9.018559889e+11 | H5: =COUNTIFS('Proyectos en Ejecución'!$U$7:$U$277, H$3) -> 0 | I5: =COUNTIFS('Proyectos en Ejecución'!$U$7:$U$277, I$3) -> 2 | J5: =COUNTIFS('Proyectos en Ejecución'!$U$7:$U$277, J$3) -> 1 | K5: =COUNTIFS('Proyectos en Ejecución'!$U$7:$U$277, K$3) -> 84 | L5: =COUNTIFS('Proyectos en Ejecución'!$U$7:$U$277, L$3) -> 13 | M5: =COUNTIFS('Proyectos en Ejecución'!$U$7:$U$277, M$3) -> 12 | N5: 0 | O5: 0
B6: TOTAL PROYECTOS GOBERNACIÓN DESIGNADA COMO EJECUTORA | D6: =GETPIVOTDATA("Cuenta de EJECUTOR INTERNO",Tablas!$L$4) -> 53 | E6: =GETPIVOTDATA("Suma de VALOR SGR",Tablas!$L$4) -> 4.794002818e+11 | F6: =G6-E6 -> 5.685268523e+10 | G6: =GETPIVOTDATA("Suma de VALOR PROYECTO",Tablas!$F$4) -> 5.36252967e+11 | H6: =SUM(H7:H21) -> 0 | I6: =SUM(I7:I21) -> 2 | J6: 1 | K6: 39 | L6: 6 | M6: 7 | N6: 53 | O6: 4
B7: GOBERNACIÓN DE CUNDINAMARCA | C7: SECRETARIA DE GOBIERNO | D7: =GETPIVOTDATA("Cuenta de EJECUTOR INTERNO",Tablas!$L$4,"EJECUTOR INTERNO","SECRETARIA DE GOBIERNO") -> 1 | E7: =GETPIVOTDATA("Suma de VALOR SGR",Tablas!$L$4,"EJECUTOR INTERNO","SECRETARIA DE GOBIERNO") -> 8500000000 | F7: 760000000 | G7: =GETPIVOTDATA("Suma de VALOR PROYECTO",Tablas!$L$4,"EJECUTOR INTERNO","SECRETARIA DE GOBIERNO") -> 9260000000 | H7: =COUNTIFS('Proyectos en Ejecución'!$C$7:$C$277, $C7, 'Proyectos en Ejecución'!$U$7:$U$277, H$3) -> 0 | I7: =COUNTIFS('Proyectos en Ejecución'!$C$7:$C$277, $C7, 'Proyectos en Ejecución'!$U$7:$U$277, I$3) -> 0 | J7: =COUNTIFS('Proyectos en Ejecución'!$C$7:$C$277, $C7, 'Proyectos en Ejecución'!$U$7:$U$277, J$3) -> 0 | K7: =COUNTIFS('Proyectos en Ejecución'!$C$7:$C$277, $C7, 'Proyectos en Ejecución'!$U$7:$U$277, K$3) -> 0 | L7: =COUNTIFS('Proyectos en Ejecución'!$C$7:$C$277, $C7, 'Proyectos en Ejecución'!$U$7:$U$277, L$3) -> 0 | M7: =COUNTIFS('Proyectos en Ejecución'!$C$7:$C$277, $C7, 'Proyectos en Ejecución'!$U$7:$U$277, M$3) -> 1 | N7: =COUNTIFS('Proyectos en Ejecución'!$C$7:$C$277, $C7, 'Proyectos en Ejecución'!$U$7:$U$277, N$3) -> 3 | O7: =COUNTIFS('Proyectos en Ejecución'!$C$7:$C$277, $C7, 'Proyectos en Ejecución'!$U$7:$U$277, O$3) -> 0
B8: GOBERNACIÓN DE CUNDINAMARCA | C8: SECRETARIA GENERAL | D8: =GETPIVOTDATA("Cuenta de EJECUTOR INTERNO",Tablas!$L$4,"EJECUTOR INTERNO","SECRETARIA GENERAL") ->  | E8: =GETPIVOTDATA("Suma de VALOR SGR",Tablas!$L$4,"EJECUTOR INTERNO","SECRETARIA GENERAL") ->  | G8: =GETPIVOTDATA("Suma de VALOR PROYECTO",Tablas!$L$4,"EJECUTOR INTERNO","SECRETARIA DE PLANEACIÓN") -> 6791102422 | H8: =COUNTIFS('Proyectos en Ejecución'!$C$7:$C$277, $C8, 'Proyectos en Ejecución'!$U$7:$U$277, H$3) -> 0 | I8: =COUNTIFS('Proyectos en Ejecución'!$C$7:$C$277, $C8, 'Proyectos en Ejecución'!$U$7:$U$277, I$3) -> 0 | J8: =COUNTIFS('Proyectos en Ejecución'!$C$7:$C$277, $C8, 'Proyectos en Ejecución'!$U$7:$U$277, J$3) -> 0 | K8: =COUNTIFS('Proyectos en Ejecución'!$C$7:$C$277, $C8, 'Proyectos en Ejecución'!$U$7:$U$277, K$3) -> 0 | L8: =COUNTIFS('Proyectos en Ejecución'!$C$7:$C$277, $C8, 'Proyectos en Ejecución'!$U$7:$U$277, L$3) -> 0 | M8: =COUNTIFS('Proyectos en Ejecución'!$C$7:$C$277, $C8, 'Proyectos en Ejecución'!$U$7:$U$277, M$3) -> 0 | N8: =COUNTIFS('Proyectos en Ejecución'!$C$7:$C$277, $C8, 'Proyectos en Ejecución'!$U$7:$U$277, N$3) -> 1 | O8: =COUNTIFS('Proyectos en Ejecución'!$C$7:$C$277, $C8, 'Proyectos en Ejecución'!$U$7:$U$277, O$3) -> 0
B9: GOBERNACIÓN DE CUNDINAMARCA | C9: SECRETARIA DE PLANEACIÓN | D9: =GETPIVOTDATA("Cuenta de EJECUTOR INTERNO",Tablas!$L$4,"EJECUTOR INTERNO","SECRETARIA DE PLANEACIÓN") -> 1 | E9: =GETPIVOTDATA("Suma de VALOR SGR",Tablas!$L$4,"EJECUTOR INTERNO","SECRETARIA DE PLANEACIÓN") -> 6725380622 | G9: =GETPIVOTDATA("Suma de VALOR PROYECTO",Tablas!$L$4,"EJECUTOR INTERNO","SECRETARIA GENERAL") ->  | H9: =COUNTIFS('Proyectos en Ejecución'!$C$7:$C$277, $C9, 'Proyectos en Ejecución'!$U$7:$U$277, H$3) -> 0 | I9: =COUNTIFS('Proyectos en Ejecución'!$C$7:$C$277, $C9, 'Proyectos en Ejecución'!$U$7:$U$277, I$3) -> 0 | J9: =COUNTIFS('Proyectos en Ejecución'!$C$7:$C$277, $C9, 'Proyectos en Ejecución'!$U$7:$U$277, J$3) -> 0 | K9: =COUNTIFS('Proyectos en Ejecución'!$C$7:$C$277, $C9, 'Proyectos en Ejecución'!$U$7:$U$277, K$3) -> 1 | L9: =COUNTIFS('Proyectos en Ejecución'!$C$7:$C$277, $C9, 'Proyectos en Ejecución'!$U$7:$U$277, L$3) -> 0 | M9: =COUNTIFS('Proyectos en Ejecución'!$C$7:$C$277, $C9, 'Proyectos en Ejecución'!$U$7:$U$277, M$3) -> 0 | N9: =COUNTIFS('Proyectos en Ejecución'!$C$7:$C$277, $C9, 'Proyectos en Ejecución'!$U$7:$U$277, N$3) -> 0 | O9: =COUNTIFS('Proyectos en Ejecución'!$C$7:$C$277, $C9, 'Proyectos en Ejecución'!$U$7:$U$277, O$3) -> 0
B10: GOBERNACIÓN DE CUNDINAMARCA | C10: SECRETARIA DE SALUD | D10: 3 | E10: 4.759678211e+11 | F10: -5.653590612e+10 | G10: 4.194319149e+11 | H10: =COUNTIFS('Proyectos en Ejecución'!$C$7:$C$277, $C10, 'Proyectos en Ejecución'!$U$7:$U$277, H$3) -> 0 | I10: =COUNTIFS('Proyectos en Ejecución'!$C$7:$C$277, $C10, 'Proyectos en Ejecución'!$U$7:$U$277, I$3) -> 0 | J10: =COUNTIFS('Proyectos en Ejecución'!$C$7:$C$277, $C10, 'Proyectos en Ejecución'!$U$7:$U$277, J$3) -> 0 | K10: =COUNTIFS('Proyectos en Ejecución'!$C$7:$C$277, $C10, 'Proyectos en Ejecución'!$U$7:$U$277, K$3) -> 0 | L10: =COUNTIFS('Proyectos en Ejecución'!$C$7:$C$277, $C10, 'Proyectos en Ejecución'!$U$7:$U$277, L$3) -> 0 | M10: =COUNTIFS('Proyectos en Ejecución'!$C$7:$C$277, $C10, 'Proyectos en Ejecución'!$U$7:$U$277, M$3) -> 0 | N10: =COUNTIFS('Proyectos en Ejecución'!$C$7:$C$277, $C10, 'Proyectos en Ejecución'!$U$7:$U$277, N$3) -> 3 | O10: =COUNTIFS('Proyectos en Ejecución'!$C$7:$C$277, $C10, 'Proyectos en Ejecución'!$U$7:$U$277, O$3) -> 0
B11: GOBERNACIÓN DE CUNDINAMARCA | C11: UNIDAD ADMINISTRATIVA DE GESTIÓN DEL RIESGO. | D11: =GETPIVOTDATA("Cuenta de EJECUTOR INTERNO",Tablas!$L$4,"EJECUTOR INTERNO","UNIDAD ADMINISTRATIVA DE GESTIÓN DEL RIESGO.") -> 3 | E11: =GETPIVOTDATA("Suma de VALOR SGR",Tablas!$L$4,"EJECUTOR INTERNO","UNIDAD ADMINISTRATIVA DE GESTIÓN DEL RIESGO.") -> 14058376084 | F11: 0 | G11: =GETPIVOTDATA("Suma de VALOR PROYECTO",Tablas!$L$4,"EJECUTOR INTERNO","UNIDAD ADMINISTRATIVA DE GESTIÓN DEL RIESGO.") -> 14058376084 | H11: =COUNTIFS('Proyectos en Ejecución'!$C$7:$C$277, $C11, 'Proyectos en Ejecución'!$U$7:$U$277, H$3) -> 0 | I11: =COUNTIFS('Proyectos en Ejecución'!$C$7:$C$277, $C11, 'Proyectos en Ejecución'!$U$7:$U$277, I$3) -> 1 | J11: =COUNTIFS('Proyectos en Ejecución'!$C$7:$C$277, $C11, 'Proyectos en Ejecución'!$U$7:$U$277, J$3) -> 1 | K11: =COUNTIFS('Proyectos en Ejecución'!$C$7:$C$277, $C11, 'Proyectos en Ejecución'!$U$7:$U$277, K$3) -> 1 | L11: =COUNTIFS('Proyectos en Ejecución'!$C$7:$C$277, $C11, 'Proyectos en Ejecución'!$U$7:$U$277, L$3) -> 0 | M11: =COUNTIFS('Proyectos en Ejecución'!$C$7:$C$277, $C11, 'Proyectos en Ejecución'!$U$7:$U$277, M$3) -> 1 | N11: =COUNTIFS('Proyectos en Ejecución'!$C$7:$C$277, $C11, 'Proyectos en Ejecución'!$U$7:$U$277, N$3) -> 0 | O11: =COUNTIFS('Proyectos en Ejecución'!$C$7:$C$277, $C11, 'Proyectos en Ejecución'!$U$7:$U$277, O$3) -> 2
B12: GOBERNACIÓN DE CUNDINAMARCA | C12: SECRETARIA DE AMBIENTE | D12: =GETPIVOTDATA("Cuenta de EJECUTOR INTERNO",Tablas!$L$4,"EJECUTOR INTERNO","SECRETARIA DE AMBIENTE") -> 2 | E12: =GETPIVOTDATA("Suma de VALOR SGR",Tablas!$L$4,"EJECUTOR INTERNO","SECRETARIA DE AMBIENTE") -> 2857824455 | F12: 2769066314 | G12: =GETPIVOTDATA("Suma de VALOR PROYECTO",Tablas!$L$4,"EJECUTOR INTERNO","SECRETARIA DE AMBIENTE") -> 5626890769 | H12: =COUNTIFS('Proyectos en Ejecución'!$C$7:$C$277, $C12, 'Proyectos en Ejecución'!$U$7:$U$277, H$3) -> 0 | I12: =COUNTIFS('Proyectos en Ejecución'!$C$7:$C$277, $C12, 'Proyectos en Ejecución'!$U$7:$U$277, I$3) -> 1 | J12: =COUNTIFS('Proyectos en Ejecución'!$C$7:$C$277, $C12, 'Proyectos en Ejecución'!$U$7:$U$277, J$3) -> 0 | K12: =COUNTIFS('Proyectos en Ejecución'!$C$7:$C$277, $C12, 'Proyectos en Ejecución'!$U$7:$U$277, K$3) -> 1 | L12: =COUNTIFS('Proyectos en Ejecución'!$C$7:$C$277, $C12, 'Proyectos en Ejecución'!$U$7:$U$277, L$3) -> 0 | M12: =COUNTIFS('Proyectos en Ejecución'!$C$7:$C$277, $C12, 'Proyectos en Ejecución'!$U$7:$U$277, M$3) -> 0 | N12: =COUNTIFS('Proyectos en Ejecución'!$C$7:$C$277, $C12, 'Proyectos en Ejecución'!$U$7:$U$277, N$3) -> 2 | O12: =COUNTIFS('Proyectos en Ejecución'!$C$7:$C$277, $C12, 'Proyectos en Ejecución'!$U$7:$U$277, O$3) -> 0
B13: GOBERNACIÓN DE CUNDINAMARCA | C13: SECRETARIA DE AGRICULTURA | D13: =GETPIVOTDATA("Cuenta de EJECUTOR INTERNO",Tablas!$L$4,"EJECUTOR INTERNO","SECRETARIA DE AGRICULTURA") -> 1 | E13: =GETPIVOTDATA("Suma de VALOR SGR",Tablas!$L$4,"EJECUTOR INTERNO","SECRETARIA DE AGRICULTURA") -> 4220000000 | F13: 2303880054 | G13: =GETPIVOTDATA("Suma de VALOR PROYECTO",Tablas!$L$4,"EJECUTOR INTERNO","SECRETARIA DE AGRICULTURA") -> 6523880054 | H13: =COUNTIFS('Proyectos en Ejecución'!$C$7:$C$277, $C13, 'Proyectos en Ejecución'!$U$7:$U$277, H$3) -> 0 | I13: =COUNTIFS('Proyectos en Ejecución'!$C$7:$C$277, $C13, 'Proyectos en Ejecución'!$U$7:$U$277, I$3) -> 0 | J13: =COUNTIFS('Proyectos en Ejecución'!$C$7:$C$277, $C13, 'Proyectos en Ejecución'!$U$7:$U$277, J$3) -> 0 | K13: =COUNTIFS('Proyectos en Ejecución'!$C$7:$C$277, $C13, 'Proyectos en Ejecución'!$U$7:$U$277, K$3) -> 0 | L13: =COUNTIFS('Proyectos en Ejecución'!$C$7:$C$277, $C13, 'Proyectos en Ejecución'!$U$7:$U$277, L$3) -> 1 | M13: =COUNTIFS('Proyectos en Ejecución'!$C$7:$C$277, $C13, 'Proyectos en Ejecución'!$U$7:$U$277, M$3) -> 0 | N13: =COUNTIFS('Proyectos en Ejecución'!$C$7:$C$277, $C13, 'Proyectos en Ejecución'!$U$7:$U$277, N$3) -> 15 | O13: =COUNTIFS('Proyectos en Ejecución'!$C$7:$C$277, $C13, 'Proyectos en Ejecución'!$U$7:$U$277, O$3) -> 0
B14: GOBERNACIÓN DE CUNDINAMARCA | C14: SECRETARIA DE EDUCACIÓN | D14: =GETPIVOTDATA("Cuenta de EJECUTOR INTERNO",Tablas!$L$4,"EJECUTOR INTERNO","SECRETARIA DE EDUCACIÓN") -> 5 | E14: =GETPIVOTDATA("Suma de VALOR PROYECTO",Tablas!$L$4,"EJECUTOR INTERNO","SECRETARIA DE EDUCACIÓN") -> 188177731805 | F14: 0 | G14: =GETPIVOTDATA("Suma de VALOR PROYECTO",Tablas!$L$4,"EJECUTOR INTERNO","SECRETARIA DE EDUCACIÓN") -> 188177731805 | H14: =COUNTIFS('Proyectos en Ejecución'!$C$7:$C$277, $C14, 'Proyectos en Ejecución'!$U$7:$U$277, H$3) -> 0 | I14: =COUNTIFS('Proyectos en Ejecución'!$C$7:$C$277, $C14, 'Proyectos en Ejecución'!$U$7:$U$277, I$3) -> 0 | J14: =COUNTIFS('Proyectos en Ejecución'!$C$7:$C$277, $C14, 'Proyectos en Ejecución'!$U$7:$U$277, J$3) -> 0 | K14: =COUNTIFS('Proyectos en Ejecución'!$C$7:$C$277, $C14, 'Proyectos en Ejecución'!$U$7:$U$277, K$3) -> 3 | L14: =COUNTIFS('Proyectos en Ejecución'!$C$7:$C$277, $C14, 'Proyectos en Ejecución'!$U$7:$U$277, L$3) -> 1 | M14: =COUNTIFS('Proyectos en Ejecución'!$C$7:$C$277, $C14, 'Proyectos en Ejecución'!$U$7:$U$277, M$3) -> 1 | N14: =COUNTIFS('Proyectos en Ejecución'!$C$7:$C$277, $C14, 'Proyectos en Ejecución'!$U$7:$U$277, N$3) -> 13 | O14: =COUNTIFS('Proyectos en Ejecución'!$C$7:$C$277, $C14, 'Proyectos en Ejecución'!$U$7:$U$277, O$3) -> 0
B15: GOBERNACIÓN DE CUNDINAMARCA | C15: SECRETARIA DE COMPETITIVIDAD | D15: =GETPIVOTDATA("Cuenta de EJECUTOR INTERNO",Tablas!$L$4,"EJECUTOR INTERNO","SECRETARIA DE COMPETITIVIDAD") -> 4 | E15: =GETPIVOTDATA("Suma de VALOR PROYECTO",Tablas!$L$4,"EJECUTOR INTERNO","SECRETARIA DE COMPETITIVIDAD") -> 33049757567 | F15: 0 | G15: =GETPIVOTDATA("Suma de VALOR PROYECTO",Tablas!$L$4,"EJECUTOR INTERNO","SECRETARIA DE COMPETITIVIDAD") -> 33049757567 | H15: =COUNTIFS('Proyectos en Ejecución'!$C$7:$C$277, $C15, 'Proyectos en Ejecución'!$U$7:$U$277, H$3) -> 0 | I15: =COUNTIFS('Proyectos en Ejecución'!$C$7:$C$277, $C15, 'Proyectos en Ejecución'!$U$7:$U$277, I$3) -> 0 | J15: =COUNTIFS('Proyectos en Ejecución'!$C$7:$C$277, $C15, 'Proyectos en Ejecución'!$U$7:$U$277, J$3) -> 0 | K15: =COUNTIFS('Proyectos en Ejecución'!$C$7:$C$277, $C15, 'Proyectos en Ejecución'!$U$7:$U$277, K$3) -> 3 | L15: =COUNTIFS('Proyectos en Ejecución'!$C$7:$C$277, $C15, 'Proyectos en Ejecución'!$U$7:$U$277, L$3) -> 0 | M15: =COUNTIFS('Proyectos en Ejecución'!$C$7:$C$277, $C15, 'Proyectos en Ejecución'!$U$7:$U$277, M$3) -> 1 | N15: =COUNTIFS('Proyectos en Ejecución'!$C$7:$C$277, $C15, 'Proyectos en Ejecución'!$U$7:$U$277, N$3) -> 0 | O15: =COUNTIFS('Proyectos en Ejecución'!$C$7:$C$277, $C15, 'Proyectos en Ejecución'!$U$7:$U$277, O$3) -> 0
B16: GOBERNACIÓN DE CUNDINAMARCA | C16: SECRETARIA DE HABITAT Y VIVIENDA | D16: =GETPIVOTDATA("Cuenta de EJECUTOR INTERNO",Tablas!$L$4,"EJECUTOR INTERNO","SECRETARIA DE HABITAT Y VIVIENDA") -> 4 | E16: =GETPIVOTDATA("Suma de VALOR PROYECTO",Tablas!$L$4,"EJECUTOR INTERNO","SECRETARIA DE HABITAT Y VIVIENDA") -> 1.797947617e+10 | F16: 0 | G16: =GETPIVOTDATA("Suma de VALOR PROYECTO",Tablas!$L$4,"EJECUTOR INTERNO","SECRETARIA DE HABITAT Y VIVIENDA") -> 1.797947617e+10 | H16: =COUNTIFS('Proyectos en Ejecución'!$C$7:$C$277, $C16, 'Proyectos en Ejecución'!$U$7:$U$277, H$3) -> 0 | I16: =COUNTIFS('Proyectos en Ejecución'!$C$7:$C$277, $C16, 'Proyectos en Ejecución'!$U$7:$U$277, I$3) -> 0 | J16: =COUNTIFS('Proyectos en Ejecución'!$C$7:$C$277, $C16, 'Proyectos en Ejecución'!$U$7:$U$277, J$3) -> 0 | K16: =COUNTIFS('Proyectos en Ejecución'!$C$7:$C$277, $C16, 'Proyectos en Ejecución'!$U$7:$U$277, K$3) -> 2 | L16: =COUNTIFS('Proyectos en Ejecución'!$C$7:$C$277, $C16, 'Proyectos en Ejecución'!$U$7:$U$277, L$3) -> 1 | M16: =COUNTIFS('Proyectos en Ejecución'!$C$7:$C$277, $C16, 'Proyectos en Ejecución'!$U$7:$U$277, M$3) -> 1 | N16: =COUNTIFS('Proyectos en Ejecución'!$C$7:$C$277, $C16, 'Proyectos en Ejecución'!$U$7:$U$277, N$3) -> 1 | O16: =COUNTIFS('Proyectos en Ejecución'!$C$7:$C$277, $C16, 'Proyectos en Ejecución'!$U$7:$U$277, O$3) -> 0
B17: GOBERNACIÓN DE CUNDINAMARCA | C17: SECRETARIA DE MINAS, ENERGIA Y GAS | D17: =GETPIVOTDATA("Cuenta de EJECUTOR INTERNO",Tablas!$L$4,"EJECUTOR INTERNO","SECRETARIA DE MINAS, ENERGIA Y GAS") -> 3 | E17: =GETPIVOTDATA("Suma de VALOR SGR",Tablas!$L$4,"EJECUTOR INTERNO","SECRETARIA DE MINAS, ENERGIA Y GAS") -> 12711103496 | F17: 10364201040 | G17: =GETPIVOTDATA("Suma de VALOR PROYECTO",Tablas!$L$4,"EJECUTOR INTERNO","SECRETARIA DE MINAS, ENERGIA Y GAS") -> 23075304536 | H17: =COUNTIFS('Proyectos en Ejecución'!$C$7:$C$277, $C17, 'Proyectos en Ejecución'!$U$7:$U$277, H$3) -> 0 | I17: =COUNTIFS('Proyectos en Ejecución'!$C$7:$C$277, $C17, 'Proyectos en Ejecución'!$U$7:$U$277, I$3) -> 0 | J17: =COUNTIFS('Proyectos en Ejecución'!$C$7:$C$277, $C17, 'Proyectos en Ejecución'!$U$7:$U$277, J$3) -> 0 | K17: =COUNTIFS('Proyectos en Ejecución'!$C$7:$C$277, $C17, 'Proyectos en Ejecución'!$U$7:$U$277, K$3) -> 2 | L17: =COUNTIFS('Proyectos en Ejecución'!$C$7:$C$277, $C17, 'Proyectos en Ejecución'!$U$7:$U$277, L$3) -> 0 | M17: =COUNTIFS('Proyectos en Ejecución'!$C$7:$C$277, $C17, 'Proyectos en Ejecución'!$U$7:$U$277, M$3) -> 1 | N17: =COUNTIFS('Proyectos en Ejecución'!$C$7:$C$277, $C17, 'Proyectos en Ejecución'!$U$7:$U$277, N$3) -> 5 | O17: =COUNTIFS('Proyectos en Ejecución'!$C$7:$C$277, $C17, 'Proyectos en Ejecución'!$U$7:$U$277, O$3) -> 1
B18: GOBERNACIÓN DE CUNDINAMARCA | C18: SECRETARIA DE CIENCIA, TECNOLOGIA E INNOVACIÓN | D18: =GETPIVOTDATA("Cuenta de EJECUTOR INTERNO",Tablas!$L$4,"EJECUTOR INTERNO","SECRETARIA DE CIENCIA, TECNOLOGIA E INNOVACIÓN") -> 27 | E18: =GETPIVOTDATA("Suma de VALOR SGR",Tablas!$L$4,"EJECUTOR INTERNO","SECRETARIA DE CIENCIA, TECNOLOGIA E INNOVACIÓN") -> 1.575703395e+11 | F18: =G18-E20 -> 1.617105725e+11 | G18: =GETPIVOTDATA("Suma de VALOR PROYECTO",Tablas!$L$4,"EJECUTOR INTERNO","SECRETARIA DE CIENCIA, TECNOLOGIA E INNOVACIÓN") -> 1.942105598e+11 | H18: =COUNTIFS('Proyectos en Ejecución'!$C$7:$C$277, $C18, 'Proyectos en Ejecución'!$U$7:$U$277, H$3) -> 0 | I18: =COUNTIFS('Proyectos en Ejecución'!$C$7:$C$277, $C18, 'Proyectos en Ejecución'!$U$7:$U$277, I$3) -> 0 | J18: =COUNTIFS('Proyectos en Ejecución'!$C$7:$C$277, $C18, 'Proyectos en Ejecución'!$U$7:$U$277, J$3) -> 0 | K18: =COUNTIFS('Proyectos en Ejecución'!$C$7:$C$277, $C18, 'Proyectos en Ejecución'!$U$7:$U$277, K$3) -> 23 | L18: =COUNTIFS('Proyectos en Ejecución'!$C$7:$C$277, $C18, 'Proyectos en Ejecución'!$U$7:$U$277, L$3) -> 3 | M18: =COUNTIFS('Proyectos en Ejecución'!$C$7:$C$277, $C18, 'Proyectos en Ejecución'!$U$7:$U$277, M$3) -> 1 | N18: =COUNTIFS('Proyectos en Ejecución'!$C$7:$C$277, $C18, 'Proyectos en Ejecución'!$U$7:$U$277, N$3) -> 10 | O18: =COUNTIFS('Proyectos en Ejecución'!$C$7:$C$277, $C18, 'Proyectos en Ejecución'!$U$7:$U$277, O$3) -> 1
B19: GOBERNACIÓN DE CUNDINAMARCA | C19: SECRETARIA DE PLANEACIÓN | D19: =GETPIVOTDATA("Cuenta de EJECUTOR INTERNO",Tablas!$L$4,"EJECUTOR INTERNO","SECRETARIA DE PLANEACIÓN") -> 1 | E19: =GETPIVOTDATA("Suma de VALOR SGR",Tablas!$L$4,"EJECUTOR INTERNO","SECRETARIA DE PLANEACIÓN") -> 6725380622 | F19: =G19-E20 -> -2.570888486e+10 | G19: =GETPIVOTDATA("Suma de VALOR PROYECTO",Tablas!$L$4,"EJECUTOR INTERNO","SECRETARIA DE PLANEACIÓN") -> 6791102422 | H19: =COUNTIFS('Proyectos en Ejecución'!$C$7:$C$277, $C19, 'Proyectos en Ejecución'!$U$7:$U$277, H$3) -> 0 | I19: =COUNTIFS('Proyectos en Ejecución'!$C$7:$C$277, $C19, 'Proyectos en Ejecución'!$U$7:$U$277, I$3) -> 0 | J19: =COUNTIFS('Proyectos en Ejecución'!$C$7:$C$277, $C19, 'Proyectos en Ejecución'!$U$7:$U$277, J$3) -> 0 | K19: =COUNTIFS('Proyectos en Ejecución'!$C$7:$C$277, $C19, 'Proyectos en Ejecución'!$U$7:$U$277, K$3) -> 1 | L19: =COUNTIFS('Proyectos en Ejecución'!$C$7:$C$277, $C19, 'Proyectos en Ejecución'!$U$7:$U$277, L$3) -> 0 | M19: =COUNTIFS('Proyectos en Ejecución'!$C$7:$C$277, $C19, 'Proyectos en Ejecución'!$U$7:$U$277, M$3) -> 0 | N19: =COUNTIFS('Proyectos en Ejecución'!$C$7:$C$277, $C19, 'Proyectos en Ejecución'!$U$7:$U$277, N$3) -> 0 | O19: =COUNTIFS('Proyectos en Ejecución'!$C$7:$C$277, $C19, 'Proyectos en Ejecución'!$U$7:$U$277, O$3) -> 0
B20: SUPERVISIÓN DE INTERVENTORÍA | C20: SECRETARIA DE PLANEACIÓN | D20: =GETPIVOTDATA("Cuenta de EJECUTOR INTERNO",Tablas!$L$4,"EJECUTOR INTERNO","SUPERVISIÓN / INTERVENTORÍA RAPE - SECRETARIA DE PLANEACIÓN") -> 1 | E20: =GETPIVOTDATA("Suma de VALOR SGR",Tablas!$L$4,"EJECUTOR INTERNO","SUPERVISIÓN / INTERVENTORÍA RAPE - SECRETARIA DE PLANEACIÓN") -> 32499987282 | F20: =G20-E21 -> 27500086807 | G20: =GETPIVOTDATA("Suma de VALOR PROYECTO",Tablas!$L$4,"EJECUTOR INTERNO","SUPERVISIÓN / INTERVENTORÍA RAPE - SECRETARIA DE PLANEACIÓN") -> 32499987282 | H20: =COUNTIFS('Proyectos en Ejecución'!$C$7:$C$277, $C20, 'Proyectos en Ejecución'!$U$7:$U$277, H$3) -> 0 | I20: =COUNTIFS('Proyectos en Ejecución'!$C$7:$C$277, $C20, 'Proyectos en Ejecución'!$U$7:$U$277, I$3) -> 0 | J20: =COUNTIFS('Proyectos en Ejecución'!$C$7:$C$277, $C20, 'Proyectos en Ejecución'!$U$7:$U$277, J$3) -> 0 | K20: 1 | L20: =COUNTIFS('Proyectos en Ejecución'!$C$7:$C$277, $C20, 'Proyectos en Ejecución'!$U$7:$U$277, L$3) -> 0 | M20: =COUNTIFS('Proyectos en Ejecución'!$C$7:$C$277, $C20, 'Proyectos en Ejecución'!$U$7:$U$277, M$3) -> 0 | N20: =COUNTIFS('Proyectos en Ejecución'!$C$7:$C$277, $C20, 'Proyectos en Ejecución'!$U$7:$U$277, N$3) -> 0 | O20: =COUNTIFS('Proyectos en Ejecución'!$C$7:$C$277, $C20, 'Proyectos en Ejecución'!$U$7:$U$277, O$3) -> 0
B21: SUPERVISIÓN DE INTERVENTORÍA | C21: EMPRESAS PUBLICAS DE CUNDINAMARCA -EPC | D21: =GETPIVOTDATA("Cuenta de EJECUTOR INTERNO",Tablas!$L$4,"EJECUTOR INTERNO","SUPERVISIÓN / INTERVENTORÍA -EPC") -> 1 | E21: =GETPIVOTDATA("Suma de VALOR SGR",Tablas!$L$4,"EJECUTOR INTERNO","SUPERVISIÓN / INTERVENTORÍA -EPC") -> 4999900475 | F21: =G21-E21 -> 0 | G21: =GETPIVOTDATA("Suma de VALOR PROYECTO",Tablas!$L$4,"EJECUTOR INTERNO","SUPERVISIÓN / INTERVENTORÍA -EPC") -> 4999900475 | H21: =COUNTIFS('Proyectos en Ejecución'!$C$7:$C$277, $C21, 'Proyectos en Ejecución'!$U$7:$U$277, "ENTIDAD DESIGNADA PARA LA SUPERVISIÓN DEL PROYECTO O PARA CONTRATAR LA INTERVENTORÍA-EMPRESAS PUBLICAS DE CUNDINAMARCA -EPC") -> 0 | I21: =COUNTIFS('Proyectos en Ejecución'!$C$7:$C$277, $C21, 'Proyectos en Ejecución'!$U$7:$U$277, "ENTIDAD DESIGNADA PARA LA SUPERVISIÓN DEL PROYECTO O PARA CONTRATAR LA INTERVENTORÍA-EMPRESAS PUBLICAS DE CUNDINAMARCA -EPC") -> 0 | J21: =COUNTIFS('Proyectos en Ejecución'!$C$7:$C$277, $C21, 'Proyectos en Ejecución'!$U$7:$U$277, "ENTIDAD DESIGNADA PARA LA SUPERVISIÓN DEL PROYECTO O PARA CONTRATAR LA INTERVENTORÍA-EMPRESAS PUBLICAS DE CUNDINAMARCA -EPC") -> 0 | K21: 1 | L21: =COUNTIFS('Proyectos en Ejecución'!$C$7:$C$277, $C21, 'Proyectos en Ejecución'!$U$7:$U$277, "ENTIDAD DESIGNADA PARA LA SUPERVISIÓN DEL PROYECTO O PARA CONTRATAR LA INTERVENTORÍA-EMPRESAS PUBLICAS DE CUNDINAMARCA -EPC") -> 0 | M21: =COUNTIFS('Proyectos en Ejecución'!$C$7:$C$277, $C21, 'Proyectos en Ejecución'!$U$7:$U$277, M$3) -> 0 | N21: =COUNTIFS('Proyectos en Ejecución'!$C$7:$C$277, $C21, 'Proyectos en Ejecución'!$U$7:$U$277, N$3) -> 0 | O21: =COUNTIFS('Proyectos en Ejecución'!$C$7:$C$277, $C21, 'Proyectos en Ejecución'!$U$7:$U$277, O$3) -> 0
B22: TOTAL PROYECTOS ENTIDADES APORTANTES DE RECURSOS | D22: =SUM(D23:D57) -> 52 | E22: =SUM(E23:E57) -> 2.087880129e+11 | F22: 1.187391612e+11 | G22: 3.275271741e+11 | H22: =SUM(H23:H57) -> 0 | I22: =SUM(I23:I57) -> 0 | J22: 0 | K22: 44 | L22: 3 | M22: 3 | N22: 4 | O22: 1
B23: ENTIDAD APORTANTE DE RECURSOS | C23: U JAVERIANA | D23: 1 | E23: 6524500000 | F23: =G23-E23 -> 0 | G23: 6524500000 | H23: =COUNTIFS('Proyectos en Ejecución'!$C$7:$C$277, $C23, 'Proyectos en Ejecución'!$U$7:$U$277, H$3) -> 0 | I23: =COUNTIFS('Proyectos en Ejecución'!$C$7:$C$277, $C23, 'Proyectos en Ejecución'!$U$7:$U$277, I$3) -> 0 | J23: =COUNTIFS('Proyectos en Ejecución'!$C$7:$C$277, $C23, 'Proyectos en Ejecución'!$U$7:$U$277, J$3) -> 0 | K23: =COUNTIFS('Proyectos en Ejecución'!$C$7:$C$277, $C23, 'Proyectos en Ejecución'!$U$7:$U$277, K$3) -> 1 | L23: =COUNTIFS('Proyectos en Ejecución'!$C$7:$C$277, $C23, 'Proyectos en Ejecución'!$U$7:$U$277, L$3) -> 0 | M23: =COUNTIFS('Proyectos en Ejecución'!$C$7:$C$277, $C23, 'Proyectos en Ejecución'!$U$7:$U$277, M$3) -> 0 | N23: =COUNTIFS('Proyectos en Ejecución'!$C$7:$C$277, $C23, 'Proyectos en Ejecución'!$U$7:$U$277, N$3) -> 0 | O23: =COUNTIFS('Proyectos en Ejecución'!$C$7:$C$277, $C23, 'Proyectos en Ejecución'!$U$7:$U$277, O$3) -> 0
B24: ENTIDAD APORTANTE DE RECURSOS | C24: U TECNOLOGICA DE PEREIRA | D24: 1 | E24: 3950208215 | F24: 409820000 | G24: 4360028215 | H24: =COUNTIFS('Proyectos en Ejecución'!$C$7:$C$277, $C24, 'Proyectos en Ejecución'!$U$7:$U$277, H$3) -> 0 | I24: =COUNTIFS('Proyectos en Ejecución'!$C$7:$C$277, $C24, 'Proyectos en Ejecución'!$U$7:$U$277, I$3) -> 0 | J24: =COUNTIFS('Proyectos en Ejecución'!$C$7:$C$277, $C24, 'Proyectos en Ejecución'!$U$7:$U$277, J$3) -> 0 | K24: =COUNTIFS('Proyectos en Ejecución'!$C$7:$C$277, $C24, 'Proyectos en Ejecución'!$U$7:$U$277, K$3) -> 1 | L24: =COUNTIFS('Proyectos en Ejecución'!$C$7:$C$277, $C24, 'Proyectos en Ejecución'!$U$7:$U$277, L$3) -> 0 | M24: =COUNTIFS('Proyectos en Ejecución'!$C$7:$C$277, $C24, 'Proyectos en Ejecución'!$U$7:$U$277, M$3) -> 0 | N24: =COUNTIFS('Proyectos en Ejecución'!$C$7:$C$277, $C24, 'Proyectos en Ejecución'!$U$7:$U$277, N$3) -> 0 | O24: =COUNTIFS('Proyectos en Ejecución'!$C$7:$C$277, $C24, 'Proyectos en Ejecución'!$U$7:$U$277, O$3) -> 0
B25: ENTIDAD APORTANTE DE RECURSOS | C25: CAR | D25: 1 | E25: 18000000000 | F25: 0 | G25: 18000000000 | H25: =COUNTIFS('Proyectos en Ejecución'!$C$7:$C$277, $C25, 'Proyectos en Ejecución'!$U$7:$U$277, H$3) -> 0 | I25: =COUNTIFS('Proyectos en Ejecución'!$C$7:$C$277, $C25, 'Proyectos en Ejecución'!$U$7:$U$277, I$3) -> 0 | J25: =COUNTIFS('Proyectos en Ejecución'!$C$7:$C$277, $C25, 'Proyectos en Ejecución'!$U$7:$U$277, J$3) -> 0 | K25: =COUNTIFS('Proyectos en Ejecución'!$C$7:$C$277, $C25, 'Proyectos en Ejecución'!$U$7:$U$277, K$3) -> 1 | L25: =COUNTIFS('Proyectos en Ejecución'!$C$7:$C$277, $C25, 'Proyectos en Ejecución'!$U$7:$U$277, L$3) -> 0 | M25: =COUNTIFS('Proyectos en Ejecución'!$C$7:$C$277, $C25, 'Proyectos en Ejecución'!$U$7:$U$277, M$3) -> 0 | N25: =COUNTIFS('Proyectos en Ejecución'!$C$7:$C$277, $C25, 'Proyectos en Ejecución'!$U$7:$U$277, N$3) -> 0 | O25: =COUNTIFS('Proyectos en Ejecución'!$C$7:$C$277, $C25, 'Proyectos en Ejecución'!$U$7:$U$277, O$3) -> 1
B26: ENTIDAD APORTANTE DE RECURSOS | C26: UNAD | D26: 1 | E26: 1999985660 | F26: 1412888541 | G26: 3412874201 | H26: =COUNTIFS('Proyectos en Ejecución'!$C$7:$C$277, $C26, 'Proyectos en Ejecución'!$U$7:$U$277, H$3) -> 0 | I26: =COUNTIFS('Proyectos en Ejecución'!$C$7:$C$277, $C26, 'Proyectos en Ejecución'!$U$7:$U$277, I$3) -> 0 | J26: =COUNTIFS('Proyectos en Ejecución'!$C$7:$C$277, $C26, 'Proyectos en Ejecución'!$U$7:$U$277, J$3) -> 0 | K26: =COUNTIFS('Proyectos en Ejecución'!$C$7:$C$277, $C26, 'Proyectos en Ejecución'!$U$7:$U$277, K$3) -> 1 | L26: =COUNTIFS('Proyectos en Ejecución'!$C$7:$C$277, $C26, 'Proyectos en Ejecución'!$U$7:$U$277, L$3) -> 0 | M26: =COUNTIFS('Proyectos en Ejecución'!$C$7:$C$277, $C26, 'Proyectos en Ejecución'!$U$7:$U$277, M$3) -> 0 | N26: =COUNTIFS('Proyectos en Ejecución'!$C$7:$C$277, $C26, 'Proyectos en Ejecución'!$U$7:$U$277, N$3) -> 1 | O26: =COUNTIFS('Proyectos en Ejecución'!$C$7:$C$277, $C26, 'Proyectos en Ejecución'!$U$7:$U$277, O$3) -> 0
B27: ENTIDAD APORTANTE DE RECURSOS | C27: FEDERACIÓN NACIONAL DE CAFETEROS | D27: 1 | E27: 12848931736 | F27: 934625588 | G27: 13783557324 | H27: =COUNTIFS('Proyectos en Ejecución'!$C$7:$C$277, $C27, 'Proyectos en Ejecución'!$U$7:$U$277, H$3) -> 0 | I27: =COUNTIFS('Proyectos en Ejecución'!$C$7:$C$277, $C27, 'Proyectos en Ejecución'!$U$7:$U$277, I$3) -> 0 | J27: =COUNTIFS('Proyectos en Ejecución'!$C$7:$C$277, $C27, 'Proyectos en Ejecución'!$U$7:$U$277, J$3) -> 0 | K27: =COUNTIFS('Proyectos en Ejecución'!$C$7:$C$277, $C27, 'Proyectos en Ejecución'!$U$7:$U$277, K$3) -> 1 | L27: =COUNTIFS('Proyectos en Ejecución'!$C$7:$C$277, $C27, 'Proyectos en Ejecución'!$U$7:$U$277, L$3) -> 0 | M27: =COUNTIFS('Proyectos en Ejecución'!$C$7:$C$277, $C27, 'Proyectos en Ejecución'!$U$7:$U$277, M$3) -> 0 | N27: =COUNTIFS('Proyectos en Ejecución'!$C$7:$C$277, $C27, 'Proyectos en Ejecución'!$U$7:$U$277, N$3) -> 0 | O27: =COUNTIFS('Proyectos en Ejecución'!$C$7:$C$277, $C27, 'Proyectos en Ejecución'!$U$7:$U$277, O$3) -> 0
B28: ENTIDAD APORTANTE DE RECURSOS | C28: UNIVERSIDAD ANTONIO NARIÑO | D28: 1 | E28: 4250000000 | F28: 276652200 | G28: 4526652200 | H28: =COUNTIFS('Proyectos en Ejecución'!$C$7:$C$277, $C28, 'Proyectos en Ejecución'!$U$7:$U$277, H$3) -> 0 | I28: =COUNTIFS('Proyectos en Ejecución'!$C$7:$C$277, $C28, 'Proyectos en Ejecución'!$U$7:$U$277, I$3) -> 0 | J28: =COUNTIFS('Proyectos en Ejecución'!$C$7:$C$277, $C28, 'Proyectos en Ejecución'!$U$7:$U$277, J$3) -> 0 | K28: =COUNTIFS('Proyectos en Ejecución'!$C$7:$C$277, $C28, 'Proyectos en Ejecución'!$U$7:$U$277, K$3) -> 1 | L28: =COUNTIFS('Proyectos en Ejecución'!$C$7:$C$277, $C28, 'Proyectos en Ejecución'!$U$7:$U$277, L$3) -> 0 | M28: =COUNTIFS('Proyectos en Ejecución'!$C$7:$C$277, $C28, 'Proyectos en Ejecución'!$U$7:$U$277, M$3) -> 0 | N28: =COUNTIFS('Proyectos en Ejecución'!$C$7:$C$277, $C28, 'Proyectos en Ejecución'!$U$7:$U$277, N$3) -> 0 | O28: =COUNTIFS('Proyectos en Ejecución'!$C$7:$C$277, $C28, 'Proyectos en Ejecución'!$U$7:$U$277, O$3) -> 0
B29: ENTIDAD APORTANTE DE RECURSOS | C29: IDECUT | D29: 1 | E29: 1972606058 | F29: 0 | G29: 1972606058 | H29: =COUNTIFS('Proyectos en Ejecución'!$C$7:$C$277, $C29, 'Proyectos en Ejecución'!$U$7:$U$277, H$3) -> 0 | I29: =COUNTIFS('Proyectos en Ejecución'!$C$7:$C$277, $C29, 'Proyectos en Ejecución'!$U$7:$U$277, I$3) -> 0 | J29: =COUNTIFS('Proyectos en Ejecución'!$C$7:$C$277, $C29, 'Proyectos en Ejecución'!$U$7:$U$277, J$3) -> 0 | K29: =COUNTIFS('Proyectos en Ejecución'!$C$7:$C$277, $C29, 'Proyectos en Ejecución'!$U$7:$U$277, K$3) -> 0 | L29: =COUNTIFS('Proyectos en Ejecución'!$C$7:$C$277, $C29, 'Proyectos en Ejecución'!$U$7:$U$277, L$3) -> 0 | M29: =COUNTIFS('Proyectos en Ejecución'!$C$7:$C$277, $C29, 'Proyectos en Ejecución'!$U$7:$U$277, M$3) -> 0 | N29: =COUNTIFS('Proyectos en Ejecución'!$C$7:$C$277, $C29, 'Proyectos en Ejecución'!$U$7:$U$277, N$3) -> 1 | O29: =COUNTIFS('Proyectos en Ejecución'!$C$7:$C$277, $C29, 'Proyectos en Ejecución'!$U$7:$U$277, O$3) -> 0
B30: ENTIDAD APORTANTE DE RECURSOS | C30: EMTEL | D30: 1 | E30: 8993872201 | F30: 0 | G30: 8993872201 | H30: =COUNTIFS('Proyectos en Ejecución'!$C$7:$C$277, $C30, 'Proyectos en Ejecución'!$U$7:$U$277, H$3) -> 0 | I30: =COUNTIFS('Proyectos en Ejecución'!$C$7:$C$277, $C30, 'Proyectos en Ejecución'!$U$7:$U$277, I$3) -> 0 | J30: =COUNTIFS('Proyectos en Ejecución'!$C$7:$C$277, $C30, 'Proyectos en Ejecución'!$U$7:$U$277, J$3) -> 0 | K30: =COUNTIFS('Proyectos en Ejecución'!$C$7:$C$277, $C30, 'Proyectos en Ejecución'!$U$7:$U$277, K$3) -> 1 | L30: =COUNTIFS('Proyectos en Ejecución'!$C$7:$C$277, $C30, 'Proyectos en Ejecución'!$U$7:$U$277, L$3) -> 0 | M30: =COUNTIFS('Proyectos en Ejecución'!$C$7:$C$277, $C30, 'Proyectos en Ejecución'!$U$7:$U$277, M$3) -> 0 | N30: =COUNTIFS('Proyectos en Ejecución'!$C$7:$C$277, $C30, 'Proyectos en Ejecución'!$U$7:$U$277, N$3) -> 0 | O30: =COUNTIFS('Proyectos en Ejecución'!$C$7:$C$277, $C30, 'Proyectos en Ejecución'!$U$7:$U$277, O$3) -> 0
B31: ENTIDAD APORTANTE DE RECURSOS | C31: UNIVERSIDAD DE ANTIOQUIA | D31: 1 | E31: 998808306 | F31: 91800000 | G31: 1090608306 | H31: =COUNTIFS('Proyectos en Ejecución'!$C$7:$C$277, $C31, 'Proyectos en Ejecución'!$U$7:$U$277, H$3) -> 0 | I31: =COUNTIFS('Proyectos en Ejecución'!$C$7:$C$277, $C31, 'Proyectos en Ejecución'!$U$7:$U$277, I$3) -> 0 | J31: =COUNTIFS('Proyectos en Ejecución'!$C$7:$C$277, $C31, 'Proyectos en Ejecución'!$U$7:$U$277, J$3) -> 0 | K31: =COUNTIFS('Proyectos en Ejecución'!$C$7:$C$277, $C31, 'Proyectos en Ejecución'!$U$7:$U$277, K$3) -> 0 | L31: =COUNTIFS('Proyectos en Ejecución'!$C$7:$C$277, $C31, 'Proyectos en Ejecución'!$U$7:$U$277, L$3) -> 1 | M31: =COUNTIFS('Proyectos en Ejecución'!$C$7:$C$277, $C31, 'Proyectos en Ejecución'!$U$7:$U$277, M$3) -> 0 | N31: =COUNTIFS('Proyectos en Ejecución'!$C$7:$C$277, $C31, 'Proyectos en Ejecución'!$U$7:$U$277, N$3) -> 0 | O31: =COUNTIFS('Proyectos en Ejecución'!$C$7:$C$277, $C31, 'Proyectos en Ejecución'!$U$7:$U$277, O$3) -> 0
B32: ENTIDAD APORTANTE DE RECURSOS | C32: FUNDACION UNIVERSIDAD DEL VALLE | D32: 1 | E32: 10411761978 | F32: -10411761978 | G32: 0 | H32: =COUNTIFS('Proyectos en Ejecución'!$C$7:$C$277, $C32, 'Proyectos en Ejecución'!$U$7:$U$277, H$3) -> 0 | I32: =COUNTIFS('Proyectos en Ejecución'!$C$7:$C$277, $C32, 'Proyectos en Ejecución'!$U$7:$U$277, I$3) -> 0 | J32: =COUNTIFS('Proyectos en Ejecución'!$C$7:$C$277, $C32, 'Proyectos en Ejecución'!$U$7:$U$277, J$3) -> 0 | K32: =COUNTIFS('Proyectos en Ejecución'!$C$7:$C$277, $C32, 'Proyectos en Ejecución'!$U$7:$U$277, K$3) -> 1 | L32: =COUNTIFS('Proyectos en Ejecución'!$C$7:$C$277, $C32, 'Proyectos en Ejecución'!$U$7:$U$277, L$3) -> 1 | M32: =COUNTIFS('Proyectos en Ejecución'!$C$7:$C$277, $C32, 'Proyectos en Ejecución'!$U$7:$U$277, M$3) -> 0 | N32: =COUNTIFS('Proyectos en Ejecución'!$C$7:$C$277, $C32, 'Proyectos en Ejecución'!$U$7:$U$277, N$3) -> 0 | O32: =COUNTIFS('Proyectos en Ejecución'!$C$7:$C$277, $C32, 'Proyectos en Ejecución'!$U$7:$U$277, O$3) -> 0
B33: ENTIDAD APORTANTE DE RECURSOS | C33: BANCO AGRARIO DE COLOMBIA | D33: 1 | E33: 15888838218 | F33: 44152942000 | G33: 60041780218 | H33: =COUNTIFS('Proyectos en Ejecución'!$C$7:$C$277, $C33, 'Proyectos en Ejecución'!$U$7:$U$277, H$3) -> 0 | I33: =COUNTIFS('Proyectos en Ejecución'!$C$7:$C$277, $C33, 'Proyectos en Ejecución'!$U$7:$U$277, I$3) -> 0 | J33: =COUNTIFS('Proyectos en Ejecución'!$C$7:$C$277, $C33, 'Proyectos en Ejecución'!$U$7:$U$277, J$3) -> 0 | K33: =COUNTIFS('Proyectos en Ejecución'!$C$7:$C$277, $C33, 'Proyectos en Ejecución'!$U$7:$U$277, K$3) -> 1 | L33: =COUNTIFS('Proyectos en Ejecución'!$C$7:$C$277, $C33, 'Proyectos en Ejecución'!$U$7:$U$277, L$3) -> 0 | M33: =COUNTIFS('Proyectos en Ejecución'!$C$7:$C$277, $C33, 'Proyectos en Ejecución'!$U$7:$U$277, M$3) -> 0 | N33: =COUNTIFS('Proyectos en Ejecución'!$C$7:$C$277, $C33, 'Proyectos en Ejecución'!$U$7:$U$277, N$3) -> 0 | O33: =COUNTIFS('Proyectos en Ejecución'!$C$7:$C$277, $C33, 'Proyectos en Ejecución'!$U$7:$U$277, O$3) -> 0
B34: ENTIDAD APORTANTE DE RECURSOS | C34: INSTITUTO SUPERIOR DE EDUCACION RURAL DE PAMPLONA | D34: 1 | E34: 999999999 | F34: 97306328 | G34: 1097306327 | H34: =COUNTIFS('Proyectos en Ejecución'!$C$7:$C$277, $C34, 'Proyectos en Ejecución'!$U$7:$U$277, H$3) -> 0 | I34: =COUNTIFS('Proyectos en Ejecución'!$C$7:$C$277, $C34, 'Proyectos en Ejecución'!$U$7:$U$277, I$3) -> 0 | J34: =COUNTIFS('Proyectos en Ejecución'!$C$7:$C$277, $C34, 'Proyectos en Ejecución'!$U$7:$U$277, J$3) -> 0 | K34: =COUNTIFS('Proyectos en Ejecución'!$C$7:$C$277, $C34, 'Proyectos en Ejecución'!$U$7:$U$277, K$3) -> 1 | L34: =COUNTIFS('Proyectos en Ejecución'!$C$7:$C$277, $C34, 'Proyectos en Ejecución'!$U$7:$U$277, L$3) -> 0 | M34: =COUNTIFS('Proyectos en Ejecución'!$C$7:$C$277, $C34, 'Proyectos en Ejecución'!$U$7:$U$277, M$3) -> 0 | N34: =COUNTIFS('Proyectos en Ejecución'!$C$7:$C$277, $C34, 'Proyectos en Ejecución'!$U$7:$U$277, N$3) -> 0 | O34: =COUNTIFS('Proyectos en Ejecución'!$C$7:$C$277, $C34, 'Proyectos en Ejecución'!$U$7:$U$277, O$3) -> 0
B35: ENTIDAD APORTANTE DE RECURSOS | C35: MUNICIPIO DE ZIPAQUIRA | D35: 1 | E35: 467000000 | F35: 433000000 | G35: 900000000 | H35: =COUNTIFS('Proyectos en Ejecución'!$C$7:$C$277, $C35, 'Proyectos en Ejecución'!$U$7:$U$277, H$3) -> 0 | I35: =COUNTIFS('Proyectos en Ejecución'!$C$7:$C$277, $C35, 'Proyectos en Ejecución'!$U$7:$U$277, I$3) -> 0 | J35: =COUNTIFS('Proyectos en Ejecución'!$C$7:$C$277, $C35, 'Proyectos en Ejecución'!$U$7:$U$277, J$3) -> 0 | K35: =COUNTIFS('Proyectos en Ejecución'!$C$7:$C$277, $C35, 'Proyectos en Ejecución'!$U$7:$U$277, K$3) -> 1 | L35: =COUNTIFS('Proyectos en Ejecución'!$C$7:$C$277, $C35, 'Proyectos en Ejecución'!$U$7:$U$277, L$3) -> 0 | M35: =COUNTIFS('Proyectos en Ejecución'!$C$7:$C$277, $C35, 'Proyectos en Ejecución'!$U$7:$U$277, M$3) -> 0 | N35: =COUNTIFS('Proyectos en Ejecución'!$C$7:$C$277, $C35, 'Proyectos en Ejecución'!$U$7:$U$277, N$3) -> 0 | O35: =COUNTIFS('Proyectos en Ejecución'!$C$7:$C$277, $C35, 'Proyectos en Ejecución'!$U$7:$U$277, O$3) -> 0
B36: ENTIDAD APORTANTE DE RECURSOS | C36: MEDICINA LEGAL Y CIENCIAS FORENSES | D36: 1 | E36: 904521100 | F36: 0 | G36: 904521100 | H36: =COUNTIFS('Proyectos en Ejecución'!$C$7:$C$277, $C36, 'Proyectos en Ejecución'!$U$7:$U$277, H$3) -> 0 | I36: =COUNTIFS('Proyectos en Ejecución'!$C$7:$C$277, $C36, 'Proyectos en Ejecución'!$U$7:$U$277, I$3) -> 0 | J36: =COUNTIFS('Proyectos en Ejecución'!$C$7:$C$277, $C36, 'Proyectos en Ejecución'!$U$7:$U$277, J$3) -> 0 | K36: =COUNTIFS('Proyectos en Ejecución'!$C$7:$C$277, $C36, 'Proyectos en Ejecución'!$U$7:$U$277, K$3) -> 0 | L36: =COUNTIFS('Proyectos en Ejecución'!$C$7:$C$277, $C36, 'Proyectos en Ejecución'!$U$7:$U$277, L$3) -> 0 | M36: =COUNTIFS('Proyectos en Ejecución'!$C$7:$C$277, $C36, 'Proyectos en Ejecución'!$U$7:$U$277, M$3) -> 0 | N36: =COUNTIFS('Proyectos en Ejecución'!$C$7:$C$277, $C36, 'Proyectos en Ejecución'!$U$7:$U$277, N$3) -> 1 | O36: =COUNTIFS('Proyectos en Ejecución'!$C$7:$C$277, $C36, 'Proyectos en Ejecución'!$U$7:$U$277, O$3) -> 0
B37: ENTIDAD APORTANTE DE RECURSOS | C37: U CATOLICA | D37: 1 | E37: 299220000 | F37: 44375000 | G37: 343595000 | H37: =COUNTIFS('Proyectos en Ejecución'!$C$7:$C$277, $C37, 'Proyectos en Ejecución'!$U$7:$U$277, H$3) -> 0 | I37: =COUNTIFS('Proyectos en Ejecución'!$C$7:$C$277, $C37, 'Proyectos en Ejecución'!$U$7:$U$277, I$3) -> 0 | J37: =COUNTIFS('Proyectos en Ejecución'!$C$7:$C$277, $C37, 'Proyectos en Ejecución'!$U$7:$U$277, J$3) -> 0 | K37: =COUNTIFS('Proyectos en Ejecución'!$C$7:$C$277, $C37, 'Proyectos en Ejecución'!$U$7:$U$277, K$3) -> 1 | L37: =COUNTIFS('Proyectos en Ejecución'!$C$7:$C$277, $C37, 'Proyectos en Ejecución'!$U$7:$U$277, L$3) -> 0 | M37: =COUNTIFS('Proyectos en Ejecución'!$C$7:$C$277, $C37, 'Proyectos en Ejecución'!$U$7:$U$277, M$3) -> 0 | N37: =COUNTIFS('Proyectos en Ejecución'!$C$7:$C$277, $C37, 'Proyectos en Ejecución'!$U$7:$U$277, N$3) -> 0 | O37: =COUNTIFS('Proyectos en Ejecución'!$C$7:$C$277, $C37, 'Proyectos en Ejecución'!$U$7:$U$277, O$3) -> 0
B38: ENTIDAD APORTANTE DE RECURSOS | C38: UNIVERSIDAD DE CALDAS | D38: 1 | E38: 6000000000 | F38: 57580000000 | G38: 63580000000 | H38: =COUNTIFS('Proyectos en Ejecución'!$C$7:$C$277, $C38, 'Proyectos en Ejecución'!$U$7:$U$277, H$3) -> 0 | I38: =COUNTIFS('Proyectos en Ejecución'!$C$7:$C$277, $C38, 'Proyectos en Ejecución'!$U$7:$U$277, I$3) -> 0 | J38: =COUNTIFS('Proyectos en Ejecución'!$C$7:$C$277, $C38, 'Proyectos en Ejecución'!$U$7:$U$277, J$3) -> 0 | K38: =COUNTIFS('Proyectos en Ejecución'!$C$7:$C$277, $C38, 'Proyectos en Ejecución'!$U$7:$U$277, K$3) -> 1 | L38: =COUNTIFS('Proyectos en Ejecución'!$C$7:$C$277, $C38, 'Proyectos en Ejecución'!$U$7:$U$277, L$3) -> 0 | M38: =COUNTIFS('Proyectos en Ejecución'!$C$7:$C$277, $C38, 'Proyectos en Ejecución'!$U$7:$U$277, M$3) -> 0 | N38: =COUNTIFS('Proyectos en Ejecución'!$C$7:$C$277, $C38, 'Proyectos en Ejecución'!$U$7:$U$277, N$3) -> 0 | O38: =COUNTIFS('Proyectos en Ejecución'!$C$7:$C$277, $C38, 'Proyectos en Ejecución'!$U$7:$U$277, O$3) -> 0
B39: ENTIDAD APORTANTE DE RECURSOS | C39: U DISTRITAL | D39: 1 | E39: 1113595753 | F39: 105073088 | G39: 1218668841 | H39: =COUNTIFS('Proyectos en Ejecución'!$C$7:$C$277, $C39, 'Proyectos en Ejecución'!$U$7:$U$277, H$3) -> 0 | I39: =COUNTIFS('Proyectos en Ejecución'!$C$7:$C$277, $C39, 'Proyectos en Ejecución'!$U$7:$U$277, I$3) -> 0 | J39: =COUNTIFS('Proyectos en Ejecución'!$C$7:$C$277, $C39, 'Proyectos en Ejecución'!$U$7:$U$277, J$3) -> 0 | K39: =COUNTIFS('Proyectos en Ejecución'!$C$7:$C$277, $C39, 'Proyectos en Ejecución'!$U$7:$U$277, K$3) -> 1 | L39: =COUNTIFS('Proyectos en Ejecución'!$C$7:$C$277, $C39, 'Proyectos en Ejecución'!$U$7:$U$277, L$3) -> 0 | M39: =COUNTIFS('Proyectos en Ejecución'!$C$7:$C$277, $C39, 'Proyectos en Ejecución'!$U$7:$U$277, M$3) -> 0 | N39: =COUNTIFS('Proyectos en Ejecución'!$C$7:$C$277, $C39, 'Proyectos en Ejecución'!$U$7:$U$277, N$3) -> 0 | O39: =COUNTIFS('Proyectos en Ejecución'!$C$7:$C$277, $C39, 'Proyectos en Ejecución'!$U$7:$U$277, O$3) -> 0
B40: ENTIDAD APORTANTE DE RECURSOS | C40: UNIVERSIDAD DE CUNDINAMARCA | D40: 1 | E40: 1997753509 | F40: 26680160 | G40: 2024433669 | H40: =COUNTIFS('Proyectos en Ejecución'!$C$7:$C$277, $C40, 'Proyectos en Ejecución'!$U$7:$U$277, H$3) -> 0 | I40: =COUNTIFS('Proyectos en Ejecución'!$C$7:$C$277, $C40, 'Proyectos en Ejecución'!$U$7:$U$277, I$3) -> 0 | J40: =COUNTIFS('Proyectos en Ejecución'!$C$7:$C$277, $C40, 'Proyectos en Ejecución'!$U$7:$U$277, J$3) -> 0 | K40: =COUNTIFS('Proyectos en Ejecución'!$C$7:$C$277, $C40, 'Proyectos en Ejecución'!$U$7:$U$277, K$3) -> 1 | L40: =COUNTIFS('Proyectos en Ejecución'!$C$7:$C$277, $C40, 'Proyectos en Ejecución'!$U$7:$U$277, L$3) -> 0 | M40: =COUNTIFS('Proyectos en Ejecución'!$C$7:$C$277, $C40, 'Proyectos en Ejecución'!$U$7:$U$277, M$3) -> 0 | N40: =COUNTIFS('Proyectos en Ejecución'!$C$7:$C$277, $C40, 'Proyectos en Ejecución'!$U$7:$U$277, N$3) -> 0 | O40: =COUNTIFS('Proyectos en Ejecución'!$C$7:$C$277, $C40, 'Proyectos en Ejecución'!$U$7:$U$277, O$3) -> 0
B41: ENTIDAD APORTANTE DE RECURSOS | C41: AGROSAVIA | D41: 1 | E41: 3282745260 | F41: 1301224773 | G41: 4583970033 | H41: =COUNTIFS('Proyectos en Ejecución'!$C$7:$C$277, $C41, 'Proyectos en Ejecución'!$U$7:$U$277, H$3) -> 0 | I41: =COUNTIFS('Proyectos en Ejecución'!$C$7:$C$277, $C41, 'Proyectos en Ejecución'!$U$7:$U$277, I$3) -> 0 | J41: =COUNTIFS('Proyectos en Ejecución'!$C$7:$C$277, $C41, 'Proyectos en Ejecución'!$U$7:$U$277, J$3) -> 0 | K41: =COUNTIFS('Proyectos en Ejecución'!$C$7:$C$277, $C41, 'Proyectos en Ejecución'!$U$7:$U$277, K$3) -> 1 | L41: =COUNTIFS('Proyectos en Ejecución'!$C$7:$C$277, $C41, 'Proyectos en Ejecución'!$U$7:$U$277, L$3) -> 0 | M41: =COUNTIFS('Proyectos en Ejecución'!$C$7:$C$277, $C41, 'Proyectos en Ejecución'!$U$7:$U$277, M$3) -> 0 | N41: =COUNTIFS('Proyectos en Ejecución'!$C$7:$C$277, $C41, 'Proyectos en Ejecución'!$U$7:$U$277, N$3) -> 0 | O41: =COUNTIFS('Proyectos en Ejecución'!$C$7:$C$277, $C41, 'Proyectos en Ejecución'!$U$7:$U$277, O$3) -> 0
B42: ENTIDAD APORTANTE DE RECURSOS | C42: UNIVERSIDAD DE LA SABANA | D42: 1 | E42: 1309600000 | F42: 210350000 | G42: 1519950000 | H42: =COUNTIFS('Proyectos en Ejecución'!$C$7:$C$277, $C42, 'Proyectos en Ejecución'!$U$7:$U$277, H$3) -> 0 | I42: =COUNTIFS('Proyectos en Ejecución'!$C$7:$C$277, $C42, 'Proyectos en Ejecución'!$U$7:$U$277, I$3) -> 0 | J42: =COUNTIFS('Proyectos en Ejecución'!$C$7:$C$277, $C42, 'Proyectos en Ejecución'!$U$7:$U$277, J$3) -> 0 | K42: =COUNTIFS('Proyectos en Ejecución'!$C$7:$C$277, $C42, 'Proyectos en Ejecución'!$U$7:$U$277, K$3) -> 1 | L42: =COUNTIFS('Proyectos en Ejecución'!$C$7:$C$277, $C42, 'Proyectos en Ejecución'!$U$7:$U$277, L$3) -> 0 | M42: =COUNTIFS('Proyectos en Ejecución'!$C$7:$C$277, $C42, 'Proyectos en Ejecución'!$U$7:$U$277, M$3) -> 0 | N42: =COUNTIFS('Proyectos en Ejecución'!$C$7:$C$277, $C42, 'Proyectos en Ejecución'!$U$7:$U$277, N$3) -> 0 | O42: =COUNTIFS('Proyectos en Ejecución'!$C$7:$C$277, $C42, 'Proyectos en Ejecución'!$U$7:$U$277, O$3) -> 0
B43: ENTIDAD APORTANTE DE RECURSOS | C43: MUNICIPIO DE UTICA | D43: 1 | E43: 2123058880 | F43: 223945988 | G43: 2347004868 | H43: =COUNTIFS('Proyectos en Ejecución'!$C$7:$C$277, $C43, 'Proyectos en Ejecución'!$U$7:$U$277, H$3) -> 0 | I43: =COUNTIFS('Proyectos en Ejecución'!$C$7:$C$277, $C43, 'Proyectos en Ejecución'!$U$7:$U$277, I$3) -> 0 | J43: =COUNTIFS('Proyectos en Ejecución'!$C$7:$C$277, $C43, 'Proyectos en Ejecución'!$U$7:$U$277, J$3) -> 0 | K43: =COUNTIFS('Proyectos en Ejecución'!$C$7:$C$277, $C43, 'Proyectos en Ejecución'!$U$7:$U$277, K$3) -> 0 | L43: =COUNTIFS('Proyectos en Ejecución'!$C$7:$C$277, $C43, 'Proyectos en Ejecución'!$U$7:$U$277, L$3) -> 1 | M43: =COUNTIFS('Proyectos en Ejecución'!$C$7:$C$277, $C43, 'Proyectos en Ejecución'!$U$7:$U$277, M$3) -> 0 | N43: =COUNTIFS('Proyectos en Ejecución'!$C$7:$C$277, $C43, 'Proyectos en Ejecución'!$U$7:$U$277, N$3) -> 0 | O43: =COUNTIFS('Proyectos en Ejecución'!$C$7:$C$277, $C43, 'Proyectos en Ejecución'!$U$7:$U$277, O$3) -> 0
B44: ENTIDAD APORTANTE DE RECURSOS | C44: UNIVERSIDAD DEL NORTE | D44: 1 | E44: 6750000000 | F44: 170233499 | G44: 6920233499 | H44: =COUNTIFS('Proyectos en Ejecución'!$C$7:$C$277, $C44, 'Proyectos en Ejecución'!$U$7:$U$277, H$3) -> 0 | I44: =COUNTIFS('Proyectos en Ejecución'!$C$7:$C$277, $C44, 'Proyectos en Ejecución'!$U$7:$U$277, I$3) -> 0 | J44: =COUNTIFS('Proyectos en Ejecución'!$C$7:$C$277, $C44, 'Proyectos en Ejecución'!$U$7:$U$277, J$3) -> 0 | K44: =COUNTIFS('Proyectos en Ejecución'!$C$7:$C$277, $C44, 'Proyectos en Ejecución'!$U$7:$U$277, K$3) -> 1 | L44: =COUNTIFS('Proyectos en Ejecución'!$C$7:$C$277, $C44, 'Proyectos en Ejecución'!$U$7:$U$277, L$3) -> 0 | M44: =COUNTIFS('Proyectos en Ejecución'!$C$7:$C$277, $C44, 'Proyectos en Ejecución'!$U$7:$U$277, M$3) -> 0 | N44: =COUNTIFS('Proyectos en Ejecución'!$C$7:$C$277, $C44, 'Proyectos en Ejecución'!$U$7:$U$277, N$3) -> 0 | O44: =COUNTIFS('Proyectos en Ejecución'!$C$7:$C$277, $C44, 'Proyectos en Ejecución'!$U$7:$U$277, O$3) -> 0
B45: ENTIDAD APORTANTE DE RECURSOS | C45: U DE LOS ANDES | D45: 1 | E45: 2748000000 | F45: 66671307 | G45: 2814671307 | H45: =COUNTIFS('Proyectos en Ejecución'!$C$7:$C$277, $C45, 'Proyectos en Ejecución'!$U$7:$U$277, H$3) -> 0 | I45: =COUNTIFS('Proyectos en Ejecución'!$C$7:$C$277, $C45, 'Proyectos en Ejecución'!$U$7:$U$277, I$3) -> 0 | J45: =COUNTIFS('Proyectos en Ejecución'!$C$7:$C$277, $C45, 'Proyectos en Ejecución'!$U$7:$U$277, J$3) -> 0 | K45: =COUNTIFS('Proyectos en Ejecución'!$C$7:$C$277, $C45, 'Proyectos en Ejecución'!$U$7:$U$277, K$3) -> 1 | L45: =COUNTIFS('Proyectos en Ejecución'!$C$7:$C$277, $C45, 'Proyectos en Ejecución'!$U$7:$U$277, L$3) -> 0 | M45: =COUNTIFS('Proyectos en Ejecución'!$C$7:$C$277, $C45, 'Proyectos en Ejecución'!$U$7:$U$277, M$3) -> 0 | N45: =COUNTIFS('Proyectos en Ejecución'!$C$7:$C$277, $C45, 'Proyectos en Ejecución'!$U$7:$U$277, N$3) -> 0 | O45: =COUNTIFS('Proyectos en Ejecución'!$C$7:$C$277, $C45, 'Proyectos en Ejecución'!$U$7:$U$277, O$3) -> 0
B46: ENTIDAD APORTANTE DE RECURSOS | C46: UNIVERSIDAD DEL VALLE | D46: 1 | E46: 5335769261 | F46: 577300853 | G46: 5913070114 | H46: =COUNTIFS('Proyectos en Ejecución'!$C$7:$C$277, $C46, 'Proyectos en Ejecución'!$U$7:$U$277, H$3) -> 0 | I46: =COUNTIFS('Proyectos en Ejecución'!$C$7:$C$277, $C46, 'Proyectos en Ejecución'!$U$7:$U$277, I$3) -> 0 | J46: =COUNTIFS('Proyectos en Ejecución'!$C$7:$C$277, $C46, 'Proyectos en Ejecución'!$U$7:$U$277, J$3) -> 0 | K46: =COUNTIFS('Proyectos en Ejecución'!$C$7:$C$277, $C46, 'Proyectos en Ejecución'!$U$7:$U$277, K$3) -> 1 | L46: =COUNTIFS('Proyectos en Ejecución'!$C$7:$C$277, $C46, 'Proyectos en Ejecución'!$U$7:$U$277, L$3) -> 0 | M46: =COUNTIFS('Proyectos en Ejecución'!$C$7:$C$277, $C46, 'Proyectos en Ejecución'!$U$7:$U$277, M$3) -> 0 | N46: =COUNTIFS('Proyectos en Ejecución'!$C$7:$C$277, $C46, 'Proyectos en Ejecución'!$U$7:$U$277, N$3) -> 0 | O46: =COUNTIFS('Proyectos en Ejecución'!$C$7:$C$277, $C46, 'Proyectos en Ejecución'!$U$7:$U$277, O$3) -> 0
B47: ENTIDAD APORTANTE DE RECURSOS | C47: CONNECT BOGOTA REGIÓN | D47: 1 | E47: 2972617683 | F47: 337231070 | G47: 3309848753 | H47: =COUNTIFS('Proyectos en Ejecución'!$C$7:$C$277, $C47, 'Proyectos en Ejecución'!$U$7:$U$277, H$3) -> 0 | I47: =COUNTIFS('Proyectos en Ejecución'!$C$7:$C$277, $C47, 'Proyectos en Ejecución'!$U$7:$U$277, I$3) -> 0 | J47: =COUNTIFS('Proyectos en Ejecución'!$C$7:$C$277, $C47, 'Proyectos en Ejecución'!$U$7:$U$277, J$3) -> 0 | K47: =COUNTIFS('Proyectos en Ejecución'!$C$7:$C$277, $C47, 'Proyectos en Ejecución'!$U$7:$U$277, K$3) -> 1 | L47: =COUNTIFS('Proyectos en Ejecución'!$C$7:$C$277, $C47, 'Proyectos en Ejecución'!$U$7:$U$277, L$3) -> 0 | M47: =COUNTIFS('Proyectos en Ejecución'!$C$7:$C$277, $C47, 'Proyectos en Ejecución'!$U$7:$U$277, M$3) -> 0 | N47: =COUNTIFS('Proyectos en Ejecución'!$C$7:$C$277, $C47, 'Proyectos en Ejecución'!$U$7:$U$277, N$3) -> 0 | O47: =COUNTIFS('Proyectos en Ejecución'!$C$7:$C$277, $C47, 'Proyectos en Ejecución'!$U$7:$U$277, O$3) -> 0
B48: ENTIDAD APORTANTE DE RECURSOS | C48: UNIVERSIDAD EAN | D48: 1 | E48: 1750000000 | F48: 294506416 | G48: 2044506416 | H48: =COUNTIFS('Proyectos en Ejecución'!$C$7:$C$277, $C48, 'Proyectos en Ejecución'!$U$7:$U$277, H$3) -> 0 | I48: =COUNTIFS('Proyectos en Ejecución'!$C$7:$C$277, $C48, 'Proyectos en Ejecución'!$U$7:$U$277, I$3) -> 0 | J48: =COUNTIFS('Proyectos en Ejecución'!$C$7:$C$277, $C48, 'Proyectos en Ejecución'!$U$7:$U$277, J$3) -> 0 | K48: =COUNTIFS('Proyectos en Ejecución'!$C$7:$C$277, $C48, 'Proyectos en Ejecución'!$U$7:$U$277, K$3) -> 1 | L48: =COUNTIFS('Proyectos en Ejecución'!$C$7:$C$277, $C48, 'Proyectos en Ejecución'!$U$7:$U$277, L$3) -> 0 | M48: =COUNTIFS('Proyectos en Ejecución'!$C$7:$C$277, $C48, 'Proyectos en Ejecución'!$U$7:$U$277, M$3) -> 0 | N48: =COUNTIFS('Proyectos en Ejecución'!$C$7:$C$277, $C48, 'Proyectos en Ejecución'!$U$7:$U$277, N$3) -> 0 | O48: =COUNTIFS('Proyectos en Ejecución'!$C$7:$C$277, $C48, 'Proyectos en Ejecución'!$U$7:$U$277, O$3) -> 0
B49: ENTIDAD APORTANTE DE RECURSOS | C49: U EAN | D49: 1 | E49: 1250000000 | F49: 44375000 | G49: 1294375000 | H49: =COUNTIFS('Proyectos en Ejecución'!$C$7:$C$277, $C49, 'Proyectos en Ejecución'!$U$7:$U$277, H$3) -> 0 | I49: =COUNTIFS('Proyectos en Ejecución'!$C$7:$C$277, $C49, 'Proyectos en Ejecución'!$U$7:$U$277, I$3) -> 0 | J49: =COUNTIFS('Proyectos en Ejecución'!$C$7:$C$277, $C49, 'Proyectos en Ejecución'!$U$7:$U$277, J$3) -> 0 | K49: =COUNTIFS('Proyectos en Ejecución'!$C$7:$C$277, $C49, 'Proyectos en Ejecución'!$U$7:$U$277, K$3) -> 1 | L49: =COUNTIFS('Proyectos en Ejecución'!$C$7:$C$277, $C49, 'Proyectos en Ejecución'!$U$7:$U$277, L$3) -> 0 | M49: =COUNTIFS('Proyectos en Ejecución'!$C$7:$C$277, $C49, 'Proyectos en Ejecución'!$U$7:$U$277, M$3) -> 0 | N49: =COUNTIFS('Proyectos en Ejecución'!$C$7:$C$277, $C49, 'Proyectos en Ejecución'!$U$7:$U$277, N$3) -> 0 | O49: =COUNTIFS('Proyectos en Ejecución'!$C$7:$C$277, $C49, 'Proyectos en Ejecución'!$U$7:$U$277, O$3) -> 0
B50: ENTIDAD APORTANTE DE RECURSOS | C50: UNIVERSIDAD TECNOLOGICA DE SANTANDER | D50: 1 | E50: 980000000 | F50: 36752702 | G50: 1016752702 | H50: =COUNTIFS('Proyectos en Ejecución'!$C$7:$C$277, $C50, 'Proyectos en Ejecución'!$U$7:$U$277, H$3) -> 0 | I50: =COUNTIFS('Proyectos en Ejecución'!$C$7:$C$277, $C50, 'Proyectos en Ejecución'!$U$7:$U$277, I$3) -> 0 | J50: =COUNTIFS('Proyectos en Ejecución'!$C$7:$C$277, $C50, 'Proyectos en Ejecución'!$U$7:$U$277, J$3) -> 0 | K50: =COUNTIFS('Proyectos en Ejecución'!$C$7:$C$277, $C50, 'Proyectos en Ejecución'!$U$7:$U$277, K$3) -> 1 | L50: =COUNTIFS('Proyectos en Ejecución'!$C$7:$C$277, $C50, 'Proyectos en Ejecución'!$U$7:$U$277, L$3) -> 0 | M50: =COUNTIFS('Proyectos en Ejecución'!$C$7:$C$277, $C50, 'Proyectos en Ejecución'!$U$7:$U$277, M$3) -> 0 | N50: =COUNTIFS('Proyectos en Ejecución'!$C$7:$C$277, $C50, 'Proyectos en Ejecución'!$U$7:$U$277, N$3) -> 0 | O50: =COUNTIFS('Proyectos en Ejecución'!$C$7:$C$277, $C50, 'Proyectos en Ejecución'!$U$7:$U$277, O$3) -> 0
B51: ENTIDAD APORTANTE DE RECURSOS | C51: PONIFICA UNIVERSIDAD JAVERIANA | D51: 1 | E51: 7246312500 | F51: 1331179261 | G51: 8577491761 | H51: =COUNTIFS('Proyectos en Ejecución'!$C$7:$C$277, $C51, 'Proyectos en Ejecución'!$U$7:$U$277, H$3) -> 0 | I51: =COUNTIFS('Proyectos en Ejecución'!$C$7:$C$277, $C51, 'Proyectos en Ejecución'!$U$7:$U$277, I$3) -> 0 | J51: =COUNTIFS('Proyectos en Ejecución'!$C$7:$C$277, $C51, 'Proyectos en Ejecución'!$U$7:$U$277, J$3) -> 0 | K51: =COUNTIFS('Proyectos en Ejecución'!$C$7:$C$277, $C51, 'Proyectos en Ejecución'!$U$7:$U$277, K$3) -> 1 | L51: =COUNTIFS('Proyectos en Ejecución'!$C$7:$C$277, $C51, 'Proyectos en Ejecución'!$U$7:$U$277, L$3) -> 0 | M51: =COUNTIFS('Proyectos en Ejecución'!$C$7:$C$277, $C51, 'Proyectos en Ejecución'!$U$7:$U$277, M$3) -> 0 | N51: =COUNTIFS('Proyectos en Ejecución'!$C$7:$C$277, $C51, 'Proyectos en Ejecución'!$U$7:$U$277, N$3) -> 0 | O51: =COUNTIFS('Proyectos en Ejecución'!$C$7:$C$277, $C51, 'Proyectos en Ejecución'!$U$7:$U$277, O$3) -> 0
B52: ENTIDAD APORTANTE DE RECURSOS | C52: UPTC | D52: 1 | E52: 196703104 | F52: 2113931778 | G52: 2310634882 | H52: =COUNTIFS('Proyectos en Ejecución'!$C$7:$C$277, $C52, 'Proyectos en Ejecución'!$U$7:$U$277, H$3) -> 0 | I52: =COUNTIFS('Proyectos en Ejecución'!$C$7:$C$277, $C52, 'Proyectos en Ejecución'!$U$7:$U$277, I$3) -> 0 | J52: =COUNTIFS('Proyectos en Ejecución'!$C$7:$C$277, $C52, 'Proyectos en Ejecución'!$U$7:$U$277, J$3) -> 0 | K52: =COUNTIFS('Proyectos en Ejecución'!$C$7:$C$277, $C52, 'Proyectos en Ejecución'!$U$7:$U$277, K$3) -> 1 | L52: =COUNTIFS('Proyectos en Ejecución'!$C$7:$C$277, $C52, 'Proyectos en Ejecución'!$U$7:$U$277, L$3) -> 0 | M52: =COUNTIFS('Proyectos en Ejecución'!$C$7:$C$277, $C52, 'Proyectos en Ejecución'!$U$7:$U$277, M$3) -> 0 | N52: =COUNTIFS('Proyectos en Ejecución'!$C$7:$C$277, $C52, 'Proyectos en Ejecución'!$U$7:$U$277, N$3) -> 0 | O52: =COUNTIFS('Proyectos en Ejecución'!$C$7:$C$277, $C52, 'Proyectos en Ejecución'!$U$7:$U$277, O$3) -> 0
B53: ENTIDAD APORTANTE DE RECURSOS | C53: INSTITUTO UNIVERSITARIO DE LA PAZ – UNIPAZ | D53: 2 | E53: 2942953292 | F53: 1156853887 | G53: 4099807179 | H53: =COUNTIFS('Proyectos en Ejecución'!$C$7:$C$277, $C53, 'Proyectos en Ejecución'!$U$7:$U$277, H$3) -> 0 | I53: =COUNTIFS('Proyectos en Ejecución'!$C$7:$C$277, $C53, 'Proyectos en Ejecución'!$U$7:$U$277, I$3) -> 0 | J53: =COUNTIFS('Proyectos en Ejecución'!$C$7:$C$277, $C53, 'Proyectos en Ejecución'!$U$7:$U$277, J$3) -> 0 | K53: =COUNTIFS('Proyectos en Ejecución'!$C$7:$C$277, $C53, 'Proyectos en Ejecución'!$U$7:$U$277, K$3) -> 0 | L53: =COUNTIFS('Proyectos en Ejecución'!$C$7:$C$277, $C53, 'Proyectos en Ejecución'!$U$7:$U$277, L$3) -> 0 | M53: =COUNTIFS('Proyectos en Ejecución'!$C$7:$C$277, $C53, 'Proyectos en Ejecución'!$U$7:$U$277, M$3) -> 1 | N53: =COUNTIFS('Proyectos en Ejecución'!$C$7:$C$277, $C53, 'Proyectos en Ejecución'!$U$7:$U$277, N$3) -> 1 | O53: =COUNTIFS('Proyectos en Ejecución'!$C$7:$C$277, $C53, 'Proyectos en Ejecución'!$U$7:$U$277, O$3) -> 0
B54: ENTIDAD APORTANTE DE RECURSOS | C54: ZIPAQUIRA | D54: 2 | E54: 7458735075 | F54: 0 | G54: 7458735075 | H54: =COUNTIFS('Proyectos en Ejecución'!$C$7:$C$277, $C54, 'Proyectos en Ejecución'!$U$7:$U$277, H$3) -> 0 | I54: =COUNTIFS('Proyectos en Ejecución'!$C$7:$C$277, $C54, 'Proyectos en Ejecución'!$U$7:$U$277, I$3) -> 0 | J54: =COUNTIFS('Proyectos en Ejecución'!$C$7:$C$277, $C54, 'Proyectos en Ejecución'!$U$7:$U$277, J$3) -> 0 | K54: =COUNTIFS('Proyectos en Ejecución'!$C$7:$C$277, $C54, 'Proyectos en Ejecución'!$U$7:$U$277, K$3) -> 2 | L54: =COUNTIFS('Proyectos en Ejecución'!$C$7:$C$277, $C54, 'Proyectos en Ejecución'!$U$7:$U$277, L$3) -> 0 | M54: =COUNTIFS('Proyectos en Ejecución'!$C$7:$C$277, $C54, 'Proyectos en Ejecución'!$U$7:$U$277, M$3) -> 0 | N54: =COUNTIFS('Proyectos en Ejecución'!$C$7:$C$277, $C54, 'Proyectos en Ejecución'!$U$7:$U$277, N$3) -> 0 | O54: =COUNTIFS('Proyectos en Ejecución'!$C$7:$C$277, $C54, 'Proyectos en Ejecución'!$U$7:$U$277, O$3) -> 0
B55: ENTIDAD APORTANTE DE RECURSOS | C55: UNIVERSIDAD INDUSTRIAL DE SANTANDER | D55: 4 | E55: 6427957938 | F55: 4274485748 | G55: 1.070244369e+10 | H55: =COUNTIFS('Proyectos en Ejecución'!$C$7:$C$277, $C55, 'Proyectos en Ejecución'!$U$7:$U$277, H$3) -> 0 | I55: =COUNTIFS('Proyectos en Ejecución'!$C$7:$C$277, $C55, 'Proyectos en Ejecución'!$U$7:$U$277, I$3) -> 0 | J55: =COUNTIFS('Proyectos en Ejecución'!$C$7:$C$277, $C55, 'Proyectos en Ejecución'!$U$7:$U$277, J$3) -> 0 | K55: =COUNTIFS('Proyectos en Ejecución'!$C$7:$C$277, $C55, 'Proyectos en Ejecución'!$U$7:$U$277, K$3) -> 4 | L55: =COUNTIFS('Proyectos en Ejecución'!$C$7:$C$277, $C55, 'Proyectos en Ejecución'!$U$7:$U$277, L$3) -> 0 | M55: =COUNTIFS('Proyectos en Ejecución'!$C$7:$C$277, $C55, 'Proyectos en Ejecución'!$U$7:$U$277, M$3) -> 0 | N55: =COUNTIFS('Proyectos en Ejecución'!$C$7:$C$277, $C55, 'Proyectos en Ejecución'!$U$7:$U$277, N$3) -> 0 | O55: =COUNTIFS('Proyectos en Ejecución'!$C$7:$C$277, $C55, 'Proyectos en Ejecución'!$U$7:$U$277, O$3) -> 0
B56: ENTIDAD APORTANTE DE RECURSOS | C56: UNIVERSIDAD MILITAR NUEVA GRANADA | D56: 5 | E56: 8434309321 | F56: 4368562589 | G56: 12802871910 | H56: =COUNTIFS('Proyectos en Ejecución'!$C$7:$C$277, $C56, 'Proyectos en Ejecución'!$U$7:$U$277, H$3) -> 0 | I56: =COUNTIFS('Proyectos en Ejecución'!$C$7:$C$277, $C56, 'Proyectos en Ejecución'!$U$7:$U$277, I$3) -> 0 | J56: =COUNTIFS('Proyectos en Ejecución'!$C$7:$C$277, $C56, 'Proyectos en Ejecución'!$U$7:$U$277, J$3) -> 0 | K56: =COUNTIFS('Proyectos en Ejecución'!$C$7:$C$277, $C56, 'Proyectos en Ejecución'!$U$7:$U$277, K$3) -> 5 | L56: =COUNTIFS('Proyectos en Ejecución'!$C$7:$C$277, $C56, 'Proyectos en Ejecución'!$U$7:$U$277, L$3) -> 0 | M56: =COUNTIFS('Proyectos en Ejecución'!$C$7:$C$277, $C56, 'Proyectos en Ejecución'!$U$7:$U$277, M$3) -> 0 | N56: =COUNTIFS('Proyectos en Ejecución'!$C$7:$C$277, $C56, 'Proyectos en Ejecución'!$U$7:$U$277, N$3) -> 0 | O56: =COUNTIFS('Proyectos en Ejecución'!$C$7:$C$277, $C56, 'Proyectos en Ejecución'!$U$7:$U$277, O$3) -> 0
B57: ENTIDAD APORTANTE DE RECURSOS | C57: UNIVERSIDAD NACIONAL DE COLOMBIA | D57: 9 | E57: 4.995764786e+10 | F57: 7078155434 | G57: 5.703580329e+10 | H57: =COUNTIFS('Proyectos en Ejecución'!$C$7:$C$277, $C57, 'Proyectos en Ejecución'!$U$7:$U$277, H$3) -> 0 | I57: =COUNTIFS('Proyectos en Ejecución'!$C$7:$C$277, $C57, 'Proyectos en Ejecución'!$U$7:$U$277, I$3) -> 0 | J57: =COUNTIFS('Proyectos en Ejecución'!$C$7:$C$277, $C57, 'Proyectos en Ejecución'!$U$7:$U$277, J$3) -> 0 | K57: =COUNTIFS('Proyectos en Ejecución'!$C$7:$C$277, $C57, 'Proyectos en Ejecución'!$U$7:$U$277, K$3) -> 7 | L57: =COUNTIFS('Proyectos en Ejecución'!$C$7:$C$277, $C57, 'Proyectos en Ejecución'!$U$7:$U$277, L$3) -> 0 | M57: =COUNTIFS('Proyectos en Ejecución'!$C$7:$C$277, $C57, 'Proyectos en Ejecución'!$U$7:$U$277, M$3) -> 2 | N57: =COUNTIFS('Proyectos en Ejecución'!$C$7:$C$277, $C57, 'Proyectos en Ejecución'!$U$7:$U$277, N$3) -> 0 | O57: =COUNTIFS('Proyectos en Ejecución'!$C$7:$C$277, $C57, 'Proyectos en Ejecución'!$U$7:$U$277, O$3) -> 0
B58: TOTAL PROYECTOS ENTIDADES DECENTRALIZADAS | D58: =SUM(D59:D60) -> 46 | E58: =SUM(E59:E60) -> 271344445338 | F58: 3.566824194e+10 | G58: 3.070126873e+11 | H58: 0 | I58: 0 | J58: 0 | K58: 2 | L58: 4 | M58: 2 | N58: 37 | O58: 1
B59: DECENTRALIZADAS | C59: ICCU - GESPROY GB | D59: =GETPIVOTDATA("Cuenta de BPIM",Hoja1!$G$4,"EJECUTOR INTERNO","ICCU - GESPROY GB") -> 45 | E59: =GETPIVOTDATA("Suma de VALOR SGR",Hoja1!$G$4,"EJECUTOR INTERNO","ICCU - GESPROY GB") -> 269371839280 | F59: =G59-E59 -> 3.566824194e+10 | G59: =GETPIVOTDATA("Suma de VALOR PROYECTO",Hoja1!$G$4,"EJECUTOR INTERNO","ICCU - GESPROY GB") -> 3.050400812e+11 | H59: =COUNTIFS('Proyectos en Ejecución'!$C$7:$C$277, $C59, 'Proyectos en Ejecución'!$U$7:$U$277, H$3) -> 0 | I59: =COUNTIFS('Proyectos en Ejecución'!$C$7:$C$277, $C59, 'Proyectos en Ejecución'!$U$7:$U$277, I$3) -> 0 | J59: =COUNTIFS('Proyectos en Ejecución'!$C$7:$C$277, $C59, 'Proyectos en Ejecución'!$U$7:$U$277, J$3) -> 0 | K59: =COUNTIFS('Proyectos en Ejecución'!$C$7:$C$277, $C59, 'Proyectos en Ejecución'!$U$7:$U$277, K$3) -> 2 | L59: =COUNTIFS('Proyectos en Ejecución'!$C$7:$C$277, $C59, 'Proyectos en Ejecución'!$U$7:$U$277, L$3) -> 4 | M59: =COUNTIFS('Proyectos en Ejecución'!$C$7:$C$277, $C59, 'Proyectos en Ejecución'!$U$7:$U$277, M$3) -> 2 | N59: =COUNTIFS('Proyectos en Ejecución'!$C$7:$C$277, $C59, 'Proyectos en Ejecución'!$U$7:$U$277, N$3) -> 36 | O59: =COUNTIFS('Proyectos en Ejecución'!$C$7:$C$277, $C59, 'Proyectos en Ejecución'!$U$7:$U$277, O$3) -> 1
B60: DECENTRALIZADAS | C60: IDECUT | D60: =GETPIVOTDATA("Cuenta de BPIM",Hoja1!$G$4,"EJECUTOR INTERNO","IDECUT") -> 1 | E60: =GETPIVOTDATA("Suma de VALOR SGR",Hoja1!$G$4,"EJECUTOR INTERNO","IDECUT") -> 1972606058 | F60: =G60-E60 -> 0 | G60: =GETPIVOTDATA("Suma de VALOR SGR",Hoja1!$G$4,"EJECUTOR INTERNO","IDECUT") -> 1972606058 | H60: =COUNTIFS('Proyectos en Ejecución'!$C$7:$C$277, $C60, 'Proyectos en Ejecución'!$U$7:$U$277, H$3) -> 0 | I60: =COUNTIFS('Proyectos en Ejecución'!$C$7:$C$277, $C60, 'Proyectos en Ejecución'!$U$7:$U$277, I$3) -> 0 | J60: =COUNTIFS('Proyectos en Ejecución'!$C$7:$C$277, $C60, 'Proyectos en Ejecución'!$U$7:$U$277, J$3) -> 0 | K60: =COUNTIFS('Proyectos en Ejecución'!$C$7:$C$277, $C60, 'Proyectos en Ejecución'!$U$7:$U$277, K$3) -> 0 | L60: =COUNTIFS('Proyectos en Ejecución'!$C$7:$C$277, $C60, 'Proyectos en Ejecución'!$U$7:$U$277, L$3) -> 0 | M60: =COUNTIFS('Proyectos en Ejecución'!$C$7:$C$277, $C60, 'Proyectos en Ejecución'!$U$7:$U$277, M$3) -> 0 | N60: =COUNTIFS('Proyectos en Ejecución'!$C$7:$C$277, $C60, 'Proyectos en Ejecución'!$U$7:$U$277, N$3) -> 1 | O60: =COUNTIFS('Proyectos en Ejecución'!$C$7:$C$277, $C60, 'Proyectos en Ejecución'!$U$7:$U$277, O$3) -> 0

Sheet Tablas (hidden)
A1: EJECUTOR (Dpto / Entidad) | B1: CUNDINAMARCA | F1: EJECUTOR (Dpto / Entidad) | G1: (Varios elementos) | L1: EJECUTOR (Dpto / Entidad) | M1: CUNDINAMARCA | R1: EJECUTOR (Dpto / Entidad) | S1: CUNDINAMARCA
F2: ESTADO | G2: (Varios elementos) | L2: ESTADO | M2: (Varios elementos) | R2: ESTADO | S2: (Varios elementos)
A3: Etiquetas de fila | B3: Cuenta de ESTADO
A4: CONTRATADO EN EJECUCIÓN | B4: 38 | F4: Etiquetas de fila | G4: Cuenta de SECTOR | H4: Suma de VALOR PROYECTO | I4: Suma de VALOR SGR | L4: Etiquetas de fila | M4: Cuenta de EJECUTOR INTERNO | N4: Suma de VALOR PROYECTO | O4: Suma de VALOR SGR | R4: Etiquetas de fila | S4: Promedio de AVANCE FÍSICO | T4: Promedio de AVANCE FINANCIERO | U4: Cuenta de EJECUTOR INTERNO
A5: PARA CIERRE | B5: 7 | F5: EDUCACIÓN | G5: 5 | H5: 188177731805 | I5: 188177731805 | L5: SECRETARIA DE GOBIERNO | M5: 1 | N5: 9260000000 | O5: 8500000000 | R5: SECRETARIA DE CIENCIA, TECNOLOGIA E INNOVACIÓN | S5: 0.7198703704 | T5: 0.7509888889 | U5: 27
A6: TERMINADO | B6: 6 | F6: CTEL | G6: 27 | H6: 1.942105598e+11 | I6: 1.575703395e+11 | L6: SECRETARIA DE AGRICULTURA | M6: 1 | N6: 6523880054 | O6: 4220000000 | R6: SECRETARIA DE EDUCACIÓN | S6: 0.79148 | T6: 0.52888 | U6: 5
A7: SIN CONTRATAR | B7: 2 | F7: AGRICULTURA | G7: 7 | H7: 5.344629385e+10 | I7: 4.723721551e+10 | L7: SUPERVISIÓN / INTERVENTORÍA -EPC | M7: 1 | N7: 4999900475 | O7: 4999900475 | R7: SECRETARIA DE HABITAT Y VIVIENDA | S7: 0.83705 | T7: 0.750425 | U7: 4
A8: Total general | B8: 53 | F8: AMBIENTE Y DESARROLLO SOSTENIBLE | G8: 4 | H8: 41211785924 | I8: 38442719610 | L8: SECRETARIA DE PLANEACIÓN | M8: 1 | N8: 6791102422 | O8: 6725380622 | R8: SECRETARIA DE COMPETITIVIDAD | S8: 0.479825 | T8: 0.46885 | U8: 4
F9: MINAS Y ENERGÍA | G9: 2 | H9: 23075304536 | I9: 12711103496 | L9: SUPERVISIÓN / INTERVENTORÍA RAPE - SECRETARIA DE PLANEACIÓN | M9: 1 | N9: 32499987282 | O9: 32499987282 | R9: SECRETARIA DE MINAS, ENERGIA Y GAS | S9: 0.4173 | T9: 0.3871666667 | U9: 3
F10: GOBIERNO TERRITORIAL | G10: 3 | H10: 10973468211 | I10: 10973468211 | L10: SECRETARIA DE AMBIENTE | M10: 2 | N10: 5626890769 | O10: 2857824455 | R10: UNIDAD ADMINISTRATIVA DE GESTIÓN DEL RIESGO. | S10: 0.401 | T10: 0.3802666667 | U10: 3
F11: JUSTICIA Y DEL DERECHO | G11: 1 | H11: 9260000000 | I11: 8500000000 | L11: SECRETARIA DE MINAS, ENERGIA Y GAS | M11: 3 | N11: 23075304536 | O11: 12711103496 | R11: SECRETARIA DE AMBIENTE | S11: 0.00325 | T11: 0 | U11: 2
F12: VIVIENDA, CIUDAD Y TERRITORIO | G12: 2 | H12: 7354218600 | I12: 7354218600 | L12: UNIDAD ADMINISTRATIVA DE GESTIÓN DEL RIESGO. | M12: 3 | N12: 14058376084 | O12: 14058376084 | R12: SECRETARIA DE PLANEACIÓN | S12: 0.9852 | T12: 0.9203 | U12: 1
F13: TRANSPORTE | G13: 1 | H13: 6791102422 | I13: 6725380622 | L13: SECRETARIA DE HABITAT Y VIVIENDA | M13: 4 | N13: 1.797947617e+10 | O13: 1.733944595e+10 | R13: SUPERVISIÓN / INTERVENTORÍA -EPC | S13: 0.8578 | T13: 0.7831 | U13: 1
F14: COMERCIO, INDUSTRIA Y TURISMO | G14: 1 | H14: 1752501814 | I14: 1708104361 | L14: SECRETARIA DE COMPETITIVIDAD | M14: 4 | N14: 33049757567 | O14: 29740192043 | R14: SUPERVISIÓN / INTERVENTORÍA RAPE - SECRETARIA DE PLANEACIÓN | S14: 0.9981 | T14: 0.9988 | U14: 1
F15: (en blanco) | L15: SECRETARIA DE EDUCACIÓN | M15: 5 | N15: 188177731805 | O15: 188177731805 | R15: SECRETARIA DE AGRICULTURA | S15: 0.8648 | T15: 0.8463 | U15: 1
F16: Total general | G16: 53 | H16: 5.36252967e+11 | I16: 4.794002818e+11 | L16: SECRETARIA DE CIENCIA, TECNOLOGIA E INNOVACIÓN | M16: 27 | N16: 1.942105598e+11 | O16: 1.575703395e+11 | R16: SECRETARIA DE GOBIERNO | S16: 1 | T16: 1 | U16: 1
L17: Total general | M17: 53 | N17: 5.36252967e+11 | O17: 4.794002818e+11 | R17: Total general | S17: 0.6760132075 | T17: 0.653754717 | U17: 53

Sheet Vencimiento días (hidden)
A1: EJECUTOR (Dpto / Entidad) | B1: EJECUTOR INTERNO | C1: ENCARGADO DE LA ENTIDAD | D1: ENLACE EMTIDAD EJECUTORA | E1: BPIN | F1: PROYECTO | G1: SECTOR | H1: VALOR | I1: ESTADO | J1: FECHA | K1: FECHA DE TERMINACIÓN2 | L1: HOY | M1: VENCIMIENTO N° DÍAS | N1: Columna1
A2: CUNDINAMARCA | B2: SECRETARIA GENERAL | C2: YAHIR ARCINIEGAS | D2: JIMENA TAFUR | E2: 2012000050010 | F2: ESTUDIOS Y DISEÑOS PARA LA RECUPERACIÓN Y ADECUACION DEL PATRIMONIO HISTORICO CULTURAL PALACIO DE SAN FRANCISCO EN BOGOTA D.C. DEPARTAMENTO DE CUNDINAMARCA | G2: CULTURA | H2: 1000000000 | I2: TERMINADO | J2: 43465 | K2: =VLOOKUP(Tabla22[[#This Row],[BPIN ]],[1]Base1!F$3:Z$223,21,0) -> 43465 | L2: =+TODAY() -> 45224 | M2: =Tabla22[[#This Row],[FECHA DE TERMINACIÓN2]]-Tabla22[[#This Row],[HOY]] -> -1759 | N2: =Tabla22[[#This Row],[FECHA ]]-Tabla22[[#This Row],[FECHA DE TERMINACIÓN2]] -> 0
A3: CUNDINAMARCA | B3: SECRETARIA DE COMPETITIVIDAD | C3: ALEXANDER RIVEROS/JEIMY FORERO | D3: FABIAN CUESTA | E3: 2012000050030 | F3: DESARROLLO CREACION Y FORTALECIMIENTO DE NUEVE (9) CENTROS DE EMPREDIMIENTO Y FORTALECIMIENTO EMPRESARIAL EN EL DEPARTAMENTO DE CUNDINAMARCA | G3: COMERCIO, INDUSTRIA Y TURISMO | H3: 1752501814 | I3: PARA CIERRE | J3: 42369 | K3: =VLOOKUP(Tabla22[[#This Row],[BPIN ]],[1]Base1!F$3:Z$223,21,0) -> 42369 | L3: 45224 | M3: =Tabla22[[#This Row],[FECHA ]]-Tabla22[[#This Row],[HOY]] -> -2855 | N3: =Tabla22[[#This Row],[FECHA ]]-Tabla22[[#This Row],[FECHA DE TERMINACIÓN2]] -> 0
A4: CUNDINAMARCA | B4: SECRETARIA DE CIENCIA, TECNOLOGIA E INNOVACIÓN | C4: ALEXANDER RIVEROS Y YAHIR ARCINIEGAS | D4: LUIS MANUEL GONZALEZ | E4: 2012000100010 | F4: FORTALECIMIENTO DE LAS REGIONES COLOMBIANAS EN SUS CAPACIDADES DE CTI - CUNDINAMARCA | G4: CTEL | H4: 8721806744 | I4: CONTRATADO EN EJECUCIÓN | J4: 44926 | K4: =VLOOKUP(Tabla22[[#This Row],[BPIN ]],[1]Base1!F$3:Z$223,21,0) -> 44926 | L4: 45224 | M4: =Tabla22[[#This Row],[FECHA ]]-Tabla22[[#This Row],[HOY]] -> -298 | N4: =Tabla22[[#This Row],[FECHA ]]-Tabla22[[#This Row],[FECHA DE TERMINACIÓN2]] -> 0
A5: CUNDINAMARCA | B5: SECRETARIA DE CIENCIA, TECNOLOGIA E INNOVACIÓN | C5: ALEXANDER RIVEROS Y YAHIR ARCINIEGAS | D5: LUIS MANUEL GONZALEZ | E5: 2012000100144 | F5: INVESTIGACIÓN INVESTIGACION, DESARROLLO Y TRANSFERENCIA TECNOLOGICA EN EL SECTOR AGROPECUARIO Y AGROINDUSTRIAL CON EL FIN DE MEJORAR L TODO EL DEPARTAMENTO, CUNDINAMARCA, CENTRO ORIENTE | G5: CTEL | H5: 50514736439 | I5: CONTRATADO EN EJECUCIÓN | J5: 45716 | K5: =VLOOKUP(Tabla22[[#This Row],[BPIN ]],[1]Base1!F$3:Z$223,21,0) -> 45716 | L5: 45224 | M5: =Tabla22[[#This Row],[FECHA ]]-Tabla22[[#This Row],[HOY]] -> 492 | N5: =Tabla22[[#This Row],[FECHA ]]-Tabla22[[#This Row],[FECHA DE TERMINACIÓN2]] -> 0
A6: CUNDINAMARCA | B6: SECRETARIA DE MINAS, ENERGIA Y GAS | C6: DIEGO TORRES | D6: ALVARO CHACON | E6: 2013000050026 | F6: CONSTRUCCIÓN REDES ELECTRICAS EN LA ZONA RURAL DE LOS MUNICIPIOS DE PARATEBUENO Y GUTIERREZ EN EL DEPARTAMENTO DE CUNDINAMARCA | G6: MINAS Y ENERGÍA | H6: 1068319227 | I6: TERMINADO | J6: 42369 | K6: =VLOOKUP(Tabla22[[#This Row],[BPIN ]],[1]Base1!F$3:Z$223,21,0) -> 42369 | L6: 45224 | M6: =Tabla22[[#This Row],[FECHA ]]-Tabla22[[#This Row],[HOY]] -> -2855 | N6: =Tabla22[[#This Row],[FECHA ]]-Tabla22[[#This Row],[FECHA DE TERMINACIÓN2]] -> 0
A7: ENTIDAD APORTANTE RECURSOS | B7: BANCO AGRARIO DE COLOMBIA | C7: DIEGO TORRES / JEIMY FORERO | E7: 2013000050044 | F7: CONSTRUCCIÓN CUNDINAMARCA VISR 2013 TODO EL DEPARTAMENTO, CUNDINAMARCA, CENTRO ORIENTE | G7: AGRICULTURA | H7: 60041780218 | I7: CONTRATADO EN EJECUCIÓN | J7: 45260 | K7: =VLOOKUP(Tabla22[[#This Row],[BPIN ]],[1]Base1!F$3:Z$223,21,0) -> 45260 | L7: 45224 | M7: =Tabla22[[#This Row],[FECHA ]]-Tabla22[[#This Row],[HOY]] -> 36 | N7: =Tabla22[[#This Row],[FECHA ]]-Tabla22[[#This Row],[FECHA DE TERMINACIÓN2]] -> 0
A8: CUNDINAMARCA | B8: SECRETARIA DE CIENCIA, TECNOLOGIA E INNOVACIÓN | C8: ALEXANDER RIVEROS Y YAHIR ARCINIEGAS | D8: LUIS MANUEL GONZALEZ | E8: 2013000100129 | F8: INCREMENTO EN LAS ESTRATEGIAS SUSTENTABLES EN EL USO DEL RECURSO DE ENERGA ELECTRICA PARA LA POBLACION VULNERABLE EN EL DPTO. DE CUNDINAMARCA | G8: CTEL | H8: 5170002961 | I8: CONTRATADO EN EJECUCIÓN | J8: 44865 | K8: =VLOOKUP(Tabla22[[#This Row],[BPIN ]],[1]Base1!F$3:Z$223,21,0) -> 44865 | L8: 45224 | M8: =Tabla22[[#This Row],[FECHA ]]-Tabla22[[#This Row],[HOY]] -> -359 | N8: =Tabla22[[#This Row],[FECHA ]]-Tabla22[[#This Row],[FECHA DE TERMINACIÓN2]] -> 0
A9: CUNDINAMARCA | B9: SECRETARIA DE CIENCIA, TECNOLOGIA E INNOVACIÓN | C9: ALEXANDER RIVEROS Y YAHIR ARCINIEGAS | D9: LUIS MANUEL GONZALEZ | E9: 2013000100176 | F9: INNOVACIÓN SISTEMA DE PRODUCCION DE FRUTAS/HORTALIZAS FRESCAS/PROCESADAS TIPO EXPORTACION CON TECNOLOGIA BIOLOGICA /INTEGRAL INOCUA SUBACHOQUE, CUNDINAMARCA, CENTRO ORIENTE | G9: CTEL | H9: 9285096292 | I9: CONTRATADO EN EJECUCIÓN | J9: 44377 | K9: =VLOOKUP(Tabla22[[#This Row],[BPIN ]],[1]Base1!F$3:Z$223,21,0) -> 44377 | L9: 45224 | M9: =Tabla22[[#This Row],[FECHA ]]-Tabla22[[#This Row],[HOY]] -> -847 | N9: =Tabla22[[#This Row],[FECHA ]]-Tabla22[[#This Row],[FECHA DE TERMINACIÓN2]] -> 0
A10: CUNDINAMARCA | B10: SECRETARIA DE CIENCIA, TECNOLOGIA E INNOVACIÓN | C10: ALEXANDER RIVEROS Y YAHIR ARCINIEGAS | D10: LUIS MANUEL GONZALEZ | E10: 2013000100248 | F10: INNOVACIÓN , CIENCIA Y TECNOLOGIA PARA PRODUCTORES DE LECHE EN LA PROVINCIA DE UBATE, CUNDINAMARCA. | G10: CTEL | H10: 11619725567 | I10: CONTRATADO EN EJECUCIÓN | J10: 43496 | K10: =VLOOKUP(Tabla22[[#This Row],[BPIN ]],[1]Base1!F$3:Z$223,21,0) -> 31/01/2019 | L10: 45224 | M10: =Tabla22[[#This Row],[FECHA ]]-Tabla22[[#This Row],[HOY]] -> -1728 | N10: =Tabla22[[#This Row],[FECHA ]]-Tabla22[[#This Row],[FECHA DE TERMINACIÓN2]] -> 
A11: CUNDINAMARCA | B11: SECRETARIA DE GOBIERNO | C11: DAYANA FERNANDEZ | D11: EDUARDO | E11: 2014000050010 | F11: CONSTRUCCIÓN DE UN CENTRO DE ATENCION ESPECIALIZADA AL SERVICIO DE ADOLESCENTES INFRACTORES DE LA LEY PENAL EN EL DEPARTAMENTO DE CUNDINAMARCA | G11: JUSTICIA Y DEL DERECHO | H11: 9260000000 | I11: PARA CIERRE | J11: 43190 | K11: =VLOOKUP(Tabla22[[#This Row],[BPIN ]],[1]Base1!F$3:Z$223,21,0) -> 43190 | L11: 45224 | M11: =Tabla22[[#This Row],[FECHA ]]-Tabla22[[#This Row],[HOY]] -> -2034 | N11: =Tabla22[[#This Row],[FECHA ]]-Tabla22[[#This Row],[FECHA DE TERMINACIÓN2]] -> 0
A12: CUNDINAMARCA | B12: SECRETARIA DE HABITAT Y VIVIENDA | C12: ALEXANDER RIVEROS/JEIMY FORERO | D12: BEATRIZ GAMEZ | E12: 2016000050052 | F12: CONSTRUCCIÓN DE VIVIENDAS NUEVAS RURALES EN EL DEPARTAMENTO DE CUNDINAMARCA | G12: AGRICULTURA | H12: 5983779025 | I12: CONTRATADO EN EJECUCIÓN | J12: 44561 | K12: =VLOOKUP(Tabla22[[#This Row],[BPIN ]],[1]Base1!F$3:Z$223,21,0) -> 44561 | L12: =+TODAY() -> 45224 | M12: =Tabla22[[#This Row],[FECHA ]]-Tabla22[[#This Row],[HOY]] -> -663 | N12: =Tabla22[[#This Row],[FECHA ]]-Tabla22[[#This Row],[FECHA DE TERMINACIÓN2]] -> 0
A13: CUNDINAMARCA | B13: SECRETARIA DE CIENCIA, TECNOLOGIA E INNOVACIÓN | C13: ALEXANDER RIVEROS Y YAHIR ARCINIEGAS | D13: LUIS MANUEL GONZALEZ | E13: 2016000100027 | F13: ANLISIS DE FACTORES GENETICOS, SANITARIOS Y MEDIOAMBIENTALES QUE AFECTAN LAS TASAS DE PREÑEZ A PARTIR DE EMBRIONES IN VITRO EN EL DEPARTAMENTO DE CUNDINAMARCA | G13: CTEL | H13: 6401358633 | I13: CONTRATADO EN EJECUCIÓN | J13: 44742 | K13: =VLOOKUP(Tabla22[[#This Row],[BPIN ]],[1]Base1!F$3:Z$223,21,0) -> 44742 | L13: 45224 | M13: =Tabla22[[#This Row],[FECHA ]]-Tabla22[[#This Row],[HOY]] -> -482 | N13: =Tabla22[[#This Row],[FECHA ]]-Tabla22[[#This Row],[FECHA DE TERMINACIÓN2]] -> 0
A14: ENTIDAD DESIGNADA PARA LA SUPERVISIÓN DEL PROYECTO O PARA CONTRATAR LA INTERVENTORÍA | B14: RAPE - INTERVENTORIA SECRETARIA DE PLANEACIÓN | C14: YAHIR ARCINIEGAS | D14: ANGELA MARTINEZ | E14: 2016000050012 | F14: IMPLEMENTACIÓN DE ACCIONES DE CONSERVACION Y RESTAURACION DE LOS COMPLEJOS DE PARAMO, BOSQUE ALTO-ANDINO Y SERVICIOS ECOSISTEMICOS DE LA REGION CENTRAL | G14: AMBIENTE Y DESARROLLO SOSTENIBLE | H14: 32499987282 | I14: CONTRATADO EN EJECUCIÓN | J14: 44530 | K14: =VLOOKUP(Tabla22[[#This Row],[BPIN ]],[1]Base1!F$3:Z$223,21,0) -> 44530 | L14: 45224 | M14: =Tabla22[[#This Row],[FECHA ]]-Tabla22[[#This Row],[HOY]] -> -694 | N14: =Tabla22[[#This Row],[FECHA ]]-Tabla22[[#This Row],[FECHA DE TERMINACIÓN2]] -> 0
A15: ENTIDAD APORTANTE RECURSOS | B15: MUNICIPIO DE ZIPAQUIRA | C15: ALEXANDER RIVEROS | D15: JAIRO JARA | E15: 2017000050029 | F15: CONSERVACIÓN Y GESTIÓN INTEGRAL DEL RECURSO HÍDRICO MEDIANTE LA ADQUISICIÓN Y RESTAURACIÓN DE PREDIOS DE INTERÉS ECOSISTÉMICO EN ELDEPARTAMENTO DE CUNDINAMARCA | G15: AMBIENTE Y DESARROLLO SOSTENIBLE | H15: 900000000 | I15: CONTRATADO EN EJECUCIÓN | J15: 44865 | K15: =VLOOKUP(Tabla22[[#This Row],[BPIN ]],[1]Base1!F$3:Z$223,21,0) -> 44865 | L15: 45224 | M15: =Tabla22[[#This Row],[FECHA ]]-Tabla22[[#This Row],[HOY]] -> -359 | N15: =Tabla22[[#This Row],[FECHA ]]-Tabla22[[#This Row],[FECHA DE TERMINACIÓN2]] -> 0
A16: CUNDINAMARCA | B16: SECRETARIA DE MINAS, ENERGIA Y GAS | C16: DIEGO TORRES / LIYUGETH ALFONSO | D16: JAHIR HERNANDEZ | E16: 2017000050036 | F16: IMPLEMENTACIÓN Y EXPANSIÓN DEL SERVICIO DE GAS COMBUSTIBLE POR REDES PARA VEREDAS Y CENTROS POBLADOS DEL DEPARTAMENTO DE CUNDINAMARCA | G16: MINAS Y ENERGÍA | H16: 4751658472 | I16: PARA CIERRE | J16: 44196 | K16: =VLOOKUP(Tabla22[[#This Row],[BPIN ]],[1]Base1!F$3:Z$223,21,0) -> 44196 | L16: 45224 | M16: =Tabla22[[#This Row],[FECHA ]]-Tabla22[[#This Row],[HOY]] -> -1028 | N16: =Tabla22[[#This Row],[FECHA ]]-Tabla22[[#This Row],[FECHA DE TERMINACIÓN2]] -> 0
A17: CUNDINAMARCA | B17: SECRETARIA DE PLANEACIÓN | C17: YESID CASTAÑO Y JEIMY FORERO | D17: RUSVEL NIETO | E17: 2017000050039 | F17: MEJORAMIENTO DE VÍAS TERCIARIAS MEDIANTE EL USO DE PLACA HUELLA EN LOS MUNICIPIOS DE GUATAVITA, PACHO, SAN JUAN DE RIOSECO, SUBACHOQUE, TENA Y ZIPAQUIRÁ, DEPARTAMENTO DE CUNDINAMARCA | G17: TRANSPORTE | H17: 6791102422 | I17: CONTRATADO EN EJECUCIÓN | J17: 43830 | K17: =VLOOKUP(Tabla22[[#This Row],[BPIN ]],[1]Base1!F$3:Z$223,21,0) -> 43830 | L17: 45224 | M17: =Tabla22[[#This Row],[FECHA ]]-Tabla22[[#This Row],[HOY]] -> -1394 | N17: =Tabla22[[#This Row],[FECHA ]]-Tabla22[[#This Row],[FECHA DE TERMINACIÓN2]] -> 0
A18: CUNDINAMARCA | B18: SECRETARIA DE HABITAT Y VIVIENDA | C18: ALEXANDER RIVEROS/JEIMY FORERO | D18: BEATRIZ GAMEZ | E18: 2017000050042 | F18: MEJORAMIENTO DE VIVIENDAS RURALES DE LA PROVINCIA DE UBATÉ - CUNDINAMARCA | G18: AGRICULTURA | H18: 2354318125 | I18: TERMINADO | J18: 44561 | K18: =VLOOKUP(Tabla22[[#This Row],[BPIN ]],[1]Base1!F$3:Z$223,21,0) -> 44561 | L18: 45224 | M18: =Tabla22[[#This Row],[FECHA ]]-Tabla22[[#This Row],[HOY]] -> -663 | N18: =Tabla22[[#This Row],[FECHA ]]-Tabla22[[#This Row],[FECHA DE TERMINACIÓN2]] -> 0
A19: CUNDINAMARCA | B19: SECRETARIA DE AGRICULTURA | C19: DIEGO TORRES/VALENTINA PORTILLO | D19: JAVIER HERREDIA | E19: 2017000050065 | F19: MEJORAMIENTO DE LA PRODUCTIVIDAD Y RENTABILIDAD DE LOS CAFICULTORES DEL DEPARTAMENTO DE CUNDINAMARCA | G19: AGRICULTURA | H19: 6523880054 | I19: TERMINADO | J19: 44196 | K19: =VLOOKUP(Tabla22[[#This Row],[BPIN ]],[1]Base1!F$3:Z$223,21,0) -> 44196 | L19: 45224 | M19: =Tabla22[[#This Row],[FECHA ]]-Tabla22[[#This Row],[HOY]] -> -1028 | N19: =Tabla22[[#This Row],[FECHA ]]-Tabla22[[#This Row],[FECHA DE TERMINACIÓN2]] -> 0
A20: CUNDINAMARCA | B20: SECRETARIA DE CIENCIA, TECNOLOGIA E INNOVACIÓN | C20: ALEXANDER RIVEROS Y YAHIR ARCINIEGAS | D20: LUIS MANUEL GONZALEZ | E20: 2017000100016 | F20: IMPLEMENTACIÓN PROGRAMA DE INNOVACIÓN PARA LA VALIDACIÓN Y GENERACIÓN DE PRODUCTOS DERIVADOS DE LA BIODIVERSIDAD EN EL DEPARTAMENTO DE CUNDINAMARCA | G20: CTEL | H20: 4486653319 | I20: CONTRATADO EN EJECUCIÓN | J20: 44926 | K20: =VLOOKUP(Tabla22[[#This Row],[BPIN ]],[1]Base1!F$3:Z$223,21,0) -> 44926 | L20: 45224 | M20: =Tabla22[[#This Row],[FECHA ]]-Tabla22[[#This Row],[HOY]] -> -298 | N20: =Tabla22[[#This Row],[FECHA ]]-Tabla22[[#This Row],[FECHA DE TERMINACIÓN2]] -> 0
A21: CUNDINAMARCA | B21: SECRETARIA DE CIENCIA, TECNOLOGIA E INNOVACIÓN | C21: ALEXANDER RIVEROS Y YAHIR ARCINIEGAS | D21: LUIS MANUEL GONZALEZ | E21: 2017000100034 | F21: IMPLEMENTACIÓN DE UN SISTEMA DE GESTIÓN DE INNOVACIÓN PARA LA INDUSTRIA DE CUNDINAMARCA | G21: CTEL | H21: 3925471448 | I21: CONTRATADO EN EJECUCIÓN | J21: 44530 | K21: =VLOOKUP(Tabla22[[#This Row],[BPIN ]],[1]Base1!F$3:Z$223,21,0) -> 44530 | L21: 45224 | M21: =Tabla22[[#This Row],[FECHA ]]-Tabla22[[#This Row],[HOY]] -> -694 | N21: =Tabla22[[#This Row],[FECHA ]]-Tabla22[[#This Row],[FECHA DE TERMINACIÓN2]] -> 0
A22: CUNDINAMARCA | B22: SECRETARIA DE CIENCIA, TECNOLOGIA E INNOVACIÓN | C22: ALEXANDER RIVEROS Y YAHIR ARCINIEGAS | D22: LUIS MANUEL GONZALEZ | E22: 2017000100074 | F22: IMPLEMENTACIÓN DE ESTRATEGIAS DE FOMENTO A LA CULTURA Y SERVICIOS DE INNOVACIÓN EN LAS PROVINCIAS SABANA OCCIDENTE, SABANA CENTRAL, SOACHA Y SUMAPAZ CUNDINAMARCA | G22: CTEL | H22: 6183633276 | I22: TERMINADO | J22: 44592 | K22: =VLOOKUP(Tabla22[[#This Row],[BPIN ]],[1]Base1!F$3:Z$223,21,0) -> 44592 | L22: 45224 | M22: =Tabla22[[#This Row],[FECHA ]]-Tabla22[[#This Row],[HOY]] -> -632 | N22: =Tabla22[[#This Row],[FECHA ]]-Tabla22[[#This Row],[FECHA DE TERMINACIÓN2]] -> 0
A23: CUNDINAMARCA | B23: SECRETARIA DE CIENCIA, TECNOLOGIA E INNOVACIÓN | C23: ALEXANDER RIVEROS Y YAHIR ARCINIEGAS | D23: LUIS MANUEL GONZALEZ | E23: 2017000100076 | F23: FORTALECIMIENTO DE CAPACIDADES DE GESTIÓN DEL RIESGO A TRAVÉS DE APROPIACIÓN SOCIAL DE LA CIENCIA, LA TECNOLOGÍA Y LA INNOVACIÓN EN EL DEPARTAMENTO DE CUNDINAMARCA | G23: CTEL | H23: 4404970720 | I23: CONTRATADO EN EJECUCIÓN | J23: 44895 | K23: =VLOOKUP(Tabla22[[#This Row],[BPIN ]],[1]Base1!F$3:Z$223,21,0) -> 44895 | L23: 45224 | M23: =Tabla22[[#This Row],[FECHA ]]-Tabla22[[#This Row],[HOY]] -> -329 | N23: =Tabla22[[#This Row],[FECHA ]]-Tabla22[[#This Row],[FECHA DE TERMINACIÓN2]] -> 0
A24: CUNDINAMARCA | B24: SECRETARIA DE CIENCIA, TECNOLOGIA E INNOVACIÓN | C24: ALEXANDER RIVEROS Y YAHIR ARCINIEGAS | D24: LUIS MANUEL GONZALEZ | E24: 2017000100087 | F24: FORMACIÓN DE TALENTO HUMANO DE ALTO NIVEL EN MAESTRÍAS EN EL DEPARTAMENTO DE CUNDINAMARCA | G24: CTEL | H24: 5148022960 | I24: CONTRATADO EN EJECUCIÓN | J24: 45747 | K24: =VLOOKUP(Tabla22[[#This Row],[BPIN ]],[1]Base1!F$3:Z$223,21,0) -> 45747 | L24: 45224 | M24: =Tabla22[[#This Row],[FECHA ]]-Tabla22[[#This Row],[HOY]] -> 523 | N24: =Tabla22[[#This Row],[FECHA ]]-Tabla22[[#This Row],[FECHA DE TERMINACIÓN2]] -> 0
A25: CUNDINAMARCA | B25: SECRETARIA DE CIENCIA, TECNOLOGIA E INNOVACIÓN | C25: ALEXANDER RIVEROS Y YAHIR ARCINIEGAS | D25: LUIS MANUEL GONZALEZ | E25: 2017000100104 | F25: FORTALECIMIENTO DE LA CULTURA DE LA GESTIÓN Y UTILIZACIÓN DEL CONOCIMIENTO EN CTEI EN NIÑOS, JÓVENES Y COMUNIDADES DEL DEPARTAMENTO DE CUNDINAMARCA | G25: CTEL | H25: 9498967749 | I25: CONTRATADO EN EJECUCIÓN | J25: 44926 | K25: =VLOOKUP(Tabla22[[#This Row],[BPIN ]],[1]Base1!F$3:Z$223,21,0) -> 44926 | L25: 45224 | M25: =Tabla22[[#This Row],[FECHA ]]-Tabla22[[#This Row],[HOY]] -> -298 | N25: =Tabla22[[#This Row],[FECHA ]]-Tabla22[[#This Row],[FECHA DE TERMINACIÓN2]] -> 0
A26: CUNDINAMARCA | B26: UNIDAD ADMINISTRATIVA DE GESTIÓN DEL RIESGO. | C26: DIEGO TORRES/VALENTINA PORTILLO | D26: GINNA HERRERA | E26: 20172401060022 | F26: ESTUDIOS DETALLADOS PARA LA INCORPORACIÓN DE LA GESTIÓN DEL RIESGO PARA LOS MUNICIPIOS DE GIRARDOT, RICAURTE | G26: AMBIENTE Y DESARROLLO SOSTENIBLE | H26: 3084907873 | I26: CONTRATADO EN EJECUCIÓN | J26: 44773 | K26: =VLOOKUP(Tabla22[[#This Row],[BPIN ]],[1]Base1!F$3:Z$223,21,0) -> 44773 | L26: 45224 | M26: =Tabla22[[#This Row],[FECHA ]]-Tabla22[[#This Row],[HOY]] -> -451 | N26: =Tabla22[[#This Row],[FECHA ]]-Tabla22[[#This Row],[FECHA DE TERMINACIÓN2]] -> 0
A27: CUNDINAMARCA | B27: SECRETARIA DE CIENCIA, TECNOLOGIA E INNOVACIÓN | C27: ALEXANDER RIVEROS Y YAHIR ARCINIEGAS | D27: LUIS MANUEL GONZALEZ | E27: 20170000100012 | F27: CONFORMACIÓN DE UNA CONVOCATORIA REGIONAL DE PROYECTOS I+D EN FOCOS PRIORIZADOS CTEI PARA EL FORTALECIMIENTO DE LOS GRUPOS DE INVESTIGACIÓN CUNDINAMARCA | G27: CTEL | H27: 7321934035 | I27: CONTRATADO EN EJECUCIÓN | J27: 44926 | K27: =VLOOKUP(Tabla22[[#This Row],[BPIN ]],[1]Base1!F$3:Z$223,21,0) -> 44926 | L27: 45224 | M27: =Tabla22[[#This Row],[FECHA ]]-Tabla22[[#This Row],[HOY]] -> -298 | N27: =Tabla22[[#This Row],[FECHA ]]-Tabla22[[#This Row],[FECHA DE TERMINACIÓN2]] -> 0
A28: ENTIDAD APORTANTE RECURSOS | B28: CAR | C28: YESID CASTAÑO | D28: CARLOS MURCIA | E28: 2017000050063 | F28: RECUPERACIÓN HIDRÁULICA Y AMBIENTAL DEL COMPLEJO LAGUNAR FÚQUENE | G28: AMBIENTE Y DESARROLLO SOSTENIBLE | H28: 18000000000 | I28: CONTRATADO EN EJECUCIÓN | J28: 45199 | K28: =VLOOKUP(Tabla22[[#This Row],[BPIN ]],[1]Base1!F$3:Z$223,21,0) -> 45199 | L28: 45224 | M28: =Tabla22[[#This Row],[FECHA ]]-Tabla22[[#This Row],[HOY]] -> -25 | N28: =Tabla22[[#This Row],[FECHA ]]-Tabla22[[#This Row],[FECHA DE TERMINACIÓN2]] -> 0
A29: ENTIDAD APORTANTE RECURSOS | B29: MUNICIPIO DE UTICA | C29: JUAN CARLOS TORRES | D29: CESAR SIMANCAS | E29: 2017000050087 | F29: MEJORAMIENTO DEL SENDERO TURÍSTICO DE LA PROVINCIA DEL GUALIVÁ – ÚTICA CUNDINAMARCA | G29: COMERCIO, INDUSTRIA Y TURISMO | H29: 2347004868 | I29: CONTRATADO EN EJECUCIÓN | J29: 44530 | K29: =VLOOKUP(Tabla22[[#This Row],[BPIN ]],[1]Base1!F$3:Z$223,21,0) -> 44530 | L29: 45224 | M29: =Tabla22[[#This Row],[FECHA ]]-Tabla22[[#This Row],[HOY]] -> -694 | N29: =Tabla22[[#This Row],[FECHA ]]-Tabla22[[#This Row],[FECHA DE TERMINACIÓN2]] -> 0
A30: CUNDINAMARCA | B30: SECRETARIA DE HABITAT Y VIVIENDA | C30: ALEXANDER RIVEROS/JEIMY FORERO | D30: BEATRIZ GAMEZ | E30: 2018000050039 | F30: MEJORAMIENTO DE VIVIENDA RURAL EN LOS MUNICIPIOS DE CUCUNUBÁ, JERUSALEN, QUEBRADANEGRA Y VIOTÁ - DEPARTAMENTO DE CUNDINAMARCA | G30: AGRICULTURA | H30: 4024793625 | I30: PARA CIERRE | J30: 44561 | K30: =VLOOKUP(Tabla22[[#This Row],[BPIN ]],[1]Base1!F$3:Z$223,21,0) -> 31/12/2021 | L30: 45224 | M30: =Tabla22[[#This Row],[FECHA ]]-Tabla22[[#This Row],[HOY]] -> -663 | N30: =Tabla22[[#This Row],[FECHA ]]-Tabla22[[#This Row],[FECHA DE TERMINACIÓN2]] -> 
A31: CUNDINAMARCA | B31: SECRETARIA DE CIENCIA, TECNOLOGIA E INNOVACIÓN | C31: ALEXANDER RIVEROS Y YAHIR ARCINIEGAS | D31: LUIS MANUEL GONZALEZ | E31: 2018000100106 | F31: INNOVACIÓN EN EL MODELO DE GESTIÓN DEL MEDICAMENTO FASE III EN EL DEPARTAMENTO DE CUNDINAMARCA | G31: CTEL | H31: 3452890062 | I31: NO HA MIGRADO A GESPROY | K31: =VLOOKUP(Tabla22[[#This Row],[BPIN ]],[1]Base1!F$3:Z$223,21,0) -> 0 | L31: 45224 | M31: =Tabla22[[#This Row],[FECHA ]]-Tabla22[[#This Row],[HOY]] -> -45224 | N31: =Tabla22[[#This Row],[FECHA ]]-Tabla22[[#This Row],[FECHA DE TERMINACIÓN2]] -> 0
A32: CUNDINAMARCA | B32: SECRETARIA DE CIENCIA, TECNOLOGIA E INNOVACIÓN | C32: ALEXANDER RIVEROS Y YAHIR ARCINIEGAS | D32: LUIS MANUEL GONZALEZ | E32: 2018000100160 | F32: FORMACIÓN DE CAPITAL HUMANO DE ALTO NIVEL PARA LA INVESTIGACIÓN, EL DESARROLLO TECNOLÓGICO Y LA INNOVACIÓN MAESTRÍAS DE INVESTIGACIÓN PARA DOCENTES DEL DEPARTAMENTO DE CUNDINAMARCA | G32: CTEL | H32: 5217415747 | I32: CONTRATADO EN EJECUCIÓN | J32: 47087 | K32: =VLOOKUP(Tabla22[[#This Row],[BPIN ]],[1]Base1!F$3:Z$223,21,0) -> 30/11/2027 | L32: 45224 | M32: =Tabla22[[#This Row],[FECHA ]]-Tabla22[[#This Row],[HOY]] -> 1863 | N32: =Tabla22[[#This Row],[FECHA ]]-Tabla22[[#This Row],[FECHA DE TERMINACIÓN2]] -> 
A33: ENTIDAD DESIGNADA PARA LA SUPERVISIÓN DEL PROYECTO O PARA CONTRATAR LA INTERVENTORÍA | B33: EMPRESAS PUBLICAS DE CUNDINAMARCA -EPC | C33: ALEXANDER RIVEROS/LIYUGETH ALFONSO | D33: PAULA ACUÑA | E33: 20181301010555 | F33: CONSTRUCCIÓN DE UNIDADES SANITARIAS EN EL ÁREA RURAL DEL DEPARTAMENTO DE CUNDINAMARCA | G33: VIVIENDA, CIUDAD Y TERRITORIO | H33: 4999900475 | I33: CONTRATADO EN EJECUCIÓN | J33: 44712 | K33: =VLOOKUP(Tabla22[[#This Row],[BPIN ]],[1]Base1!F$3:Z$223,21,0) -> 31/05/2022 | L33: 45224 | M33: =Tabla22[[#This Row],[FECHA ]]-Tabla22[[#This Row],[HOY]] -> -512 | N33: =Tabla22[[#This Row],[FECHA ]]-Tabla22[[#This Row],[FECHA DE TERMINACIÓN2]] -> 
A34: CUNDINAMARCA | B34: SECRETARIA DE EDUCACIÓN | C34: YAHIR ARCINIEGAS Y ALEXANDER RIVEROS | D34: PABLO CAJAMARCA | E34: 2019000050020 | F34: FORTALECIMIENTO DE LA PERMANENCIA DE LOS ESTUDIANTES PARA EL AÑO 2019 EN LOS MUNICIPIOS DEL DEPARTAMENTO DE CUNDINAMARCA | G34: EDUCACIÓN | H34: 20536293937 | I34: TERMINADO | J34: 43769 | K34: =VLOOKUP(Tabla22[[#This Row],[BPIN ]],[1]Base1!F$3:Z$223,21,0) -> 31/10/2019 | L34: 45224 | M34: =Tabla22[[#This Row],[FECHA ]]-Tabla22[[#This Row],[HOY]] -> -1455 | N34: =Tabla22[[#This Row],[FECHA ]]-Tabla22[[#This Row],[FECHA DE TERMINACIÓN2]] -> 
A35: CUNDINAMARCA | B35: SECRETARIA DE AGRICULTURA | C35: DIEGO TORRES/VALENTINA PORTILLO | D35: JAVIER HERREDIA | E35: 2019000050027 | F35: MEJORAMIENTO DE LA COMPETITIVIDAD DE LA CADENA PRODUCTIVA DE CACAO EN EL DEPARTAMENTO DE CUNDINAMARCA | G35: AGRICULTURA | H35: 5862983962 | I35: TERMINADO | J35: 44651 | K35: =VLOOKUP(Tabla22[[#This Row],[BPIN ]],[1]Base1!F$3:Z$223,21,0) -> 31/03/2022 | L35: 45224 | M35: =Tabla22[[#This Row],[FECHA ]]-Tabla22[[#This Row],[HOY]] -> -573 | N35: =Tabla22[[#This Row],[FECHA ]]-Tabla22[[#This Row],[FECHA DE TERMINACIÓN2]] -> 
A36: ENTIDAD APORTANTE RECURSOS | B36: MEDICINA LEGAL Y CIENCIAS FORENSES | C36: ALEXANDER RIVEROS | D36: MARTIN SEPULVEDA | E36: 2019000050025 | F36: ESTUDIOS Y DISEÑOS PARA LA CONSTRUCCIÓN DE LA SEDE DE MEDICINA LEGAL EN EL DEPARTAMENTO DE CUNDINAMARCA | G36: FISCALIA | H36: 904521100 | I36: CONTRATADO EN EJECUCIÓN | J36: 44620 | K36: =VLOOKUP(Tabla22[[#This Row],[BPIN ]],[1]Base1!F$3:Z$223,21,0) -> 28/02/2022 | L36: =+TODAY() -> 45224 | M36: =Tabla22[[#This Row],[FECHA ]]-Tabla22[[#This Row],[HOY]] -> -604 | N36: =Tabla22[[#This Row],[FECHA ]]-Tabla22[[#This Row],[FECHA DE TERMINACIÓN2]] -> 
A37: DECENTRALIZADOS | B37: IDECUT | C37: DIEGO TORRES Y YAHIR ARCINIEGAS | D37: MARTHA VANEGAS | E37: 2019000050059 | F37: FORTALECIMIENTO A LAS ESCUELAS MUNICIPALES DE MÚSICA, DANZA, TEATRO Y ARTES PLÁSTICAS Y VISUALES EN EL DEPARTAMENTO DE CUNDINAMARCA | G37: CULTURA | H37: 1972606058 | I37: TERMINADO | J37: 44530 | K37: =VLOOKUP(Tabla22[[#This Row],[BPIN ]],[1]Base1!F$3:Z$223,21,0) -> 44530 | L37: 45224 | M37: =Tabla22[[#This Row],[FECHA ]]-Tabla22[[#This Row],[HOY]] -> -694 | N37: =Tabla22[[#This Row],[FECHA ]]-Tabla22[[#This Row],[FECHA DE TERMINACIÓN2]] -> 0
A38: CUNDINAMARCA | B38: SECRETARIA DE MINAS, ENERGIA Y GAS | C38: DIEGO TORRES / LIYUGETH ALFONSO | D38: JAHIR HERNANDEZ | E38: 2019000050073 | F38: AMPLIACIÓN DE LA COBERTURA DEL SERVICIO DE GAS COMBUSTIBLE DOMICILIARIO A TRAVÉS DE LA FINANCIACIÓN DE LA CONEXIÓN Y LA RED INTERNA PARA USUARIOS DE BARRIOS PERIFÉRICOS, VEREDAS Y CENTROS POBLADOS DEL DEPARTAMENTO DE CUNDINAMARCA | G38: MINAS Y ENERGÍA | H38: 12461377100 | I38: CONTRATADO EN EJECUCIÓN | J38: 44530 | K38: =VLOOKUP(Tabla22[[#This Row],[BPIN ]],[1]Base1!F$3:Z$223,21,0) -> 30/11/2021 | L38: 45224 | M38: =Tabla22[[#This Row],[FECHA ]]-Tabla22[[#This Row],[HOY]] -> -694 | N38: =Tabla22[[#This Row],[FECHA ]]-Tabla22[[#This Row],[FECHA DE TERMINACIÓN2]] -> 
A39: ENTIDAD APORTANTE RECURSOS | B39: UNAD | C39: ALEXANDER RIVEROS | D39: ANDRES ACOSTA | E39: 2019000050069 | F39: MEJORAMIENTO DE INFRAESTRUCTURA FÍSICA, DOTACIÓN DE MOBILIARIO Y EQUIPAMIENTO TECNOLÓGICO DE LA UNIVERSIDAD NACIONAL ABIERTA Y A DISTANCIA EN MUNICIPIOS DEL DEPARTAMENTO DE CUNDINAMARCA | G39: EDUCACIÓN | H39: 16011115461 | I39: TERMINADO | J39: 44165 | K39: =VLOOKUP(Tabla22[[#This Row],[BPIN ]],[1]Base1!F$3:Z$223,21,0) -> 30/11/2020 | L39: 45224 | M39: =Tabla22[[#This Row],[FECHA ]]-Tabla22[[#This Row],[HOY]] -> -1059 | N39: =Tabla22[[#This Row],[FECHA ]]-Tabla22[[#This Row],[FECHA DE TERMINACIÓN2]] -> 
A40: ENTIDAD APORTANTE RECURSOS | B40: U TECNOLOGICA DE PEREIRA | C40: YAHIR ARCINIEGAS | D40: LUIS MANUEL GONZALEZ | E40: 2019000100009 | F40: FORMACIÓN DE CAPITAL HUMANO DE ALTO NIVEL UNIVERSIDAD TECNOLÓGICA DE PEREIRA NACIONAL | G40: CTEL | H40: 4360028215 | I40: CONTRATADO EN EJECUCIÓN | J40: 46784 | K40: =VLOOKUP(Tabla22[[#This Row],[BPIN ]],[1]Base1!F$3:Z$223,21,0) -> 10/02/2028 | L40: 45224 | M40: =Tabla22[[#This Row],[FECHA ]]-Tabla22[[#This Row],[HOY]] -> 1560 | N40: =Tabla22[[#This Row],[FECHA ]]-Tabla22[[#This Row],[FECHA DE TERMINACIÓN2]] -> 
A41: ENTIDAD APORTANTE RECURSOS | B41: U EAN | C41: YAHIR ARCINIEGAS | D41: LUIS MANUEL GONZALEZ | E41: 2019000100015 | F41: FORMACIÓN DE CAPITAL HUMANO DE ALTO NIVEL - UNIVERSIDAD EAN - NACIONAL | G41: CTEL | H41: 1294375000 | I41: CONTRATADO EN EJECUCIÓN | J41: 46964 | K41: =VLOOKUP(Tabla22[[#This Row],[BPIN ]],[1]Base1!F$3:Z$223,21,0) -> 30/07/2028 | L41: 45224 | M41: =Tabla22[[#This Row],[FECHA ]]-Tabla22[[#This Row],[HOY]] -> 1740 | N41: =Tabla22[[#This Row],[FECHA ]]-Tabla22[[#This Row],[FECHA DE TERMINACIÓN2]] -> 
A42: ENTIDAD APORTANTE RECURSOS | B42: U CATOLICA | C42: YAHIR ARCINIEGAS | D42: LUIS MANUEL GONZALEZ | E42: 2019000100022 | F42: FORMACIÓN DE CAPITAL HUMANO DE ALTO NIVEL - UNIVERSIDAD CATÓLICA DE COLOMBIA - NACIONAL | G42: CTEL | H42: 343595000 | I42: CONTRATADO EN EJECUCIÓN | J42: 46904 | K42: =VLOOKUP(Tabla22[[#This Row],[BPIN ]],[1]Base1!F$3:Z$223,21,0) -> 31/05/2028 | L42: 45224 | M42: =Tabla22[[#This Row],[FECHA ]]-Tabla22[[#This Row],[HOY]] -> 1680 | N42: =Tabla22[[#This Row],[FECHA ]]-Tabla22[[#This Row],[FECHA DE TERMINACIÓN2]] -> 
A43: ENTIDAD APORTANTE RECURSOS | B43: UNIVERSIDAD MILITAR NUEVA GRANADA | C43: YAHIR ARCINIEGAS | D43: LUIS MANUEL GONZALEZ | E43: 2019000100025 | F43: FORMACIÓN DE CAPITAL HUMANO DE ALTO NIVEL UNIVERSIDAD MILITAR NUEVA GRANADA NACIONAL | G43: CTEL | H43: 294375000 | I43: CONTRATADO EN EJECUCIÓN | J43: 46752 | K43: =VLOOKUP(Tabla22[[#This Row],[BPIN ]],[1]Base1!F$3:Z$223,21,0) -> 31/12/2027 | L43: 45224 | M43: =Tabla22[[#This Row],[FECHA ]]-Tabla22[[#This Row],[HOY]] -> 1528 | N43: =Tabla22[[#This Row],[FECHA ]]-Tabla22[[#This Row],[FECHA DE TERMINACIÓN2]] -> 
A44: ENTIDAD APORTANTE RECURSOS | B44: UNIVERSIDAD NACIONAL DE COLOMBIA | C44: YAHIR ARCINIEGAS | D44: LUIS MANUEL GONZALEZ | E44: 2019000100026 | F44: FORMACIÓN DE CAPITAL HUMANO DE ALTO NIVEL UNIVERSIDAD NACIONAL DE COLOMBIA NACIONAL | G44: CTEL | H44: 21162064500 | I44: CONTRATADO EN EJECUCIÓN | J44: 46904 | K44: =VLOOKUP(Tabla22[[#This Row],[BPIN ]],[1]Base1!F$3:Z$223,21,0) -> 31/05/2028 | L44: 45224 | M44: =Tabla22[[#This Row],[FECHA ]]-Tabla22[[#This Row],[HOY]] -> 1680 | N44: =Tabla22[[#This Row],[FECHA ]]-Tabla22[[#This Row],[FECHA DE TERMINACIÓN2]] -> 
A45: ENTIDAD APORTANTE RECURSOS | B45: U DISTRITAL | C45: YAHIR ARCINIEGAS | D45: LUIS MANUEL GONZALEZ | E45: 2019000100027 | F45: FORMACIÓN DE CAPITAL HUMANO DE ALTO NIVEL EN DOCTORADO PARA EL DESARROLLO REGIONAL, UNIVERSIDAD DISTRITAL FRANCISCO JOSÉ DE CALDAS, A NIVEL NACIONAL | G45: CTEL | H45: 1218668841 | I45: CONTRATADO EN EJECUCIÓN | J45: 46899 | K45: =VLOOKUP(Tabla22[[#This Row],[BPIN ]],[1]Base1!F$3:Z$223,21,0) -> 26/05/2028 | L45: 45224 | M45: =Tabla22[[#This Row],[FECHA ]]-Tabla22[[#This Row],[HOY]] -> 1675 | N45: =Tabla22[[#This Row],[FECHA ]]-Tabla22[[#This Row],[FECHA DE TERMINACIÓN2]] -> 
A46: ENTIDAD APORTANTE RECURSOS | B46: U JAVERIANA | C46: YAHIR ARCINIEGAS | D46: LUIS MANUEL GONZALEZ | E46: 2019000100028 | F46: FORMACIÓN DE CAPITAL HUMANO DE ALTO NIVEL PONTIFICIA UNIVERSIDAD JAVERIANA SEDE CENTRAL NACIONAL | G46: CTEL | H46: 6524500000 | I46: CONTRATADO EN EJECUCIÓN | J46: 46921 | K46: =VLOOKUP(Tabla22[[#This Row],[BPIN ]],[1]Base1!F$3:Z$223,21,0) -> 17/06/2028 | L46: 45224 | M46: =Tabla22[[#This Row],[FECHA ]]-Tabla22[[#This Row],[HOY]] -> 1697 | N46: =Tabla22[[#This Row],[FECHA ]]-Tabla22[[#This Row],[FECHA DE TERMINACIÓN2]] -> 
A47: ENTIDAD APORTANTE RECURSOS | B47: U DE LOS ANDES | C47: YAHIR ARCINIEGAS | D47: LUIS MANUEL GONZALEZ | E47: 2019000100036 | F47: FORMACIÓN DE CAPITAL HUMANO DE ALTO NIVEL UNIVERSIDAD DE LOS ANDES NACIONAL | G47: CTEL | H47: 2814671307 | I47: CONTRATADO EN EJECUCIÓN | J47: 46828 | K47: =VLOOKUP(Tabla22[[#This Row],[BPIN ]],[1]Base1!F$3:Z$223,21,0) -> 16/03/2028 | L47: 45224 | M47: =Tabla22[[#This Row],[FECHA ]]-Tabla22[[#This Row],[HOY]] -> 1604 | N47: =Tabla22[[#This Row],[FECHA ]]-Tabla22[[#This Row],[FECHA DE TERMINACIÓN2]] -> 
A48: ENTIDAD APORTANTE RECURSOS | B48: UNIVERSIDAD NACIONAL DE COLOMBIA | C48: YAHIR ARCINIEGAS | D48: LUIS MANUEL GONZALEZ | E48: 2019000100061 | F48: FORTALECIMIENTO DE LA CAPACIDAD TECNOLÓGICA INSTALADA EN EL CENTRO AGROPECUARIO MARENGO PARA LA INVESTIGACIÓN EN LOS SISTEMAS AGROPRODUCTIVOS DEL TRÓPICO ALTO, BAJO EL EFECTO DE LA VARIABILIDAD Y CAMBIO CLIMÁTICO - CUNDINAMARCA | G48: CTEL | H48: 2386591598 | I48: CONTRATADO EN EJECUCIÓN | J48: 44739 | K48: =VLOOKUP(Tabla22[[#This Row],[BPIN ]],[1]Base1!F$3:Z$223,21,0) -> 27/06/2022 | L48: 45224 | M48: =Tabla22[[#This Row],[FECHA ]]-Tabla22[[#This Row],[HOY]] -> -485 | N48: =Tabla22[[#This Row],[FECHA ]]-Tabla22[[#This Row],[FECHA DE TERMINACIÓN2]] -> 
A49: CUNDINAMARCA | B49: SECRETARIA DE CIENCIA, TECNOLOGIA E INNOVACIÓN | C49: ALEXANDER RIVEROS Y YAHIR ARCINIEGAS | D49: LUIS MANUEL GONZALEZ | E49: 2020000100137 | F49: FORTALECIMIENTO DE LAS CAPACIDADES DE INVESTIGACIÓN Y DESARROLLO PARA ATENDER PROBLEMÁTICAS ASOCIADAS CON AGENTES BIOLÓGICOS PARA LA SALUD PÚBLICA, A TRAVÉS DEL MEJORAMIENTO DEL LABORATORIO DE SALUD PÚBLICA DE CUNDINAMARCA | G49: CTEL | H49: 4506359274 | I49: CONTRATADO EN EJECUCIÓN | J49: 44677 | K49: =VLOOKUP(Tabla22[[#This Row],[BPIN ]],[1]Base1!F$3:Z$223,21,0) -> 26/04/2022 | L49: 45224 | M49: =Tabla22[[#This Row],[FECHA ]]-Tabla22[[#This Row],[HOY]] -> -547 | N49: =Tabla22[[#This Row],[FECHA ]]-Tabla22[[#This Row],[FECHA DE TERMINACIÓN2]] -> 
A50: CUNDINAMARCA | B50: SECRETARIA DE SALUD | C50: DAYANA FERNANDEZ/ LIYUGETH ALFONSO | D50: OLGA LUCIA GARZON | E50: 2020000050003 | F50: ADQUISICIÓN DE AMBULANCIAS,EQUIPOS BIOMÉDICOS, ELEMENTOS DE PROTECCIÓN PERSONAL, ASEO Y DESINFECCIÓN PARA LA ATENCIÓN DE LA CALAMIDAD SANITARIA POR COVID-19 EN LAS E.S.E DEL DEPARTAMENTO DE CUNDINAMARCA | G50: SALUD Y PROTECCIÓN SOCIAL | H50: 43433295564 | I50: CONTRATADO EN EJECUCIÓN | J50: 44742 | K50: =VLOOKUP(Tabla22[[#This Row],[BPIN ]],[1]Base1!F$3:Z$223,21,0) -> 30/06/2022 | L50: 45224 | M50: =Tabla22[[#This Row],[FECHA ]]-Tabla22[[#This Row],[HOY]] -> -482 | N50: =Tabla22[[#This Row],[FECHA ]]-Tabla22[[#This Row],[FECHA DE TERMINACIÓN2]] -> 
A51: CUNDINAMARCA | B51: SECRETARIA DE EDUCACIÓN | C51: YAHIR ARCINIEGAS Y ALEXANDER RIVEROS | D51: GENNY PADILLA | E51: 2020000050019 | F51: FORTALECIMIENTO A LA ESTRATEGIA DE ALIMENTACIÓN ESCOLAR PARA EL AÑO 2020, EN LOS MUNICIPIOS DEL DEPARTAMENTO DE CUNDINAMARCA | G51: EDUCACIÓN | H51: 26240955000 | I51: PARA CIERRE | J51: 44178 | K51: =VLOOKUP(Tabla22[[#This Row],[BPIN ]],[1]Base1!F$3:Z$223,21,0) -> 13/12/2020 | L51: 45224 | M51: =Tabla22[[#This Row],[FECHA ]]-Tabla22[[#This Row],[HOY]] -> -1046 | N51: =Tabla22[[#This Row],[FECHA ]]-Tabla22[[#This Row],[FECHA DE TERMINACIÓN2]] -> 
A52: CUNDINAMARCA | B52: SECRETARIA DE CIENCIA, TECNOLOGIA E INNOVACIÓN | C52: ALEXANDER RIVEROS Y YAHIR ARCINIEGAS | D52: LUIS MANUEL GONZALEZ | E52: 2020000100266 | F52: GENERACIÓN DE ESPACIOS DE ENCUENTRO DE LA SOCIEDAD CON LA CIENCIA Y LA TECNOLOGÍA - UN VIAJE CON LA CIENCIA EN EL DEPARTAMENTO DE CUNDINAMARCA | G52: CTEL | H52: 2241429590 | I52: CONTRATADO EN EJECUCIÓN | J52: 44929 | K52: =VLOOKUP(Tabla22[[#This Row],[BPIN ]],[1]Base1!F$3:Z$223,21,0) -> 03/01/2023 | L52: 45224 | M52: =Tabla22[[#This Row],[FECHA ]]-Tabla22[[#This Row],[HOY]] -> -295 | N52: =Tabla22[[#This Row],[FECHA ]]-Tabla22[[#This Row],[FECHA DE TERMINACIÓN2]] -> 
A53: CUNDINAMARCA | B53: SECRETARIA DE CIENCIA, TECNOLOGIA E INNOVACIÓN | C53: ALEXANDER RIVEROS Y YAHIR ARCINIEGAS | D53: LUIS MANUEL GONZALEZ | E53: 2020000100246 | F53: FORTALECIMIENTO DE LA COMPETITIVIDAD DE LA CADENA PRODUCTIVA DE LA GUADUA POR MEDIO DEL DESARROLLO E IMPLEMENTACIÓN DE DOS (2) PAQUETES TECNOLÓGICOS PARA LA GENERACIÓN DE PRODUCTOS CON VALOR AGREGADO EN EL DEPARTAMENTO DE CUNDINAMARCA | G53: CTEL | H53: 3144525520 | I53: CONTRATADO EN EJECUCIÓN | J53: 45120 | K53: =VLOOKUP(Tabla22[[#This Row],[BPIN ]],[1]Base1!F$3:Z$223,21,0) -> 13/07/2023 | L53: 45224 | M53: =Tabla22[[#This Row],[FECHA ]]-Tabla22[[#This Row],[HOY]] -> -104 | N53: =Tabla22[[#This Row],[FECHA ]]-Tabla22[[#This Row],[FECHA DE TERMINACIÓN2]] -> 
A54: ENTIDAD APORTANTE RECURSOS | B54: CONNECT BOGOTA REGIÓN | C54: YAHIR ARCINIEGAS | D54: LUIS MANUEL GONZALEZ | E54: 2020000100078 | F54: DISEÑO E IMPLEMENTACIÓN DE UN MODELO DE GESTIÓN DE CONOCIMIENTO, INNOVACIÓN Y TRANSFERENCIA DE TECNOLOGÍA CON APLICACIÓN EN EL SECTOR AGROPECUARIO Y AGROINDUSTRIAL EN EL DEPARTAMENTO DE CUNDINAMARCA | G54: CTEL | H54: 3309848753 | I54: CONTRATADO EN EJECUCIÓN | J54: 45473 | K54: =VLOOKUP(Tabla22[[#This Row],[BPIN ]],[1]Base1!F$3:Z$223,21,0) -> 30/06/2024 | L54: 45224 | M54: =Tabla22[[#This Row],[FECHA ]]-Tabla22[[#This Row],[HOY]] -> 249 | N54: =Tabla22[[#This Row],[FECHA ]]-Tabla22[[#This Row],[FECHA DE TERMINACIÓN2]] -> 
A55: ENTIDAD APORTANTE RECURSOS | B55: FEDERACIÓN NACIONAL DE CAFETEROS | C55: YAHIR ARCINIEGAS | D55: LUIS MANUEL GONZALEZ | E55: 2020000100205 | F55: TRASLADO DE TECNOLOGÍAS INNOVADORAS A CAFICULTORES CON IMPACTO SOBRE LA CALIDAD DEL CAFÉ Y LA GESTIÓN DEL RECURSO HÍDRICO DURANTE EL PROCESO DE BENEFICIO EN ZONA CAFETERA DEL DEPARTAMENTO DE CUNDINAMARCA | G55: CTEL | H55: 13783557324 | I55: CONTRATADO EN EJECUCIÓN | J55: 45629 | K55: =VLOOKUP(Tabla22[[#This Row],[BPIN ]],[1]Base1!F$3:Z$223,21,0) -> 03/12/2024 | L55: 45224 | M55: =Tabla22[[#This Row],[FECHA ]]-Tabla22[[#This Row],[HOY]] -> 405 | N55: =Tabla22[[#This Row],[FECHA ]]-Tabla22[[#This Row],[FECHA DE TERMINACIÓN2]] -> 
A56: ENTIDAD APORTANTE RECURSOS | B56: AGROSAVIA | C56: YAHIR ARCINIEGAS | D56: LUIS MANUEL GONZALEZ | E56: 2020000100197 | F56: DESARROLLO DE BIOPLAGUICIDAS POTENCIADOS DE NUEVA GENERACIÓN PARA EL MEJORAMIENTO DE LA PRODUCTIVIDAD E INOCUIDAD DEL CULTIVO DE TOMATE Y CRUCÍFERAS EN EL DEPARTAMENTO DE CUNDINAMARCA | G56: CTEL | H56: 4583970033 | I56: CONTRATADO EN EJECUCIÓN | J56: 46112 | K56: =VLOOKUP(Tabla22[[#This Row],[BPIN ]],[1]Base1!F$3:Z$223,21,0) -> 31/03/2026 | L56: 45224 | M56: =Tabla22[[#This Row],[FECHA ]]-Tabla22[[#This Row],[HOY]] -> 888 | N56: =Tabla22[[#This Row],[FECHA ]]-Tabla22[[#This Row],[FECHA DE TERMINACIÓN2]] -> 
A57: ENTIDAD APORTANTE RECURSOS | B57: UNIVERSIDAD NACIONAL DE COLOMBIA | C57: YAHIR ARCINIEGAS | D57: LUIS MANUEL GONZALEZ | E57: 2020000100240 | F57: ESTUDIO DE PREFACTIBILIDAD PARA LA CREACIÓN DE UN CENTRO DE INNOVACIÓN Y DE PRODUCTIVIDAD PARA EL SECTOR AGROPECUARIO DE SABANA OCCIDENTE DE CUNDINAMARCA | G57: CTEL | H57: 1896154229 | I57: CONTRATADO EN EJECUCIÓN | J57: 44926 | K57: =VLOOKUP(Tabla22[[#This Row],[BPIN ]],[1]Base1!F$3:Z$223,21,0) -> 31/12/2022 | L57: 45224 | M57: =Tabla22[[#This Row],[FECHA ]]-Tabla22[[#This Row],[HOY]] -> -298 | N57: =Tabla22[[#This Row],[FECHA ]]-Tabla22[[#This Row],[FECHA DE TERMINACIÓN2]] -> 
A58: ENTIDAD APORTANTE RECURSOS | B58: UNIVERSIDAD DE CUNDINAMARCA | C58: YAHIR ARCINIEGAS | D58: LUIS MANUEL GONZALEZ | E58: 2020000100158 | F58: FORTALECIMIENTO DE LA INFRAESTRUCTURA FÍSICA Y TECNOLÓGICA DEL CENTRO DE ESTUDIOS AGROAMBIENTALES DE LA UNIVERSIDAD DE CUNDINAMARCA AGROU CUNDINAMARCA | G58: CTEL | H58: 2024433669 | I58: SIN CONTRATAR | K58: =VLOOKUP(Tabla22[[#This Row],[BPIN ]],[1]Base1!F$3:Z$223,21,0) -> 45489 | L58: 45224 | M58: =Tabla22[[#This Row],[FECHA ]]-Tabla22[[#This Row],[HOY]] -> -45224 | N58: =Tabla22[[#This Row],[FECHA ]]-Tabla22[[#This Row],[FECHA DE TERMINACIÓN2]] -> -45489
A59: ENTIDAD APORTANTE RECURSOS | B59: ZIPAQUIRA | C59: YESID CASTAÑO / JEIMY FORERO | E59: 2020000050013 | F59: Mejoramiento de la vía que comunica a los municipios de Zipaquirá y Tocancipá, tramo barandillas - la fuente, departamento de Cundinamarca | G59: TRANSPORTE | H59: 6.788.620.869,00 | I59: CONTRATADO EN EJECUCIÓN | J59: 44709 | K59: =VLOOKUP(Tabla22[[#This Row],[BPIN ]],[1]Base1!F$3:Z$223,21,0) -> 28/05/2022 | L59: 45224 | M59: =Tabla22[[#This Row],[FECHA ]]-Tabla22[[#This Row],[HOY]] -> -515 | N59: =Tabla22[[#This Row],[FECHA ]]-Tabla22[[#This Row],[FECHA DE TERMINACIÓN2]] -> 
A60: ENTIDAD APORTANTE RECURSOS | B60: ZIPAQUIRA | C60: YESID CASTAÑO / JEIMY FORERO | E60: 2020000050015 | F60: MEJORAMIENTO DE LA VÍA ZIPAQUIRÁ - SAN JORGE - TABIO DEPARTAMENTO DE CUNDINAMARCA | G60: TRANSPORTE | H60: 7458735075 | I60: CONTRATADO EN EJECUCIÓN | J60: 44920 | K60: =VLOOKUP(Tabla22[[#This Row],[BPIN ]],[1]Base1!F$3:Z$223,21,0) -> 25/12/2022 | L60: 45224 | M60: =Tabla22[[#This Row],[FECHA ]]-Tabla22[[#This Row],[HOY]] -> -304 | N60: =Tabla22[[#This Row],[FECHA ]]-Tabla22[[#This Row],[FECHA DE TERMINACIÓN2]] -> 
A61: CUNDINAMARCA | B61: SECRETARIA DE CIENCIA, TECNOLOGIA E INNOVACIÓN | C61: ALEXANDER RIVEROS Y YAHIR ARCINIEGAS | D61: LUIS MANUEL GONZALEZ | E61: 2020000100695 | F61: DESARROLLO, TRANSFERENCIA DE TECNOLOGÍA Y CONOCIMIENTO PARA LA INNOVACIÓN QUE FORTALEZCAN CAPACIDADES COMUNITARIAS EN LA COMPRENSIÓN Y/O MITIGACIÓN DE LOS PROBLEMAS DE VIOLENCIAS BASADAS EN GÉNERO, DERIVADAS DE LA EMERGENCIA POR COVID 19, EN CUNDINAMARCA | G61: CTEL | H61: 3100000000 | I61: CONTRATADO EN EJECUCIÓN | J61: 45000 | K61: =VLOOKUP(Tabla22[[#This Row],[BPIN ]],[1]Base1!F$3:Z$223,21,0) -> 15/03/2023 | L61: 45224 | M61: =Tabla22[[#This Row],[FECHA ]]-Tabla22[[#This Row],[HOY]] -> -224 | N61: =Tabla22[[#This Row],[FECHA ]]-Tabla22[[#This Row],[FECHA DE TERMINACIÓN2]] -> 
A62: CUNDINAMARCA | B62: SECRETARIA DE CIENCIA, TECNOLOGIA E INNOVACIÓN | C62: ALEXANDER RIVEROS Y YAHIR ARCINIEGAS | D62: LUIS MANUEL GONZALEZ | E62: 2020000100650 | F62: FORTALECIMIENTO DE CAPACIDADES DE CTEI PARALA INNOVACION EDUCATIVA EN LOS NIVELES DE BÁSICA Y MEDIA, MEDIANTE USO DE TICS EN INSTITUCIONES EDUCATIVAS OFICIALES DE LOS MUNICIPIOS NO CERTIFICADOS DEL DEPARTAMENTO DE CUNDINAMARCA | G62: CTEL | H62: 10804663122 | I62: CONTRATADO EN EJECUCIÓN | J62: 45217 | K62: =VLOOKUP(Tabla22[[#This Row],[BPIN ]],[1]Base1!F$3:Z$223,21,0) -> 18/10/2023 | L62: 45224 | M62: =Tabla22[[#This Row],[FECHA ]]-Tabla22[[#This Row],[HOY]] -> -7 | N62: =Tabla22[[#This Row],[FECHA ]]-Tabla22[[#This Row],[FECHA DE TERMINACIÓN2]] -> 
A63: CUNDINAMARCA | B63: SECRETARIA DE CIENCIA, TECNOLOGIA E INNOVACIÓN | C63: ALEXANDER RIVEROS Y YAHIR ARCINIEGAS | D63: LUIS MANUEL GONZALEZ | E63: 2020000100696 | F63: FORTALECIMIENTO DE CAPACIDADES DE CTEI PARA LA REACTIVACIÓN ECONÓMICA Y LA TRANSFORMACIÓN PRODUCTIVA EN CUNDINAMARCA | G63: CTEL | H63: 7370634083 | I63: CONTRATADO EN EJECUCIÓN | J63: 45204 | K63: =VLOOKUP(Tabla22[[#This Row],[BPIN ]],[1]Base1!F$3:Z$223,21,0) -> 05/10/2023 | L63: 45224 | M63: =Tabla22[[#This Row],[FECHA ]]-Tabla22[[#This Row],[HOY]] -> -20 | N63: =Tabla22[[#This Row],[FECHA ]]-Tabla22[[#This Row],[FECHA DE TERMINACIÓN2]] -> 
A64: CUNDINAMARCA | B64: SECRETARIA DE CIENCIA, TECNOLOGIA E INNOVACIÓN | C64: ALEXANDER RIVEROS Y YAHIR ARCINIEGAS | D64: LUIS MANUEL GONZALEZ | E64: 2020000100649 | F64: FORTALECIMIENTO DE CAPACIDADES DE CTeI PARA EL RELACIONAMIENTO ESCUELA - CONTEXTO RURAL MEDIANTE LA APROPIACIÓN Y USO DE LAS TIC EN EL MUNICIPIO DE SIBATÉ, DEPARTAMENTO DE CUNDINAMARCA | G64: CTEL | H64: 4292464018 | I64: CONTRATADO EN EJECUCIÓN | J64: 45245 | K64: =VLOOKUP(Tabla22[[#This Row],[BPIN ]],[1]Base1!F$3:Z$223,21,0) -> 15/11/2023 | L64: 45224 | M64: =Tabla22[[#This Row],[FECHA ]]-Tabla22[[#This Row],[HOY]] -> 21 | N64: =Tabla22[[#This Row],[FECHA ]]-Tabla22[[#This Row],[FECHA DE TERMINACIÓN2]] -> 
A65: ENTIDAD APORTANTE RECURSOS | B65: FUNDACION UNIVERSIDAD DEL VALLE | C65: YAHIR ARCINIEGAS | D65: JOSE MARIA LEITON | E65: 2020000050044 | F65: FORTALECIMIENTO DE LAS COMPETENCIAS COMUNICATIVAS EN INGLÉS DE LOS ESTUDIANTES DE LOS ESTABLECIMIENTOS EDUCATIVOS NO OFICIALES DE CUNDINAMARCA | G65: EDUCACIÓN | H65: $ 10.468.961.978 | I65: CONTRATADO EN EJECUCIÓN | J65: 45137 | K65: =VLOOKUP(Tabla22[[#This Row],[BPIN ]],[1]Base1!F$3:Z$223,21,0) -> 30/07/2023 | L65: 45224 | M65: =Tabla22[[#This Row],[FECHA ]]-Tabla22[[#This Row],[HOY]] -> -87 | N65: =Tabla22[[#This Row],[FECHA ]]-Tabla22[[#This Row],[FECHA DE TERMINACIÓN2]] -> 
A66: ENTIDAD APORTANTE RECURSOS | B66: UNAD | C66: YAHIR ARCINIEGAS | D66: LUIS MANUEL GONZALEZ | E66: 2020000100433 | F66: Investigación de los compuestos volátiles orgánicos e inducidos para el manejo de moscas plagas en gulupa y granadilla en el departamento de Cundinamarca | G66: CTEL | H66: 3412874201 | I66: CONTRATADO EN EJECUCIÓN | J66: 45514 | K66: =VLOOKUP(Tabla22[[#This Row],[BPIN ]],[1]Base1!F$3:Z$223,21,0) -> 10/08/2024 | L66: 45224 | M66: =Tabla22[[#This Row],[FECHA ]]-Tabla22[[#This Row],[HOY]] -> 290 | N66: =Tabla22[[#This Row],[FECHA ]]-Tabla22[[#This Row],[FECHA DE TERMINACIÓN2]] -> 
A67: ENTIDAD APORTANTE RECURSOS | B67: UNIVERSIDAD INDUSTRIAL DE SANTANDER | C67: YAHIR ARCINIEGAS | D67: LUIS MANUEL GONZALEZ | E67: 2020000100415 | F67: Desarrollo de un sistema óptico computacional para estimar el contenido de carbono orgánico de suelos agrícolas a través de imágenes espectrales e inteligencia artificial en cultivos de cítricos de Santander | G67: CTEL | H67: 2184125885 | I67: CONTRATADO EN EJECUCIÓN | J67: 45412 | K67: =VLOOKUP(Tabla22[[#This Row],[BPIN ]],[1]Base1!F$3:Z$223,21,0) -> 45412 | L67: 45224 | M67: =Tabla22[[#This Row],[FECHA ]]-Tabla22[[#This Row],[HOY]] -> 188 | N67: =Tabla22[[#This Row],[FECHA ]]-Tabla22[[#This Row],[FECHA DE TERMINACIÓN2]] -> 0
A68: ENTIDAD APORTANTE RECURSOS | B68: UNIVERSIDAD INDUSTRIAL DE SANTANDER | C68: YAHIR ARCINIEGAS | D68: LUIS MANUEL GONZALEZ | E68: 2020000100375 | F68: Conformación de una plataforma para estudios celulares avanzados in vivo en tiempo real para el análisis de la respuesta inmunometabólica ante la reexpresión de interferón tipo I kappa en esferoides de células tumorales de cuello uterino en Santander | G68: CTEL | H68: 3123997801 | I68: CONTRATADO EN EJECUCIÓN | J68: 45416 | K68: =VLOOKUP(Tabla22[[#This Row],[BPIN ]],[1]Base1!F$3:Z$223,21,0) -> 04/05/2024 | L68: 45224 | M68: =Tabla22[[#This Row],[FECHA ]]-Tabla22[[#This Row],[HOY]] -> 192 | N68: =Tabla22[[#This Row],[FECHA ]]-Tabla22[[#This Row],[FECHA DE TERMINACIÓN2]] -> 
A69: ENTIDAD APORTANTE RECURSOS | B69: UNIVERSIDAD INDUSTRIAL DE SANTANDER | C69: YAHIR ARCINIEGAS | D69: LUIS MANUEL GONZALEZ | E69: 2020000100351 | F69: Desarrollo de un prototipo selectivo y sensible para monitorear contenido de cadmio in situ en diversas matrices asociadas a la producción de granos de cacao en el departamento de Santander | G69: CTEL | H69: 2585800000 | I69: CONTRATADO EN EJECUCIÓN | J69: 44865 | K69: =VLOOKUP(Tabla22[[#This Row],[BPIN ]],[1]Base1!F$3:Z$223,21,0) -> 31/10/2022 | L69: 45224 | M69: =Tabla22[[#This Row],[FECHA ]]-Tabla22[[#This Row],[HOY]] -> -359 | N69: =Tabla22[[#This Row],[FECHA ]]-Tabla22[[#This Row],[FECHA DE TERMINACIÓN2]] -> 
A70: ENTIDAD APORTANTE RECURSOS | B70: INSTITUTO SUPERIOR DE EDUCACION RURAL DE PAMPLONA | C70: YAHIR ARCINIEGAS | D70: LUIS MANUEL GONZALEZ | E70: 2020000100343 | F70: Implementación laboratorio de calidad fisicoquímica de alimentos para el fortalecimiento competitivo y sostenible de lascadenas agroalimentarias del departamento de Norte de Santander | G70: CTEL | H70: 1097306327 | I70: CONTRATADO EN EJECUCIÓN | J70: 45427 | K70: =VLOOKUP(Tabla22[[#This Row],[BPIN ]],[1]Base1!F$3:Z$223,21,0) -> 15/05/2024 | L70: 45224 | M70: =Tabla22[[#This Row],[FECHA ]]-Tabla22[[#This Row],[HOY]] -> 203 | N70: =Tabla22[[#This Row],[FECHA ]]-Tabla22[[#This Row],[FECHA DE TERMINACIÓN2]] -> 
A71: ENTIDAD APORTANTE RECURSOS | B71: UNIVERSIDAD NACIONAL DE COLOMBIA | C71: YAHIR ARCINIEGAS | D71: LUIS MANUEL GONZALEZ | E71: 2020000100342 | F71: Estudio de potenciales insecticidas en matrices poliméricas para el control de plagas de granos almacenados basados en aceites esenciales provenientes de la biodiversidadflorística del departamento de Cundinamarca | G71: CTEL | H71: 2748237104 | I71: CONTRATADO EN EJECUCIÓN | J71: 45507 | K71: =VLOOKUP(Tabla22[[#This Row],[BPIN ]],[1]Base1!F$3:Z$223,21,0) -> 03/08/2024 | L71: 45224 | M71: =Tabla22[[#This Row],[FECHA ]]-Tabla22[[#This Row],[HOY]] -> 283 | N71: =Tabla22[[#This Row],[FECHA ]]-Tabla22[[#This Row],[FECHA DE TERMINACIÓN2]] -> 
A72: ENTIDAD APORTANTE RECURSOS | B72: UNIVERSIDAD MILITAR NUEVA GRANADA | C72: YAHIR ARCINIEGAS | D72: LUIS MANUEL GONZALEZ | E72: 2020000100728 | F72: Generación y transferencia de conocimientos y tecnologías para elevar capacidades de CTel de pequeños productores de tomate para afrontar problemas derivados del COVID-19 asociadas a la Seg. Alimentaria en las Sab. Centro y Oriente Cundinamarca | G72: CTEL | H72: 4162541452 | I72: CONTRATADO EN EJECUCIÓN | J72: 44966 | K72: =VLOOKUP(Tabla22[[#This Row],[BPIN ]],[1]Base1!F$3:Z$223,21,0) -> 09/02/2024 | L72: 45224 | M72: =Tabla22[[#This Row],[FECHA ]]-Tabla22[[#This Row],[HOY]] -> -258 | N72: =Tabla22[[#This Row],[FECHA ]]-Tabla22[[#This Row],[FECHA DE TERMINACIÓN2]] -> 
A73: ENTIDAD APORTANTE RECURSOS | B73: UNIVERSIDAD NACIONAL DE COLOMBIA | C73: YAHIR ARCINIEGAS | D73: LUIS MANUEL GONZALEZ | E73: 2020000100339 | F73: Desarrollo de Nuevos Métodos No Destructivos para Monitoreo In Situ de Probabilidad de Ocurrencia de Falla en Tuberías en el Sector de Hidrocarburos en los Departamentos de Bogotá Boyacá Santander | G73: CTEL | H73: 2412084140 | I73: CONTRATADO EN EJECUCIÓN | J73: 45077 | K73: =VLOOKUP(Tabla22[[#This Row],[BPIN ]],[1]Base1!F$3:Z$223,21,0) -> 31/05/2023 | L73: 45224 | M73: =Tabla22[[#This Row],[FECHA ]]-Tabla22[[#This Row],[HOY]] -> -147 | N73: =Tabla22[[#This Row],[FECHA ]]-Tabla22[[#This Row],[FECHA DE TERMINACIÓN2]] -> 
A74: ENTIDAD APORTANTE RECURSOS | B74: UNIVERSIDAD MILITAR NUEVA GRANADA | C74: YAHIR ARCINIEGAS | D74: LUIS MANUEL GONZALEZ | E74: 2020000100216 | F74: Innovación y transferencia tecnológica de UMNGBIO a productores de flores para el control biológico de Tetranychus urticae (Acari: Tetranychiidae) en cultivos de invernadero con el ácaro benéfico Neoseiulus californicus (Acari: Phytoseiidae) Cundinamarca | G74: CTEL | H74: 2431580000 | I74: CONTRATADO EN EJECUCIÓN | J74: 45456 | K74: =VLOOKUP(Tabla22[[#This Row],[BPIN ]],[1]Base1!F$3:Z$223,21,0) -> 13/06/2024 | L74: 45224 | M74: =Tabla22[[#This Row],[FECHA ]]-Tabla22[[#This Row],[HOY]] -> 232 | N74: =Tabla22[[#This Row],[FECHA ]]-Tabla22[[#This Row],[FECHA DE TERMINACIÓN2]] -> 
A75: CUNDINAMARCA | B75: SECRETARIA DE COMPETITIVIDAD | C75: DIEGO TORRES/VALENTINA PORTILLO | D75: FABIAN CUESTA | E75: 2019000050026 | F75: Desarrollo de un programa productivo, amigable con el medio ambiente del sector ganadero en el Departamento de Cundinamarca Cundinamarca | G75: AGRICULTURA | H75: 9757143522 | I75: CONTRATADO EN EJECUCIÓN | K75: =VLOOKUP(Tabla22[[#This Row],[BPIN ]],[1]Base1!F$3:Z$223,21,0) -> NO DEFINIDO | L75: 45224 | M75: =Tabla22[[#This Row],[FECHA ]]-Tabla22[[#This Row],[HOY]] -> -45224 | N75: =Tabla22[[#This Row],[FECHA ]]-Tabla22[[#This Row],[FECHA DE TERMINACIÓN2]] -> 
A76: ENTIDAD APORTANTE RECURSOS | B76: UNIVERSIDAD NACIONAL DE COLOMBIA | C76: YAHIR ARCINIEGAS | D76: LUIS MANUEL GONZALEZ | E76: 2020000100169 | F76: Investigación Desarrollo, innovación y transferencia de conocimiento para el procesamiento de la semilla de Sacha Inchi en productos de valor agregado, como estrategia para mejorar la productividad del sector agroindustrial de la Región Cundinamarca | G76: CTEL | H76: 2757697312 | I76: CONTRATADO EN EJECUCIÓN | J76: 45457 | K76: =VLOOKUP(Tabla22[[#This Row],[BPIN ]],[1]Base1!F$3:Z$223,21,0) -> 14/06/2024 | L76: 45224 | M76: =Tabla22[[#This Row],[FECHA ]]-Tabla22[[#This Row],[HOY]] -> 233 | N76: =Tabla22[[#This Row],[FECHA ]]-Tabla22[[#This Row],[FECHA DE TERMINACIÓN2]] -> 
A77: ENTIDAD APORTANTE RECURSOS | B77: UPTC | C77: YAHIR ARCINIEGAS | D77: LUIS MANUEL GONZALEZ | E77: 2020000100114 | F77: Fortalecimiento del ecosistema de investigación científica para CTeI en la universidad pedagógica y tecnológica de Colombia UPTC, I-SPACIO Sogamoso | G77: CTEL | H77: 2310634882 | I77: CONTRATADO EN EJECUCIÓN | J77: 45077 | K77: =VLOOKUP(Tabla22[[#This Row],[BPIN ]],[1]Base1!F$3:Z$223,21,0) -> 31/05/2023 | L77: 45224 | M77: =Tabla22[[#This Row],[FECHA ]]-Tabla22[[#This Row],[HOY]] -> -147 | N77: =Tabla22[[#This Row],[FECHA ]]-Tabla22[[#This Row],[FECHA DE TERMINACIÓN2]] -> 
A78: ENTIDAD APORTANTE RECURSOS | B78: UNIVERSIDAD DE ANTIOQUIA | C78: YAHIR ARCINIEGAS | D78: LUIS MANUEL GONZALEZ | E78: 2020000100079 | F78: Fortalecimiento de la infraestructura tecnológica y equipamiento del ambiente de formación industrial para el aumento de las capacidades institucionales en CTeI de la ETITC Bogotá | G78: CTEL | H78: 1090608306 | I78: CONTRATADO EN EJECUCIÓN | J78: 45046 | K78: =VLOOKUP(Tabla22[[#This Row],[BPIN ]],[1]Base1!F$3:Z$223,21,0) -> 30/04/2023 | L78: 45224 | M78: =Tabla22[[#This Row],[FECHA ]]-Tabla22[[#This Row],[HOY]] -> -178 | N78: =Tabla22[[#This Row],[FECHA ]]-Tabla22[[#This Row],[FECHA DE TERMINACIÓN2]] -> 
A79: ENTIDAD APORTANTE RECURSOS | B79: UNIVERSIDAD NACIONAL DE COLOMBIA | C79: YAHIR ARCINIEGAS | D79: LUIS MANUEL GONZALEZ | E79: 2020000100075 | F79: Aprovechamiento de la biodiversidad en agraz y papa para el desarrollo de cultivos promisorios en el departamento de Santander | G79: CTEL | H79: 3177259696 | I79: CONTRATADO EN EJECUCIÓN | J79: 45565 | K79: =VLOOKUP(Tabla22[[#This Row],[BPIN ]],[1]Base1!F$3:Z$223,21,0) -> 30/09/2024 | L79: 45224 | M79: =Tabla22[[#This Row],[FECHA ]]-Tabla22[[#This Row],[HOY]] -> 341 | N79: =Tabla22[[#This Row],[FECHA ]]-Tabla22[[#This Row],[FECHA DE TERMINACIÓN2]] -> 
A80: ENTIDAD APORTANTE RECURSOS | B80: UNIVERSIDAD NACIONAL DE COLOMBIA | C80: YAHIR ARCINIEGAS | D80: LUIS MANUEL GONZALEZ | E80: 2020000100019 | F80: Fortalecimiento de capacidades de investigación y desarrollo tecnológico de la Universidad Colegio Mayor de Cundinamarca a partir de tecnologías industria 4.0 para el diseño y construcción en Bogotá | G80: CTEL | H80: 2077571214 | I80: CONTRATADO EN EJECUCIÓN | J80: 45075 | K80: =VLOOKUP(Tabla22[[#This Row],[BPIN ]],[1]Base1!F$3:Z$223,21,0) -> 29/05/2023 | L80: 45224 | M80: =Tabla22[[#This Row],[FECHA ]]-Tabla22[[#This Row],[HOY]] -> -149 | N80: =Tabla22[[#This Row],[FECHA ]]-Tabla22[[#This Row],[FECHA DE TERMINACIÓN2]] -> 
A81: ENTIDAD APORTANTE RECURSOS | B81: UNIVERSIDAD INDUSTRIAL DE SANTANDER | C81: YAHIR ARCINIEGAS | D81: LUIS MANUEL GONZALEZ | E81: 2020000100017 | F81: Fortalecimiento DE LA CAPACIDAD INSTITUCIONAL DE INVESTIGACIÓN DE LA UNIVERSIDAD INDUSTRIAL DESANTANDER Nacional | G81: CTEL | H81: 2808520000 | I81: CONTRATADO EN EJECUCIÓN | J81: 45269 | K81: =VLOOKUP(Tabla22[[#This Row],[BPIN ]],[1]Base1!F$3:Z$223,21,0) -> 09/12/2023 | L81: 45224 | M81: =Tabla22[[#This Row],[FECHA ]]-Tabla22[[#This Row],[HOY]] -> 45 | N81: =Tabla22[[#This Row],[FECHA ]]-Tabla22[[#This Row],[FECHA DE TERMINACIÓN2]] -> 
A82: ENTIDAD APORTANTE RECURSOS | B82: UNIVERSIDAD MILITAR NUEVA GRANADA | C82: YAHIR ARCINIEGAS | D82: LUIS MANUEL GONZALEZ | E82: 2020000100103 | F82: Fortalecimiento de capacidades instaladas de Ciencia y Tecnología del Laboratorio de Diagnóstico en el Campus de la Univ Militar Nueva Granada, para atender problemáticas asociadas con agentes biológicos de alto riesgo para la salud humana, Cundinamarca | G82: CTEL | H82: 5162742977 | I82: CONTRATADO EN EJECUCIÓN | J82: 44834 | K82: =VLOOKUP(Tabla22[[#This Row],[BPIN ]],[1]Base1!F$3:Z$223,21,0) -> 30/09/2022 | L82: 45224 | M82: =Tabla22[[#This Row],[FECHA ]]-Tabla22[[#This Row],[HOY]] -> -390 | N82: =Tabla22[[#This Row],[FECHA ]]-Tabla22[[#This Row],[FECHA DE TERMINACIÓN2]] -> 
A83: ENTIDAD APORTANTE RECURSOS | B83: INSTITUTO UNIVERSITARIO DE LA PAZ – UNIPAZ | C83: YAHIR ARCINIEGAS | D83: LUIS MANUEL GONZALEZ | E83: 2020000100042 | F83: Fortalecimiento de los procesos académicos en los programas ofrecidos por el Instituto Universitario de la Paz, UNIPAZ, Barrancabermeja | G83: CTEL | H83: 1178749590 | I83: CONTRATADO EN EJECUCIÓN | J83: 44705 | K83: =VLOOKUP(Tabla22[[#This Row],[BPIN ]],[1]Base1!F$3:Z$223,21,0) -> 24/05/2022 | L83: 45224 | M83: =Tabla22[[#This Row],[FECHA ]]-Tabla22[[#This Row],[HOY]] -> -519 | N83: =Tabla22[[#This Row],[FECHA ]]-Tabla22[[#This Row],[FECHA DE TERMINACIÓN2]] -> 
A84: ENTIDAD APORTANTE RECURSOS | B84: INSTITUTO UNIVERSITARIO DE LA PAZ – UNIPAZ | C84: YAHIR ARCINIEGAS | D84: LUIS MANUEL GONZALEZ | E84: 2020000100016 | F84: Adecuación , DOTACIÓN E IMPLEMENTACIÓN DE UN LABORATORIO DE FABRICACIÓN DIGITAL PARA PROMOVER EL DESARROLLO DE LA CIENCIA, LAINNOVACIÓN Y EL EMPRENDIMIENTO EN LA UNIVERSIDAD FRANCISCO DE PAULA SANTANDER. Cúcuta | G84: CTEL | H84: 2921057589 | I84: CONTRATADO EN EJECUCIÓN | J84: 44872 | K84: =VLOOKUP(Tabla22[[#This Row],[BPIN ]],[1]Base1!F$3:Z$223,21,0) -> 07/11/2022 | L84: 45224 | M84: =Tabla22[[#This Row],[FECHA ]]-Tabla22[[#This Row],[HOY]] -> -352 | N84: =Tabla22[[#This Row],[FECHA ]]-Tabla22[[#This Row],[FECHA DE TERMINACIÓN2]] -> 
A85: ENTIDAD APORTANTE RECURSOS | B85: UNIVERSIDAD TECNOLOGICA DE SANTANDER | C85: YAHIR ARCINIEGAS | D85: LUIS MANUEL GONZALEZ | E85: 2020000100004 | F85: Fortalecimiento y adecuación de equipos e infraestructura del Laboratorio de física del Departamento de Ciencias Básicas, para el mejoramiento de las capacidades institucionales y la investigación en las Unidades Tecnológicas de Santander - Bucaramanga | G85: CTEL | H85: 1016752702 | I85: CONTRATADO EN EJECUCIÓN | K85: =VLOOKUP(Tabla22[[#This Row],[BPIN ]],[1]Base1!F$3:Z$223,21,0) -> 30/11/2022 | L85: 45224 | M85: =Tabla22[[#This Row],[FECHA ]]-Tabla22[[#This Row],[HOY]] -> -45224 | N85: =Tabla22[[#This Row],[FECHA ]]-Tabla22[[#This Row],[FECHA DE TERMINACIÓN2]] -> 
A86: CUNDINAMARCA | B86: SECRETARIA DE EDUCACIÓN | C86: YAHIR ARCINIEGAS | D86: GENNY PADILLA | E86: 2020000050037 | F86: Dotación del mobiliario escolar para las instituciones educativas de los municipios no certificados del Departamento de Cundinamarca | G86: EDUCACIÓN | H86: 10093038848 | I86: CONTRATADO EN EJECUCIÓN | J86: 44773 | K86: =VLOOKUP(Tabla22[[#This Row],[BPIN ]],[1]Base1!F$3:Z$223,21,0) -> 31/07/2022 | L86: 45224 | M86: =Tabla22[[#This Row],[FECHA ]]-Tabla22[[#This Row],[HOY]] -> -451 | N86: =Tabla22[[#This Row],[FECHA ]]-Tabla22[[#This Row],[FECHA DE TERMINACIÓN2]] -> 
A87: ENTIDAD APORTANTE RECURSOS | B87: UNIVERSIDAD DEL NORTE | C87: YAHIR ARCINIEGAS | D87: LUIS MANUEL GONZALEZ | E87: 2020000100287 | F87: Formación de Capital Humano de Alto Nivel Universidad del Norte 2do Corte Nacional | G87: CTEL | H87: 6920233499 | I87: CONTRATADO EN EJECUCIÓN | J87: 47299 | K87: =VLOOKUP(Tabla22[[#This Row],[BPIN ]],[1]Base1!F$3:Z$223,21,0) -> 30/06/2029 | L87: 45224 | M87: =Tabla22[[#This Row],[FECHA ]]-Tabla22[[#This Row],[HOY]] -> 2075 | N87: =Tabla22[[#This Row],[FECHA ]]-Tabla22[[#This Row],[FECHA DE TERMINACIÓN2]] -> 
A88: ENTIDAD APORTANTE RECURSOS | B88: UNIVERSIDAD DEL VALLE | C88: YAHIR ARCINIEGAS | D88: LUIS MANUEL GONZALEZ | E88: 2020000100345 | F88: Formación de capital humano de alto Nivel segundo Corte Universidad del Valle Nacional | G88: CTEL | H88: 5913070114 | I88: CONTRATADO EN EJECUCIÓN | J88: 47330 | K88: =VLOOKUP(Tabla22[[#This Row],[BPIN ]],[1]Base1!F$3:Z$223,21,0) -> 31/07/2029 | L88: =+TODAY() -> 45224 | M88: =Tabla22[[#This Row],[FECHA ]]-Tabla22[[#This Row],[HOY]] -> 2106 | N88: =Tabla22[[#This Row],[FECHA ]]-Tabla22[[#This Row],[FECHA DE TERMINACIÓN2]] -> 
A89: ENTIDAD APORTANTE RECURSOS | B89: UNIVERSIDAD NACIONAL DE COLOMBIA | C89: YAHIR ARCINIEGAS | D89: LUIS MANUEL GONZALEZ | E89: 2021000100003 | F89: Formación de Capital Humano de Alto Nivel Universidad Nacional de Colombia Corte II Nacionl | G89: CTEL | H89: 18418143500 | I89: CONTRATADO EN EJECUCIÓN | J89: 47330 | K89: =VLOOKUP(Tabla22[[#This Row],[BPIN ]],[1]Base1!F$3:Z$223,21,0) -> 31/07/2029 | L89: 45224 | M89: =Tabla22[[#This Row],[FECHA ]]-Tabla22[[#This Row],[HOY]] -> 2106 | N89: =Tabla22[[#This Row],[FECHA ]]-Tabla22[[#This Row],[FECHA DE TERMINACIÓN2]] -> 
A90: ENTIDAD APORTANTE RECURSOS | B90: UNIVERSIDAD DE LA SABANA | C90: YAHIR ARCINIEGAS | D90: LUIS MANUEL GONZALEZ | E90: 2021000100004 | F90: Formación de Capital Humano de Alto Nivel Universidad de La Sabana Core 2 Nacional | G90: CTEL | H90: 1519950000 | I90: CONTRATADO EN EJECUCIÓN | J90: 47385 | K90: =VLOOKUP(Tabla22[[#This Row],[BPIN ]],[1]Base1!F$3:Z$223,21,0) -> 24/09/2029 | L90: 45224 | M90: =Tabla22[[#This Row],[FECHA ]]-Tabla22[[#This Row],[HOY]] -> 2161 | N90: =Tabla22[[#This Row],[FECHA ]]-Tabla22[[#This Row],[FECHA DE TERMINACIÓN2]] -> 
A91: ENTIDAD APORTANTE RECURSOS | B91: UNIVERSIDAD ANTONIO NARIÑO | C91: YAHIR ARCINIEGAS | D91: LUIS MANUEL GONZALEZ | E91: 2021000100014 | F91: Formación de Capital Humano de Alto Nivel Universidad Antonio Nariño Core 2 Nacional | G91: CTEL | H91: 4526652200 | I91: CONTRATADO EN EJECUCIÓN | J91: 47311 | K91: =VLOOKUP(Tabla22[[#This Row],[BPIN ]],[1]Base1!F$3:Z$223,21,0) -> 12/07/2029 | L91: 45224 | M91: =Tabla22[[#This Row],[FECHA ]]-Tabla22[[#This Row],[HOY]] -> 2087 | N91: =Tabla22[[#This Row],[FECHA ]]-Tabla22[[#This Row],[FECHA DE TERMINACIÓN2]] -> 
A92: ENTIDAD APORTANTE RECURSOS | B92: UNIVERSIDAD EAN | C92: YAHIR ARCINIEGAS | D92: LUIS MANUEL GONZALEZ | E92: 2021000100025 | F92: Formación DE CAPITAL HUMANO DE ALTO NIVEL UNIVERSIDAD EAN NACIONAL COHORTE II Nacional | G92: CTEL | H92: 2044506416 | I92: CONTRATADO EN EJECUCIÓN | J92: 47425 | K92: =VLOOKUP(Tabla22[[#This Row],[BPIN ]],[1]Base1!F$3:Z$223,21,0) -> 03/11/2029 | L92: 45224 | M92: =Tabla22[[#This Row],[FECHA ]]-Tabla22[[#This Row],[HOY]] -> 2201 | N92: =Tabla22[[#This Row],[FECHA ]]-Tabla22[[#This Row],[FECHA DE TERMINACIÓN2]] -> 
A93: ENTIDAD APORTANTE RECURSOS | B93: UNIVERSIDAD MILITAR NUEVA GRANADA | C93: YAHIR ARCINIEGAS | D93: LUIS MANUEL GONZALEZ | E93: 2021000100026 | F93: Formación de Capital Humano de Alto Nivel Universidad Militar Nueva Granada Segundo Corte Nacional | G93: CTEL | H93: 751632481 | I93: CONTRATADO EN EJECUCIÓN | J93: 47184 | K93: =VLOOKUP(Tabla22[[#This Row],[BPIN ]],[1]Base1!F$3:Z$223,21,0) -> 07/03/2029 | L93: 45224 | M93: =Tabla22[[#This Row],[FECHA ]]-Tabla22[[#This Row],[HOY]] -> 1960 | N93: =Tabla22[[#This Row],[FECHA ]]-Tabla22[[#This Row],[FECHA DE TERMINACIÓN2]] -> 
A94: ENTIDAD APORTANTE RECURSOS | B94: PONIFICA UNIVERSIDAD JAVERIANA | C94: YAHIR ARCINIEGAS | D94: LUIS MANUEL GONZALEZ | E94: 2021000100027 | F94: Formación de Capital Humano de Alto Nivel Pontificia Universidad Javeriana Sede Bogotá Corte II Nacional | G94: CTEL | H94: 8577491761 | I94: CONTRATADO EN EJECUCIÓN | K94: =VLOOKUP(Tabla22[[#This Row],[BPIN ]],[1]Base1!F$3:Z$223,21,0) -> No definido | L94: 45224 | M94: =Tabla22[[#This Row],[FECHA ]]-Tabla22[[#This Row],[HOY]] -> -45224 | N94: =Tabla22[[#This Row],[FECHA ]]-Tabla22[[#This Row],[FECHA DE TERMINACIÓN2]] -> 
A95: ENTIDAD APORTANTE RECURSOS | B95: UNIVERSIDAD DE CALDAS | C95: YAHIR ARCINIEGAS | D95: LUIS MANUEL GONZALEZ | E95: 2021000100028 | F95: Formación de capital humano de alto nivel Corte 2 Universidad de Caldas - Nacional | G95: CTEL | H95: 63580000000 | I95: CONTRATADO EN EJECUCIÓN | J95: 47356 | K95: =VLOOKUP(Tabla22[[#This Row],[BPIN ]],[1]Base1!F$3:Z$223,21,0) -> 26/08/2029 | L95: 45224 | M95: =Tabla22[[#This Row],[FECHA ]]-Tabla22[[#This Row],[HOY]] -> 2132 | N95: =Tabla22[[#This Row],[FECHA ]]-Tabla22[[#This Row],[FECHA DE TERMINACIÓN2]] -> 
A96: CUNDINAMARCA | B96: SECRETARIA DE EDUCACIÓN | C96: YAHIR ARCINIEGAS | D96: GENNY PADILLA | E96: 2021004250258 | F96: Fortalecimiento a la Estrategia de Alimentación Escolar para el año 2021 en los municipios del Departamento de Cundinamarca | G96: EDUCACIÓN | H96: 16289941201 | I96: CONTRATADO EN EJECUCIÓN | J96: 44760 | K96: =VLOOKUP(Tabla22[[#This Row],[BPIN ]],[1]Base1!F$3:Z$223,21,0) -> 18/07/2022 | L96: 45224 | M96: =Tabla22[[#This Row],[FECHA ]]-Tabla22[[#This Row],[HOY]] -> -464 | N96: =Tabla22[[#This Row],[FECHA ]]-Tabla22[[#This Row],[FECHA DE TERMINACIÓN2]] -> 
A97: CUNDINAMARCA | B97: SECRETARIA DE HABITAT Y VIVIENDA | C97: ALEXANDER RIVEROS/JEIMY FORERO | D97: BEATRIZ GAMEZ | E97: 2018000050050 | F97: Mejoramiento vivienda rural mediante construcción de cocinas habitaciones y pisos en los municipios de Cundinamarca | G97: AGRICULTURA | H97: 5616585397 | I97: EN PROCESO DE CONTRATACIÓN | J97: 45023 | K97: =VLOOKUP(Tabla22[[#This Row],[BPIN ]],[1]Base1!F$3:Z$223,21,0) -> 45023 | L97: 45224 | M97: =Tabla22[[#This Row],[FECHA ]]-Tabla22[[#This Row],[HOY]] -> -201 | N97: =Tabla22[[#This Row],[FECHA ]]-Tabla22[[#This Row],[FECHA DE TERMINACIÓN2]] -> 0
A98: CUNDINAMARCA | B98: SECRETARIA DE COMPETITIVIDAD | C98: ALEXANDER RIVEROS/JEIMY FORERO | D98: FABIAN CUESTA | E98: 2020000050035 | F98: Fortalecimiento de los sistemas productivos a través de la reactivación del sector agrícola en el Departamento de Cundinamarca | G98: AGRICULTURA | H98: 8993872201 | I98: EN PROCESO DE CONTRATACIÓN | J98: 45322 | K98: =VLOOKUP(Tabla22[[#This Row],[BPIN ]],[1]Base1!F$3:Z$223,21,0) -> 45322 | L98: 45224 | M98: =Tabla22[[#This Row],[FECHA ]]-Tabla22[[#This Row],[HOY]] -> 98 | N98: =Tabla22[[#This Row],[FECHA ]]-Tabla22[[#This Row],[FECHA DE TERMINACIÓN2]] -> 0
A99: CUNDINAMARCA | B99: SECRETARIA DE MINAS, ENERGIA Y GAS | C99: DIEGO TORRES / LIYUGETH ALFONSO | D99: YAHIR | E99: 2021004250686 | F99: Construcción Del Centro De Formación E Innovación Minero Energético De Cundinamarca | G99: GOBIERNO TERRITORIAL | H99: $ 13.770.893.382,00 | I99: EN PROCESO DE CONTRATACIÓN | J99: 44888 | K99: =VLOOKUP(Tabla22[[#This Row],[BPIN ]],[1]Base1!F$3:Z$223,21,0) -> 44888 | L99: 45224 | M99: =Tabla22[[#This Row],[FECHA ]]-Tabla22[[#This Row],[HOY]] -> -336 | N99: =Tabla22[[#This Row],[FECHA ]]-Tabla22[[#This Row],[FECHA DE TERMINACIÓN2]] -> 0
A100: CUNDINAMARCA | B100: UNIDAD ADMINISTRATIVA DE GESTIÓN DEL RIESGO. | C100: DIEGO TORRES/VALENTINA PORTILLO | D100: GINNA HERRERA | E100: 2021004250690 | F100: Fortalecimiento del sistema automotor para la gestión del riesgo de desastres del departamento de Cundinamarca | G100: GOBIERNO TERRITORIAL | H100: 7299514100 | I100: EN PROCESO DE CONTRATACIÓN | J100: 44888 | K100: =VLOOKUP(Tabla22[[#This Row],[BPIN ]],[1]Base1!F$3:Z$223,21,0) -> 44888 | L100: 45224 | M100: =Tabla22[[#This Row],[FECHA ]]-Tabla22[[#This Row],[HOY]] -> -336 | N100: =Tabla22[[#This Row],[FECHA ]]-Tabla22[[#This Row],[FECHA DE TERMINACIÓN2]] -> 0
A101: CUNDINAMARCA | B101: SECRETARIA DE COMPETITIVIDAD | C101: ALEXANDER RIVEROS/JEIMY FORERO | D101: FABIAN CUESTA | E101: 2020000050038 | F101: Optimización de los sistemas Ganaderos bovinos de carne leche y doble propósito a partir de la implementación de mejoramiento genético productivo y entrega de maquinaria y equipos en municipios del Departamento de Cundinamarca | G101: AGRICULTURA | H101: 8732449919 | I101: SIN CONTRATAR | J101: 45565 | K101: =VLOOKUP(Tabla22[[#This Row],[BPIN ]],[1]Base1!F$3:Z$223,21,0) -> 45565 | L101: 45224 | M101: =Tabla22[[#This Row],[FECHA ]]-Tabla22[[#This Row],[HOY]] -> 341 | N101: =Tabla22[[#This Row],[FECHA ]]-Tabla22[[#This Row],[FECHA DE TERMINACIÓN2]] -> 0
A102: DECENTRALIZADOS | B102: ICCU - GESPROY GB | C102: DIEGO TORRES / JEIMY FORERO | D102: GIOVANY QUEVEDO | E102: 2018000050024 | F102: MEJORAMIENTO Y REHABILITACIÓN DE LA VÍA LA MARÍA – TOBIA - PASO EL REJO - LA PEÑA, DEPARTAMENTO DE CUNDINAMARCA | G102: TRANSPORTE | H102: 9149162991 | I102: TERMINADO | J102: 44316 | K102: =VLOOKUP(Tabla22[[#This Row],[BPIN ]],[1]Base1!F$3:Z$223,21,0) -> 30/04/2021 | L102: =+TODAY() -> 45224 | M102: =Tabla22[[#This Row],[FECHA ]]-Tabla22[[#This Row],[HOY]] -> -908 | N102: =Tabla22[[#This Row],[FECHA ]]-Tabla22[[#This Row],[FECHA DE TERMINACIÓN2]] -> 
A103: DECENTRALIZADOS | B103: ICCU - GESPROY GB | C103: DIEGO TORRES / JEIMY FORERO | D103: GIOVANY QUEVEDO | E103: 2018000050026 | F103: MEJORAMIENTO DE VÍAS EN LA PROVINCIA DE SUMAPAZ PARA LA CONSOLIDACIÓN DE UNA PAZ ESTABLE Y DURADERA EN EL DEPARTAMENTO DE CUNDINAMARCA | G103: TRANSPORTE | H103: 11457047617 | I103: CONTRATADO EN EJECUCIÓN | J103: 44316 | K103: =VLOOKUP(Tabla22[[#This Row],[BPIN ]],[1]Base1!F$3:Z$223,21,0) -> 30/04/2021 | L103: 45224 | M103: =Tabla22[[#This Row],[FECHA ]]-Tabla22[[#This Row],[HOY]] -> -908 | N103: =Tabla22[[#This Row],[FECHA ]]-Tabla22[[#This Row],[FECHA DE TERMINACIÓN2]] -> 
A104: DECENTRALIZADOS | B104: ICCU - GESPROY GB | C104: DIEGO TORRES / JEIMY FORERO | D104: GIOVANY QUEVEDO | E104: 2018000050059 | F104: Mejoramiento de la vía Gusbita - Tibirita del Departamento de Cundinamarca | G104: TRANSPORTE | H104: 5500531740 | I104: TERMINADO | J104: 44469 | K104: =VLOOKUP(Tabla22[[#This Row],[BPIN ]],[1]Base1!F$3:Z$223,21,0) -> 30/09/2021 | L104: 45224 | M104: =Tabla22[[#This Row],[FECHA ]]-Tabla22[[#This Row],[HOY]] -> -755 | N104: =Tabla22[[#This Row],[FECHA ]]-Tabla22[[#This Row],[FECHA DE TERMINACIÓN2]] -> 
A105: DECENTRALIZADOS | B105: ICCU - GESPROY GB | C105: DIEGO TORRES / JEIMY FORERO | D105: GIOVANY QUEVEDO | E105: 2019000050011 | F105: Mejoramiento de la vía Supatá - Pacho, departamento de Cundinamarca | G105: TRANSPORTE | H105: 7339441010 | I105: CONTRATADO EN EJECUCIÓN | J105: 44712 | K105: =VLOOKUP(Tabla22[[#This Row],[BPIN ]],[1]Base1!F$3:Z$223,21,0) -> 31/05/2022 | L105: 45224 | M105: =Tabla22[[#This Row],[FECHA ]]-Tabla22[[#This Row],[HOY]] -> -512 | N105: =Tabla22[[#This Row],[FECHA ]]-Tabla22[[#This Row],[FECHA DE TERMINACIÓN2]] -> 
A106: DECENTRALIZADOS | B106: ICCU - GESPROY GB | C106: DIEGO TORRES / JEIMY FORERO | D106: GIOVANY QUEVEDO | E106: 2019000050013 | F106: Construcción de la Plaza de Mercado del municipio de Choachí Cundinamarca | G106: TRANSPORTE | H106: 4481109943 | I106: CONTRATADO EN EJECUCIÓN | J106: 44651 | K106: =VLOOKUP(Tabla22[[#This Row],[BPIN ]],[1]Base1!F$3:Z$223,21,0) -> 31/03/2022 | L106: 45224 | M106: =Tabla22[[#This Row],[FECHA ]]-Tabla22[[#This Row],[HOY]] -> -573 | N106: =Tabla22[[#This Row],[FECHA ]]-Tabla22[[#This Row],[FECHA DE TERMINACIÓN2]] -> 
A107: DECENTRALIZADOS | B107: ICCU - GESPROY GB | C107: DIEGO TORRES / JEIMY FORERO | D107: GIOVANY QUEVEDO | E107: 2019000050016 | F107: Mejoramiento de la vía Anolaima Corralejas (Inspección de Corralejas), departamento de Cundinamarca | G107: TRANSPORTE | H107: 5718724028 | I107: TERMINADO | J107: 44469 | K107: =VLOOKUP(Tabla22[[#This Row],[BPIN ]],[1]Base1!F$3:Z$223,21,0) -> 30/09/2021 | L107: 45224 | M107: =Tabla22[[#This Row],[FECHA ]]-Tabla22[[#This Row],[HOY]] -> -755 | N107: =Tabla22[[#This Row],[FECHA ]]-Tabla22[[#This Row],[FECHA DE TERMINACIÓN2]] -> 
A108: DECENTRALIZADOS | B108: ICCU - GESPROY GB | C108: DIEGO TORRES / JEIMY FORERO | D108: GIOVANY QUEVEDO | E108: 2019000050023 | F108: Mejoramiento de la vía Lenguazaque - Villapinzón, departamento de Cundinamarca | G108: TRANSPORTE | H108: 8636278689 | I108: TERMINADO | J108: 44227 | K108: =VLOOKUP(Tabla22[[#This Row],[BPIN ]],[1]Base1!F$3:Z$223,21,0) -> 31/01/2021 | L108: 45224 | M108: =Tabla22[[#This Row],[FECHA ]]-Tabla22[[#This Row],[HOY]] -> -997 | N108: =Tabla22[[#This Row],[FECHA ]]-Tabla22[[#This Row],[FECHA DE TERMINACIÓN2]] -> 
A109: DECENTRALIZADOS | B109: ICCU - GESPROY GB | C109: DIEGO TORRES / JEIMY FORERO | D109: GIOVANY QUEVEDO | E109: 2019000050029 | F109: Mejoramiento de la vía Gachetá - Gama, Departamento de Cundinamarca | G109: TRANSPORTE | H109: 5477582208 | I109: TERMINADO | J109: 44469 | K109: =VLOOKUP(Tabla22[[#This Row],[BPIN ]],[1]Base1!F$3:Z$223,21,0) -> 30/09/2021 | L109: 45224 | M109: =Tabla22[[#This Row],[FECHA ]]-Tabla22[[#This Row],[HOY]] -> -755 | N109: =Tabla22[[#This Row],[FECHA ]]-Tabla22[[#This Row],[FECHA DE TERMINACIÓN2]] -> 
A110: DECENTRALIZADOS | B110: ICCU - GESPROY GB | C110: DIEGO TORRES / JEIMY FORERO | D110: GIOVANY QUEVEDO | E110: 2019000050047 | F110: Mejoramiento de la vía Susa - Carmen de Carupa, Departamento de Cundinamarca | G110: TRANSPORTE | H110: 5203497468 | I110: TERMINADO | J110: 44469 | K110: =VLOOKUP(Tabla22[[#This Row],[BPIN ]],[1]Base1!F$3:Z$223,21,0) -> 30/09/2021 | L110: =+TODAY() -> 45224 | M110: =Tabla22[[#This Row],[FECHA ]]-Tabla22[[#This Row],[HOY]] -> -755 | N110: =Tabla22[[#This Row],[FECHA ]]-Tabla22[[#This Row],[FECHA DE TERMINACIÓN2]] -> 
A111: DECENTRALIZADOS | B111: ICCU - GESPROY GB | C111: DIEGO TORRES / JEIMY FORERO | D111: GIOVANY QUEVEDO | E111: 2019000050056 | F111: Mejoramiento de la vía que conduce del municipio de Nimaima al municipio de Nocaima, departamento de Cundinamarca | G111: TRANSPORTE | H111: 5082491570 | I111: TERMINADO | J111: 44560 | K111: =VLOOKUP(Tabla22[[#This Row],[BPIN ]],[1]Base1!F$3:Z$223,21,0) -> 30/12/2021 | L111: 45224 | M111: =Tabla22[[#This Row],[FECHA ]]-Tabla22[[#This Row],[HOY]] -> -664 | N111: =Tabla22[[#This Row],[FECHA ]]-Tabla22[[#This Row],[FECHA DE TERMINACIÓN2]] -> 
A112: DECENTRALIZADOS | B112: ICCU - GESPROY GB | C112: DIEGO TORRES / JEIMY FORERO | D112: GIOVANY QUEVEDO | E112: 2019000050060 | F112: Estudios y diseños de vías para mejorar la competitividad del departamento de Cundinamarca | G112: TRANSPORTE | H112: 7089369627 | I112: TERMINADO | J112: 44438 | K112: =VLOOKUP(Tabla22[[#This Row],[BPIN ]],[1]Base1!F$3:Z$223,21,0) -> 30/08/2021 | L112: 45224 | M112: =Tabla22[[#This Row],[FECHA ]]-Tabla22[[#This Row],[HOY]] -> -786 | N112: =Tabla22[[#This Row],[FECHA ]]-Tabla22[[#This Row],[FECHA DE TERMINACIÓN2]] -> 
A113: DECENTRALIZADOS | B113: ICCU - GESPROY GB | C113: DIEGO TORRES / JEIMY FORERO | D113: GIOVANY QUEVEDO | E113: 2019000050075 | F113: Mejoramiento de la vía que conduce del municipio de Viani al municipio de Chaguani, (de la y de San Vicente a Chaguani), departamento de Cundinamarca | G113: TRANSPORTE | H113: 7504443091 | I113: CONTRATADO EN EJECUCIÓN | J113: 44651 | K113: =VLOOKUP(Tabla22[[#This Row],[BPIN ]],[1]Base1!F$3:Z$223,21,0) -> 31/03/2022 | L113: 45224 | M113: =Tabla22[[#This Row],[FECHA ]]-Tabla22[[#This Row],[HOY]] -> -573 | N113: =Tabla22[[#This Row],[FECHA ]]-Tabla22[[#This Row],[FECHA DE TERMINACIÓN2]] -> 
A114: DECENTRALIZADOS | B114: ICCU - GESPROY GB | C114: DIEGO TORRES / JEIMY FORERO | D114: GIOVANY QUEVEDO | E114: 2019000050079 | F114: MEJORAMIENTO DE LA VÍA SERREZUELA - EL TRIUNFO, MUNICIPIO DE LA CALERA, DEPARTAMENTO DE CUNDINAMARCA | G114: TRANSPORTE | H114: 7614258187 | I114: TERMINADO | J114: 44316 | K114: =VLOOKUP(Tabla22[[#This Row],[BPIN ]],[1]Base1!F$3:Z$223,21,0) -> 30/04/2021 | L114: 45224 | M114: =Tabla22[[#This Row],[FECHA ]]-Tabla22[[#This Row],[HOY]] -> -908 | N114: =Tabla22[[#This Row],[FECHA ]]-Tabla22[[#This Row],[FECHA DE TERMINACIÓN2]] -> 
A115: DECENTRALIZADOS | B115: ICCU - GESPROY GB | C115: DIEGO TORRES / JEIMY FORERO | D115: GIOVANY QUEVEDO | E115: 2019000050085 | F115: MEJORAMIENTO DE LA VÍA QUE CONDUCE DEL MUNICIPIO DE LA MESA AL MUNICIPIO DE CACHIPAY, (DE LA INSPECCIÓN DE PEÑA NEGRA AL MUNICIPIO DE CACHIPAY), DEPARTAMENTO DE CUNDINAMARCA | G115: TRANSPORTE | H115: 7019896083 | I115: CONTRATADO EN EJECUCIÓN | J115: 44620 | K115: =VLOOKUP(Tabla22[[#This Row],[BPIN ]],[1]Base1!F$3:Z$223,21,0) -> 28/02/2022 | L115: 45224 | M115: =Tabla22[[#This Row],[FECHA ]]-Tabla22[[#This Row],[HOY]] -> -604 | N115: =Tabla22[[#This Row],[FECHA ]]-Tabla22[[#This Row],[FECHA DE TERMINACIÓN2]] -> 
A116: CUNDINAMARCA | B116: SECRETARIA DE CIENCIA, TECNOLOGIA E INNOVACIÓN | C116: YAHIR ARCINIEGAS | D116: LUIS MANUEL GONZALEZ | E116: 2021000100327 | F116: Desarrollo de un sistema de producción lechero para la obtención de leches inocuas de alta calidad y con un perfil lipídico saludable en el Departamento de Cundinamarca | G116: CTEL | H116: 3833042862 | I116: SIN CONTRATAR | K116: =VLOOKUP(Tabla22[[#This Row],[BPIN ]],[1]Base1!F$3:Z$223,21,0) -> No definido | L116: =+TODAY() -> 45224 | M116: =Tabla22[[#This Row],[FECHA ]]-Tabla22[[#This Row],[HOY]] -> -45224 | N116: =Tabla22[[#This Row],[FECHA ]]-Tabla22[[#This Row],[FECHA DE TERMINACIÓN2]] -> 
A117: CUNDINAMARCA | B117: SECRETARIA DE CIENCIA, TECNOLOGIA E INNOVACIÓN | C117: YAHIR ARCINIEGAS | D117: LUIS MANUEL GONZALEZ | E117: 2021000100208 | F117: Fortalecimiento de los niveles de Apropiación social del Conocimiento de la CTeI en comunidades de las provincias de Almeidas y Ubaté del Departamento de Cundinamarca | G117: CTEL | H117: 2191964751 | I117: SIN CONTRATAR | K117: =VLOOKUP(Tabla22[[#This Row],[BPIN ]],[1]Base1!F$3:Z$223,21,0) -> No definido | L117: 45224 | M117: =Tabla22[[#This Row],[FECHA ]]-Tabla22[[#This Row],[HOY]] -> -45224 | N117: =Tabla22[[#This Row],[FECHA ]]-Tabla22[[#This Row],[FECHA DE TERMINACIÓN2]] -> 
A118: CUNDINAMARCA | B118: SECRETARIA DE CIENCIA, TECNOLOGIA E INNOVACIÓN | C118: YAHIR ARCINIEGAS | D118: LUIS MANUEL GONZALEZ | E118: 2021000100243 | F118: Desarrollo participativo de una plataforma tecnológica de teledetección para la gestión sostenible de suelos en agroecosistemas del Departamento de Cundinamarca | G118: CTEL | H118: 3042693625 | I118: SIN CONTRATAR | K118: =VLOOKUP(Tabla22[[#This Row],[BPIN ]],[1]Base1!F$3:Z$223,21,0) -> No definido | L118: 45224 | M118: =Tabla22[[#This Row],[FECHA ]]-Tabla22[[#This Row],[HOY]] -> -45224 | N118: =Tabla22[[#This Row],[FECHA ]]-Tabla22[[#This Row],[FECHA DE TERMINACIÓN2]] -> 
A119: CUNDINAMARCA | B119: SECRETARIA DE MINAS, ENERGIA Y GAS | C119: DIEGO TORRES / LIYUGETH ALFONSO | D119: YAHIR | E119: 2021000050019 | F119: Ampliación DE LA COBERTURA DEL SERVICIO DE GAS COMBUTIBLE POR REDES A TRAVES DE LA FINANCIACIÓN DEL CARGO POR CONEXIÓN Y LA RED INTERNA PARA USUARIOS DE BARRIOS PERIFÉRICOS VEREDAS Y CENTROS POBLADOS DE LOS MUNICIPIOS DE Cundinamarca | G119: MINAS Y ENERGÍA | H119: 10613927436 | I119: SIN CONTRATAR | K119: =VLOOKUP(Tabla22[[#This Row],[BPIN ]],[1]Base1!F$3:Z$223,21,0) -> No definido | L119: 45224 | M119: =Tabla22[[#This Row],[FECHA ]]-Tabla22[[#This Row],[HOY]] -> -45224 | N119: =Tabla22[[#This Row],[FECHA ]]-Tabla22[[#This Row],[FECHA DE TERMINACIÓN2]] -> 
A120: CUNDINAMARCA | B120: SECRETARIA DE EDUCACIÓN | C120: YAHIR ARCINIEGAS | D120: GENNY PADILLA | E120: 2022000050007 | F120: Fortalecimiento a la Estrategia de Alimentación Escolar en los municipios no certificados del Departamento de Cundinamarca para la vigencia 2022 Cundinamarca | G120: EDUCACIÓN | H120: 42.966.037.310,00 | I120: SIN CONTRATAR | K120: =VLOOKUP(Tabla22[[#This Row],[BPIN ]],[1]Base1!F$3:Z$223,21,0) -> No definido | L120: 45224 | M120: =Tabla22[[#This Row],[FECHA ]]-Tabla22[[#This Row],[HOY]] -> -45224 | N120: =Tabla22[[#This Row],[FECHA ]]-Tabla22[[#This Row],[FECHA DE TERMINACIÓN2]] -> 
A121: CUNDINAMARCA | B121: SECRETARIA DE CIENCIA, TECNOLOGIA E INNOVACIÓN | C121: YAHIR ARCINIEGAS | D121: LUIS MANUEL GONZALEZ | E121: 2021000100467 | F121: Fortalecimiento de las capacidades institucionales para el desarrollo y gestión del Ecosistema Territorial de CTeI en todas las provincias del Departamento de Cundinamarca | G121: CTEL | H121: 2801037429 | I121: SIN CONTRATAR | K121: =VLOOKUP(Tabla22[[#This Row],[BPIN ]],[1]Base1!F$3:Z$223,21,0) -> 44760 | L121: 45224 | M121: =Tabla22[[#This Row],[FECHA ]]-Tabla22[[#This Row],[HOY]] -> -45224 | N121: =Tabla22[[#This Row],[FECHA ]]-Tabla22[[#This Row],[FECHA DE TERMINACIÓN2]] -> -44760
A122: CUNDINAMARCA | B122: SECRETARIA DE CIENCIA, TECNOLOGIA E INNOVACIÓN | C122: YAHIR ARCINIEGAS | D122: LUIS MANUEL GONZALEZ | E122: 2021000100276 | F122: Desarrollo DE UN MODELO DE PROMOCIÓN TURÍSTICA SOSTENIBLE DESDE LA TECNOLOGÍA 4.0 EN LOS MUNICIPIOS DE LA PALMA Y YACOPI EN EL DEPARTAMENTO DE Cundinamarca | G122: CTEL | H122: 2608055295 | I122: SIN CONTRATAR | K122: =VLOOKUP(Tabla22[[#This Row],[BPIN ]],[1]Base1!F$3:Z$223,21,0) -> No definido | L122: 45224 | M122: =Tabla22[[#This Row],[FECHA ]]-Tabla22[[#This Row],[HOY]] -> -45224 | N122: =Tabla22[[#This Row],[FECHA ]]-Tabla22[[#This Row],[FECHA DE TERMINACIÓN2]] -> 
A123: CUNDINAMARCA | B123: SECRETARIA DE CIENCIA, TECNOLOGIA E INNOVACIÓN | C123: YAHIR ARCINIEGAS | D123: LUIS MANUEL GONZALEZ | E123: 2021000100523 | F123: Desarrollo de Microredes y almacenamiento (ESS) prestadores de servicios complementarios para incrementar la cobertura eficiencia y confiabilidad del servicio en el departamento de Cundinamarca | G123: CTEL | H123: 3942973233 | I123: SIN CONTRATAR | K123: =VLOOKUP(Tabla22[[#This Row],[BPIN ]],[1]Base1!F$3:Z$223,21,0) -> No definido | L123: 45224 | M123: =Tabla22[[#This Row],[FECHA ]]-Tabla22[[#This Row],[HOY]] -> -45224 | N123: =Tabla22[[#This Row],[FECHA ]]-Tabla22[[#This Row],[FECHA DE TERMINACIÓN2]] -> 
A124: CUNDINAMARCA | B124: SECRETARIA DE EDUCACIÓN | C124: YAHIR ARCINIEGAS | D124: GENNY PADILLA | E124: 2022004250011 | F124: Fortalecimiento a la Estrategia de subsidio de Transporte Escolar en municipios no certificados del Departamento de Cundinamarca para la vigencia 2022 Cundinamarca | G124: CTEL | H124: 24666685502 | I124: CONTRATADO EN EJECUCIÓN | K124: =VLOOKUP(E124,[1]Base1!$A$3:$AD$220,21,0) ->  | L124: 45224 | M124: =Tabla22[[#This Row],[FECHA ]]-Tabla22[[#This Row],[HOY]] -> 
A125: ENTIDAD APORTANTE RECURSOS | B125: EMTEL | C125: ALEXANDER RIVEROS/JEIMY FORERO | D125: FABIAN CUESTA | E125: 2022004250006 | F125: Implementación de una estrategia de reactivación económica para el progreso y la competitividad de micronegocios y unidades productivas en el Departamento de Cundinamarca | G125: AGRICULTURA | H125: 8993872201 | I125: SIN CONTRATAR | K125: =VLOOKUP(Tabla22[[#This Row],[BPIN ]],[1]Base1!F$3:Z$223,21,0) ->  | L125: 45224 | M125: =Tabla22[[#This Row],[FECHA ]]-Tabla22[[#This Row],[HOY]] -> 
A126: CUNDINAMARCA | B126: SECRETARIA DE CIENCIA, TECNOLOGIA E INNOVACIÓN | C126: YAHIR ARCINIEGAS | D126: Implementación de una estrategia de reactivación económica para el progreso y la competitividad de micronegocios y unidades productivas en el Departamento de Cundinamarca | E126: 2021000100500 | F126: Fortalecimiento del equilibrio ecosistémico mediante la innovación en los procesos de propagación vegetal orientados a la generación de conocimiento y uso sostenible en el Departamento de Cundinamarca | G126: CTEL | H126: 4114706771 | I126: NO HA MIGRADO A GESPROY | K126: =VLOOKUP(Tabla22[[#This Row],[BPIN ]],[1]Base1!F$3:Z$223,21,0) ->  | L126: 45224 | M126: =Tabla22[[#This Row],[FECHA ]]-Tabla22[[#This Row],[HOY]] -> 
A127: CUNDINAMARCA | B127: SECRETARIA DE HABITAT Y VIVIENDA | C127: ALEXANDER RIVEROS/JEIMY FORERO | D127: BEATRIZ GAMEZ | E127: 2018000050050 | F127: Mejoramiento vivienda rural mediante construcción de cocinas habitaciones y pisos en los municipios de Cundinamarca | G127: AGRICULTURA | I127: EN PROCESO DE CONTRATACIÓN | K127: =VLOOKUP(Tabla22[[#This Row],[BPIN ]],[1]Base1!F$3:Z$223,21,0) ->  | L127: 45224 | M127: =Tabla22[[#This Row],[FECHA ]]-Tabla22[[#This Row],[HOY]] -> 
A128: CUNDINAMARCA | B128: SECRETARIA DE COMPETITIVIDAD | C128: ALEXANDER RIVEROS/JEIMY FORERO | D128: FABIAN CUESTA | E128: 2020000050035 | F128: Fortalecimiento de los sistemas productivos a través de la reactivación del sector agrícola en el Departamento de Cundinamarca | G128: AGRICULTURA | H128: 8993872201 | I128: EN PROCESO DE CONTRATACIÓN | K128: =VLOOKUP(Tabla22[[#This Row],[BPIN ]],[1]Base1!F$3:Z$223,21,0) ->  | L128: 45224 | M128: =Tabla22[[#This Row],[FECHA ]]-Tabla22[[#This Row],[HOY]] -> 
A129: CUNDINAMARCA | B129: SECRETARIA DE COMPETITIVIDAD | C129: ALEXANDER RIVEROS/JEIMY FORERO | D129: FABIAN CUESTA | E129: 2020000050038 | F129: Optimización de los sistemas Ganaderos bovinos de carne leche y doble propósito a partir de la implementación de mejoramiento genético productivo y entrega de maquinaria y equipos en municipios del Departamento de Cundinamarca | G129: AGRICULTURA | H129: 8732449919 | I129: SIN CONTRATAR | K129: =VLOOKUP(Tabla22[[#This Row],[BPIN ]],[1]Base1!F$3:Z$223,21,0) ->  | L129: 45224 | M129: =Tabla22[[#This Row],[FECHA ]]-Tabla22[[#This Row],[HOY]] -> 

Sheet Riesgo de liberación (hidden)
A2: N° | B2: EJECUTOR (Dpto / Entidad) | C2: EJECUTOR INTERNO | D2: ENCARGADO DE LA ENTIDAD | E2: ENLACE EMTIDAD EJECUTORA | F2: BPIN | G2: PROYECTO | H2: SECTOR | I2: VALOR PROYECTO | J2: VALOR SGR | K2: OTRAS FUENTES | L2: FECHA DE APROBACIÓN OCAD | M2: ACUERDO DE APROBACIÓN | N2: ESTADO | O2: FECHA LIMITE | P2: DÍAS TRANSCURRIDOS DESDE EL ACUERDO DE APROBACIÓN | Q2: Columna1 | R2: DÍAS HABILES PARA REALIZAR ACTO DE APERTURA
A4: 220 | B4: CUNDINAMARCA | C4: UNIDAD ADMINISTRATIVA DE GESTIÓN DEL RIESGO. | F4: 2022004250031 | G4: =VLOOKUP(F4,'Proyectos en Ejecución'!$D$7:$W$242,2,0) -> CONSTRUCCIÓN DE OBRAS PARA MITIGAR LOS RIESGOS QUE SE PRESENTAN EN LA ZONAS ALEDAÑAS A LA URBANIZACIÓN SASIPA DEL MUNICIPIO DE SILVANIA CUNDINAMARCA | H4: =VLOOKUP(F4,'Proyectos en Ejecución'!$D$7:$W$242,4,0) -> GOBIERNO TERRITORIAL | I4: =VLOOKUP(F4,'Proyectos en Ejecución'!$D$7:$W$242,5,0) -> 3673954111 | J4: =VLOOKUP(F4,'Proyectos en Ejecución'!$D$7:$W$242,6,0) -> 3673954111 | K4: =I4-J4 -> 0 | L4: =VLOOKUP(F4,'Proyectos en Ejecución'!$D$7:$W$242,8,0) -> 44922 | M4: =VLOOKUP(F4,'Proyectos en Ejecución'!$D$7:$W$242,10,0) -> DECRETO No 513 DE 2022 | N4: =VLOOKUP(F4,'Proyectos en Ejecución'!$D$7:$W$242,18,0) -> SIN CONTRATAR | O4: =IF(L4=0,"-",EDATE(L4,6)) -> 45104 | P4: =IF(L4=0,"-",_xlfn.DAYS(TODAY(),L4)) -> 302 | Q4: =IF(O4="-","-",_xlfn.DAYS(TODAY(),O4)) -> 120 | R4: =-Q4 -> -120
A5: 223 | B5: CUNDINAMARCA | C5: SECRETARIA DE AMBIENTE | F5: 20223201010038 | G5: =VLOOKUP(F5,'Proyectos en Ejecución'!$D$7:$W$242,2,0) -> IMPLEMENTACION DE UN PROCESO DE RESTAURACIÓN ECOLÓGICA COMO MEDIDA DE CONSERVACIÓN DE ÁREAS AMBIENTALES ESTRATÉGICAS EN LA PROVINCIA DE GUALIVA CUNDINAMARCA | H5: =VLOOKUP(F5,'Proyectos en Ejecución'!$D$7:$W$242,4,0) -> AMBIENTE Y DESARROLLO SOSTENIBLE | I5: =VLOOKUP(F5,'Proyectos en Ejecución'!$D$7:$W$242,5,0) -> 2238923844 | J5: =VLOOKUP(F5,'Proyectos en Ejecución'!$D$7:$W$242,6,0) -> $ 2.238.923.844 | K5: 0 | L5: =VLOOKUP(F5,'Proyectos en Ejecución'!$D$7:$W$242,8,0) -> 20/01/2023 | M5: =VLOOKUP(F5,'Proyectos en Ejecución'!$D$7:$W$242,10,0) -> DE 2023 | N5: =VLOOKUP(F5,'Proyectos en Ejecución'!$D$7:$W$242,18,0) -> SIN CONTRATAR | O5: 45127 | P5: 278 | Q5: 97 | R5: -97
I7: =SUM(I3:I5) -> 5912877955 | J7: =SUM(J3:J5) -> 3673954111

Sheet Control de avances (hidden)
A1: SISTEMAS GENERAL DEL REGALÍAS-BASE DE PROYECTOS APROBADOS | S1: AVANCE FÍSICO Y FINANCIERO | V1: ESTADO
A2: N° | B2: EJECUTOR (Dpto / Entidad) | C2: EJECUTOR INTERNO | D2: ENCARGADO DE LA ENTIDAD | E2: ENLACE ENTIDAD EJECUTORA | F2: BPIN | G2: PROYECTO | H2: SECTOR | I2: VALOR PROYECTO | J2: VALOR SGR | K2: OTRAS FUENTES | L2: FECHA DE APROBACIÓN OCAD | M2: ESTADO | N2: AVANCE FÍSICO | O2: AVANCE FINANCIERO | S2: presento avance en el mes vigente | V2: presento avance en el mes vigente | AA2: ESTADO
A3: 1 | B3: CUNDINAMARCA | C3: SECRETARIA DE AMBIENTE | D3: ALEXANDER RIVEROS / LIYUGETH ALFONSO | E3: HERNAN CAMILO | F3: 2012000050005 | G3: ESTUDIOS Y DISEÑOS DE DETALLE EMBALSE CALANDAIMA MUNICIPIO DE EL COLEGIO DEPARTAMENTO DE CUNDINAMARCA | H3: AMBIENTE Y DESARROLLO SOSTENIBLE | I3: 4000000000 | J3: 1000000000 | K3: =I3-J3 -> 3000000000 | L3: 41271 | M3: CERRADO | N3: 1 | O3: 1 | S3: lleva 1 mes sin reportar avance | V3: lleva 3 mes sin reportar avance | AA3: 44972 | AB3: 44607 | AC3: =IF(AA3=0,0,_xlfn.DAYS(AA3,TODAY())) -> -252 | AD3: =IF(AB3=0,0,_xlfn.DAYS(AB3,TODAY())) -> -617 | AE3: =IF(Z3=0,0,_xlfn.DAYS(Z3,TODAY())) -> 0
A4: 2 | B4: DESENTRALIZADOS | C4: ICCU - GESPROY GB | D4: ALEXANDER RIVEROS / JEIMY FORERO | E4: GIOVANY QUEVEDO | F4: 2012000050006 | G4: CONSTRUCCIÓN CUBIERTA COLISEO DEL CENTRO AGROTECNOLOGICO DE EXPOSICIONES Y COMERCIALIZACION DE LA REGION DEL SUMAPAZ EN EL MUNICIPIO DE FUSAGASUGA - CUNDINAMARCA | H4: TRANSPORTE | I4: 6352617736 | J4: 3581530801 | K4: 2771086935 | L4: 41271 | M4: CERRADO | N4: 1 | O4: 0.9954 | S4: lleva 3 mes sin reportar avance | V4: lleva 6 mes sin reportar avance | AA4: 44972 | AB4: 44607 | AC4: =IF(AA4=0,0,_xlfn.DAYS(AA4,TODAY())) -> -252 | AD4: =IF(AB4=0,0,_xlfn.DAYS(AB4,TODAY())) -> -617 | AE4: =IF(Z4=0,0,_xlfn.DAYS(Z4,TODAY())) -> 0
A5: 3 | B5: CUNDINAMARCA | C5: SECRETARIA DE AGRICULTURA | D5: DIEGO TORRES/ LIYUGETH ALFONSO | E5: RAINER ABUETA | F5: 2012000050007 | G5: FORTALECIMIENTO DE LAS CADENAS HORTIFRUTICOLA Y AROMATICAS EN CUNDINAMARCA | H5: AGRICULTURA | I5: 2490400000 | J5: 1300000000 | K5: 1190400000 | L5: 41271 | M5: CERRADO | N5: 1 | O5: 1 | S5: lleva 4 mes sin reportar avance | V5: lleva 9 mes sin reportar avance | AA5: 44607 | AB5: 44607 | AC5: =IF(AA5=0,0,_xlfn.DAYS(AA5,TODAY())) -> -617 | AD5: -617 | AE5: =IF(Z5=0,0,_xlfn.DAYS(Z5,TODAY())) -> 0
A6: 4 | B6: CUNDINAMARCA | C6: SECRETARIA DE AGRICULTURA | D6: DIEGO TORRES/ LIYUGETH ALFONSO | E6: RAINER ABUETA | F6: 2012000050009 | G6: FORTALECIMIENTO DE LA PRODUCTIVIDAD Y COMPETITIVIDAD DEL SECTOR CACAOTERO EN EL DEPARTAMENTO DE CUNDINAMARCA | H6: AGRICULTURA | I6: 2334689275 | J6: 1200000000 | K6: 1134689275 | L6: 41271 | M6: CERRADO | N6: 1 | O6: 0.9634 | S6: lleva 6 mes sin reportar avance | V6: lleva 1 año sin reportar avance | AA6: 44607 | AB6: 44607 | AC6: =IF(AA6=0,0,_xlfn.DAYS(AA6,TODAY())) -> -617 | AD6: -617 | AE6: 0
A7: 5 | B7: CUNDINAMARCA | C7: SECRETARIA GENERAL | D7: DAYANA FERNANDEZ/ VALENTINA PORTILLO | E7: JIMENA TAFUR | F7: 2012000050010 | G7: ESTUDIOS Y DISEÑOS PARA LA RECUPERACIÓN Y ADECUACION DEL PATRIMONIO HISTORICO CULTURAL PALACIO DE SAN FRANCISCO EN BOGOTA D.C. DEPARTAMENTO DE CUNDINAMARCA | H7: CULTURA | I7: 1000000000 | J7: 1000000000 | K7: 0 | L7: 41271 | M7: CERRADO | N7: 1 | O7: 0.9514 | Z7: 45034 | AA7: 45187 | AB7: 45034 | AC7: -37 | AD7: -190 | AE7: -190
A8: 6 | B8: CUNDINAMARCA | C8: SECRETARIA DE EDUCACIÓN | D8: ALEXANDER RIVEROS / JEIMY FORERO | E8: GENNY PADILLA | F8: 2012000050011 | G8: FORTALECIMIENTO DE LA PERMANENCIA DE LOS ESTUDIANTES EN LOS MUNICIPIOS DEL DEPARTAMENTO DE CUNDINAMARCA DEPARTAMENTO DE CUNDINAMARCA | H8: EDUCACIÓN | I8: 6000000000 | J8: 6000000000 | K8: 0 | L8: 41187 | M8: CERRADO | N8: 1 | O8: 0.5819 | AA8: 44607 | AB8: 44607 | AC8: -617 | AD8: -617 | AE8: 0
A9: 7 | B9: CUNDINAMARCA | C9: SECRETARIA DE DESARROLLO E INCLUSIÓN SOCIAL | D9: DIEGO TORRES/ LIYUGETH ALFONSO | E9: TATIANA HERNANDEZ | F9: 2012000050012 | G9: IMPLEMENTACIÓN DEL PROGRAMA DE COMPLEMENTACION ALIMENTARIA Y NUTRICIONAL EN MENORES DE 5 AÑOS, MUJERES GESTANTES Y LACTANTES EN TODO EL DEPARTAMENTO DE CUNDINAMARCA | H9: SALUD Y PROTECCIÓN SOCIAL | I9: 4531022720 | J9: 3000000000 | K9: 1531022720 | L9: 41187 | M9: CERRADO | N9: 0.9904 | O9: 0.9972 | AA9: 44607 | AB9: 44607 | AC9: -617 | AD9: -617 | AE9: 0
A10: 8 | B10: CUNDINAMARCA | C10: SECRETARIA DE TRANSPORTE Y MOVILIDAD | D10: DAYANA FERNANDEZ Y EDGAR YAHIR ARCINIEGAS | E10: JORGE PINZON | F10: 2012000050013 | G10: ACTUALIZACION Y FORMULACION DE LOS ESTUDIOS Y DISEÑOS FASE II Y III DE LA EXTENCION NORTE - QUITO - SUR DEL SISTEMA TRANSMILENIO AL MUNICIPIO DE SOACHA DEPARTAMENTO DE CUNDINAMARCA | H10: SALUD Y PROTECCIÓN SOCIAL | I10: 4026917304 | J10: 3130787355 | K10: 896129949 | L10: 41187 | M10: CERRADO | N10: 0.9622 | O10: 0.9703 | AA10: 44607 | AB10: 44607 | AC10: -617 | AD10: -617 | AE10: 0
A11: 9 | B11: CUNDINAMARCA | C11: SECRETARIA DE AGRICULTURA | D11: DIEGO TORRES/ LIYUGETH ALFONSO | E11: RAINER ABUETA | F11: 2012000050014 | G11: MEJORAMIENTO DE LA COMPETITIVIDAD Y SOSTENIBILIDAD DEL SUB SECTOR PANELERO DE CUNDINAMARCA | H11: AGRICULTURA | I11: 1559272190 | J11: 1300000000 | K11: 259272190 | L11: 41271 | M11: CERRADO | N11: 1 | O11: 1 | AA11: 44607 | AB11: 44607 | AC11: -617 | AD11: -617 | AE11: 0
A12: 10 | B12: CUNDINAMARCA | C12: SECRETARIA DE AGRICULTURA | D12: DIEGO TORRES/ LIYUGETH ALFONSO | E12: RAINER ABUETA | F12: 2012000050023 | G12: FORTALECIMIENTO DE LA ACTIVIDAD CAFETERA COMO ALTERNATIVA SOSTENIBLE DE DESARROLLO REGIONAL EN EL DEPARTAMENTO DE CUNDINAMARCA | H12: AGRICULTURA | I12: 77168795512 | J12: 1300000000 | K12: 75868795512 | L12: 41271 | M12: CERRADO | N12: 1 | O12: 0.9999 | AA12: 44607 | AB12: 44607 | AC12: -617 | AD12: -617 | AE12: 0
A13: 11 | B13: CUNDINAMARCA | C13: SECRETARIA DE AGRICULTURA | D13: DIEGO TORRES/ LIYUGETH ALFONSO | E13: RAINER ABUETA | F13: 2012000050024 | G13: IMPLEMENTACION DE UN MODELO DE PRODUCCION EN SISTEMAS DE DOBLE PROPOSITO EN PEQUEÑOS PRODUCTORES DEL DEPARTAMENTO DE CUNDINAMARCA | H13: AGRICULTURA | I13: 3371686373 | J13: 1823985000 | K13: 1547701373 | L13: 41271 | M13: CERRADO | N13: 1 | O13: 0.9944 | AA13: 44607 | AB13: 44607 | AC13: -617 | AD13: -617 | AE13: 0
A14: 12 | B14: CUNDINAMARCA | C14: SECRETARIA DE GOBIERNO | D14: DAYANA FERNANDEZ | E14: EDUARDO ORDOÑEZ | F14: 2012000050025 | G14: ESTUDIOS Y DISEÑOS PARA LA CONSTRUCCIÓN DE UN CENTRO ESPECIALIZADO AL SERVICIO DE ADOLESCENTES INFRACTORES DE LA LEY EN EL DEPARTAMENTO DE CUNDINAMARCA | H14: DEFENSA | I14: 200000000 | J14: 200000000 | K14: 0 | L14: 41271 | M14: CERRADO | N14: 1 | O14: 1 | AA14: 44607 | AB14: 44607 | AC14: -617 | AD14: -617 | AE14: 0
A15: 13 | B15: ENTIDAD APORTANTE RECURSOS | C15: MUNICIPIO DE COGUA | D15: ALEXANDER RIVEROS | E15: SANDRA SHUAIB | F15: 2012000050026 | G15: MEJORAMIENTO DE LA VA COGUA-SAN CAYETANO (SECTOR LAS MARGARITAS K8+300 SECTOR LAS MARGARITAS HASTA K10+300) CON K0+00 EN COGUA DEPARTAMENTO DE CUNDINAMARCA | H15: TRANSPORTE | I15: 2000000000 | J15: 2000000000 | K15: 0 | L15: 41271 | M15: CERRADO | N15: 1 | O15: 1 | AA15: 44607 | AB15: 44607 | AC15: -617 | AD15: -617 | AE15: 0
A16: 14 | B16: DESENTRALIZADOS | C16: ICCU - GESPROY GB | D16: ALEXANDER RIVEROS / JEIMY FORERO | E16: LUZ MARINA GALINDO | F16: 2012000050027 | G16: MEJORAMIENTO DE LA VA UBALA-PALOMAS-MAMBITA (K0+00 UBICADO EN EL SITIO PROFESIONALES MUNICIPIO DE UBALA), DEPARTAMENTO DE CUNDINAMARCA | H16: TRANSPORTE | I16: 3359160462 | J16: 3000000000 | K16: 359160462 | L16: 41271 | M16: CERRADO | N16: 1 | O16: 0.9866 | AA16: 44607 | AB16: 44607 | AC16: -617 | AD16: -617 | AE16: 0
A17: 15 | B17: DESENTRALIZADOS | C17: ICCU - GESPROY GB | D17: ALEXANDER RIVEROS / JEIMY FORERO | E17: GIOVANY QUEVEDO | F17: 2012000050028 | G17: MEJORAMIENTO Y MANTENIMIENTO DE LA RED VIAL SECUNDARIA Y TERCIARIA MEDIANTE LA DOTACIÓN DE MAQUINARIA A LOS MUNICIPIOS DEL DEPARTAMENTO DE CUNDINAMARCA | H17: TRANSPORTE | I17: 19769772343 | J17: 8103535586 | K17: 11666236757 | L17: 41271 | M17: CERRADO | N17: 1 | O17: 0.9318 | AA17: 44607 | AB17: 44607 | AC17: -617 | AD17: -617 | AE17: 0
A18: 16 | B18: CUNDINAMARCA | C18: SECRETARIA DE MINAS, ENERGIA Y GAS | D18: DIEGO TORRES / VALENTINA PORTILLO | E18: MARIA PAULA GONZALEZ | F18: 2012000050029 | G18: IMPLEMENTACIÓN Y MASIFICACION DEL SERVICIO DE GAS COMBUSTIBLE POR REDES PARA MUNICIPIOS DE ANOLAIMA, CACHIPAY, CHOACHI, FOMEQUE, UBAQUE Y VIOTA CUNDINAMARCA | H18: MINAS Y ENERGÍA | I18: 15253036000 | J18: 2199142000 | K18: 13053894000 | L18: 41271 | M18: CERRADO | N18: 1 | O18: 0.945 | AA18: 44607 | AB18: 44607 | AC18: -617 | AD18: -617 | AE18: 0
A19: 17 | B19: CUNDINAMARCA | C19: SECRETARIA DE COMPETITIVIDAD | D19: ALEXANDER RIVEROS/JEIMY FORERO | E19: FABIAN CUESTA | F19: 2012000050030 | G19: DESARROLLO CREACION Y FORTALECIMIENTO DE NUEVE (9) CENTROS DE EMPREDIMIENTO Y FORTALECIMIENTO EMPRESARIAL EN EL DEPARTAMENTO DE CUNDINAMARCA | H19: COMERCIO, INDUSTRIA Y TURISMO | I19: 1752501814 | J19: 1708104361 | K19: 44397453 | L19: 41271 | M19: PARA CIERRE | N19: 1 | O19: 0.9507 | AA19: 44607 | AB19: 44607 | AC19: -617 | AD19: -617 | AE19: 0
A20: 18 | B20: ENTIDAD APORTANTE RECURSOS | C20: MUNICIPIO DE MOSQUERA | D20: DAYANA FERNANDEZ | E20: GIOVANY QUEVEDO | F20: 2012000050039 | G20: MEJORAMIENTO DE LA VIA CALLE 23 ENTRE CRA 3 Y 9B EN MOSQUERA CLL 7 ENTRE CRA 13 Y 24 EN FUNZA DEPARTAMENTO DE CUNDINAMARCA | H20: TRANSPORTE | I20: 2816415712 | J20: 1000000000 | K20: 1816415712 | L20: 41271 | M20: CERRADO | N20: 1 | O20: 1 | AA20: 44607 | AB20: 44607 | AC20: -617 | AD20: -617 | AE20: 0
A21: 19 | B21: ENTIDAD APORTANTE RECURSOS | C21: MUNICIPIO DE SOACHA | D21: ALEXANDER RIVEROS | E21: LUZ MARINA GALINDO | F21: 2012000050044 | G21: REHABILITACIÓN Y MEJORAMIENTO DE LA VIA PARALELA ( TRANSVERSAL 8 Y CARRERA 7) ENTRE CARRERA 13 CON AUTOPISTA SUR BARRIO LA DESPENSA, HASTA LA CALLE 27 DEL CENTRO DEL MUNICIPIO DE SOACHA CUNDINAMARCA (TRAMO N 1 - K0+000 HASTA K0+262) | H21: TRANSPORTE | I21: 1000000000 | J21: 1000000000 | K21: 0 | L21: 41271 | M21: CERRADO | N21: 1 | O21: 1 | AA21: 44607 | AB21: 44607 | AC21: -617 | AD21: -617 | AE21: 0
A22: 20 | B22: DESENTRALIZADOS | C22: ICCU - GESPROY GB | D22: ALEXANDER RIVEROS / JEIMY FORERO | E22: GIOVANY QUEVEDO | F22: 2012000050051 | G22: MEJORAMIENTO DEL PUENTE GUATIMBOL SOBRE EL RIO SUMAPAZ EN LA VA VENECIA - ICONONZO DEPARTAMENTO DE CUNDINAMARCA | H22: TRANSPORTE | I22: 827195639 | J22: 620304130 | K22: 206891509 | L22: 41271 | M22: CERRADO | N22: 1 | O22: 0.9809 | AA22: 44607 | AB22: 44607 | AC22: -617 | AD22: -617 | AE22: 0
A23: 21 | B23: DESENTRALIZADOS | C23: ICCU - GESPROY GB | D23: ALEXANDER RIVEROS / JEIMY FORERO | E23: GIOVANY QUEVEDO | F23: 2012000050052 | G23: FORMULACIÓN Y ACTUALIZACION DE LOS ESTUDIOS Y DISEÑOS DE LA VIA UBAQUE - LOS CEREZOS - CHIPAQUE DEPARTAMENTO DE CUNDINAMARCA | H23: TRANSPORTE | I23: 257457261 | J23: 250000000 | K23: 7457261 | L23: 41271 | M23: CERRADO | N23: 1 | O23: 0.9996 | AA23: 44607 | AB23: 44607 | AC23: -617 | AD23: -617 | AE23: 0
A24: 22 | B24: DESENTRALIZADOS | C24: ICCU - GESPROY GB | D24: ALEXANDER RIVEROS / JEIMY FORERO | E24: GIOVANY QUEVEDO | F24: 2012000050054 | G24: FORMULACIÓN Y ACTUALIZACION DE LOS ESTUDIOS Y DISEÑOS PARA EL MEJORAMIENTO DE LA TRONCAL DEL CARBON EN LONGITUD DE 43 KMS (K0+00 LOCALIZADO EN TIERRA NEGRA) DEPARTAMENTO DE CUNDINAMARCA | H24: TRANSPORTE | I24: 777429075 | J24: 755000000 | K24: 22429075 | L24: 41271 | M24: CERRADO | N24: 1 | O24: 0.9984 | AA24: 44607 | AB24: 44607 | AC24: -617 | AD24: -617 | AE24: 0
A25: 23 | B25: CUNDINAMARCA | C25: SECRETARIA DE CIENCIA, TECNOLOGIA E INNOVACIÓN | D25: ALEXANDER RIVEROS / VALENTINA PORTILLO | E25: JUAN CARLOS BELTRAN | F25: 2012000100010 | G25: FORTALECIMIENTO DE LAS REGIONES COLOMBIANAS EN SUS CAPACIDADES DE CTI - CUNDINAMARCA | H25: CTEL | I25: 8721806744 | J25: 8721806744 | K25: 0 | L25: 41263 | M25: CONTRATADO EN EJECUCIÓN | N25: 0.8603 | O25: 0.9729 | Z25: 44972 | AA25: 44972 | AB25: 45124 | AC25: -252 | AD25: -100 | AE25: -252
A26: 24 | B26: CUNDINAMARCA | C26: SECRETARIA DE CIENCIA, TECNOLOGIA E INNOVACIÓN | D26: ALEXANDER RIVEROS / VALENTINA PORTILLO | E26: JUAN CARLOS BELTRAN | F26: 2012000100056 | G26: INVESTIGACIÓN ESTRATEGIAS DE VALORACION Y APROPIACION DE LOS RECURSOS NATURALES MECANISMOS DE ADAPTACION A CAMBIO CLIMATICO. REGION DEL BAJO MAGDALENA | H26: CTEL | I26: 7184175232 | J26: 4100000000 | K26: 3084175232 | L26: 41263 | M26: CERRADO | N26: 1 | O26: 0.9997 | AA26: 44607 | AB26: 44607 | AC26: -617 | AD26: -617 | AE26: 0
A27: 25 | B27: CUNDINAMARCA | C27: SECRETARIA DE CIENCIA, TECNOLOGIA E INNOVACIÓN | D27: ALEXANDER RIVEROS / VALENTINA PORTILLO | E27: JUAN CARLOS BELTRAN | F27: 2012000100063 | G27: FORTALECIMIENTO DE LAS CAPACIDADES DE INNOVACIÓN SOCIAL POR MEDIO DEL PARQUE CIENTIFICO EN BOGOTA - CUNDINAMARCA | H27: CTEL | I27: 16942704000 | J27: 8250704000 | K27: 8692000000 | L27: 41263 | M27: CERRADO | N27: 1 | O27: 0.9473 | AA27: 44607 | AB27: 44607 | AC27: -617 | AD27: -617 | AE27: 0
A28: 26 | B28: CUNDINAMARCA | C28: SECRETARIA DE CIENCIA, TECNOLOGIA E INNOVACIÓN | D28: ALEXANDER RIVEROS / VALENTINA PORTILLO | E28: JUAN CARLOS BELTRAN | F28: 2012000100118 | G28: FORMACION EN CIENCIA, TECNOLOGIA E INNOVACION EN LA COMUNIDAD EDUCATIVA DE LAS INSTITUCIONES EDUCATIVAS OFICIALES DE LOS MUNICIPIOS NO CERTIFICADOS DEL DEPARTAMENTO | H28: CTEL | I28: 22788739251 | J28: 17739839251 | K28: 5048900000 | L28: 41295 | M28: CERRADO | N28: 0.9818 | O28: 0.9481 | AA28: 44607 | AB28: 44607 | AC28: -617 | AD28: -617 | AE28: 0
A29: 27 | B29: CUNDINAMARCA | C29: SECRETARIA DE CIENCIA, TECNOLOGIA E INNOVACIÓN | D29: ALEXANDER RIVEROS / VALENTINA PORTILLO | E29: JUAN CARLOS BELTRAN | F29: 2012000100144 | G29: INVESTIGACIÓN INVESTIGACION, DESARROLLO Y TRANSFERENCIA TECNOLOGICA EN EL SECTOR AGROPECUARIO Y AGROINDUSTRIAL CON EL FIN DE MEJORAR L TODO EL DEPARTAMENTO, CUNDINAMARCA, CENTRO ORIENTE | H29: CTEL | I29: 50514736439 | J29: 34707000000 | K29: 15807736439 | L29: 41263 | M29: CONTRATADO EN EJECUCIÓN | N29: 0.8433 | O29: 0.8217 | Z29: 45034 | AA29: 44635 | AB29: 45096 | AC29: -589 | AD29: -128 | AE29: -190
A30: 28 | B30: CUNDINAMARCA | C30: SECRETARIA DE CIENCIA, TECNOLOGIA E INNOVACIÓN | D30: ALEXANDER RIVEROS / VALENTINA PORTILLO | E30: JUAN CARLOS BELTRAN | F30: 2012000100156 | G30: CONSTRUCCIÓN DEL ECOSISTEMA DE INNOVACION TIC PARA EL DEPTO DE CUNDINAMARCA | H30: CTEL | I30: 7088000000 | J30: 5000000000 | K30: 2088000000 | L30: 41263 | M30: CERRADO | N30: 0.9898 | O30: 0.9318 | AA30: 44607 | AB30: 44607 | AC30: -617 | AD30: -617 | AE30: 0
A31: 29 | B31: DESENTRALIZADOS | C31: ICCU - GESPROY GB | D31: ALEXANDER RIVEROS / JEIMY FORERO | E31: GIOVANY QUEVEDO | F31: 2013000050003 | G31: ESTUDIOS Y DISEÑOS PARA EL MEJORAMIENTO DE LA VA VILLAPINZON-TURMEQUE EN LONGITUD DE 11 KMS (K0+00 LOCALIZADO EN VILLAPINZON DEPARTAMENTO DE CUNDINAMARCA | H31: TRANSPORTE | I31: 245000000 | J31: 245000000 | K31: 0 | L31: 41400 | M31: CERRADO | N31: 1 | O31: 0.7347 | AA31: 44607 | AB31: 44607 | AC31: -617 | AD31: -617 | AE31: 0
A32: 30 | B32: DESENTRALIZADOS | C32: ICCU - GESPROY GB | D32: ALEXANDER RIVEROS / JEIMY FORERO | E32: EDWIN | F32: 2013000050004 | G32: ESTUDIOS Y DISEÑOS PARA EL MEJORAMIENTO DE LA VA YACOPI - LA VICTORIA CON K0+00 EN YACOPI DEPARTAMENTO DE CUNDINAMARCA | H32: TRANSPORTE | I32: 250000000 | J32: 250000000 | K32: 0 | L32: 41400 | M32: CERRADO | N32: 1 | O32: 0.7491 | AA32: 44607 | AB32: 44607 | AC32: -617 | AD32: -617 | AE32: 0
A33: 31 | B33: CUNDINAMARCA | C33: SECRETARIA DE DESARROLLO E INCLUSIÓN SOCIAL | D33: DIEGO TORRES/ LIYUGETH ALFONSO | E33: TATIANA HERNANDEZ | F33: 2013000050005 | G33: IMPLEMENTACIÓN DEL PROGRAMA DE COMPLEMENTACION ALIMENTARIA Y NUTRICIONAL PARA MENORES DE CINCO AÑOS Y MUJERES GESTANTES Y LACTANTES EN TODO EL DEPARTAMENTO DE CUNDINAMARCA | H33: EDUCACIÓN | I33: 6189832118 | J33: 6000000000 | K33: 189832118 | L33: 41400 | M33: CERRADO | N33: 0.9982 | O33: 0.9899 | AA33: 44607 | AB33: 44607 | AC33: -617 | AD33: -617 | AE33: 0
A34: 32 | B34: CUNDINAMARCA | C34: SECRETARIA DE EDUCACIÓN | D34: ALEXANDER RIVEROS / JEIMY FORERO | E34: GENNY PADILLA | F34: 2013000050011 | G34: FORTALECIMIENTO DE LA PERMANENCIA DE LOS ESTUDIANTES EN LOS MUNICIPIOS DEL DEPARTAMENTO DE CUNDINAMARCA 2013-2014 CUNDINAMARCA, CENTRO ORIENTE | H34: EDUCACIÓN | I34: 13360387595 | J34: 13360387595 | K34: 0 | L34: 41400 | M34: CERRADO | N34: 0.998 | O34: 0.9234 | AA34: 44607 | AB34: 44607 | AC34: -617 | AD34: -617 | AE34: 0
A35: 33 | B35: CUNDINAMARCA | C35: SECRETARIA DE MINAS, ENERGIA Y GAS | D35: DIEGO TORRES / VALENTINA PORTILLO | E35: MARIA PAULA GONZALEZ | F35: 2013000050026 | G35: CONSTRUCCIÓN REDES ELECTRICAS EN LA ZONA RURAL DE LOS MUNICIPIOS DE PARATEBUENO Y GUTIERREZ EN EL DEPARTAMENTO DE CUNDINAMARCA | H35: MINAS Y ENERGÍA | I35: 1068319227 | J35: 1045119227 | K35: 23200000 | L35: 41502 | M35: CERRADO | N35: 0.4493 | O35: 0.447 | Z35: 44793 | AA35: 45034 | AB35: 44607 | AC35: -190 | AD35: -617 | AE35: -431
A36: 34 | B36: CUNDINAMARCA | C36: SECRETARIA DE AGRICULTURA | D36: DIEGO TORRES/ LIYUGETH ALFONSO | E36: RAINER ABUETA | F36: 2013000050027 | G36: FORTALECIMIENTO DE LA ACTIVIDAD CAFETERA COMO ESTRATEGIA DE MEJORAMIENTO DE LA PRODUCTIVIDAD Y LA COMPETITIVIDAD EN EL DEPARTAMENTO DE CUNDINAMARCA, CENTRO ORIENTE | H36: AGRICULTURA | I36: 18756930869 | J36: 3000000000 | K36: 15756930869 | L36: 41502 | M36: CERRADO | N36: 1 | O36: 0.9949 | AA36: 44607 | AB36: 44607 | AC36: -617 | AD36: -617 | AE36: 0
A37: 35 | B37: CUNDINAMARCA | C37: SECRETARIA DE AGRICULTURA | D37: DIEGO TORRES/ LIYUGETH ALFONSO | E37: RAINER ABUETA | F37: 2013000050028 | G37: FORTALECIMIENTO DEL SUBSECTOR PANELERO EN EL DEPARTAMENTO DE CUNDINAMARCA | H37: AGRICULTURA | I37: 3427279826 | J37: 2599564478 | K37: 827715348 | L37: 41502 | M37: CERRADO | N37: 1 | O37: 0.9996 | AA37: 44607 | AB37: 44607 | AC37: -617 | AD37: -617 | AE37: 0
A38: 36 | B38: DESENTRALIZADOS | C38: ICCU - GESPROY GB | D38: ALEXANDER RIVEROS / JEIMY FORERO | E38: GIOVANY QUEVEDO | F38: 2013000050043 | G38: MEJORAMIENTO Y REHABILITACION DE LA VIA GUACHETA - CAPELLANIA (SECTOR K0+780 AL K2+240) K0+000 LOCALIZADO EN EL RIO UBATE GUACHET, CUNDINAMARCA, CENTRO ORIENTE | H38: TRANSPORTE | I38: 1019047619 | J38: 1000000000 | K38: 19047619 | L38: 41639 | M38: CERRADO | N38: 1 | O38: 0.9806 | AA38: 44607 | AB38: 44607 | AC38: -617 | AD38: -617 | AE38: 0
A39: 37 | B39: ENTIDAD APORTANTE RECURSOS | C39: BANCO AGRARIO DE COLOMBIA | D39: DIEGO TORRES / JEIMY FORERO | F39: 2013000050044 | G39: CONSTRUCCIÓN CUNDINAMARCA VISR 2013 TODO EL DEPARTAMENTO, CUNDINAMARCA, CENTRO ORIENTE | H39: AGRICULTURA | I39: 60041780218 | J39: 15888838218 | K39: 44152942000 | L39: 41569 | M39: CONTRATADO EN EJECUCIÓN | N39: 0.8102 | O39: 0.8529 | AA39: 44607 | AB39: 44607 | AC39: -617 | AD39: -617 | AE39: 0
A40: 38 | B40: DESENTRALIZADOS | C40: ICCU - GESPROY GB | D40: ALEXANDER RIVEROS / JEIMY FORERO | E40: GIOVANY QUEVEDO | F40: 2013000050045 | G40: MEJORAMIENTO Y PAVIMENTACIÓN DE LA VIA FOSCA - GUTIERREZ, DESDE EL KM 2+000 AL KM 3+000 (K0+000 LOCALIZADO EN FOSCA), DEPARTAMENTO DE CUNDINAMARCA | H40: TRANSPORTE | I40: 2534999997 | J40: 2000000000 | K40: 534999997 | L40: 41579 | M40: CERRADO | N40: 1 | O40: 0.9745 | AA40: 44607 | AB40: 44607 | AC40: -617 | AD40: -617 | AE40: 0
A41: 39 | B41: CUNDINAMARCA | C41: SECRETARIA DE MINAS, ENERGIA Y GAS | D41: DIEGO TORRES / VALENTINA PORTILLO | E41: MARIA PAULA GONZALEZ | F41: 2013000050046 | G41: IMPLEMENTACIÓN Y MASIFICACION DEL SERVICIO DE GAS COMBUSTIBLE POR REDES PARA LOS MUNICIPIOS DE CAPARRAPI, EL PEÑON, LA PALMA, PAIME, TOPAIPI Y VILLAGOMEZ CUNDINAMARCA | H41: MINAS Y ENERGÍA | I41: 6609136508 | J41: 2118963154 | K41: 4490173354 | L41: 41579 | M41: CERRADO | N41: 1 | O41: 1 | AA41: 44607 | AB41: 44607 | AC41: -617 | AD41: -617 | AE41: 0
A42: 40 | B42: DESENTRALIZADOS | C42: ICCU - GESPROY GB | D42: ALEXANDER RIVEROS / JEIMY FORERO | E42: GIOVANY QUEVEDO | F42: 2013000050047 | G42: MEJORAMIENTO Y PAVIMENTACIÓN VIA GUANACAS - EL PEÑON DESDE EL K0+000 AL K2+000 (K0+000 UBICADO EN GUANACAS) MUNICIPIO EL PEÑON, CUNDINAMARCA | H42: TRANSPORTE | I42: 3000000000 | J42: 3000000000 | K42: 0 | L42: 41808 | M42: CERRADO | N42: 1 | O42: 0.9964 | AA42: 44607 | AB42: 44607 | AC42: -617 | AD42: -617 | AE42: 0
A43: 41 | B43: DESENTRALIZADOS | C43: ICCU - GESPROY GB | D43: ALEXANDER RIVEROS / JEIMY FORERO | E43: GIOVANY QUEVEDO | F43: 2013000050049 | G43: MEJORAMIENTO Y MANTENIMIENTO DE LA RE VIAL MEDIANTE LA ADQUISICION DE MAQUINARIA AÑO 2013-2014 PARA LOS MUNICIPIOS DEL DEPARTAMENTO DE CUNDINAMARCA | H43: TRANSPORTE | I43: 14330854376 | J43: 12431431552 | K43: 1899422824 | L43: 41609 | M43: CERRADO | N43: 1 | O43: 0.9996 | AA43: 44607 | AB43: 44607 | AC43: -617 | AD43: -617 | AE43: 0
A44: 42 | B44: DESENTRALIZADOS | C44: ICCU - GESPROY GB | D44: ALEXANDER RIVEROS / JEIMY FORERO | E44: GIOVANY QUEVEDO | F44: 2013000050050 | G44: MEJORAMIENTO Y PAVIMENTACIÓN DE LA VIA SANAME - PUENTE QUETAME DESDE K0+000 AL K1+500 (K0+000 LOCALIZADO EN PUENTE QUEMADO) MUNICIPIO FOSCA, CUNDINAMARCA | H44: TRANSPORTE | I44: 6000000000 | J44: 6000000000 | K44: 0 | L44: 41639 | M44: CERRADO | N44: 1 | O44: 0.4921 | AA44: 44607 | AB44: 44607 | AC44: -617 | AD44: -617 | AE44: 0
A45: 43 | B45: CUNDINAMARCA | C45: SECRETARIA DE AMBIENTE | D45: ALEXANDER RIVEROS / LIYUGETH ALFONSO | E45: HERNAN CAMILO | F45: 2013000050051 | G45: FORTALECIMIENTO DE LA GESTION INTEGRAL DE RESIDUOS SOLIDOS, A TRAVES DE SISTEMAS RECIONALES EN LAS PROVINCIAS DE UBATE Y RIONEGRO EN EL DEPARTAMENTO DE CUNDINAMARCA | H45: VIVIENDA, CIUDAD Y TERRITORIO | I45: 3000000000 | J45: 3000000000 | K45: 0 | L45: 41579 | M45: CERRADO | N45: 0.4828 | O45: 0.474 | AA45: 44607 | AB45: 44607 | AC45: -617 | AD45: -617 | AE45: 0
A46: 44 | B46: CUNDINAMARCA | C46: SECRETARIA DE AGRICULTURA | D46: DIEGO TORRES/ LIYUGETH ALFONSO | E46: RAINER ABUETA | F46: 2013000050054 | G46: MEJORAMIENTO DE LA PRODUCTIVIDAD Y COMPETITIVIDAD DEL SECTOR CAUCHERO EN EL DEPARTAMENTO DE CUNDINAMARCA | H46: AGRICULTURA | I46: 3765860000 | J46: 2459000000 | K46: 1306860000 | L46: 41639 | M46: CERRADO | N46: 1 | O46: 1 | AA46: 44607 | AB46: 44607 | AC46: -617 | AD46: -617 | AE46: 0
A47: 45 | B47: CUNDINAMARCA | C47: SECRETARIA DE GOBIERNO | D47: DAYANA FERNANDEZ | E47: EDUARDO ORDOÑEZ | F47: 2013000050056 | G47: PREVENCIN DE INCENDIOS FORESTALES CON LA ADQUISICION DE VEHICULOS 4X4 ACCION RAPIDA TIPO FORESTAL PARA EL DEPARTAMENTO DE CUNDINAMARCA | H47: AMBIENTE Y DESARROLLO SOSTENIBLE | I47: 4000000000 | J47: 4000000000 | K47: 0 | L47: 41579 | M47: CERRADO | N47: 1 | O47: 0.9999 | AA47: 44607 | AB47: 44607 | AC47: -617 | AD47: -617 | AE47: 0
A48: 46 | B48: CUNDINAMARCA | C48: SECRETARIA DE AGRICULTURA | D48: DIEGO TORRES/ LIYUGETH ALFONSO | E48: RAINER ABUETA | F48: 2013000050081 | G48: MEJORAMIENTO DE LA PRODUCTIVIDAD, CALIDAD, POSCOSECHA Y MERCADEO DE LAS CADENAS HORTIFRUTCOLA Y AROMATICAS DE CUNDINAMARCA | H48: AGRICULTURA | I48: 4900400000 | J48: 2600000000 | K48: 2300400000 | L48: 41808 | M48: CERRADO | N48: 1 | O48: 1 | AA48: 44607 | AB48: 44607 | AC48: -617 | AD48: -617 | AE48: 0
A49: 47 | B49: CUNDINAMARCA | C49: SECRETARIA DE AGRICULTURA | D49: DIEGO TORRES/ LIYUGETH ALFONSO | E49: RAINER ABUETA | F49: 2013000050083 | G49: IMPLEMENTACIÓN Y PUESTA EN MARCHA DE UNA PLANTA HOMOGENIZADORA DE MIELES PARA LA PRODUCCION DE PANELA EN CAPARRAPI CUNDINAMARCA, CENTRO ORIENTE | H49: AGRICULTURA | I49: 3322683076 | J49: 3126242524 | K49: 196440552 | L49: 41808 | M49: CERRADO | N49: 1 | O49: 1 | AA49: 44607 | AB49: 44607 | AC49: -617 | AD49: -617 | AE49: 0
A50: 48 | B50: DESENTRALIZADOS | C50: ICCU - GESPROY GB | D50: ALEXANDER RIVEROS / JEIMY FORERO | E50: GIOVANY QUEVEDO | F50: 2013000050094 | G50: MEJORAMIENTO Y REHABILITACION DE LA VIA TABIO - CHIA DEL K1+100 AL K3+200 | H50: TRANSPORTE | I50: 2000000000 | J50: 2000000000 | K50: 0 | L50: 41639 | M50: DESAPROBADO | N50: 0 | O50: 0 | AA50: 44607 | AB50: 44607 | AC50: -617 | AD50: -617 | AE50: 0
A51: 49 | B51: CUNDINAMARCA | C51: SECRETARIA DE CIENCIA, TECNOLOGIA E INNOVACIÓN | D51: ALEXANDER RIVEROS / VALENTINA PORTILLO | E51: JUAN CARLOS BELTRAN | F51: 2013000100129 | G51: INCREMENTO EN LAS ESTRATEGIAS SUSTENTABLES EN EL USO DEL RECURSO DE ENERGA ELECTRICA PARA LA POBLACION VULNERABLE EN EL DPTO. DE CUNDINAMARCA | H51: CTEL | I51: 5264002961 | J51: 4097083299 | K51: 1166919662 | L51: 41789 | M51: CONTRATADO EN EJECUCIÓN | N51: 0.8929 | O51: 0.7572 | P51: x | Z51: 45217 | AA51: 44607 | AB51: 45217 | AC51: -617 | AD51: -7 | AE51: -7
A52: 50 | B52: CUNDINAMARCA | C52: SECRETARIA DE CIENCIA, TECNOLOGIA E INNOVACIÓN | D52: ALEXANDER RIVEROS / VALENTINA PORTILLO | E52: JUAN CARLOS BELTRAN | F52: 2013000100131 | G52: INVESTIGACIÓN ESTIMAR VULNERABILIDAD AL CAMBIO CLIMATICO DE SISTEMAS CAFETEROS Y DISEÑO DE ARREGLOS AGROFORESTALES CON BIOTECNOLOGIA PACHO, TIBACUY, SAN JUAN DE RIO SECO, CUNDINAMARCA | H52: CTEL | I52: 3287867000 | J52: 2622860000 | K52: 665007000 | L52: 41474 | M52: CERRADO | N52: 0.9845 | O52: 0.8904 | AA52: 44607 | AB52: 44607 | AC52: -617 | AD52: -617 | AE52: 0
A53: 51 | B53: CUNDINAMARCA | C53: SECRETARIA DE CIENCIA, TECNOLOGIA E INNOVACIÓN | D53: ALEXANDER RIVEROS / VALENTINA PORTILLO | E53: JUAN CARLOS BELTRAN | F53: 2013000100149 | G53: INNOVACIÓN EN EL MODELO DE GESTION DE MEDICAMENTO EN EL DEPARTAMENTO DE CUNDINAMARCA FASE II | H53: CTEL | I53: 3079583047 | J53: 2490946916 | K53: 588636131 | L53: 41474 | M53: CERRADO | N53: 1 | O53: 1 | AA53: 44607 | AB53: 44607 | AC53: -617 | AD53: -617 | AE53: 0
A54: 52 | B54: CUNDINAMARCA | C54: SECRETARIA DE CIENCIA, TECNOLOGIA E INNOVACIÓN | D54: ALEXANDER RIVEROS / VALENTINA PORTILLO | E54: JUAN CARLOS BELTRAN | F54: 2013000100176 | G54: INNOVACIÓN SISTEMA DE PRODUCCION DE FRUTAS/HORTALIZAS FRESCAS/PROCESADAS TIPO EXPORTACION CON TECNOLOGIA BIOLOGICA /INTEGRAL INOCUA SUBACHOQUE, CUNDINAMARCA, CENTRO ORIENTE | H54: CTEL | I54: 9285096292 | J54: 6556945302 | K54: 2728150990 | L54: 41474 | M54: TERMINADO | N54: 1 | O54: 0.6871 | Z54: 44972 | AA54: 44972 | AB54: 44972 | AC54: -252 | AD54: -252 | AE54: -252
A55: 53 | B55: CUNDINAMARCA | C55: SECRETARIA DE CIENCIA, TECNOLOGIA E INNOVACIÓN | D55: ALEXANDER RIVEROS / VALENTINA PORTILLO | E55: JUAN CARLOS BELTRAN | F55: 2013000100180 | G55: DISEÑO SMART TON: TALENTO E INNOVACION APLICADA AL TERRITORIO | H55: CTEL | I55: 3089954000 | J55: 2497510000 | K55: 592444000 | L55: 41509 | M55: CERRADO | N55: 1 | O55: 0.8654 | AA55: 44607 | AB55: 44607 | AC55: -617 | AD55: -617 | AE55: 0
A56: 54 | B56: CUNDINAMARCA | C56: SECRETARIA DE CIENCIA, TECNOLOGIA E INNOVACIÓN | D56: ALEXANDER RIVEROS / VALENTINA PORTILLO | E56: JUAN CARLOS BELTRAN | F56: 2013000100215 | G56: FORTALECIMIENTO DE LA GESTIN COMUNITARIA DEL RECURSO HIDRICO, POR MEDIO DE LA DISMINUCION DEL CONSUMO DE ESTE, UTILIZANDO TP Y TICS , CUNDINAMARCA, CENTRO ORIENTE | H56: CTEL | I56: 1811292700 | J56: 1608461700 | K56: 202831000 | L56: 41565 | M56: CERRADO | N56: 1 | O56: 0.9074 | AA56: 44607 | AB56: 44607 | AC56: -617 | AD56: -617 | AE56: 0
A57: 55 | B57: CUNDINAMARCA | C57: SECRETARIA DE CIENCIA, TECNOLOGIA E INNOVACIÓN | D57: ALEXANDER RIVEROS / VALENTINA PORTILLO | E57: JUAN CARLOS BELTRAN | F57: 2013000100217 | G57: FORTALECIMIENTO DE LA COMPETITIVIDAD DEL SECTOR FLORICULTOR COLOMBIANO MEDIANTE EL USO DE CIENCIA, TECNOLOGA E INNOVACION APLICADAS EN EL DEPARTAMENTO DE CUNDINAMARCA | H57: CTEL | I57: 7204002875 | J57: 4618409839 | K57: 2585593036 | L57: 41789 | M57: CERRADO | N57: 1 | O57: 0.9859 | AA57: 44607 | AB57: 44607 | AC57: -617 | AD57: -617 | AE57: 0
A58: 56 | B58: CUNDINAMARCA | C58: SECRETARIA DE CIENCIA, TECNOLOGIA E INNOVACIÓN | D58: ALEXANDER RIVEROS / VALENTINA PORTILLO | E58: JUAN CARLOS BELTRAN | F58: 2013000100247 | G58: INVESTIGACIÓN E INNOVACIÓN TECNOLÓGICA Y APROPIACIÓN SOCIAL DE CONOCIMIENTO CIENTÍFICO DE ORQUÍDEAS NATIVAS DE CUNDINAMARCA | H58: CTEL | I58: 3400306874 | J58: 2551931927 | K58: 848374947 | L58: 41856 | M58: CERRADO | N58: 0.967 | O58: 0.9526 | AA58: 44607 | AB58: 44607 | AC58: -617 | AD58: -617 | AE58: 0
A59: 57 | B59: CUNDINAMARCA | C59: SECRETARIA DE CIENCIA, TECNOLOGIA E INNOVACIÓN | D59: ALEXANDER RIVEROS / VALENTINA PORTILLO | E59: JUAN CARLOS BELTRAN | F59: 2013000100248 | G59: INNOVACIÓN , CIENCIA Y TECNOLOGIA PARA PRODUCTORES DE LECHE EN LA PROVINCIA DE UBATE, CUNDINAMARCA. | H59: CTEL | I59: 11619725567 | J59: 9380319099 | K59: 2239406468 | L59: 41565 | M59: TERMINADO | N59: 0.8025 | O59: 0.8197 | Z59: 44740 | AA59: 44793 | AB59: 44760 | AC59: -431 | AD59: -464 | AE59: -484
A60: 58 | B60: ENTIDAD APORTANTE RECURSOS | C60: MUNICIPIO DE MADRID | D60: ALEXANDER RIVEROS | F60: 2013000050048 | G60: MEJORAMIENTO Y PAVIMENTACIÓN DE LA VIA AJOVER-SANTA CRUZ EN 2 KILOMETROS, MUNICIPIO DE MADRID, CUNDINAMARCA | H60: TRANSPORTE | I60: 8946944399 | J60: 8700000000 | K60: 246944399 | L60: 41689 | M60: CERRADO | N60: 1 | O60: 1 | AA60: 44607 | AB60: 44607 | AC60: -617 | AD60: -617 | AE60: 0
A61: 59 | B61: ENTIDAD APORTANTE RECURSOS | C61: CORMAGDALENA | D61: ALEXANDER RIVEROS | F61: 20132401060001 | G61: MANTENIMIENTO Y RECUPERACIÓN DE LA NAVEGABILIDAD DEL RIO MAGDALENA | H61: TRANSPORTE | I61: 3527443454052 | J61: 117000000000 | K61: 3410443454052 | L61: 41514 | M61: CERRADO | N61: 0.045 | O61: 0.0383 | AA61: 44607 | AB61: 44607 | AC61: -617 | AD61: -617 | AE61: 0
A62: 60 | B62: DESENTRALIZADOS | C62: ICCU - GESPROY GB | D62: ALEXANDER RIVEROS / JEIMY FORERO | E62: GIOVANY QUEVEDO | F62: 2014000050033 | G62: MEJORAMIENTO Y REHABILITACIÓN DE LA VIA TABIO - CHIA DEL K0+000 AL K1+800 | H62: TRANSPORTE | I62: 2570000000 | J62: 2000000000 | K62: 570000000 | L62: 41893 | M62: CERRADO | N62: 1 | O62: 1 | AA62: 44607 | AB62: 44607 | AC62: -617 | AD62: -617 | AE62: 0
A63: 61 | B63: DESENTRALIZADOS | C63: ICCU - GESPROY GB | D63: ALEXANDER RIVEROS / JEIMY FORERO | E63: GIOVANY QUEVEDO | F63: 2014257720001 | G63: MEJORAMIENTO Y PAVIMENTACIÓN DE LA VIA SUESCA LA PLAYA - SESQUILE DEPARTAMENTO DE CUNDINAMARCA | H63: TRANSPORTE | I63: 4191000000 | J63: 1391000000 | K63: 2800000000 | L63: 41743 | M63: CERRADO | N63: 1 | O63: 0.9867 | AA63: 44607 | AB63: 44607 | AC63: -617 | AD63: -617 | AE63: 0
A64: 62 | B64: CUNDINAMARCA | C64: SECRETARIA DE GOBIERNO | D64: DAYANA FERNANDEZ | E64: EDUARDO ORDOÑEZ | F64: 2014000050010 | G64: CONSTRUCCIÓN DE UN CENTRO DE ATENCION ESPECIALIZADA AL SERVICIO DE ADOLESCENTES INFRACTORES DE LA LEY PENAL EN EL DEPARTAMENTO DE CUNDINAMARCA | H64: JUSTICIA Y DEL DERECHO | I64: 9260000000 | J64: 8500000000 | K64: 760000000 | L64: 41808 | M64: PARA CIERRE | N64: 1 | O64: 1 | P64: x | AA64: 44607 | AB64: 44607 | AC64: -617 | AD64: -617 | AE64: 0
A65: 63 | B65: ENTIDAD APORTANTE RECURSOS | C65: MUNICIPIO DE VILLETA | D65: ALEXANDER RIVEROS | F65: 2014000050048 | G65: MEJORAMIENTO Y PAVIMENTACIÓN DE LA VIA VILLETA-PANTANILLO-CORREDOR CHUGUACAL -CAMBAO DEL K0+360 AL K1+060 VILLETA, CUNDINAMARCA, CENTRO ORIENTE | H65: TRANSPORTE | I65: 1701612797 | J65: 1489209370 | K65: 212403426.8 | L65: 42089 | M65: CERRADO | N65: 1 | O65: 1 | AA65: 44607 | AB65: 44607 | AC65: -617 | AD65: -617 | AE65: 0
A66: 64 | B66: DESENTRALIZADOS | C66: ICCU - GESPROY GB | D66: ALEXANDER RIVEROS / JEIMY FORERO | E66: GIOVANY QUEVEDO | F66: 2015000050010 | G66: MEJORAMIENTO DE LA VA SAN CAYETANO - COGUA SECTOR K6+670 - K8+366 (K0+000 LOCALIZADO EN EL CASCO URBANO DEL MUNICIPIO DE SAN CAYETANO) CUNDINAMARCA | H66: TRANSPORTE | I66: 3796247522 | J66: 3000000000 | K66: 796247522 | L66: 42158 | M66: CERRADO | N66: 1 | O66: 0.9876 | AA66: 44607 | AB66: 44607 | AC66: -617 | AD66: -617 | AE66: 0
A67: 65 | B67: DESENTRALIZADOS | C67: ICCU - GESPROY GB | D67: ALEXANDER RIVEROS / JEIMY FORERO | E67: GIOVANY QUEVEDO | F67: 2015000050013 | G67: MEJORAMIENTO DE LA VA UBAQUE - LOS CEREZOS - CHIPAQUE SECTORES DEL K0+000 AL K2+040 Y DEL K16+000 AL K18+260 (K0+000 LOCALIZADO EN UBAQUE) DEPARTAMENTO DE CUNDINAMARCA | H67: TRANSPORTE | I67: 8000000000 | J67: 8000000000 | K67: =I67-J67 -> 0 | L67: 42159 | M67: CERRADO | N67: 0.9971 | O67: 0.9875 | AA67: 44607 | AB67: 44607 | AC67: -617 | AD67: -617 | AE67: 0
A68: 66 | B68: CUNDINAMARCA | C68: SECRETARIA DE HABITAT Y VIVIENDA | D68: ALEXANDER RIVEROS/JEIMY FORERO | E68: FABIAN BACHILLER | F68: 2015000050014 | G68: CONSTRUCCIÓN DE VIVIENDAS NUEVAS RURALES VISR 2015 EN EL DEPARTAMENTO DE CUNDINAMARCA-SGR | H68: AGRICULTURA | I68: 7588896000 | J68: 6840269782 | K68: 748626218 | L68: 42173 | M68: CERRADO | N68: 1 | O68: 0.9276 | AA68: 44607 | AB68: 44607 | AC68: =IF(AA68=0,0,_xlfn.DAYS(AA68,TODAY())) -> -617 | AD68: -617 | AE68: 0
A69: 67 | B69: CUNDINAMARCA | C69: SECRETARIA DE EDUCACIÓN | D69: ALEXANDER RIVEROS / JEIMY FORERO | E69: GENNY PADILLA | F69: 2015000050015 | G69: FORTALECIMIENTO DE LA PERMANENCIA DE LOS ESTUDIANTES EN LOS MUNICIPIOS DEL DEPARTAMENTO DE CUNDINAMARCA, CENTRO ORIENTE - 2015 | H69: EDUCACIÓN | I69: 8373797030 | J69: 8373797030 | K69: 0 | L69: 42159 | M69: CERRADO | N69: 0.9707 | O69: 0.8519 | AA69: 44607 | AB69: 44607 | AC69: -617 | AD69: -617 | AE69: =IF(Z69=0,0,_xlfn.DAYS(Z69,TODAY())) -> 0
A70: 68 | B70: DESENTRALIZADOS | C70: ICCU - GESPROY GB | D70: ALEXANDER RIVEROS / JEIMY FORERO | E70: GIOVANY QUEVEDO | F70: 2015000050025 | G70: MEJORAMIENTO Y PAVIMENTACIÓN DE LA TRONCAL DEL CARBON SECTOR K0+000 AL K2+860 (K0+000 LOCALIZADO EN TIERRA NEGRA, MUNICIPIO DE TAUSA), DEPARTAMENTO DE CUNDINAMARCA | H70: TRANSPORTE | I70: 7913699780 | J70: 6000000000 | K70: 1913699780 | L70: 42159 | M70: CERRADO | N70: 1 | O70: 1 | AA70: 44607 | AB70: 44607 | AC70: -617 | AD70: -617 | AE70: 0
A71: 69 | B71: CUNDINAMARCA | C71: SECRETARIA DE EDUCACIÓN | D71: ALEXANDER RIVEROS / JEIMY FORERO | E71: GENNY PADILLA | F71: 2015000050026 | G71: FORTALECIMIENTO A LA ESTRATEGIA DE ALIMENTACIÓN ESCOLAR PARA MUNICIPIOS NO CERTIFICADOS DEL DEPARTAMENTO DE CUNDINAMARCA, CENTRO ORIENTE | H71: EDUCACIÓN | I71: 2100000000 | J71: 2100000000 | K71: 0 | L71: 42159 | M71: CERRADO | N71: 1 | O71: 0.8551 | AA71: 44607 | AB71: 44607 | AC71: -617 | AD71: -617 | AE71: 0
A72: 70 | B72: CUNDINAMARCA | C72: SECRETARIA DE AGRICULTURA | D72: DIEGO TORRES/ LIYUGETH ALFONSO | E72: RAINER ABUETA | F72: 2015000050029 | G72: IMPLEMENTACIÓN Y PUESTA EN MARCHA DE UNA PLANTA HOMOGENIZADORA DE MIELES PARA LA PRODUCCION DE PANELA EN EL MUNICIPIO DE QUIPILE, CUNDINAMARCA, CENTRO ORIENTE | H72: AGRICULTURA | I72: 3395531657 | J72: 3139511657 | K72: 256020000 | L72: 42180 | M72: CERRADO | N72: 1 | O72: 1 | AA72: 44607 | AB72: 44607 | AC72: -617 | AD72: -617 | AE72: 0
A73: 71 | B73: CUNDINAMARCA | C73: SECRETARIA DE AGRICULTURA | D73: DIEGO TORRES/ LIYUGETH ALFONSO | E73: RAINER ABUETA | F73: 2015000050030 | G73: FORTALECIMIENTO A LA CADENA PRODUCTIVA DEL CACAO EN EL DEPARTAMENTO DE CUNDINAMARCA | H73: AGRICULTURA | I73: 2253334400 | J73: 1200000000 | K73: 1053334400 | L73: 42159 | M73: CERRADO | N73: 1 | O73: 1 | AA73: 44607 | AB73: 44607 | AC73: -617 | AD73: -617 | AE73: 0
A74: 72 | B74: CUNDINAMARCA | C74: SECRETARIA DE GOBIERNO | D74: DAYANA FERNANDEZ | E74: EDUARDO ORDOÑEZ | F74: 2015000050031 | G74: ADQUISICIÓN DE VEHICULOS PARA LOS CUERPOS OPERATIVOS (BOMBEROS) PARA LAS PROVINCIAS DEL DEPARTAMENTO DE CUNDINAMARCA | H74: AMBIENTE Y DESARROLLO SOSTENIBLE | I74: 3670000000 | J74: 3670000000 | K74: 0 | L74: 42159 | M74: CERRADO | N74: 1 | O74: 0.98 | AA74: 44607 | AB74: 44607 | AC74: -617 | AD74: -617 | AE74: 0
A75: 73 | B75: CUNDINAMARCA | C75: SECRETARIA DE AGRICULTURA | D75: DIEGO TORRES/ LIYUGETH ALFONSO | E75: RAINER ABUETA | F75: 2015000050034 | G75: FORTALECIMIENTO DE LA PRODUCTIVIDAD Y COMPETITIVIDAD DEL SECTOR CAUCHERO EN EL DEPARTAMENTO DE CUNDINAMARCA | H75: AGRICULTURA | I75: 2158800000 | J75: 1500000000 | K75: 658800000 | L75: 42159 | M75: CERRADO | N75: 1 | O75: 1 | AA75: 44607 | AB75: 44607 | AC75: -617 | AD75: -617 | AE75: 0
A76: 74 | B76: DESENTRALIZADOS | C76: ICCU - GESPROY GB | D76: ALEXANDER RIVEROS / JEIMY FORERO | E76: GIOVANY QUEVEDO | F76: 2015000050041 | G76: MEJORAMIENTO DE LA VA UBALA - PALOMAS - MAMBITA - MEDINA (K0+000 UBICADO EN EL SITIO PROFESIONALES MUNICIPIO DE UBALA, DEPARTAMENTO DE CUNDINAMARCA | H76: TRANSPORTE | I76: 13663491451 | J76: 12663491451 | K76: 1000000000 | L76: 42180 | M76: CERRADO | N76: 1 | O76: 1 | AA76: 44607 | AB76: 44607 | AC76: -617 | AD76: -617 | AE76: 0
A77: 75 | B77: CUNDINAMARCA | C77: SECRETARIA DE DESARROLLO E INCLUSIÓN SOCIAL | D77: DIEGO TORRES/ LIYUGETH ALFONSO | E77: TATIANA HERNANDEZ | F77: 2015000050048 | G77: IMPLEMENTACIÓN DEL PROGRAMA DE COMPLEMENTACION ALIMENTARIA Y NUTRICIONAL PARA MENORES DE 5 AÑOS, MADRES GESTANTES Y LACTANTES EN TODO EL DEPARTAMENTO DE CUNDINAMARCA 2015 | H77: SALUD Y PROTECCIÓN SOCIAL | I77: 2900000000 | J77: 2900000000 | K77: 0 | L77: 42348 | M77: CERRADO | N77: 1 | O77: 1 | AA77: 44607 | AB77: 44607 | AC77: -617 | AD77: -617 | AE77: 0
A78: 76 | B78: CUNDINAMARCA | C78: SECRETARIA DE EDUCACIÓN | D78: ALEXANDER RIVEROS / JEIMY FORERO | E78: GENNY PADILLA | F78: 2016000050005 | G78: FORTALECIMIENTO DE LA PERMANENCIA DE LOS ESTUDIANTES EN LOS MUNICIPIOS DEL DEPARTAMENTO DE CUNDINAMARCA, CENTRO ORIENTE - 2016 | H78: EDUCACIÓN | I78: 14963757156 | J78: 14963757156 | K78: 0 | L78: 42605 | M78: CERRADO | N78: 0.967 | O78: 0.5617 | AA78: 44607 | AB78: 44607 | AC78: -617 | AD78: -617 | AE78: 0
A79: 77 | B79: CUNDINAMARCA | C79: SECRETARIA DE EDUCACIÓN | D79: ALEXANDER RIVEROS / JEIMY FORERO | E79: GENNY PADILLA | F79: 2016000050014 | G79: FORTALECIMIENTO A LA ESTRATEGIA DE ALIMENTACION ESCOLAR PARA MUNICIPIOS NO CERTIFICADOS DEL DEPARTAMENTO DE CUNDINAMARCA, SGR 2016. | H79: EDUCACIÓN | I79: 12339894658 | J79: 12339894658 | K79: 0 | L79: 42625 | M79: CERRADO | N79: 0.767 | O79: 0.7473 | AA79: 44607 | AB79: 44607 | AC79: -617 | AD79: -617 | AE79: 0
A80: 78 | B80: DESENTRALIZADOS | C80: ICCU - GESPROY GB | D80: ALEXANDER RIVEROS / JEIMY FORERO | E80: GIOVANY QUEVEDO | F80: 2016000050023 | G80: MANTENIMIENTO DE LA RED VIAL EN AFIRMADO A TRAVS DE LA ADQUISICION DE MAQUINARIA PESADA Y EQUIPO DE TRANSPORTE EN EL DEPARTAMENTO DE CUNDINAMARCA | H80: TRANSPORTE | I80: 24179817530 | J80: 24179817530 | K80: 0 | L80: 43066 | M80: CERRADO | N80: 0.9133 | O80: 0.6281 | AA80: 44607 | AB80: 44607 | AC80: -617 | AD80: -617 | AE80: 0
A81: 79 | B81: DESENTRALIZADOS | C81: ICCU - GESPROY GB | D81: ALEXANDER RIVEROS / JEIMY FORERO | E81: GIOVANY QUEVEDO | F81: 2016000050025 | G81: REHABILITACIÓN DE LA VIA BOQUERON - PANDI DEL DEPARTAMENTO DE CUNDINAMARCA | H81: TRANSPORTE | I81: 4991550669 | J81: 4991550669 | K81: 0 | L81: 42825 | M81: CERRADO | N81: 1 | O81: 0.9874 | AA81: 44607 | AB81: 44607 | AC81: -617 | AD81: -617 | AE81: 0
A82: 80 | B82: DESENTRALIZADOS | C82: ICCU - GESPROY GB | D82: ALEXANDER RIVEROS / JEIMY FORERO | E82: GIOVANY QUEVEDO | F82: 2016000050029 | G82: REHABILITACIÓN DE LA VIA LA QUINTA - REPRESA DEL NEUSA, MUNICIPIO DE COGUA, DEPARTAMENTO DE CUNDINAMARCA | H82: TRANSPORTE | I82: 6798676732 | J82: 5625757063 | K82: 1172919669 | L82: 42846 | M82: CERRADO | N82: 1 | O82: 0.9999 | AA82: 44607 | AB82: 44607 | AC82: -617 | AD82: -617 | AE82: 0
A83: 81 | B83: DESENTRALIZADOS | C83: ICCU - GESPROY GB | D83: ALEXANDER RIVEROS / JEIMY FORERO | E83: GIOVANY QUEVEDO | F83: 2016000050032 | G83: REHABILITACIÓN DE LA VIA CLUB EL BOSQUE - TIBACUY - CUMACA DEL DEPARTAMENTO DE CUNDINAMARCA | H83: TRANSPORTE | I83: 4022150134 | J83: 3022150134 | K83: 1000000000 | L83: 42825 | M83: CERRADO | N83: 1 | O83: 0.9998 | AA83: 44607 | AB83: 44607 | AC83: -617 | AD83: -617 | AE83: 0
A84: 82 | B84: ENTIDAD APORTANTE RECURSOS | C84: ALCALDIA MAYOR DE BOGOTA | D84: ALEXANDER RIVEROS | E84: ESPERANZA GUZMAN | F84: 2016000050033 | G84: ELABORACIÓN DE LA ENCUESTA MULTIPROPOSITO 2017 : BOGOTA - CUNDINAMARCA | H84: VIVIENDA, CIUDAD Y TERRITORIO | I84: 17282722269 | J84: 16761722269 | K84: 521000000 | L84: 42825 | M84: CERRADO | N84: 1 | O84: 0.9995 | AA84: 44607 | AB84: 44607 | AC84: -617 | AD84: -617 | AE84: 0
A85: 83 | B85: CUNDINAMARCA | C85: SECRETARIA DE HABITAT Y VIVIENDA | D85: ALEXANDER RIVEROS/JEIMY FORERO | E85: FABIAN BACHILLER | F85: 2016000050052 | G85: CONSTRUCCIÓN DE VIVIENDAS NUEVAS RURALES EN EL DEPARTAMENTO DE CUNDINAMARCA | H85: AGRICULTURA | I85: 5983779025 | J85: 5343748805 | K85: 640030220.5 | L85: 43090 | M85: CONTRATADO EN EJECUCIÓN | N85: 0.9999 | O85: 0.9999 | Z85: 45034 | AA85: 44607 | AB85: 45034 | AC85: -617 | AD85: -190 | AE85: -190
A86: 84 | B86: CUNDINAMARCA | C86: SECRETARIA DE CIENCIA, TECNOLOGIA E INNOVACIÓN | D86: ALEXANDER RIVEROS / VALENTINA PORTILLO | E86: JUAN CARLOS BELTRAN | F86: 2016000100027 | G86: ANLISIS DE FACTORES GENETICOS, SANITARIOS Y MEDIOAMBIENTALES QUE AFECTAN LAS TASAS DE PREÑEZ A PARTIR DE EMBRIONES IN VITRO EN EL DEPARTAMENTO DE CUNDINAMARCA | H86: CTEL | I86: 8135504363 | J86: 6359045755 | K86: =I86-J86 -> 1776458608 | L86: 43098 | M86: TERMINADO | N86: 1 | O86: 0.9967 | Z86: 45187 | AA86: 45217 | AB86: 45187 | AC86: -7 | AD86: -37 | AE86: -37
A87: 85 | B87: CUNDINAMARCA | C87: SUPERVISIÓN / INTERVENTORÍA RAPE - SECRETARIA DE PLANEACIÓN | D87: YAHIR ARCINIEGAS | E87: ANGELA MARTINEZ | F87: 2016000050012 | G87: Implementación DE ACCIONES DE CONSERVACIoN Y RESTAURACIoN DE LOS COMPLEJOS DE PaRAMO, BOSQUE ALTO-ANDINO Y SERVICIOS ECOSISTeMICOS DE LA REGIoN CENTRAL | H87: AMBIENTE Y DESARROLLO SOSTENIBLE | I87: 32499987282 | J87: =I87 -> 32499987282 | K87: 0 | L87: 42829 | M87: CONTRATADO EN EJECUCIÓN | N87: 0.9981 | O87: 0.9988 | Z87: 44793 | AA87: 45034 | AB87: 44972 | AC87: -190 | AD87: -252 | AE87: -431
A88: 86 | B88: CUNDINAMARCA | C88: SECRETARIA DE DESARROLLO E INCLUSIÓN SOCIAL | D88: DIEGO TORRES/ LIYUGETH ALFONSO | E88: TATIANA HERNANDEZ | F88: 2017000050017 | G88: FORTALECIMIENTO DEL PROGRAMA DE COMPLEMENTACIÓN ALIMENTARIA Y NUTRICIONAL PARA NIÑAS, NIÑOS MENORES DE 5 AÑOS Y MADRES GESTANTES Y LACTANTES EN RIESGO DE DESNUTRICIÓN DEL DEPARTAMENTO DE CUNDINAMARCA | H88: INCLUSIÓN SOCIAL Y RECONCILIACIÓN | I88: 8199993544 | J88: 8199993544 | K88: 0 | L88: 42915 | M88: CERRADO | N88: 1 | Z88: 44793 | AA88: 44607 | AB88: 44607 | AC88: -617 | AD88: -617 | AE88: -431
A89: 87 | B89: CUNDINAMARCA | C89: SECRETARIA DE EDUCACIÓN | D89: ALEXANDER RIVEROS / JEIMY FORERO | E89: PABLO CAJAMARCA | F89: 2017000050027 | G89: FORTALECIMIENTO DE LA PERMANENCIA DE LOS ESTUDIANTES EN LOS MUNICIPIOS DEL DEPARTAMENTO DE CUNDINAMARCA , CENTRO ORIENTE 2017 CUNDINAMARCA | H89: EDUCACIÓN | I89: 14995289800 | J89: 14995289800 | K89: 0 | L89: 42961 | M89: CERRADO | N89: 1 | O89: 0.8859 | Z89: 44740 | AA89: 44760 | AB89: 44607 | AC89: -464 | AD89: -617 | AE89: -484
A90: 88 | B90: ENTIDAD APORTANTE RECURSOS | C90: MUNICIPIO DE ZIPAQUIRA | D90: ALEXANDER RIVEROS | E90: JAIRO JARA | F90: 2017000050029 | G90: CONSERVACIÓN Y GESTIÓN INTEGRAL DEL RECURSO HÍDRICO MEDIANTE LA ADQUISICIÓN Y RESTAURACIÓN DE PREDIOS DE INTERÉS ECOSISTÉMICO EN ELDEPARTAMENTO DE CUNDINAMARCA | H90: AMBIENTE Y DESARROLLO SOSTENIBLE | I90: 900000000 | J90: 467000000 | K90: 433000000 | L90: 43340 | M90: CONTRATADO EN EJECUCIÓN | N90: 0.3327 | O90: 0.4754 | P90: x | AA90: 44607 | AB90: 44607 | AC90: -617 | AD90: -617 | AE90: 0
A91: 89 | B91: CUNDINAMARCA | C91: SECRETARIA DE EDUCACIÓN | D91: ALEXANDER RIVEROS / JEIMY FORERO | E91: GENNY PADILLA | F91: 2017000050033 | G91: FORTALECIMIENTO A LA ESTRATEGIA DE ALIMENTACIÓN ESCOLAR PARA MUNICIPIOS NO CERTIFICADOS DEL DEPARTAMENTO DE CUNDINAMARCA | H91: EDUCACIÓN | I91: 14000000000 | J91: 14000000000 | K91: 0 | L91: 42977 | M91: CERRADO | N91: 1 | O91: 0.2694 | AA91: 44607 | AB91: 44607 | AC91: -617 | AD91: -617 | AE91: 0
A92: 90 | B92: CUNDINAMARCA | C92: SECRETARIA DE MINAS, ENERGIA Y GAS | D92: DIEGO TORRES / VALENTINA PORTILLO | E92: MARIA PAULA GONZALEZ | F92: 2017000050036 | G92: IMPLEMENTACIÓN Y EXPANSIÓN DEL SERVICIO DE GAS COMBUSTIBLE POR REDES PARA VEREDAS Y CENTROS POBLADOS DEL DEPARTAMENTO DE CUNDINAMARCA | H92: MINAS Y ENERGÍA | I92: 4751658472 | J92: 3069656503 | K92: 1682001969 | L92: 43356 | M92: CERRADO | N92: 0.9151 | O92: 0.9207 | AA92: 44972 | AB92: 44635 | AC92: -252 | AD92: -589 | AE92: 0
A93: 91 | B93: CUNDINAMARCA | C93: SECRETARIA DE PLANEACIÓN | D93: YESID CASTAÑO Y JEIMY FORERO | E93: RUSVEL NIETO | F93: 2017000050039 | G93: MEJORAMIENTO DE VÍAS TERCIARIAS MEDIANTE EL USO DE PLACA HUELLA EN LOS MUNICIPIOS DE GUATAVITA, PACHO, SAN JUAN DE RIOSECO, SUBACHOQUE, TENA Y ZIPAQUIRÁ, DEPARTAMENTO DE CUNDINAMARCA | H93: TRANSPORTE | I93: 6791102422 | J93: 6725380622 | K93: 65721800 | L93: 43063 | M93: CONTRATADO EN EJECUCIÓN | N93: 0.9852 | O93: 0.9203 | P93: x | Z93: 44760 | AA93: 44607 | AB93: 44607 | AC93: -617 | AD93: -617 | AE93: -464
A94: 92 | B94: CUNDINAMARCA | C94: SECRETARIA DE HABITAT Y VIVIENDA | D94: ALEXANDER RIVEROS/JEIMY FORERO | E94: FABIAN BACHILLER | F94: 2017000050042 | G94: MEJORAMIENTO DE VIVIENDAS RURALES DE LA PROVINCIA DE UBATÉ - CUNDINAMARCA | H94: VIVIENDA, CIUDAD Y TERRITORIO | I94: 2354318125 | J94: 2354318125 | K94: 0 | L94: 43096 | M94: TERMINADO | N94: 1 | O94: 0.9973 | Z94: 44972 | AA94: 44741 | AB94: 44980 | AC94: -483 | AD94: -244 | AE94: -252
A95: 93 | B95: CUNDINAMARCA | C95: SECRETARIA DE SALUD | D95: DAYANA FERNANDEZ / LIYUGETH ALFONSO | E95: OLGA LUCIA GARZON | F95: 2017000050061 | G95: ADQUISICIÓN AMBULANCIAS DE TRANSPORTE ASISTENCIAL BÁSICO (TAB) Y TRANSPORTE ASISTENCIAL MEDICALIZADA (TAM), PARA EL APOYO DEL SISTEMA DE REFERENCIA Y CONTRA REFERENCIA DE LA RED HOSPITALARIA DEL DEPARTAMENTO DE CUNDINAMARCA | H95: SALUD Y PROTECCIÓN SOCIAL | I95: 3764666699 | J95: 2000553024 | K95: 1764113675 | L95: 43081 | M95: CERRADO | N95: 1 | O95: 0.9708 | AA95: 44607 | AB95: 44607 | AC95: -617 | AD95: -617 | AE95: 0
A96: 94 | B96: CUNDINAMARCA | C96: SECRETARIA DE AGRICULTURA | D96: DIEGO TORRES/ LIYUGETH ALFONSO | E96: RAINER ABUETA | F96: 2017000050062 | G96: FORTALECIMIENTO DE LAS CADENAS PRODUCTIVAS DE MANGO, AGUACATE Y CÍTRICOS EN EL DEPARTAMENTO DE CUNDINAMARCA | H96: AGRICULTURA | I96: 3000129600 | J96: 2100129600 | K96: 900000000 | L96: 43124 | M96: CERRADO | N96: 1 | O96: 1 | AA96: 44607 | AB96: 44607 | AC96: -617 | AD96: -617 | AE96: 0
A97: 95 | B97: CUNDINAMARCA | C97: SECRETARIA DE MINAS, ENERGIA Y GAS | D97: DIEGO TORRES / VALENTINA PORTILLO | E97: MARIA PAULA GONZALEZ | F97: 2017000050064 | G97: CONSTRUCCIÓN DE REDES ELÉCTRICAS EN ZONA RURAL DE 13 MUNICIPIOS, EN EL MARCO DEL PROYECTO ILUMINANDO VIDAS DEL DEPARTAMENTO DE CUNDINAMARCA | H97: MINAS Y ENERGÍA | I97: 2972842689 | J97: 2532327281 | K97: 440515408 | L97: 43273 | M97: CERRADO | N97: 0.8233 | O97: 0.8188 | AA97: 44607 | AB97: 44607 | AC97: -617 | AD97: -617 | AE97: 0
A98: 96 | B98: CUNDINAMARCA | C98: SECRETARIA DE AGRICULTURA | D98: DIEGO TORRES/ LIYUGETH ALFONSO | E98: RAINER ABUETA | F98: 2017000050065 | G98: MEJORAMIENTO DE LA PRODUCTIVIDAD Y RENTABILIDAD DE LOS CAFICULTORES DEL DEPARTAMENTO DE CUNDINAMARCA | H98: AGRICULTURA | I98: 6523880054 | J98: 4220000000 | K98: 2303880054 | L98: 43096 | M98: TERMINADO | N98: 0.8648 | O98: 0.8463 | P98: x | Z98: 44972 | AA98: 44793 | AB98: 45155 | AC98: -431 | AD98: -69 | AE98: -252
A99: 97 | B99: CUNDINAMARCA | C99: SECRETARIA DE CIENCIA, TECNOLOGIA E INNOVACIÓN | D99: ALEXANDER RIVEROS / VALENTINA PORTILLO | E99: JUAN CARLOS BELTRAN | F99: 2017000100016 | G99: IMPLEMENTACIÓN PROGRAMA DE INNOVACIÓN PARA LA VALIDACIÓN Y GENERACIÓN DE PRODUCTOS DERIVADOS DE LA BIODIVERSIDAD EN EL DEPARTAMENTO DE CUNDINAMARCA | H99: CTEL | I99: 4825004078 | J99: 4664086788 | K99: 160917289.8 | L99: 42941 | M99: CONTRATADO EN EJECUCIÓN | N99: 0.7962 | O99: 0.9616 | Z99: 45217 | AA99: 44607 | AB99: 45124 | AC99: -617 | AD99: -100 | AE99: -7
A100: 98 | B100: CUNDINAMARCA | C100: SECRETARIA DE CIENCIA, TECNOLOGIA E INNOVACIÓN | D100: ALEXANDER RIVEROS / VALENTINA PORTILLO | E100: JUAN CARLOS BELTRAN | F100: 2017000100034 | G100: IMPLEMENTACIÓN DE UN SISTEMA DE GESTIÓN DE INNOVACIÓN PARA LA INDUSTRIA DE CUNDINAMARCA | H100: CTEL | I100: 3925471448 | J100: 3714407118 | K100: 211064330 | L100: 42941 | M100: CONTRATADO EN EJECUCIÓN | N100: 0.9921 | O100: 0.9418 | P100: x | AA100: 44607 | AB100: 44706 | AC100: -617 | AD100: -518 | AE100: 0
A101: 99 | B101: CUNDINAMARCA | C101: SECRETARIA DE CIENCIA, TECNOLOGIA E INNOVACIÓN | D101: ALEXANDER RIVEROS / VALENTINA PORTILLO | E101: JUAN CARLOS BELTRAN | F101: 2017000100074 | G101: IMPLEMENTACIÓN DE ESTRATEGIAS DE FOMENTO A LA CULTURA Y SERVICIOS DE INNOVACIÓN EN LAS PROVINCIAS SABANA OCCIDENTE, SABANA CENTRAL, SOACHA Y SUMAPAZ CUNDINAMARCA | H101: CTEL | I101: 6183633276 | J101: 5533633276 | K101: 650000000 | L101: 43098 | M101: PARA CIERRE | N101: 1 | O101: 0.9971 | Z101: 44972 | AA101: 45217 | AB101: 44980 | AC101: -7 | AD101: -244 | AE101: -252
A102: 100 | B102: CUNDINAMARCA | C102: SECRETARIA DE CIENCIA, TECNOLOGIA E INNOVACIÓN | D102: ALEXANDER RIVEROS / VALENTINA PORTILLO | E102: JUAN CARLOS BELTRAN | F102: 2017000100076 | G102: FORTALECIMIENTO DE CAPACIDADES DE GESTIÓN DEL RIESGO A TRAVÉS DE APROPIACIÓN SOCIAL DE LA CIENCIA, LA TECNOLOGÍA Y LA INNOVACIÓN EN EL DEPARTAMENTO DE CUNDINAMARCA | H102: CTEL | I102: 4404970720 | J102: 4000000000 | K102: 404970720 | L102: 43322 | M102: CONTRATADO EN EJECUCIÓN | N102: 0.9876 | O102: 1.2524 | Z102: 45155 | AA102: 44607 | AB102: 45217 | AC102: -617 | AD102: -7 | AE102: -69
A103: 101 | B103: CUNDINAMARCA | C103: SECRETARIA DE CIENCIA, TECNOLOGIA E INNOVACIÓN | D103: ALEXANDER RIVEROS / VALENTINA PORTILLO | E103: JUAN CARLOS BELTRAN | F103: 2017000100087 | G103: FORMACIÓN DE TALENTO HUMANO DE ALTO NIVEL EN MAESTRÍAS EN EL DEPARTAMENTO DE CUNDINAMARCA | H103: CTEL | I103: 5148022960 | J103: 5048022960 | K103: 100000000 | L103: 43698 | M103: CONTRATADO EN EJECUCIÓN | N103: 0.6189 | O103: 1.7048 | Z103: 45187 | AA103: 44972 | AB103: 45217 | AC103: -252 | AD103: -7 | AE103: -37
A104: 102 | B104: CUNDINAMARCA | C104: SECRETARIA DE CIENCIA, TECNOLOGIA E INNOVACIÓN | D104: ALEXANDER RIVEROS / VALENTINA PORTILLO | E104: JUAN CARLOS BELTRAN | F104: 2017000100104 | G104: FORTALECIMIENTO DE LA CULTURA DE LA GESTIÓN Y UTILIZACIÓN DEL CONOCIMIENTO EN CTEI EN NIÑOS, JÓVENES Y COMUNIDADES DEL DEPARTAMENTO DE CUNDINAMARCA | H104: CTEL | I104: 9498967749 | J104: 7498967749 | K104: 2000000000 | L104: 43565 | M104: CONTRATADO EN EJECUCIÓN | N104: 0.9327 | O104: 0.8947 | Z104: 45217 | AA104: 44607 | AB104: 45124 | AC104: -617 | AD104: -100 | AE104: -7
A105: 103 | B105: CUNDINAMARCA | C105: UNIDAD ADMINISTRATIVA DE GESTIÓN DEL RIESGO. | D105: DIEGO TORRES/VALENTINA PORTILLO | E105: DAYAN HELENA MOLINA | F105: 20172401060022 | G105: ESTUDIOS DETALLADOS PARA LA INCORPORACIÓN DE LA GESTIÓN DEL RIESGO PARA LOS MUNICIPIOS DE GIRARDOT, RICAURTE | H105: AMBIENTE Y DESARROLLO SOSTENIBLE | I105: 3084907873 | J105: 3084907873 | K105: 0 | L105: 43802 | M105: CONTRATADO EN EJECUCIÓN | N105: 0.203 | O105: 0.2027 | P105: x | Z105: 44915 | AA105: 44607 | AB105: 44915 | AC105: -617 | AD105: -309 | AE105: -309
A106: 104 | B106: CUNDINAMARCA | C106: SECRETARIA DE CIENCIA, TECNOLOGIA E INNOVACIÓN | D106: ALEXANDER RIVEROS / VALENTINA PORTILLO | E106: JUAN CARLOS BELTRAN | F106: 20170000100012 | G106: CONFORMACIÓN DE UNA CONVOCATORIA REGIONAL DE PROYECTOS I+D EN FOCOS PRIORIZADOS CTEI PARA EL FORTALECIMIENTO DE LOS GRUPOS DE INVESTIGACIÓN CUNDINAMARCA | H106: CTEL | I106: 7586358671 | J106: 7375550629 | K106: 210808041.7 | L106: 42941 | M106: CONTRATADO EN EJECUCIÓN | N106: 0.7209 | O106: 0.9676 | Z106: 45217 | AA106: 44972 | AB106: 45187 | AC106: -252 | AD106: -37 | AE106: -7
A107: 105 | B107: ENTIDAD APORTANTE RECURSOS | C107: CAR | D107: YESID CASTAÑO | E107: CARLOS MURCIA | F107: 2017000050063 | G107: RECUPERACIÓN HIDRÁULICA Y AMBIENTAL DEL COMPLEJO LAGUNAR FÚQUENE | H107: AMBIENTE Y DESARROLLO SOSTENIBLE | I107: 18000000000 | J107: 18000000000 | K107: 0 | L107: 43364 | M107: CONTRATADO EN EJECUCIÓN | N107: 0.8982 | O107: 0.6463 | Z107: 45187 | AA107: 44607 | AB107: 45217 | AC107: -617 | AD107: -7 | AE107: -37
A108: 106 | B108: ENTIDAD APORTANTE RECURSOS | C108: CAR | D108: YESID CASTAÑO | E108: CARLOS MURCIA | F108: 2017000050070 | G108: CONSTRUCCIÓN DE OBRAS DE MITIGACIÓN DEL RIESGO POR EVENTOS CLIMÁTICOS EN LA CUENCA DE LA QUEBRADA LA PARROQUIA EN EL CERRO DE FUSACATÁN DEL MUNICIPIO DE FUSAGASUGÁ, CUNDINAMARCA | H108: AMBIENTE Y DESARROLLO SOSTENIBLE | I108: 1976558725 | J108: 1376558725 | K108: 600000000 | L108: 43417 | M108: DESAPROBADO | N108: 0 | O108: 0 | P108: x | AA108: 44607 | AB108: 44607 | AC108: -617 | AD108: -617 | AE108: 0
A109: 107 | B109: ENTIDAD APORTANTE RECURSOS | C109: MUNICIPIO DE UTICA | D109: JUAN CARLOS TORRES | E109: CESAR SIMANCAS | F109: 2017000050087 | G109: MEJORAMIENTO DEL SENDERO TURÍSTICO DE LA PROVINCIA DEL GUALIVÁ – ÚTICA CUNDINAMARCA | H109: COMERCIO, INDUSTRIA Y TURISMO | I109: 2347004868 | J109: 2123058880 | K109: 223945988 | L109: 43241 | M109: TERMINADO | N109: 0.7892 | O109: 0.9566 | Z109: 45096 | AA109: 45217 | AB109: 45035 | AC109: -7 | AD109: -189 | AE109: -128
A110: 108 | B110: CUNDINAMARCA | C110: SECRETARIA DE EDUCACIÓN | D110: ALEXANDER RIVEROS / JEIMY FORERO | E110: PABLO CAJAMARCA | F110: 2018000050019 | G110: FORTALECIMIENTO DE LA PERMANENCIA DE LOS ESTUDIANTES EN LOS MUNICIPIOS DEL DEPARTAMENTO DE CUNDINAMARCA, CENTRO ORIENTE 2018 CUNDINAMARCA | H110: EDUCACIÓN | I110: 19395559645 | J110: 19395559645 | K110: 0 | L110: 43336 | M110: CERRADO | N110: 1 | O110: 0.6612 | AA110: 44607 | AB110: 44607 | AC110: -617 | AD110: -617 | AE110: 0
A111: 109 | B111: DESENTRALIZADOS | C111: ICCU - GESPROY GB | D111: ALEXANDER RIVEROS / JEIMY FORERO | E111: GIOVANY QUEVEDO | F111: 2018000050022 | G111: MEJORAMIENTO Y REHABILITACIÓN DE VÍAS SECUNDARIAS EN LA PROVINCIA DE UBATÉ, DEPARTAMENTO DE CUNDINAMARCA | H111: TRANSPORTE | I111: 7524876363 | J111: 7441105086 | K111: 83771277 | L111: 43320 | M111: CERRADO | N111: 0.9883 | O111: 0.9731 | Z111: 44706 | AA111: 44760 | AB111: 44607 | AC111: -464 | AD111: -617 | AE111: -518
A112: 110 | B112: DESENTRALIZADOS | C112: ICCU - GESPROY GB | D112: ALEXANDER RIVEROS / JEIMY FORERO | E112: GIOVANY QUEVEDO | F112: 2018000050024 | G112: MEJORAMIENTO Y REHABILITACIÓN DE LA VÍA LA MARÍA – TOBIA - PASO EL REJO - LA PEÑA, DEPARTAMENTO DE CUNDINAMARCA | H112: TRANSPORTE | I112: 9149162991 | J112: 8983328881 | K112: 165834110 | L112: 43417 | M112: CERRADO | N112: 0.9645 | O112: 0.9609 | Z112: 45035 | AA112: 45187 | AB112: 45035 | AC112: -37 | AD112: -189 | AE112: -189
A113: 111 | B113: DESENTRALIZADOS | C113: ICCU - GESPROY GB | D113: ALEXANDER RIVEROS / JEIMY FORERO | E113: GIOVANY QUEVEDO | F113: 2018000050026 | G113: MEJORAMIENTO DE VÍAS EN LA PROVINCIA DE SUMAPAZ PARA LA CONSOLIDACIÓN DE UNA PAZ ESTABLE Y DURADERA EN EL DEPARTAMENTO DE CUNDINAMARCA | H113: TRANSPORTE | I113: 11457047617 | J113: 11457047617 | K113: 0 | L113: 43462 | M113: CONTRATADO EN EJECUCIÓN | N113: 0.5257 | O113: 0.5788 | P113: x | Z113: 44915 | AA113: 44607 | AB113: 44915 | AC113: -617 | AD113: -309 | AE113: -309
A114: 112 | B114: CUNDINAMARCA | C114: UNIDAD ADMINISTRATIVA DE GESTIÓN DEL RIESGO. | D114: DIEGO TORRES/VALENTINA PORTILLO | E114: DAYAN HELENA MOLINA | F114: 2018000050036 | G114: CONSTRUCCIÓN DE OBRAS PARA LA MITIGACIÓN DEL RIESGO EN EL MUNICIPIO DE SAN BERNARDO, BENEFICIANDO A COMUNIDADES DE LOS MUNICIPIOS DE ARBELAEZ, PANDI Y VENECIA CUNDINAMARCA | H114: AMBIENTE Y DESARROLLO SOSTENIBLE | I114: 2305788182 | J114: 2305788182 | K114: 0 | L114: 43629 | M114: DESAPROBADO | N114: 0 | O114: 0 | AA114: 44607 | AB114: 44607 | AC114: -617 | AD114: -617 | AE114: 0
A115: 113 | B115: CUNDINAMARCA | C115: SECRETARIA DE HABITAT Y VIVIENDA | D115: ALEXANDER RIVEROS/JEIMY FORERO | E115: FABIAN BACHILLER | F115: 2018000050039 | G115: MEJORAMIENTO DE VIVIENDA RURAL EN LOS MUNICIPIOS DE CUCUNUBÁ, JERUSALEN, QUEBRADANEGRA Y VIOTÁ - DEPARTAMENTO DE CUNDINAMARCA | H115: AGRICULTURA | I115: 4024793625 | J115: 4024793625 | K115: 0 | L115: 43571 | M115: PARA CIERRE | N115: 1 | O115: 1 | P115: x | Z115: 44760 | AA115: 44760 | AB115: 44671 | AC115: -464 | AD115: -553 | AE115: -464
A116: 114 | B116: DESENTRALIZADOS | C116: ICCU - GESPROY GB | D116: ALEXANDER RIVEROS / JEIMY FORERO | E116: GIOVANY QUEVEDO | F116: 2018000050049 | G116: MEJORAMIENTO DE LA VÍA SESQUILÉ – GUATAVITA - GACHETÁ, DEPARTAMENTO DE CUNDINAMARCA | H116: TRANSPORTE | I116: 3997714045 | J116: 3935792642 | K116: 61921403 | L116: 43455 | M116: CERRADO | N116: 0.8093 | O116: 0.8087 | Z116: 44706 | AA116: 44760 | AB116: 44740 | AC116: -464 | AD116: -484 | AE116: -518
A117: 115 | B117: DESENTRALIZADOS | C117: ICCU - GESPROY GB | D117: ALEXANDER RIVEROS / JEIMY FORERO | E117: GIOVANY QUEVEDO | F117: 2018000050055 | G117: MEJORAMIENTO DE LA TRONCAL DE RIONEGRO, SECTOR LA PALMA CHARCO LARGO PARA LA CONSOLIDACIÓN DE UNA PAZ ESTABLE Y DURADERA EN EL DEPARTAMENTO DE CUNDINAMARCA | H117: TRANSPORTE | I117: 17928531277 | J117: 17928531277 | K117: 0 | L117: 43532 | M117: CERRADO | N117: 0.9551 | O117: 0.9221 | AA117: 44740 | AB117: 44607 | AC117: -484 | AD117: -617 | AE117: 0
A118: 116 | B118: DESENTRALIZADOS | C118: ICCU - GESPROY GB | D118: ALEXANDER RIVEROS / JEIMY FORERO | E118: GIOVANY QUEVEDO | F118: 2018000050059 | G118: MEJORAMIENTO DE LA VÍA GUSBITA - TIBIRITA DEL DEPARTAMENTO DE CUNDINAMARCA | H118: TRANSPORTE | I118: 5500531740 | J118: 4870657724 | K118: 629874016 | L118: 43532 | M118: PARA CIERRE | N118: 0.9958 | O118: 0.9958 | Z118: 45217 | AA118: 45217 | AB118: 44607 | AC118: -7 | AD118: -617 | AE118: -7
A119: 117 | B119: CUNDINAMARCA | C119: SECRETARIA DE CIENCIA, TECNOLOGIA E INNOVACIÓN | D119: ALEXANDER RIVEROS / VALENTINA PORTILLO | E119: JUAN CARLOS BELTRAN | F119: 2018000100106 | G119: INNOVACIÓN EN EL MODELO DE GESTIÓN DEL MEDICAMENTO FASE III EN EL DEPARTAMENTO DE CUNDINAMARCA | H119: CTEL | I119: 3452890062 | J119: 3071356262 | K119: 381533800 | L119: 43830 | M119: DESAPROBADO | N119: 0 | O119: 0 | AA119: 44887 | AB119: 44607 | AC119: -337 | AD119: -617 | AE119: 0
A120: 118 | B120: CUNDINAMARCA | C120: SECRETARIA DE CIENCIA, TECNOLOGIA E INNOVACIÓN | D120: ALEXANDER RIVEROS / VALENTINA PORTILLO | E120: JUAN CARLOS BELTRAN | F120: 2018000100160 | G120: FORMACIÓN DE CAPITAL HUMANO DE ALTO NIVEL PARA LA INVESTIGACIÓN, EL DESARROLLO TECNOLÓGICO Y LA INNOVACIÓN MAESTRÍAS DE INVESTIGACIÓN PARA DOCENTES DEL DEPARTAMENTO DE CUNDINAMARCA | H120: CTEL | I120: 5217415747 | J120: 3519725709 | K120: 1697690038 | L120: 43731 | M120: CONTRATADO EN EJECUCIÓN | N120: 0.1697 | O120: 0.4629 | Z120: 45217 | AA120: 44607 | AB120: 45217 | AC120: -617 | AD120: -7 | AE120: -7
A121: 119 | B121: CUNDINAMARCA | C121: SUPERVISIÓN / INTERVENTORÍA -EPC | D121: ALEXANDER RIVEROS/LIYUGETH ALFONSO | E121: PAULA ACUÑA | F121: 20181301010555 | G121: CONSTRUCCIÓN DE UNIDADES SANITARIAS EN EL ÁREA RURAL DEL DEPARTAMENTO DE CUNDINAMARCA | H121: VIVIENDA, CIUDAD Y TERRITORIO | I121: 4999900475 | J121: 4999900475 | K121: 0 | L121: 43378 | M121: CONTRATADO EN EJECUCIÓN | N121: 0.8578 | O121: 0.7831 | P121: x | Z121: 44972 | AA121: 44607 | AB121: 45155 | AC121: -617 | AD121: -69 | AE121: -252
A122: 120 | B122: DESENTRALIZADOS | C122: ICCU - GESPROY GB | D122: ALEXANDER RIVEROS / JEIMY FORERO | E122: GIOVANY QUEVEDO | F122: 2019000050002 | G122: MEJORAMIENTO DE LA VÍA DEPARTAMENTAL LA VICTORIA (EL COLEGIO) SAN GABRIEL (VIOTÁ), TRAMO LA VICTORIA ALTO DE LA MULA, DEPARTAMENTO DE CUNDINAMARCA | H122: TRANSPORTE | I122: 5745879373 | J122: 5745879373 | K122: 0 | L122: 43532 | M122: CERRADO | N122: 0.9722 | O122: 0.9852 | AA122: 44607 | AB122: 44607 | AC122: -617 | AD122: -617 | AE122: 0
A123: 121 | B123: DESENTRALIZADOS | C123: ICCU - GESPROY GB | D123: ALEXANDER RIVEROS / JEIMY FORERO | E123: GIOVANY QUEVEDO | F123: 2019000050003 | G123: MEJORAMIENTO DE LA VÍA CÁQUEZA FOSCA, DEPARTAMENTO DE CUNDINAMARCA | H123: TRANSPORTE | I123: 4049029755 | J123: 4049029755 | K123: 0 | L123: 43585 | M123: CERRADO | N123: 0.9327 | O123: 0.9854 | AA123: 44740 | AB123: 44607 | AC123: -484 | AD123: -617 | AE123: 0
A124: 122 | B124: DESENTRALIZADOS | C124: ICCU - GESPROY GB | D124: ALEXANDER RIVEROS / JEIMY FORERO | E124: GIOVANY QUEVEDO | F124: 2019000050005 | G124: MEJORAMIENTO DE LA VÍA FÓMEQUE UBAQUE, DEPARTAMENTO DE CUNDINAMARCA | H124: TRANSPORTE | I124: 16514204213 | J124: 14057373703 | K124: 2456830510 | L124: 43629 | M124: CERRADO | N124: 0.9992 | O124: 0.9992 | AA124: 44740 | AB124: 44607 | AC124: -484 | AD124: -617 | AE124: 0
A125: 123 | B125: DESENTRALIZADOS | C125: ICCU - GESPROY GB | D125: ALEXANDER RIVEROS / JEIMY FORERO | E125: GIOVANY QUEVEDO | F125: 2019000050011 | G125: MEJORAMIENTO DE LA VÍA SUPATÁ - PACHO, DEPARTAMENTO DE CUNDINAMARCA | H125: TRANSPORTE | I125: 7339441010 | J125: 7339441010 | K125: 0 | L125: 43585 | M125: CERRADO | N125: 0.3349 | O125: 0.719 | P125: x | AA125: 45217 | AB125: 45217 | AC125: -7 | AD125: -7 | AE125: 0
A126: 124 | B126: DESENTRALIZADOS | C126: ICCU - GESPROY GB | D126: ALEXANDER RIVEROS / JEIMY FORERO | E126: GIOVANY QUEVEDO | F126: 2019000050013 | G126: CONSTRUCCIÓN DE LA PLAZA DE MERCADO DEL MUNICIPIO DE CHOACHÍ CUNDINAMARCA | H126: AGRICULTURA | I126: 4481109943 | J126: 3152125044 | K126: 1328984899 | L126: 43678 | M126: TERMINADO | N126: 1 | O126: 0.6786 | Z126: 44972 | AA126: 45125 | AB126: 44980 | AC126: -99 | AD126: -244 | AE126: -252
A127: 125 | B127: DESENTRALIZADOS | C127: ICCU - GESPROY GB | D127: ALEXANDER RIVEROS / JEIMY FORERO | E127: GIOVANY QUEVEDO | F127: 2019000050016 | G127: MEJORAMIENTO DE LA VÍA ANOLAIMA CORRALEJAS (INSPECCIÓN DE CORRALEJAS), DEPARTAMENTO DE CUNDINAMARCA | H127: TRANSPORTE | I127: 6898362469 | J127: 5718724028 | K127: 1179638441 | L127: 43629 | M127: CERRADO | N127: 0.9985 | O127: 0.9996 | Z127: 44972 | AA127: 44972 | AB127: 44980 | AC127: -252 | AD127: -244 | AE127: -252
A128: 126 | B128: CUNDINAMARCA | C128: SECRETARIA DE EDUCACIÓN | D128: ALEXANDER RIVEROS / JEIMY FORERO | E128: PABLO CAJAMARCA | F128: 2019000050020 | G128: FORTALECIMIENTO DE LA PERMANENCIA DE LOS ESTUDIANTES PARA EL AÑO 2019 EN LOS MUNICIPIOS DEL DEPARTAMENTO DE CUNDINAMARCA | H128: EDUCACIÓN | I128: 20536293937 | J128: 20536293937 | K128: 0 | L128: 43629 | M128: PARA CIERRE | N128: 1 | O128: 0.9103 | P128: x | Z128: 44972 | AA128: 45217 | AB128: 44980 | AC128: -7 | AD128: -244 | AE128: -252
A129: 127 | B129: DESENTRALIZADOS | C129: ICCU - GESPROY GB | D129: ALEXANDER RIVEROS / JEIMY FORERO | E129: GIOVANY QUEVEDO | F129: 2019000050023 | G129: MEJORAMIENTO DE LA VÍA LENGUAZAQUE - VILLAPINZÓN, DEPARTAMENTO DE CUNDINAMARCA | H129: TRANSPORTE | I129: 8636278689 | J129: 7310087087 | K129: 1326191602 | L129: 43629 | M129: CERRADO | N129: 1 | O129: 0.9918 | Z129: 45155 | AA129: 45187 | AB129: 45096 | AC129: -37 | AD129: -128 | AE129: -69
A130: 128 | B130: CUNDINAMARCA | C130: SECRETARIA DE AGRICULTURA | D130: DIEGO TORRES/ LIYUGETH ALFONSO | E130: RAINER ABUETA | F130: 2019000050027 | G130: MEJORAMIENTO DE LA COMPETITIVIDAD DE LA CADENA PRODUCTIVA DE CACAO EN EL DEPARTAMENTO DE CUNDINAMARCA | H130: AGRICULTURA | I130: 5862983962 | J130: 4397237971 | K130: 1465745991 | L130: 43819 | M130: CERRADO | N130: 1 | O130: 1 | Z130: 44973 | AA130: 45064 | AB130: 44973 | AC130: -160 | AD130: -251 | AE130: -251
A131: 129 | B131: DESENTRALIZADOS | C131: ICCU - GESPROY GB | D131: ALEXANDER RIVEROS / JEIMY FORERO | E131: GIOVANY QUEVEDO | F131: 2019000050029 | G131: MEJORAMIENTO DE LA VÍA GACHETÁ - GAMA, DEPARTAMENTO DE CUNDINAMARCA | H131: TRANSPORTE | I131: 5477582208 | J131: 5322582208 | K131: =I131-J131 -> 155000000 | L131: 43629 | M131: TERMINADO | N131: 0.9551 | O131: 0.9425 | Z131: 44973 | AA131: 44671 | AB131: 44973 | AC131: -553 | AD131: -251 | AE131: -251
A132: 130 | B132: CUNDINAMARCA | C132: SECRETARIA DE SALUD | D132: DAYANA FERNANDEZ / LIYUGETH ALFONSO | E132: OLGA LUCIA GARZON | F132: 2019000050036 | G132: ADQUISICIÓN DE AMBULANCIAS PARA EL FORTALECIMIENTO DE LA RED HOSPITALARIA DEL DEPARTAMENTO CUNDINAMARCA | H132: SALUD Y PROTECCIÓN SOCIAL | I132: 2385000000 | J132: 2385000000 | K132: =I132-J132 -> 0 | L132: 43656 | M132: CERRADO | N132: 1 | O132: 0.8281 | AA132: 44607 | AB132: 44607 | AC132: =IF(AA132=0,0,_xlfn.DAYS(AA132,TODAY())) -> -617 | AD132: -617 | AE132: 0
A133: 131 | B133: CUNDINAMARCA | C133: UNIDAD ADMINISTRATIVA DE GESTIÓN DEL RIESGO. | D133: DIEGO TORRES/VALENTINA PORTILLO | E133: DAYAN HELENA MOLINA | F133: 2019000050037 | G133: FORTALECIMIENTO DEL SISTEMA DEPARTAMENTAL PARA LA GESTIÓN DEL RIESGO DE DESASTRES DEL DEPARTAMENTO DE CUNDINAMARCA | H133: PRESIDENCIA DE LA REPÚBLICA | I133: 24666685502 | J133: 4936307506 | K133: 19730377996 | L133: 43748 | M133: DESAPROBADO | N133: 0 | O133: 0 | AA133: 44607 | AB133: 44607 | AC133: -617 | AD133: -617 | AE133: =IF(Z133=0,0,_xlfn.DAYS(Z133,TODAY())) -> 0
A134: 132 | B134: ENTIDAD APORTANTE RECURSOS | C134: MEDICINA LEGAL Y CIENCIAS FORENSES | D134: ALEXANDER RIVEROS | E134: MARTIN SEPULVEDA | F134: 2019000050025 | G134: ESTUDIOS Y DISEÑOS PARA LA CONSTRUCCIÓN DE LA SEDE DE MEDICINA LEGAL EN EL DEPARTAMENTO DE CUNDINAMARCA | H134: FISCALIA | I134: 904521100 | J134: 904521100 | K134: 0 | L134: 43677 | M134: CERRADO | N134: 1 | O134: 1 | Z134: 44973 | AA134: 45187 | AB134: 44980 | AC134: -37 | AD134: -244 | AE134: -251
A135: 133 | B135: CUNDINAMARCA | C135: SECRETARIA DE MINAS, ENERGIA Y GAS | D135: DIEGO TORRES / VALENTINA PORTILLO | E135: MARIA PAULA GONZALEZ | F135: 2019000050039 | G135: ESTUDIO Y DISEÑO PARA LA CONSTRUCCIÓN DE REDES ELÉCTRICAS AÉREAS EN ZONAS RURALES DEL DEPARTAMENTO DE CUNDINAMARCA | H135: MINAS Y ENERGÍA | I135: 1616407501 | J135: 1616407501 | K135: 0 | L135: 43714 | M135: DESAPROBADO | N135: 0 | O135: 0 | AA135: 44607 | AB135: 44607 | AC135: -617 | AD135: -617 | AE135: 0
A136: 134 | B136: CUNDINAMARCA | C136: SECRETARIA DE EDUCACIÓN | D136: ALEXANDER RIVEROS / JEIMY FORERO | E136: GENNY PADILLA | F136: 2019000050044 | G136: FORTALECIMIENTO A LA ESTRATEGIA DE ALIMENTACIÓN ESCOLAR PARA MUNICIPIOS NO CERTIFICADOS, VIGENCIA 2019 DEL DEPARTAMENTO DE CUNDINAMARCA | H136: EDUCACIÓN | I136: 18301749135 | J136: 18301749135 | K136: 0 | L136: 43656 | M136: CERRADO | N136: 0.2152 | O136: 0.5327 | AA136: 44607 | AB136: 44607 | AC136: -617 | AD136: -617 | AE136: 0
A137: 135 | B137: DESENTRALIZADOS | C137: ICCU - GESPROY GB | D137: ALEXANDER RIVEROS / JEIMY FORERO | E137: GIOVANY QUEVEDO | F137: 2019000050047 | G137: MEJORAMIENTO DE LA VÍA SUSA - CARMEN DE CARUPA, DEPARTAMENTO DE CUNDINAMARCA | H137: TRANSPORTE | I137: 5203497468 | J137: 4131178258 | K137: 1072319210 | L137: 43677 | M137: CERRADO | N137: 1 | O137: 1 | Z137: 45035 | AA137: 45187 | AB137: 45035 | AC137: -37 | AD137: -189 | AE137: -189
A138: 136 | B138: DESENTRALIZADOS | C138: ICCU - GESPROY GB | D138: ALEXANDER RIVEROS / JEIMY FORERO | E138: GIOVANY QUEVEDO | F138: 2019000050056 | G138: MEJORAMIENTO DE LA VÍA QUE CONDUCE DEL MUNICIPIO DE NIMAIMA AL MUNICIPIO DE NOCAIMA, DEPARTAMENTO DE CUNDINAMARCA | H138: TRANSPORTE | I138: 5082491570 | J138: 4614214508 | K138: 468277061.8 | L138: 43748 | M138: TERMINADO | N138: 1 | O138: 0.8722 | P138: x | Z138: 44823 | AA138: 44706 | AB138: 44607 | AC138: -518 | AD138: -617 | AE138: -401
A139: 137 | B139: DESENTRALIZADOS | C139: IDECUT | D139: DIEGO TORRES / VALENTINA PORTILLO | E139: MARTHA VANEGAS | F139: 2019000050059 | G139: FORTALECIMIENTO A LAS ESCUELAS MUNICIPALES DE MÚSICA, DANZA, TEATRO Y ARTES PLÁSTICAS Y VISUALES EN EL DEPARTAMENTO DE CUNDINAMARCA | H139: CULTURA | I139: 1972606058 | J139: 1972606058 | K139: 0 | L139: 43748 | M139: CERRADO | N139: 1 | O139: 0.961 | Z139: 44915 | AA139: 44973 | AB139: 44706 | AC139: -251 | AD139: -518 | AE139: -309
A140: 138 | B140: DESENTRALIZADOS | C140: ICCU - GESPROY GB | D140: ALEXANDER RIVEROS / JEIMY FORERO | E140: GIOVANY QUEVEDO | F140: 2019000050060 | G140: ESTUDIOS Y DISEÑOS DE VÍAS PARA MEJORAR LA COMPETITIVIDAD DEL DEPARTAMENTO DE CUNDINAMARCA | H140: TRANSPORTE | I140: 7089369627 | J140: 7089369627 | K140: 0 | L140: 43714 | M140: CERRADO | N140: 0.9865 | O140: 0.9553 | Z140: 44973 | AA140: 45187 | AB140: 44980 | AC140: -37 | AD140: -244 | AE140: -251
A141: 139 | B141: CUNDINAMARCA | C141: SECRETARIA DE MINAS, ENERGIA Y GAS | D141: DIEGO TORRES / VALENTINA PORTILLO | E141: MARIA PAULA GONZALEZ | F141: 2019000050073 | G141: AMPLIACIÓN DE LA COBERTURA DEL SERVICIO DE GAS COMBUSTIBLE DOMICILIARIO A TRAVÉS DE LA FINANCIACIÓN DE LA CONEXIÓN Y LA RED INTERNA PARA USUARIOS DE BARRIOS PERIFÉRICOS, VEREDAS Y CENTROS POBLADOS DEL DEPARTAMENTO DE CUNDINAMARCA | H141: MINAS Y ENERGÍA | I141: 12461377100 | J141: 6651376060 | K141: 5810001040 | L141: 43805 | M141: PARA CIERRE | N141: 0.9359 | O141: 0.9359 | Z141: 45096 | AA141: 45096 | AB141: 45096 | AC141: -128 | AD141: -128 | AE141: -128
A142: 140 | B142: DESENTRALIZADOS | C142: ICCU - GESPROY GB | D142: ALEXANDER RIVEROS / JEIMY FORERO | E142: GIOVANY QUEVEDO | F142: 2019000050075 | G142: MEJORAMIENTO DE LA VÍA QUE CONDUCE DEL MUNICIPIO DE VIANI AL MUNICIPIO DE CHAGUANI, (DE LA Y DE SAN VICENTE A CHAGUANI), DEPARTAMENTO DE CUNDINAMARCA | H142: TRANSPORTE | I142: 7504443091 | J142: 7504443091 | K142: 0 | L142: 43819 | M142: TERMINADO | N142: 1 | O142: 0.9516 | Z142: 44973 | AA142: 44607 | AB142: 44980 | AC142: -617 | AD142: -244 | AE142: -251
A143: 141 | B143: DESENTRALIZADOS | C143: ICCU - GESPROY GB | D143: ALEXANDER RIVEROS / JEIMY FORERO | E143: GIOVANY QUEVEDO | F143: 2019000050079 | G143: MEJORAMIENTO DE LA VÍA SERREZUELA - EL TRIUNFO, MUNICIPIO DE LA CALERA, DEPARTAMENTO DE CUNDINAMARCA | H143: TRANSPORTE | I143: 7614258187 | J143: 7614258187 | K143: 0 | L143: 43748 | M143: CERRADO | N143: 0.9429 | O143: 0.8719 | Z143: 45035 | AA143: 45187 | AB143: 45035 | AC143: -37 | AD143: -189 | AE143: -189
A144: 142 | B144: DESENTRALIZADOS | C144: ICCU - GESPROY GB | D144: ALEXANDER RIVEROS / JEIMY FORERO | E144: GIOVANY QUEVEDO | F144: 2019000050085 | G144: MEJORAMIENTO DE LA VÍA QUE CONDUCE DEL MUNICIPIO DE LA MESA AL MUNICIPIO DE CACHIPAY, (DE LA INSPECCIÓN DE PEÑA NEGRA AL MUNICIPIO DE CACHIPAY), DEPARTAMENTO DE CUNDINAMARCA | H144: TRANSPORTE | I144: 7019896083 | J144: 7019896083 | K144: 0 | L144: 43852 | M144: PARA CIERRE | N144: 0.7135 | O144: 0.6774 | Z144: 44973 | AA144: 45155 | AB144: 45004 | AC144: -69 | AD144: -220 | AE144: -251
A145: 143 | B145: ENTIDAD APORTANTE RECURSOS | C145: TV ANDINA | D145: ALEXANDER RIVEROS | E145: EDWIN | F145: 2019000050064 | G145: PROTECCIÓN Y PRESERVACIÓN DEL PATRIMONIO AUDIOVISUAL COLOMBIANO QUE SE ENCUENTRA EN EL CANAL PÚBLICO TEVEANDINA LOCALIZADO EN EL DEPARTAMENTO DE CUNDINAMARCA | H145: CULTURA | I145: 5923285198 | J145: $ 5.597.840.098 | K145: 325445100 | L145: 43774 | M145: CERRADO | N145: 1 | O145: 0.9935 | AA145: 44706 | AB145: 44607 | AC145: -518 | AD145: -617 | AE145: 0
A146: 144 | B146: ENTIDAD APORTANTE RECURSOS | C146: UNAD | D146: ALEXANDER RIVEROS | E146: ANDRES ACOSTA | F146: 2019000050069 | G146: MEJORAMIENTO DE INFRAESTRUCTURA FÍSICA, DOTACIÓN DE MOBILIARIO Y EQUIPAMIENTO TECNOLÓGICO DE LA UNIVERSIDAD NACIONAL ABIERTA Y A DISTANCIA EN MUNICIPIOS DEL DEPARTAMENTO DE CUNDINAMARCA | H146: EDUCACIÓN | I146: 16011115461 | J146: 16011115461 | K146: 0 | L146: 43774 | M146: CERRADO | N146: 1 | O146: 1 | Z146: 44760 | AA146: 44823 | AB146: 44607 | AC146: -401 | AD146: -617 | AE146: -464
A147: 145 | B147: ENTIDAD APORTANTE RECURSOS | C147: U TECNOLOGICA DE PEREIRA | D147: YAHIR ARCINIEGAS | E147: LUIS MANUEL GONZALEZ | F147: 2019000100009 | G147: FORMACIÓN DE CAPITAL HUMANO DE ALTO NIVEL UNIVERSIDAD TECNOLÓGICA DE PEREIRA NACIONAL | H147: CTEL | I147: 4360028215 | J147: 3950208215 | K147: 409820000 | L147: 43781 | M147: CONTRATADO EN EJECUCIÓN | N147: 0.8312 | O147: 0.8259 | Z147: 45217 | AA147: 45001 | AB147: 45217 | AC147: -223 | AD147: -7 | AE147: -7
A148: 146 | B148: ENTIDAD APORTANTE RECURSOS | C148: U EAN | D148: YAHIR ARCINIEGAS | E148: LUIS MANUEL GONZALEZ | F148: 2019000100015 | G148: FORMACIÓN DE CAPITAL HUMANO DE ALTO NIVEL - UNIVERSIDAD EAN - NACIONAL | H148: CTEL | I148: 1294375000 | J148: 1250000000 | K148: 44375000 | L148: 43830 | M148: CONTRATADO EN EJECUCIÓN | N148: 0.8318 | O148: 0.7584 | Z148: 45217 | AA148: 44635 | AB148: 45217 | AC148: -589 | AD148: -7 | AE148: -7
A149: 147 | B149: ENTIDAD APORTANTE RECURSOS | C149: U CATOLICA | D149: YAHIR ARCINIEGAS | E149: LUIS MANUEL GONZALEZ | F149: 2019000100022 | G149: FORMACIÓN DE CAPITAL HUMANO DE ALTO NIVEL - UNIVERSIDAD CATÓLICA DE COLOMBIA - NACIONAL | H149: CTEL | I149: 343595000 | J149: 299220000 | K149: 44375000 | L149: 43812 | M149: CONTRATADO EN EJECUCIÓN | N149: 0.8671 | O149: 0.8581 | Z149: 45187 | AA149: 44607 | AB149: 45187 | AC149: -617 | AD149: -37 | AE149: -37
A150: 148 | B150: ENTIDAD APORTANTE RECURSOS | C150: UNIVERSIDAD MILITAR NUEVA GRANADA | D150: YAHIR ARCINIEGAS | E150: LUIS MANUEL GONZALEZ | F150: 2019000100025 | G150: FORMACIÓN DE CAPITAL HUMANO DE ALTO NIVEL UNIVERSIDAD MILITAR NUEVA GRANADA NACIONAL | H150: CTEL | I150: 294375000 | J150: 250000000 | K150: 44375000 | L150: 43812 | M150: CONTRATADO EN EJECUCIÓN | N150: 0.7988 | O150: 0.7398 | Z150: 45155 | AA150: 44635 | AB150: 45217 | AC150: -589 | AD150: -7 | AE150: -69
A151: 149 | B151: ENTIDAD APORTANTE RECURSOS | C151: UNIVERSIDAD NACIONAL DE COLOMBIA | D151: YAHIR ARCINIEGAS | E151: LUIS MANUEL GONZALEZ | F151: 2019000100026 | G151: FORMACIÓN DE CAPITAL HUMANO DE ALTO NIVEL UNIVERSIDAD NACIONAL DE COLOMBIA NACIONAL | H151: CTEL | I151: 21162064500 | J151: 20233937500 | K151: 928127000 | L151: 43781 | M151: CONTRATADO EN EJECUCIÓN | N151: 0.7512 | O151: 1.2075 | Z151: 45217 | AA151: 45065 | AB151: 45217 | AC151: -159 | AD151: -7 | AE151: -7
A152: 150 | B152: ENTIDAD APORTANTE RECURSOS | C152: U DISTRITAL | D152: YAHIR ARCINIEGAS | E152: LUIS MANUEL GONZALEZ | F152: 2019000100027 | G152: FORMACIÓN DE CAPITAL HUMANO DE ALTO NIVEL EN DOCTORADO PARA EL DESARROLLO REGIONAL, UNIVERSIDAD DISTRITAL FRANCISCO JOSÉ DE CALDAS, A NIVEL NACIONAL | H152: CTEL | I152: 1218668841 | J152: 1113595753 | K152: 105073088 | L152: 43798 | M152: CONTRATADO EN EJECUCIÓN | N152: 0.694 | O152: 0.6515 | Z152: 45217 | AA152: 44607 | AB152: 45217 | AC152: -617 | AD152: -7 | AE152: -7
A153: 151 | B153: ENTIDAD APORTANTE RECURSOS | C153: U JAVERIANA | D153: YAHIR ARCINIEGAS | E153: LUIS MANUEL GONZALEZ | F153: 2019000100028 | G153: FORMACIÓN DE CAPITAL HUMANO DE ALTO NIVEL PONTIFICIA UNIVERSIDAD JAVERIANA SEDE CENTRAL NACIONAL | H153: CTEL | I153: 6524500000 | J153: 6524500000 | K153: 0 | L153: 43781 | M153: CONTRATADO EN EJECUCIÓN | N153: 0.7779 | O153: 0.7724 | Z153: 45187 | AA153: 44607 | AB153: 45187 | AC153: -617 | AD153: -37 | AE153: -37
A154: 152 | B154: ENTIDAD APORTANTE RECURSOS | C154: U DE LOS ANDES | D154: YAHIR ARCINIEGAS | E154: LUIS MANUEL GONZALEZ | F154: 2019000100036 | G154: FORMACIÓN DE CAPITAL HUMANO DE ALTO NIVEL UNIVERSIDAD DE LOS ANDES NACIONAL | H154: CTEL | I154: 2814671307 | J154: 2748000000 | K154: 66671307 | L154: 43798 | M154: CONTRATADO EN EJECUCIÓN | N154: 0.8758 | O154: 0.8761 | Z154: 45217 | AA154: 44635 | AB154: 45217 | AC154: -589 | AD154: -7 | AE154: -7
A155: 153 | B155: ENTIDAD APORTANTE RECURSOS | C155: UNIVERSIDAD NACIONAL DE COLOMBIA | D155: YAHIR ARCINIEGAS | E155: LUIS MANUEL GONZALEZ | F155: 2019000100061 | G155: FORTALECIMIENTO DE LA CAPACIDAD TECNOLÓGICA INSTALADA EN EL CENTRO AGROPECUARIO MARENGO PARA LA INVESTIGACIÓN EN LOS SISTEMAS AGROPRODUCTIVOS DEL TRÓPICO ALTO, BAJO EL EFECTO DE LA VARIABILIDAD Y CAMBIO CLIMÁTICO - CUNDINAMARCA | H155: CTEL | I155: 2521388540 | J155: 1994146760 | K155: 527241780 | L155: 43830 | M155: CONTRATADO EN EJECUCIÓN | N155: 0.9738 | O155: 0.8067 | Z155: 45217 | AA155: 44635 | AB155: 45217 | AC155: -589 | AD155: -7 | AE155: -7 | AG155: 2019000100061
A156: 154 | B156: CUNDINAMARCA | C156: SECRETARIA DE CIENCIA, TECNOLOGIA E INNOVACIÓN | D156: ALEXANDER RIVEROS / VALENTINA PORTILLO | E156: JUAN CARLOS BELTRAN | F156: 2020000100137 | G156: FORTALECIMIENTO DE LAS CAPACIDADES DE INVESTIGACIÓN Y DESARROLLO PARA ATENDER PROBLEMÁTICAS ASOCIADAS CON AGENTES BIOLÓGICOS PARA LA SALUD PÚBLICA, A TRAVÉS DEL MEJORAMIENTO DEL LABORATORIO DE SALUD PÚBLICA DE CUNDINAMARCA | H156: CTEL | I156: 4506359274 | J156: 4048003426 | K156: 458355848 | L156: 43966 | M156: CONTRATADO EN EJECUCIÓN | N156: 0.6764 | O156: 0.6162 | P156: x | Z156: 45187 | AA156: 44636 | AB156: 45035 | AC156: -588 | AD156: -189 | AE156: -37 | AG156: 2020000100137
A157: 155 | B157: CUNDINAMARCA | C157: SECRETARIA DE SALUD | D157: DAYANA FERNANDEZ / LIYUGETH ALFONSO | E157: OLGA LUCIA GARZON | F157: 2020000050003 | G157: ADQUISICIÓN DE AMBULANCIAS,EQUIPOS BIOMÉDICOS, ELEMENTOS DE PROTECCIÓN PERSONAL, ASEO Y DESINFECCIÓN PARA LA ATENCIÓN DE LA CALAMIDAD SANITARIA POR COVID-19 EN LAS E.S.E DEL DEPARTAMENTO DE CUNDINAMARCA | H157: SALUD Y PROTECCIÓN SOCIAL | I157: 43433295564 | J157: 43433295564 | K157: 0 | L157: 43986 | M157: CERRADO | N157: 0.5438 | O157: 0.5476 | Z157: 44740 | AA157: 45035 | AB157: 44607 | AC157: -189 | AD157: -617 | AE157: -484 | AG157: 2020000050003
A158: 157 | B158: CUNDINAMARCA | C158: SECRETARIA DE EDUCACIÓN | D158: ALEXANDER RIVEROS / JEIMY FORERO | E158: GENNY PADILLA | F158: 2020000050019 | G158: FORTALECIMIENTO A LA ESTRATEGIA DE ALIMENTACIÓN ESCOLAR PARA EL AÑO 2020, EN LOS MUNICIPIOS DEL DEPARTAMENTO DE CUNDINAMARCA | H158: EDUCACIÓN | I158: 26240955000 | J158: 26240955000 | K158: 0 | L158: 44040 | M158: CERRADO | N158: 1 | O158: 0.995 | AA158: 44607 | AB158: 44607 | AC158: -617 | AD158: -617 | AE158: 0 | AG158: 2020000050012
A159: 158 | B159: CUNDINAMARCA | C159: SECRETARIA DE CIENCIA, TECNOLOGIA E INNOVACIÓN | D159: ALEXANDER RIVEROS / VALENTINA PORTILLO | E159: JUAN CARLOS BELTRAN | F159: 2020000100266 | G159: GENERACIÓN DE ESPACIOS DE ENCUENTRO DE LA SOCIEDAD CON LA CIENCIA Y LA TECNOLOGÍA - UN VIAJE CON LA CIENCIA EN EL DEPARTAMENTO DE CUNDINAMARCA | H159: CTEL | I159: 2241429590 | J159: 2218862102 | K159: 22567488 | L159: 44111 | M159: CONTRATADO EN EJECUCIÓN | N159: 0.7988 | O159: 0.8784 | Z159: 45155 | AA159: 44760 | AB159: 45217 | AC159: -464 | AD159: -7 | AE159: -69 | AG159: 2020000050019
A160: 159 | B160: CUNDINAMARCA | C160: SECRETARIA DE CIENCIA, TECNOLOGIA E INNOVACIÓN | D160: ALEXANDER RIVEROS / VALENTINA PORTILLO | E160: JUAN CARLOS BELTRAN | F160: 2020000100246 | G160: FORTALECIMIENTO DE LA COMPETITIVIDAD DE LA CADENA PRODUCTIVA DE LA GUADUA POR MEDIO DEL DESARROLLO E IMPLEMENTACIÓN DE DOS (2) PAQUETES TECNOLÓGICOS PARA LA GENERACIÓN DE PRODUCTOS CON VALOR AGREGADO EN EL DEPARTAMENTO DE CUNDINAMARCA | H160: CTEL | I160: 3144525520 | J160: 2294345776 | K160: 850179744 | L160: 44111 | M160: CONTRATADO EN EJECUCIÓN | N160: 1 | O160: 0.8985 | Z160: 45125 | AA160: 44607 | AB160: 45125 | AC160: -617 | AD160: -99 | AE160: -99 | AG160: 2020000100266
A161: 160 | B161: ENTIDAD APORTANTE RECURSOS | C161: CONNECT BOGOTA REGIÓN | D161: YAHIR ARCINIEGAS | E161: LUIS MANUEL GONZALEZ | F161: 2020000100078 | G161: DISEÑO E IMPLEMENTACIÓN DE UN MODELO DE GESTIÓN DE CONOCIMIENTO, INNOVACIÓN Y TRANSFERENCIA DE TECNOLOGÍA CON APLICACIÓN EN EL SECTOR AGROPECUARIO Y AGROINDUSTRIAL EN EL DEPARTAMENTO DE CUNDINAMARCA | H161: CTEL | I161: 3438832991 | J161: 3028251016 | K161: 410581974.5 | L161: 44111 | M161: CONTRATADO EN EJECUCIÓN | N161: 0.6371 | O161: 0.6782 | Z161: 45217 | AA161: 44973 | AB161: 45217 | AC161: -251 | AD161: -7 | AE161: -7 | AG161: 2020000100246
A162: 161 | B162: ENTIDAD APORTANTE RECURSOS | C162: FEDERACIÓN NACIONAL DE CAFETEROS | D162: YAHIR ARCINIEGAS | E162: LUIS MANUEL GONZALEZ | F162: 2020000100205 | G162: TRASLADO DE TECNOLOGÍAS INNOVADORAS A CAFICULTORES CON IMPACTO SOBRE LA CALIDAD DEL CAFÉ Y LA GESTIÓN DEL RECURSO HÍDRICO DURANTE EL PROCESO DE BENEFICIO EN ZONA CAFETERA DEL DEPARTAMENTO DE CUNDINAMARCA | H162: CTEL | I162: 13783557324 | J162: 12848931736 | K162: 934625588 | L162: 44111 | M162: CONTRATADO EN EJECUCIÓN | N162: 0.47 | O162: 0.3956 | Z162: 45217 | AA162: 44741 | AB162: 45217 | AC162: -483 | AD162: -7 | AE162: -7 | AG162: 2020000100078
A163: 162 | B163: ENTIDAD APORTANTE RECURSOS | C163: AGROSAVIA | D163: YAHIR ARCINIEGAS | E163: LUIS MANUEL GONZALEZ | F163: 2020000100197 | G163: DESARROLLO DE BIOPLAGUICIDAS POTENCIADOS DE NUEVA GENERACIÓN PARA EL MEJORAMIENTO DE LA PRODUCTIVIDAD E INOCUIDAD DEL CULTIVO DE TOMATE Y CRUCÍFERAS EN EL DEPARTAMENTO DE CUNDINAMARCA | H163: CTEL | I163: 4583970033 | J163: 3282745260 | K163: 1301224773 | L163: 44111 | M163: CONTRATADO EN EJECUCIÓN | N163: 0.4817 | O163: 0.4767 | Z163: 45217 | AA163: 44635 | AB163: 45217 | AC163: -589 | AD163: -7 | AE163: -7 | AG163: 2020000100205
A164: 163 | B164: ENTIDAD APORTANTE RECURSOS | C164: UNIVERSIDAD NACIONAL DE COLOMBIA | D164: YAHIR ARCINIEGAS | E164: LUIS MANUEL GONZALEZ | F164: 2020000100240 | G164: ESTUDIO DE PREFACTIBILIDAD PARA LA CREACIÓN DE UN CENTRO DE INNOVACIÓN Y DE PRODUCTIVIDAD PARA EL SECTOR AGROPECUARIO DE SABANA OCCIDENTE DE CUNDINAMARCA | H164: CTEL | I164: 1896154229 | J164: 1707430133 | K164: 188724096 | L164: 44111 | M164: PARA CIERRE | N164: 1 | O164: 0.991 | Z164: 45125 | AA164: 45187 | AB164: 45125 | AC164: -37 | AD164: -99 | AE164: -99 | AG164: 2020000100197
A165: 164 | B165: ENTIDAD APORTANTE RECURSOS | C165: UNIVERSIDAD DE CUNDINAMARCA | D165: YAHIR ARCINIEGAS | E165: LUIS MANUEL GONZALEZ | F165: 2020000100158 | G165: FORTALECIMIENTO DE LA INFRAESTRUCTURA FÍSICA Y TECNOLÓGICA DEL CENTRO DE ESTUDIOS AGROAMBIENTALES DE LA UNIVERSIDAD DE CUNDINAMARCA AGROU CUNDINAMARCA | H165: CTEL | I165: 2024433669 | J165: 1997753509 | K165: 26680160 | L165: 44111 | M165: CONTRATADO EN EJECUCIÓN | N165: 0.7149 | O165: 0.6078 | Z165: 45217 | AA165: 45065 | AB165: 45217 | AC165: -159 | AD165: -7 | AE165: -7 | AG165: 2020000100240
A166: 165 | B166: ENTIDAD APORTANTE RECURSOS | C166: ZIPAQUIRA | D166: YESID CASTAÑO / JEIMY FORERO | F166: 2020000050013 | G166: Mejoramiento de la vía que comunica a los municipios de Zipaquirá y Tocancipá, tramo barandillas - la fuente, departamento de Cundinamarca | H166: TRANSPORTE | I166: 6.788.620.869,00 | J166: =I166 -> 6.788.620.869,00 | K166: 0 | L166: 44152 | M166: CONTRATADO EN EJECUCIÓN | N166: 0.6059 | O166: 0.8644 | Z166: 45065 | AA166: 44823 | AB166: 45065 | AC166: -401 | AD166: -159 | AE166: -159 | AG166: 2020000100158
A167: 166 | B167: ENTIDAD APORTANTE RECURSOS | C167: ZIPAQUIRA | D167: YESID CASTAÑO / JEIMY FORERO | F167: 2020000050015 | G167: MEJORAMIENTO DE LA VÍA ZIPAQUIRÁ - SAN JORGE - TABIO DEPARTAMENTO DE CUNDINAMARCA | H167: TRANSPORTE | I167: 7458735075 | J167: =I167 -> 7458735075 | K167: 0 | L167: 44152 | M167: CONTRATADO EN EJECUCIÓN | N167: 0.5211 | O167: 0 | Z167: 44973 | AA167: 44635 | AB167: 45217 | AC167: -589 | AD167: -7 | AE167: -251 | AG167: 2020000050013
A168: 167 | B168: CUNDINAMARCA | C168: SECRETARIA DE CIENCIA, TECNOLOGIA E INNOVACIÓN | D168: ALEXANDER RIVEROS / VALENTINA PORTILLO | E168: JUAN CARLOS BELTRAN | F168: 2020000100695 | G168: DESARROLLO, TRANSFERENCIA DE TECNOLOGÍA Y CONOCIMIENTO PARA LA INNOVACIÓN QUE FORTALEZCAN CAPACIDADES COMUNITARIAS EN LA COMPRENSIÓN Y/O MITIGACIÓN DE LOS PROBLEMAS DE VIOLENCIAS BASADAS EN GÉNERO, DERIVADAS DE LA EMERGENCIA POR COVID 19, EN CUNDINAMARCA | H168: CTEL | I168: 3100000000 | J168: 3000000000 | K168: 100000000 | L168: 44183 | M168: CONTRATADO EN EJECUCIÓN | N168: 0.7411 | O168: 0.9204 | Z168: 45159 | AA168: 44740 | AB168: 45187 | AC168: -484 | AD168: -37 | AE168: -65 | AG168: 2020000050015
A169: 168 | B169: CUNDINAMARCA | C169: SECRETARIA DE CIENCIA, TECNOLOGIA E INNOVACIÓN | D169: ALEXANDER RIVEROS / VALENTINA PORTILLO | E169: JUAN CARLOS BELTRAN | F169: 2020000100650 | G169: FORTALECIMIENTO DE CAPACIDADES DE CTEI PARALA INNOVACION EDUCATIVA EN LOS NIVELES DE BÁSICA Y MEDIA, MEDIANTE USO DE TICS EN INSTITUCIONES EDUCATIVAS OFICIALES DE LOS MUNICIPIOS NO CERTIFICADOS DEL DEPARTAMENTO DE CUNDINAMARCA | H169: CTEL | I169: 10804663122 | J169: 9999728696 | K169: 804934426 | L169: 44183 | M169: CONTRATADO EN EJECUCIÓN | N169: 0.3602 | O169: 0.2556 | Z169: 45217 | AA169: 44607 | AB169: 45217 | AC169: -617 | AD169: -7 | AE169: -7 | AG169: 2020000100695
A170: 169 | B170: CUNDINAMARCA | C170: SECRETARIA DE CIENCIA, TECNOLOGIA E INNOVACIÓN | D170: ALEXANDER RIVEROS / VALENTINA PORTILLO | E170: JUAN CARLOS BELTRAN | F170: 2020000100696 | G170: FORTALECIMIENTO DE CAPACIDADES DE CTEI PARA LA REACTIVACIÓN ECONÓMICA Y LA TRANSFORMACIÓN PRODUCTIVA EN CUNDINAMARCA | H170: CTEL | I170: 7370634083 | J170: 6974290175 | K170: 396343908 | L170: 44183 | M170: CONTRATADO EN EJECUCIÓN | N170: 0.9395 | O170: 0.9566 | Z170: 45217 | AA170: 44635 | AB170: 45217 | AC170: -589 | AD170: -7 | AE170: -7
A171: 170 | B171: CUNDINAMARCA | C171: SECRETARIA DE CIENCIA, TECNOLOGIA E INNOVACIÓN | D171: ALEXANDER RIVEROS / VALENTINA PORTILLO | E171: JUAN CARLOS BELTRAN | F171: 2020000100649 | G171: FORTALECIMIENTO DE CAPACIDADES DE CTeI PARA EL RELACIONAMIENTO ESCUELA - CONTEXTO RURAL MEDIANTE LA APROPIACIÓN Y USO DE LAS TIC EN EL MUNICIPIO DE SIBATÉ, DEPARTAMENTO DE CUNDINAMARCA | H171: CTEL | I171: 4292464018 | J171: 2645464018 | K171: 1647000000 | L171: 44183 | M171: CONTRATADO EN EJECUCIÓN | N171: 0.9722 | O171: 0.801 | Z171: 45217 | AA171: 44607 | AB171: 45217 | AC171: -617 | AD171: -7 | AE171: -7 | AG171: 2020000100696
A172: 171 | B172: ENTIDAD APORTANTE RECURSOS | C172: FUNDACION UNIVERSIDAD DEL VALLE | D172: YAHIR ARCINIEGAS | E172: JOSE MARIA LEITON | F172: 2020000050044 | G172: FORTALECIMIENTO DE LAS COMPETENCIAS COMUNICATIVAS EN INGLÉS DE LOS ESTUDIANTES DE LOS ESTABLECIMIENTOS EDUCATIVOS OFICIALES DEL DEPARTAMENTO CUNDINAMARCA | H172: EDUCACIÓN | I172: 15011999229 | J172: 14954799229 | K172: 57200000 | L172: 44195 | M172: TERMINADO | N172: 1 | O172: 0.9518 | Z172: 45217 | AA172: 45187 | AB172: 45187 | AC172: -37 | AD172: -37 | AE172: -7 | AG172: 2020000100649
A173: 172 | B173: ENTIDAD APORTANTE RECURSOS | C173: UNAD | D173: YAHIR ARCINIEGAS | E173: LUIS MANUEL GONZALEZ | F173: 2020000100433 | G173: Investigación de los compuestos volátiles orgánicos e inducidos para el manejo de moscas plagas en gulupa y granadilla en el departamento de Cundinamarca | H173: CTEL | I173: 3412874201 | J173: 1999985660 | K173: =I173-J173 -> 1412888541 | L173: 44159 | M173: CONTRATADO EN EJECUCIÓN | N173: 0.7246 | O173: 0.7807 | Z173: 45217 | AA173: 44635 | AB173: 45217 | AC173: -589 | AD173: -7 | AE173: -7
A174: 173 | B174: ENTIDAD APORTANTE RECURSOS | C174: UNIVERSIDAD INDUSTRIAL DE SANTANDER | D174: YAHIR ARCINIEGAS | E174: LUIS MANUEL GONZALEZ | F174: 2020000100415 | G174: Desarrollo de un sistema óptico computacional para estimar el contenido de carbono orgánico de suelos agrícolas a través de imágenes espectrales e inteligencia artificial en cultivos de cítricos de Santander | H174: CTEL | I174: 2184125885 | J174: 1972224989 | K174: 211900896 | L174: 44159 | M174: CONTRATADO EN EJECUCIÓN | N174: 0.8974 | O174: 0.8205 | Z174: 45217 | AA174: 44973 | AB174: 45217 | AC174: -251 | AD174: -7 | AE174: -7
A175: 174 | B175: ENTIDAD APORTANTE RECURSOS | C175: UNIVERSIDAD INDUSTRIAL DE SANTANDER | D175: YAHIR ARCINIEGAS | E175: LUIS MANUEL GONZALEZ | F175: 2020000100375 | G175: Conformación de una plataforma para estudios celulares avanzados in vivo en tiempo real para el análisis de la respuesta inmunometabólica ante la reexpresión de interferón tipo I kappa en esferoides de células tumorales de cuello uterino en Santander | H175: CTEL | I175: 3123997801 | J175: 1998887911 | K175: 1125109890 | L175: 44159 | M175: CONTRATADO EN EJECUCIÓN | N175: 0.8412 | O175: 0.8524 | Z175: 45217 | AA175: 44635 | AB175: 45217 | AC175: -589 | AD175: -7 | AE175: -7
A176: 175 | B176: ENTIDAD APORTANTE RECURSOS | C176: UNIVERSIDAD INDUSTRIAL DE SANTANDER | D176: YAHIR ARCINIEGAS | E176: LUIS MANUEL GONZALEZ | F176: 2020000100351 | G176: Desarrollo de un prototipo selectivo y sensible para monitorear contenido de cadmio in situ en diversas matrices asociadas a la producción de granos de cacao en el departamento de Santander | H176: CTEL | I176: 2585800000 | J176: 2000000000 | K176: 585800000 | L176: 44159 | M176: CONTRATADO EN EJECUCIÓN | N176: 1 | O176: 0.9991 | Z176: 45187 | AA176: 44635 | AB176: 45066 | AC176: -589 | AD176: -158 | AE176: -37
A177: 176 | B177: ENTIDAD APORTANTE RECURSOS | C177: INSTITUTO SUPERIOR DE EDUCACION RURAL DE PAMPLONA | D177: YAHIR ARCINIEGAS | E177: LUIS MANUEL GONZALEZ | F177: 2020000100343 | G177: Implementación laboratorio de calidad fisicoquímica de alimentos para el fortalecimiento competitivo y sostenible de lascadenas agroalimentarias del departamento de Norte de Santander | H177: CTEL | I177: 1097306327 | J177: 999999999 | K177: 97306328 | L177: 44159 | M177: CONTRATADO EN EJECUCIÓN | N177: 0.3418 | O177: 0.339 | Z177: 45217 | AA177: 44607 | AB177: 45217 | AC177: -617 | AD177: -7 | AE177: -7 | AG177: 2020000100351
A178: 177 | B178: ENTIDAD APORTANTE RECURSOS | C178: UNIVERSIDAD NACIONAL DE COLOMBIA | D178: YAHIR ARCINIEGAS | E178: LUIS MANUEL GONZALEZ | F178: 2020000100342 | G178: Estudio de potenciales insecticidas en matrices poliméricas para el control de plagas de granos almacenados basados en aceites esenciales provenientes de la biodiversidadflorística del departamento de Cundinamarca | H178: CTEL | I178: 2748237104 | J178: 2000000000 | K178: 748237104 | L178: 44159 | M178: CONTRATADO EN EJECUCIÓN | N178: 0.5542 | O178: 0.687 | Z178: 45217 | AA178: 44760 | AB178: 45217 | AC178: -464 | AD178: -7 | AE178: -7 | AG178: 2020000100343
A179: 178 | B179: ENTIDAD APORTANTE RECURSOS | C179: UNIVERSIDAD MILITAR NUEVA GRANADA | D179: YAHIR ARCINIEGAS | E179: LUIS MANUEL GONZALEZ | F179: 2020000100728 | G179: Generación y transferencia de conocimientos y tecnologías para elevar capacidades de CTel de pequeños productores de tomate para afrontar problemas derivados del COVID-19 asociadas a la Seg. Alimentaria en las Sab. Centro y Oriente Cundinamarca | H179: CTEL | I179: 4162541452 | J179: 2123613452 | K179: 2038928000 | L179: 44183 | M179: CONTRATADO EN EJECUCIÓN | N179: 0.8423 | O179: 0.8655 | Z179: 45187 | AA179: 44635 | AB179: 45217 | AC179: -589 | AD179: -7 | AE179: -37
A180: 179 | B180: ENTIDAD APORTANTE RECURSOS | C180: UNIVERSIDAD NACIONAL DE COLOMBIA | D180: YAHIR ARCINIEGAS | E180: LUIS MANUEL GONZALEZ | F180: 2020000100339 | G180: Desarrollo de Nuevos Métodos No Destructivos para Monitoreo In Situ de Probabilidad de Ocurrencia de Falla en Tuberías en el Sector de Hidrocarburos en los Departamentos de Bogotá Boyacá Santander | H180: CTEL | I180: 2412084140 | J180: 1999876300 | K180: 412207840 | L180: 44159 | M180: CONTRATADO EN EJECUCIÓN | N180: 0.5855 | O180: 0.7973 | Z180: 45217 | AA180: 44635 | AB180: 45126 | AC180: -589 | AD180: -98 | AE180: -7
A181: 180 | B181: ENTIDAD APORTANTE RECURSOS | C181: UNIVERSIDAD MILITAR NUEVA GRANADA | D181: YAHIR ARCINIEGAS | E181: LUIS MANUEL GONZALEZ | F181: 2020000100216 | G181: Innovación y transferencia tecnológica de UMNGBIO a productores de flores para el control biológico de Tetranychus urticae (Acari: Tetranychiidae) en cultivos de invernadero con el ácaro benéfico Neoseiulus californicus (Acari: Phytoseiidae) Cundinamarca | H181: CTEL | I181: 2431580000 | J181: 1241580000 | K181: 1190000000 | L181: 44159 | M181: CONTRATADO EN EJECUCIÓN | N181: 0.7922 | O181: 0.8018 | Z181: 45187 | AA181: 44607 | AB181: 45217 | AC181: -617 | AD181: -7 | AE181: -37 | AG181: 2020000100339
A182: 181 | B182: CUNDINAMARCA | C182: SECRETARIA DE COMPETITIVIDAD | D182: ALEXANDER RIVEROS/JEIMY FORERO | E182: FABIAN CUESTA | F182: 2019000050026 | G182: Desarrollo de un programa productivo, amigable con el medio ambiente del sector ganadero en el Departamento de Cundinamarca Cundinamarca | H182: AGRICULTURA | I182: 11567711442 | J182: 8302543371 | K182: 3265168071 | L182: 44187 | M182: CONTRATADO EN EJECUCIÓN | N182: 0.9191 | O182: 0.9247 | Z182: 45217 | AA182: 44635 | AB182: 45217 | AC182: -589 | AD182: -7 | AE182: -7
A183: 182 | B183: ENTIDAD APORTANTE RECURSOS | C183: UNIVERSIDAD NACIONAL DE COLOMBIA | D183: YAHIR ARCINIEGAS | E183: LUIS MANUEL GONZALEZ | F183: 2020000100169 | G183: Investigación Desarrollo, innovación y transferencia de conocimiento para el procesamiento de la semilla de Sacha Inchi en productos de valor agregado, como estrategia para mejorar la productividad del sector agroindustrial de la Región Cundinamarca | H183: CTEL | I183: 2757697312 | J183: 1997700000 | K183: 759997311.9 | L183: 44078 | M183: CONTRATADO EN EJECUCIÓN | N183: 0.8539 | O183: 0.6159 | Z183: 45217 | AA183: 44973 | AB183: 45217 | AC183: -251 | AD183: -7 | AE183: -7 | AG183: 2019000050026
A184: 183 | B184: ENTIDAD APORTANTE RECURSOS | C184: UPTC | D184: YAHIR ARCINIEGAS | E184: LUIS MANUEL GONZALEZ | F184: 2020000100114 | G184: Fortalecimiento del ecosistema de investigación científica para CTeI en la universidad pedagógica y tecnológica de Colombia UPTC, I-SPACIO Sogamoso | H184: CTEL | I184: 2312299017 | J184: 1967031046 | K184: 345267971.3 | L184: 44078 | M184: CONTRATADO EN EJECUCIÓN | N184: 0.9307 | O184: 0.8991 | Z184: 45187 | AA184: 44740 | AB184: 45217 | AC184: -484 | AD184: -7 | AE184: -37
A185: 184 | B185: ENTIDAD APORTANTE RECURSOS | C185: UNIVERSIDAD DE ANTIOQUIA | D185: YAHIR ARCINIEGAS | E185: LUIS MANUEL GONZALEZ | F185: 2020000100079 | G185: Fortalecimiento de la infraestructura tecnológica y equipamiento del ambiente de formación industrial para el aumento de las capacidades institucionales en CTeI de la ETITC Bogotá | H185: CTEL | I185: 1090608306 | J185: 998808306 | K185: 91800000 | L185: 44078 | M185: TERMINADO | N185: 1 | O185: 0.9921 | Z185: 45187 | AA185: 45159 | AB185: 45159 | AC185: -65 | AD185: -65 | AE185: -37
A186: 185 | B186: ENTIDAD APORTANTE RECURSOS | C186: UNIVERSIDAD NACIONAL DE COLOMBIA | D186: YAHIR ARCINIEGAS | E186: LUIS MANUEL GONZALEZ | F186: 2020000100075 | G186: Aprovechamiento de la biodiversidad en agraz y papa para el desarrollo de cultivos promisorios en el departamento de Santander | H186: CTEL | I186: 3177259696 | J186: 2000000000 | K186: 1177259696 | L186: 44078 | M186: CONTRATADO EN EJECUCIÓN | N186: 0.3195 | O186: 0.4246 | Z186: 45187 | AA186: 44635 | AB186: 45217 | AC186: -589 | AD186: -7 | AE186: -37
A187: 186 | B187: ENTIDAD APORTANTE RECURSOS | C187: UNIVERSIDAD NACIONAL DE COLOMBIA | D187: YAHIR ARCINIEGAS | E187: LUIS MANUEL GONZALEZ | F187: 2020000100019 | G187: Fortalecimiento de capacidades de investigación y desarrollo tecnológico de la Universidad Colegio Mayor de Cundinamarca a partir de tecnologías industria 4.0 para el diseño y construcción en Bogotá | H187: CTEL | I187: 2077571214 | J187: 1930000000 | K187: 147571214 | L187: 44078 | M187: PARA CIERRE | N187: 1 | O187: 0.9939 | Z187: 45187 | AA187: 45187 | AB187: 45159 | AC187: -37 | AD187: -65 | AE187: -37 | AG187: 2020000100075
A188: 187 | B188: ENTIDAD APORTANTE RECURSOS | C188: UNIVERSIDAD INDUSTRIAL DE SANTANDER | D188: YAHIR ARCINIEGAS | E188: LUIS MANUEL GONZALEZ | F188: 2020000100017 | G188: Fortalecimiento DE LA CAPACIDAD INSTITUCIONAL DE INVESTIGACIÓN DE LA UNIVERSIDAD INDUSTRIAL DESANTANDER Nacional | H188: CTEL | I188: 2808520000 | J188: 2000000000 | K188: 808520000 | L188: 44078 | M188: CONTRATADO EN EJECUCIÓN | N188: 0.3748 | O188: 0.3886 | Z188: 45217 | AA188: 44607 | AB188: 45217 | AC188: -617 | AD188: -7 | AE188: -7 | AG188: 2020000100019
A189: 188 | B189: ENTIDAD APORTANTE RECURSOS | C189: UNIVERSIDAD MILITAR NUEVA GRANADA | D189: YAHIR ARCINIEGAS | E189: LUIS MANUEL GONZALEZ | F189: 2020000100103 | G189: Fortalecimiento de capacidades instaladas de Ciencia y Tecnología del Laboratorio de Diagnóstico en el Campus de la Univ Militar Nueva Granada, para atender problemáticas asociadas con agentes biológicos de alto riesgo para la salud humana, Cundinamarca | H189: CTEL | I189: 5715742977 | J189: 4168513565 | K189: 1547229412 | L189: 43966 | M189: CONTRATADO EN EJECUCIÓN | N189: 0.5918 | O189: 0.7614 | Z189: 45159 | AA189: 44607 | AB189: 45159 | AC189: -617 | AD189: -65 | AE189: -65 | AG189: 2020000100017
A190: 189 | B190: ENTIDAD APORTANTE RECURSOS | C190: INSTITUTO UNIVERSITARIO DE LA PAZ – UNIPAZ | D190: YAHIR ARCINIEGAS | E190: LUIS MANUEL GONZALEZ | F190: 2020000100042 | G190: Fortalecimiento de los procesos académicos en los programas ofrecidos por el Instituto Universitario de la Paz, UNIPAZ, Barrancabermeja | H190: CTEL | I190: 1178749590 | J190: 996109590 | K190: 182640000 | L190: 43998 | M190: PARA CIERRE | N190: 1 | O190: 0.9887 | Z190: 45066 | AA190: 45187 | AB190: 45066 | AC190: -37 | AD190: -158 | AE190: -158
A191: 190 | B191: ENTIDAD APORTANTE RECURSOS | C191: INSTITUTO UNIVERSITARIO DE LA PAZ – UNIPAZ | D191: YAHIR ARCINIEGAS | E191: LUIS MANUEL GONZALEZ | F191: 2020000100016 | G191: Adecuación , DOTACIÓN E IMPLEMENTACIÓN DE UN LABORATORIO DE FABRICACIÓN DIGITAL PARA PROMOVER EL DESARROLLO DE LA CIENCIA, LAINNOVACIÓN Y EL EMPRENDIMIENTO EN LA UNIVERSIDAD FRANCISCO DE PAULA SANTANDER. Cúcuta | H191: CTEL | I191: 2921057589 | J191: 1946843702 | K191: 974213887 | L191: 43950 | M191: CERRADO | N191: 1 | O191: 0.9947 | Z191: 45126 | AA191: 45159 | AB191: 45126 | AC191: -65 | AD191: -98 | AE191: -98
A192: 191 | B192: ENTIDAD APORTANTE RECURSOS | C192: UNIVERSIDAD TECNOLOGICA DE SANTANDER | D192: YAHIR ARCINIEGAS | E192: LUIS MANUEL GONZALEZ | F192: 2020000100004 | G192: Fortalecimiento y adecuación de equipos e infraestructura del Laboratorio de física del Departamento de Ciencias Básicas, para el mejoramiento de las capacidades institucionales y la investigación en las Unidades Tecnológicas de Santander - Bucaramanga | H192: CTEL | I192: 1511504755 | J192: 980000000 | K192: 531504755 | L192: 43950 | M192: CONTRATADO EN EJECUCIÓN | N192: 0.1719 | O192: 0.1558 | Z192: 44973 | AA192: 44973 | AB192: 44973 | AC192: -251 | AD192: -251 | AE192: -251
A193: 192 | B193: CUNDINAMARCA | C193: SECRETARIA DE EDUCACIÓN | D193: ALEXANDER RIVEROS / JEIMY FORERO | E193: GENNY PADILLA | F193: 2020000050037 | G193: Dotación del mobiliario escolar para las instituciones educativas de los municipios no certificados del Departamento de Cundinamarca | H193: EDUCACIÓN | I193: 10093038848 | J193: 10093038848 | K193: 0 | L193: 44195 | M193: CERRADO | N193: 1 | O193: 0.8453 | Z193: 45005 | AA193: 44635 | AB193: 45005 | AC193: -589 | AD193: -219 | AE193: -219
A194: 193 | B194: ENTIDAD APORTANTE RECURSOS | C194: UNIVERSIDAD DEL NORTE | D194: YAHIR ARCINIEGAS | E194: LUIS MANUEL GONZALEZ | F194: 2020000100287 | G194: Formación de Capital Humano de Alto Nivel Universidad del Norte 2do Corte Nacional | H194: CTEL | I194: 6920233499 | J194: 6750000000 | K194: 170233499 | L194: 44330 | M194: CONTRATADO EN EJECUCIÓN | N194: 0.43 | O194: 0.4919 | Z194: 45187 | AA194: 45005 | AB194: 45217 | AC194: -219 | AD194: -7 | AE194: -37 | AG194: 2020000050037
A195: 194 | B195: ENTIDAD APORTANTE RECURSOS | C195: UNIVERSIDAD DEL VALLE | D195: YAHIR ARCINIEGAS | E195: LUIS MANUEL GONZALEZ | F195: 2020000100345 | G195: Formación de capital humano de alto Nivel segundo Corte Universidad del Valle Nacional | H195: CTEL | I195: 5913070114 | J195: 5335769261 | K195: 577300853 | L195: 44348 | M195: CONTRATADO EN EJECUCIÓN | N195: 0.4932 | O195: 0.493 | Z195: 45217 | AA195: 45126 | AB195: 45217 | AC195: -98 | AD195: -7 | AE195: -7 | AG195: 2020000100287
A196: 195 | B196: ENTIDAD APORTANTE RECURSOS | C196: UNIVERSIDAD NACIONAL DE COLOMBIA | D196: YAHIR ARCINIEGAS | E196: LUIS MANUEL GONZALEZ | F196: 2021000100003 | G196: Formación de Capital Humano de Alto Nivel Universidad Nacional de Colombia Corte II Nacionl | H196: CTEL | I196: 18418143500 | J196: 17635937500 | K196: =I196-J196 -> 782206000 | L196: 44330 | M196: CONTRATADO EN EJECUCIÓN | N196: 0.484 | O196: 0.516 | Z196: 45217 | AA196: 44635 | AB196: 45217 | AC196: =IF(AA196=0,0,_xlfn.DAYS(AA196,TODAY())) -> -589 | AD196: -7 | AE196: -7
A197: 196 | B197: ENTIDAD APORTANTE RECURSOS | C197: UNIVERSIDAD DE LA SABANA | D197: YAHIR ARCINIEGAS | E197: LUIS MANUEL GONZALEZ | F197: 2021000100004 | G197: Formación de Capital Humano de Alto Nivel Universidad de La Sabana Core 2 Nacional | H197: CTEL | I197: 1519950000 | J197: 1309600000 | K197: 210350000 | L197: 44348 | M197: CONTRATADO EN EJECUCIÓN | N197: 0.6301 | O197: 0.8315 | Z197: 45187 | AA197: 44607 | AB197: 45217 | AC197: -617 | AD197: -7 | AE197: =IF(Z197=0,0,_xlfn.DAYS(Z197,TODAY())) -> -37 | AG197: 2021000100003
A198: 197 | B198: ENTIDAD APORTANTE RECURSOS | C198: UNIVERSIDAD ANTONIO NARIÑO | D198: YAHIR ARCINIEGAS | E198: LUIS MANUEL GONZALEZ | F198: 2021000100014 | G198: Formación de Capital Humano de Alto Nivel Universidad Antonio Nariño Core 2 Nacional | H198: CTEL | I198: 4526652200 | J198: 4250000000 | K198: 276652200 | L198: 44348 | M198: CONTRATADO EN EJECUCIÓN | N198: 0.3722 | O198: 0.267 | Z198: 45187 | AA198: 44635 | AB198: 45217 | AC198: -589 | AD198: -7 | AE198: -37
A199: 198 | B199: ENTIDAD APORTANTE RECURSOS | C199: UNIVERSIDAD EAN | D199: YAHIR ARCINIEGAS | E199: LUIS MANUEL GONZALEZ | F199: 2021000100025 | G199: Formación DE CAPITAL HUMANO DE ALTO NIVEL UNIVERSIDAD EAN NACIONAL COHORTE II Nacional | H199: CTEL | I199: 2044506416 | J199: 1750000000 | K199: 294506416 | L199: 44368 | M199: CONTRATADO EN EJECUCIÓN | N199: 0.547 | O199: 0.4684 | P199: x | Z199: 45159 | AA199: 44607 | AB199: 45159 | AC199: -617 | AD199: -65 | AE199: -65 | AG199: 2021000100014
A200: 199 | B200: ENTIDAD APORTANTE RECURSOS | C200: UNIVERSIDAD MILITAR NUEVA GRANADA | D200: YAHIR ARCINIEGAS | E200: LUIS MANUEL GONZALEZ | F200: 2021000100026 | G200: Formación de Capital Humano de Alto Nivel Universidad Militar Nueva Granada Segundo Corte Nacional | H200: CTEL | I200: 751632481 | J200: 650602304 | K200: 101030177 | L200: 44348 | M200: CONTRATADO EN EJECUCIÓN | N200: 0.4976 | O200: 0.4296 | Z200: 45097 | AA200: 44635 | AB200: 45217 | AC200: -589 | AD200: -7 | AE200: -127
... 1451 more rows

Sheet Hoja1 (hidden)
A1: EJECUTOR (Dpto / Entidad) | B1: (Todas)
A2: ESTADO | B2: (Varios elementos) | G2: EJECUTOR (Dpto / Entidad) | H2: DESENTRALIZADOS
A4: Etiquetas de fila | B4: Suma de VALOR PROYECTO | C4: Suma de VALOR SGR | G4: Etiquetas de fila | H4: Cuenta de BPIM | I4: Suma de VALOR PROYECTO | J4: Suma de VALOR SGR
A5: AGROSAVIA | B5: 4583970033 | C5: 3282745260 | G5: ICCU - GESPROY GB | H5: 45 | I5: 3.050400812e+11 | J5: 269371839280
A6: BANCO AGRARIO DE COLOMBIA | B6: 60041780218 | C6: 15888838218 | G6: IDECUT | H6: 1 | I6: 1972606058 | J6: 1972606058
A7: CAR | B7: 18000000000 | C7: 18000000000 | G7: Total general | H7: 46 | I7: 3.070126873e+11 | J7: 271344445338
A8: CONNECT BOGOTA REGIÓN | B8: 3438832991 | C8: 3028251016
A9: EMTEL | B9: 16921563805 | C9: 16921563805
A10: FEDERACIÓN NACIONAL DE CAFETEROS | B10: 13783557324 | C10: 12848931736
A11: FUNDACION UNIVERSIDAD DEL VALLE | B11: 31610831242 | C11: 31553631242
A12: ICCU - GESPROY GB | B12: 5.649930743e+10 | C12: 53917171450
A13: INSTITUTO SUPERIOR DE EDUCACION RURAL DE PAMPLONA | B13: 1097306327 | C13: 999999999
A14: INSTITUTO UNIVERSITARIO DE LA PAZ – UNIPAZ | B14: 1178749590 | C14: 996109590
A15: MUNICIPIO DE UTICA | B15: 2347004868 | C15: 2123058880
A16: MUNICIPIO DE ZIPAQUIRA | B16: 900000000 | C16: 467000000
A17: PONIFICA UNIVERSIDAD JAVERIANA | B17: 8577491761 | C17: 7246312500
A18: SECRETARIA DE AGRICULTURA | B18: 6523880054 | C18: 4220000000
A19: SECRETARIA DE AMBIENTE | B19: 5626890769 | C19: 2857824455
A20: SECRETARIA DE CIENCIA, TECNOLOGIA E INNOVACIÓN | B20: 1.942105598e+11 | C20: 1.575703395e+11
A21: SECRETARIA DE COMPETITIVIDAD | B21: 33049757567 | C21: 29740192043
A22: SECRETARIA DE EDUCACIÓN | B22: 188177731805 | C22: 188177731805
A23: SECRETARIA DE GOBIERNO | B23: 9260000000 | C23: 8500000000
A24: SECRETARIA DE HABITAT Y VIVIENDA | B24: 1.797947617e+10 | C24: 1.733944595e+10
A25: SECRETARIA DE MINAS, ENERGIA Y GAS | B25: 23075304536 | C25: 12711103496
A26: SECRETARIA DE PLANEACIÓN | B26: 6791102422 | C26: 6725380622
A27: U CATOLICA | B27: 343595000 | C27: 299220000
A28: U DE LOS ANDES | B28: 2814671307 | C28: 2748000000
A29: U DISTRITAL | B29: 1218668841 | C29: 1113595753
A30: U EAN | B30: 1294375000 | C30: 1250000000
A31: U JAVERIANA | B31: 6524500000 | C31: 6524500000
A32: U TECNOLOGICA DE PEREIRA | B32: 4360028215 | C32: 3950208215
A33: UNAD | B33: 3412874201 | C33: 1999985660
A34: UNIDAD ADMINISTRATIVA DE GESTIÓN DEL RIESGO. | B34: 1.780338097e+10 | C34: 1.780338097e+10
A35: UNIVERSIDAD ANTONIO NARIÑO | B35: 4526652200 | C35: 4250000000
A36: UNIVERSIDAD DE ANTIOQUIA | B36: 1090608306 | C36: 998808306
A37: UNIVERSIDAD DE CALDAS | B37: 6358000000 | C37: 6000000000
A38: UNIVERSIDAD DE CUNDINAMARCA | B38: 2024433669 | C38: 1997753509
A39: UNIVERSIDAD DE LA SABANA | B39: 1519950000 | C39: 1309600000
A40: UNIVERSIDAD DEL NORTE | B40: 6920233499 | C40: 6750000000
A41: UNIVERSIDAD DEL VALLE | B41: 5913070114 | C41: 5335769261
A42: UNIVERSIDAD EAN | B42: 2044506416 | C42: 1750000000
A43: UNIVERSIDAD INDUSTRIAL DE SANTANDER | B43: 1.070244369e+10 | C43: 7971112900
A44: UNIVERSIDAD MILITAR NUEVA GRANADA | B44: 13355871910 | C44: 8434309321
A45: UNIVERSIDAD NACIONAL DE COLOMBIA | B45: 57170600235 | C45: 5.149902819e+10
A46: UNIVERSIDAD TECNOLOGICA DE SANTANDER | B46: 1511504755 | C46: 980000000
A47: UPTC | B47: 2312299017 | C47: 1967031046
A48: ZIPAQUIRA | B48: 7458735075 | C48: 7458735075
A49: (en blanco)
A50: SUPERVISIÓN / INTERVENTORÍA -EPC | B50: 4999900475 | C50: 4999900475
A51: SUPERVISIÓN / INTERVENTORÍA RAPE - SECRETARIA DE PLANEACIÓN | B51: 32499987282 | C51: 32499987282
A52: Total general | B52: 9.018559889e+11 | C52: 7.750065576e+11

Sheet Proyectos en Ejecución
A1: SISTEMAS GENERAL DEL REGALÍAS-BASE DE PROYECTOS APROBADOS
A6: N° | B6: EJECUTOR (Dpto / Entidad) | C6: EJECUTOR INTERNO | D6: BPIN | E6: PROYECTO | F6: FUENTE DE FINANCIACIÓN | G6: SECTOR | H6: VALOR PROYECTO | I6: VALOR SGR | J6: OTRAS FUENTES | K6: FECHA DE APROBACIÓN OCAD | L6: AÑO DE APROBACIÓN | M6: ACUERDO DE APROBACIÓN | N6: Cumplimiento de requisitos previos al inicio de la ejecución | O6: Proyecto fue aprobado en SUIFP SGR pero no ha migrado a Gesproy | P6: CDP | Q6: Proyecto fue migrado a Gesproy pero no tiene asignación de recursos en SPGR. | R6: Proyecto con asignación de recursos en SPGR y sin apertura del primer proceso de contratación | S6: Proyecto con asignación de recursos y sin apertura del primer proceso de contratación y sin identificación de alcance, hitos y programación | T6: Proyecto con apertura del primer proceso de contratación y sin suscripción del primer contrato. | U6: ESTADO | V6: AVANCE FÍSICO | W6: AVANCE FINANCIERO
A7: 1 | B7: CUNDINAMARCA | C7: SECRETARIA DE AMBIENTE | D7: 2012000050005 | E7: ESTUDIOS Y DISEÑOS DE DETALLE EMBALSE CALANDAIMA MUNICIPIO DE EL COLEGIO DEPARTAMENTO DE CUNDINAMARCA | F7: (2012) Fondo de desarrollo regional $1.000.000.000 (2012) Propios $3.000.000.000 | G7: AMBIENTE Y DESARROLLO SOSTENIBLE | H7: 4000000000 | I7: 1000000000 | J7: =H7-I7 -> 3000000000 | K7: 41271 | L7: 2012 | M7: 004 DE 2012 | N7: 04/04/2013 | O7: OK | P7: 15/04/2013 | Q7: 25/01/2013 | R7: 30/08/2013 | S7: OK | T7: 12/07/2013 | U7: CERRADO | V7: 1 | W7: 1
A8: 2 | B8: DESENTRALIZADOS | C8: ICCU - GESPROY GB | D8: 2012000050006 | E8: CONSTRUCCIÓN CUBIERTA COLISEO DEL CENTRO AGROTECNOLOGICO DE EXPOSICIONES Y COMERCIALIZACION DE LA REGION DEL SUMAPAZ EN EL MUNICIPIO DE FUSAGASUGA - CUNDINAMARCA | F8: (2012) Fondo de desarrollo refional $3.581.531 (2012) Propios $656.000.000 (2015) Propios $1.000.000 | G8: TRANSPORTE | H8: 6352617736 | I8: 3581530801 | J8: 2771086935 | K8: 41271 | L8: 2012 | M8: 004 DE 2012 | N8: S.D 31/05/2013 | O8: OK | P8: 217-24/04/2013 | Q8: 41299 | R8: 41639 | S8: OK | T8: 41808 | U8: CERRADO | V8: 1 | W8: 0.9954
A9: 3 | B9: CUNDINAMARCA | C9: SECRETARIA DE AGRICULTURA | D9: 2012000050007 | E9: FORTALECIMIENTO DE LAS CADENAS HORTIFRUTICOLA Y AROMATICAS EN CUNDINAMARCA | F9: (2012) Fondo de desarrollo regional $1.3000.000.000 (2012) Propios $171.020.400 | G9: AGRICULTURA | H9: 2490400000 | I9: 1300000000 | J9: 1190400000 | K9: 41271 | L9: 2012 | M9: 004 DE 2012 | N9: 013-03/05/2013 | O9: OK | P9: 41453 | Q9: 0018-25/01/2013 | R9: 41458 | S9: OK | T9: 41458 | U9: CERRADO | V9: 1 | W9: 1
A10: 4 | B10: CUNDINAMARCA | C10: SECRETARIA DE AGRICULTURA | D10: 2012000050009 | E10: FORTALECIMIENTO DE LA PRODUCTIVIDAD Y COMPETITIVIDAD DEL SECTOR CACAOTERO EN EL DEPARTAMENTO DE CUNDINAMARCA | F10: (2012) Fondo de desarrollo regional $1.200.000.000 (2012) Propios $45.229.825 | G10: AGRICULTURA | H10: 2334689275 | I10: 1200000000 | J10: 1134689275 | K10: 41271 | L10: 2012 | M10: 004 DE 2012 | N10: 012-04/04/2013 | O10: OK | P10: 41431 | Q10: 0018-25/01/2013 | R10: 001 de 2013- 24/06/2013 | S10: OK | T10: 41449 | U10: CERRADO | V10: 1 | W10: 0.9634
A11: 5 | B11: CUNDINAMARCA | C11: SECRETARIA GENERAL | D11: 2012000050010 | E11: ESTUDIOS Y DISEÑOS PARA LA RECUPERACIÓN Y ADECUACION DEL PATRIMONIO HISTORICO CULTURAL PALACIO DE SAN FRANCISCO EN BOGOTA D.C. DEPARTAMENTO DE CUNDINAMARCA | F11: (2012) SGR $1.000.000.000 | G11: CULTURA | H11: 1000000000 | I11: 1000000000 | J11: 0 | K11: 41271 | L11: 2012 | M11: 004 DE 2012 | N11: 01-04/04/2013 | O11: OK | P11: 41705 | Q11: 41299 | R11: 41795 | S11: OK | T11: 41852 | U11: CERRADO | V11: 1 | W11: 0.9514
A12: 6 | B12: CUNDINAMARCA | C12: SECRETARIA DE EDUCACIÓN | D12: 2012000050011 | E12: FORTALECIMIENTO DE LA PERMANENCIA DE LOS ESTUDIANTES EN LOS MUNICIPIOS DEL DEPARTAMENTO DE CUNDINAMARCA DEPARTAMENTO DE CUNDINAMARCA | F12: (2012) Fondo de compensación regional $6.000.000.000 | G12: EDUCACIÓN | H12: 6000000000 | I12: 6000000000 | J12: 0 | K12: 41187 | L12: 2012 | M12: 003 DE 2012 | N12: 1-01/04/2013 | O12: OK | P12: 41247 | Q12: 41227 | R12: 41247 | S12: OK | T12: 41247 | U12: CERRADO | V12: 1 | W12: 0.5819
A13: 7 | B13: CUNDINAMARCA | C13: SECRETARIA DE DESARROLLO E INCLUSIÓN SOCIAL | D13: 2012000050012 | E13: IMPLEMENTACIÓN DEL PROGRAMA DE COMPLEMENTACION ALIMENTARIA Y NUTRICIONAL EN MENORES DE 5 AÑOS, MUJERES GESTANTES Y LACTANTES EN TODO EL DEPARTAMENTO DE CUNDINAMARCA | F13: (2012) Fondo de compensación regional $3.000.000.000 (2012) Propios $1.000.000 | G13: SALUD Y PROTECCIÓN SOCIAL | H13: 4531022720 | I13: 3000000000 | J13: 1531022720 | K13: 41187 | L13: 2012 | M13: 003 DE 2012 | N13: 08/11/2013 -031 | O13: OK | P13: 41335 | Q13: 41267 | R13: 41520 | S13: OK | T13: 41541 | U13: CERRADO | V13: 0.9904 | W13: 0.9972
A14: 8 | B14: CUNDINAMARCA | C14: SECRETARIA DE TRANSPORTE Y MOVILIDAD | D14: 2012000050013 | E14: ACTUALIZACION Y FORMULACION DE LOS ESTUDIOS Y DISEÑOS FASE II Y III DE LA EXTENCION NORTE - QUITO - SUR DEL SISTEMA TRANSMILENIO AL MUNICIPIO DE SOACHA DEPARTAMENTO DE CUNDINAMARCA | F14: (2012) Fondo de desarrollo regional $3.8000.000.000 (2014) Propios $896.129.949 | G14: SALUD Y PROTECCIÓN SOCIAL | H14: 4026917304 | I14: 3130787355 | J14: 896129949 | K14: 41187 | L14: 2012 | M14: 003 DE 2012 | N14: 04/04/2013-32 | O14: OK | P14: 41586 | Q14: 41508 | R14: 41600 | S14: OK | T14: 41632 | U14: CERRADO | V14: 0.9622 | W14: 0.9703
A15: 9 | B15: CUNDINAMARCA | C15: SECRETARIA DE AGRICULTURA | D15: 2012000050014 | E15: MEJORAMIENTO DE LA COMPETITIVIDAD Y SOSTENIBILIDAD DEL SUB SECTOR PANELERO DE CUNDINAMARCA | F15: (2012) Fondo de desarrollo regional $1.300.000.000 (2012) Propios $259.272.190 | G15: AGRICULTURA | H15: 1559272190 | I15: 1300000000 | J15: 259272190 | K15: 41271 | L15: 2012 | M15: 004 DE 2012 | N15: 04/04/2013-014 | O15: OK | P15: 41449 | Q15: 41299 | R15: 41451 | S15: OK | T15: 41451 | U15: CERRADO | V15: 1 | W15: 1
A16: 10 | B16: CUNDINAMARCA | C16: SECRETARIA DE AGRICULTURA | D16: 2012000050023 | E16: FORTALECIMIENTO DE LA ACTIVIDAD CAFETERA COMO ALTERNATIVA SOSTENIBLE DE DESARROLLO REGIONAL EN EL DEPARTAMENTO DE CUNDINAMARCA | F16: (2012) Propios $7.619.581.451 (2012) SGR $1.300.000.000 (2013) Propios $7.658.466.323 (2014) Propios $10.524.643.730 (2015) Propios $12.067.446.396 (2016) Propios $13.101.193.938 (2017) Propios $12.559.119.735 (2018) Propios $12.338.370.939 | G16: AGRICULTURA | H16: 77168795512 | I16: 1300000000 | J16: 75868795512 | K16: 41271 | L16: 2012 | M16: 004 DE 2012 | N16: 10/04/2013 015 | O16: OK | P16: 41431 | Q16: 41299 | R16: 41453 | S16: OK | T16: 41453 | U16: CERRADO | V16: 1 | W16: 0.9999
A17: 11 | B17: CUNDINAMARCA | C17: SECRETARIA DE AGRICULTURA | D17: 2012000050024 | E17: IMPLEMENTACION DE UN MODELO DE PRODUCCION EN SISTEMAS DE DOBLE PROPOSITO EN PEQUEÑOS PRODUCTORES DEL DEPARTAMENTO DE CUNDINAMARCA | F17: (2012) Fondo de desarrollo regional $900.000.000 (2012) Propios $ 1.049.149.973 (2013) Fondo de desarrollo regional $923.985.000 (2013) Propios $497.551.400 | G17: AGRICULTURA | H17: 3371686373 | I17: 1823985000 | J17: 1547701373 | K17: 41271 | L17: 2012 | M17: 004 DE 2012 | N17: 20/05/2013 011 | O17: OK | P17: 41570 | Q17: 41299 | R17: 41579 | S17: OK | T17: 41579 | U17: CERRADO | V17: 1 | W17: 0.9944
A18: 12 | B18: CUNDINAMARCA | C18: SECRETARIA DE GOBIERNO | D18: 2012000050025 | E18: ESTUDIOS Y DISEÑOS PARA LA CONSTRUCCIÓN DE UN CENTRO ESPECIALIZADO AL SERVICIO DE ADOLESCENTES INFRACTORES DE LA LEY EN EL DEPARTAMENTO DE CUNDINAMARCA | F18: (2012) Fondo de desarrollo regional $200.000.000 | G18: DEFENSA | H18: 200000000 | I18: 200000000 | J18: 0 | K18: 41271 | L18: 2012 | M18: 004 DE 2012 | N18: 1-29/04/2013 | O18: OK | P18: 41376 | Q18: 41299 | R18: 41254 | S18: OK | T18: 41387 | U18: CERRADO | V18: 1 | W18: 1
A19: 13 | B19: ENTIDAD APORTANTE RECURSOS | C19: MUNICIPIO DE COGUA | D19: 2012000050026 | E19: MEJORAMIENTO DE LA VA COGUA-SAN CAYETANO (SECTOR LAS MARGARITAS K8+300 SECTOR LAS MARGARITAS HASTA K10+300) CON K0+00 EN COGUA DEPARTAMENTO DE CUNDINAMARCA | F19: (2012) Fondo de compensación regional $277.000.000 (2012) Fondo de desarrollo regional $1.723.000 | G19: TRANSPORTE | H19: 2000000000 | I19: 2000000000 | J19: 0 | K19: 41271 | L19: 2012 | M19: 005 DE 2012 | N19: 28/12/2012-05 | O19: OK | P19: 41501 | Q19: 41444 | R19: 41530 | S19: OK | T19: 41578 | U19: CERRADO | V19: 1 | W19: 1
A20: 14 | B20: DESENTRALIZADOS | C20: ICCU - GESPROY GB | D20: 2012000050027 | E20: MEJORAMIENTO DE LA VA UBALA-PALOMAS-MAMBITA (K0+00 UBICADO EN EL SITIO PROFESIONALES MUNICIPIO DE UBALA), DEPARTAMENTO DE CUNDINAMARCA | F20: (2012) Fondo de compensación regional $3.000.000 (2014) Propios $359.160.441 | G20: TRANSPORTE | H20: 3359160462 | I20: 3000000000 | J20: 359160462 | K20: 41271 | L20: 2012 | M20: 04 DE 2012 | N20: 41425 | O20: OK | P20: 41381 | Q20: 41299 | R20: 41519 | S20: OK | T20: 41561 | U20: CERRADO | V20: 1 | W20: 0.9866
A21: 15 | B21: DESENTRALIZADOS | C21: ICCU - GESPROY GB | D21: 2012000050028 | E21: MEJORAMIENTO Y MANTENIMIENTO DE LA RED VIAL SECUNDARIA Y TERCIARIA MEDIANTE LA DOTACIÓN DE MAQUINARIA A LOS MUNICIPIOS DEL DEPARTAMENTO DE CUNDINAMARCA | F21: (2012) Asignaciones directas $450.622.348 (2012) Fondo de desarrollo regional $8.103.535 (2012) Propios $2.398.565.107 | G21: TRANSPORTE | H21: 19769772343 | I21: 8103535586 | J21: 11666236757 | K21: 41271 | L21: 2012 | M21: 004 DE 2012 | N21: 41423 | O21: OK | P21: 41339 | Q21: 41299 | R21: 41422 | S21: OK | T21: 41422 | U21: CERRADO | V21: 1 | W21: 0.9318
A22: 16 | B22: CUNDINAMARCA | C22: SECRETARIA DE MINAS, ENERGIA Y GAS | D22: 2012000050029 | E22: IMPLEMENTACIÓN Y MASIFICACION DEL SERVICIO DE GAS COMBUSTIBLE POR REDES PARA MUNICIPIOS DE ANOLAIMA, CACHIPAY, CHOACHI, FOMEQUE, UBAQUE Y VIOTA CUNDINAMARCA | F22: (2013) Propios $1.492.571.000 (2013) SGR $2.199.142.000 (2014) Propios $454.749.000 (2015) Propios $10.093.523.400 (2016) Propios $2.505.621.600 | G22: MINAS Y ENERGÍA | H22: 15253036000 | I22: 2199142000 | J22: 13053894000 | K22: 41271 | L22: 2012 | M22: 004 DE 2012 | N22: 29/05/2013-008 | O22: OK | P22: 41519 | Q22: 41299 | R22: 41541 | S22: OK | T22: 41541 | U22: CERRADO | V22: 1 | W22: 0.945
A23: 17 | B23: CUNDINAMARCA | C23: SECRETARIA DE COMPETITIVIDAD | D23: 2012000050030 | E23: DESARROLLO CREACION Y FORTALECIMIENTO DE NUEVE (9) CENTROS DE EMPREDIMIENTO Y FORTALECIMIENTO EMPRESARIAL EN EL DEPARTAMENTO DE CUNDINAMARCA | F23: (2012) SGR $1.708.104.361 (2014) Propios $44.397.453 | G23: COMERCIO, INDUSTRIA Y TURISMO | H23: 1752501814 | I23: 1708104361 | J23: 44397453 | K23: 41271 | L23: 2012 | M23: 004 DE 2012 | N23: 41393 | O23: OK | P23: 41397 | Q23: 41299 | R23: 41423 | S23: OK | T23: 41423 | U23: PARA CIERRE | V23: 1 | W23: 0.9507
A24: 18 | B24: ENTIDAD APORTANTE RECURSOS | C24: MUNICIPIO DE MOSQUERA | D24: 2012000050039 | E24: MEJORAMIENTO DE LA VIA CALLE 23 ENTRE CRA 3 Y 9B EN MOSQUERA CLL 7 ENTRE CRA 13 Y 24 EN FUNZA DEPARTAMENTO DE CUNDINAMARCA | F24: (2012) Fondo regional de desarrollo $1.000.000 (2012) Propios $2.336.453 (2014) Propios $380.406.743 | G24: TRANSPORTE | H24: 2816415712 | I24: 1000000000 | J24: 1816415712 | K24: 41271 | L24: 2012 | M24: 004 DE 2012 | N24: 11/12/2012-007 | O24: OK | P24: 41585 | Q24: 41564 | R24: 41431 | S24: OK | T24: 41519 | U24: CERRADO | V24: 1 | W24: 1
A25: 19 | B25: ENTIDAD APORTANTE RECURSOS | C25: MUNICIPIO DE SOACHA | D25: 2012000050044 | E25: REHABILITACIÓN Y MEJORAMIENTO DE LA VIA PARALELA ( TRANSVERSAL 8 Y CARRERA 7) ENTRE CARRERA 13 CON AUTOPISTA SUR BARRIO LA DESPENSA, HASTA LA CALLE 27 DEL CENTRO DEL MUNICIPIO DE SOACHA CUNDINAMARCA (TRAMO N 1 - K0+000 HASTA K0+262) | F25: (2012) Fondo de desarrollo regional $1.000.000 | G25: TRANSPORTE | H25: 1000000000 | I25: 1000000000 | J25: 0 | K25: 41271 | L25: 2012 | M25: 004 DE 2012 | N25: 01/04/2013-01 | O25: OK | P25: 41627 | Q25: NO HAY INFORMACION | R25: 41352 | S25: OK | T25: 41400 | U25: CERRADO | V25: 1 | W25: 1
A26: 20 | B26: DESENTRALIZADOS | C26: ICCU - GESPROY GB | D26: 2012000050051 | E26: MEJORAMIENTO DEL PUENTE GUATIMBOL SOBRE EL RIO SUMAPAZ EN LA VA VENECIA - ICONONZO DEPARTAMENTO DE CUNDINAMARCA | F26: (2012)Fondo de compensación regional $320.304.130 (2012) Propios $107.811.063 (2013) Propios $18.876.296 (2014) Propios $80.204.150 | G26: TRANSPORTE | H26: 827195639 | I26: 620304130 | J26: 206891509 | K26: 41271 | L26: 2012 | M26: 004 DE 2012 | N26: 41425 | O26: OK | P26: 41381 | Q26: 41269 | R26: 41417 | S26: OK | T26: 41515 | U26: CERRADO | V26: 1 | W26: 0.9809
A27: 21 | B27: DESENTRALIZADOS | C27: ICCU - GESPROY GB | D27: 2012000050052 | E27: FORMULACIÓN Y ACTUALIZACION DE LOS ESTUDIOS Y DISEÑOS DE LA VIA UBAQUE - LOS CEREZOS - CHIPAQUE DEPARTAMENTO DE CUNDINAMARCA | F27: (2012) Fondo de desarrollo regional $250.000.000 (2013) Propios $7.547.261 | G27: TRANSPORTE | H27: 257457261 | I27: 250000000 | J27: 7457261 | K27: 41271 | L27: 2012 | M27: 004 DE 2012 | N27: 41365 | O27: OK | P27: 41401 | Q27: 41299 | R27: 41508 | S27: OK | T27: 41554 | U27: CERRADO | V27: 1 | W27: 0.9996
A28: 22 | B28: DESENTRALIZADOS | C28: ICCU - GESPROY GB | D28: 2012000050054 | E28: FORMULACIÓN Y ACTUALIZACION DE LOS ESTUDIOS Y DISEÑOS PARA EL MEJORAMIENTO DE LA TRONCAL DEL CARBON EN LONGITUD DE 43 KMS (K0+00 LOCALIZADO EN TIERRA NEGRA) DEPARTAMENTO DE CUNDINAMARCA | F28: (2012) Fondo de desarrollo regional $755.000.000 (2013) Propios $22.429.075 | G28: TRANSPORTE | H28: 777429075 | I28: 755000000 | J28: 22429075 | K28: 41271 | L28: 2012 | M28: 004 DE 2012 | N28: 41365 | O28: OK | P28: 41381 | Q28: 41299 | R28: 41507 | S28: OK | T28: 41550 | U28: CERRADO | V28: 1 | W28: 0.9984
A29: 23 | B29: CUNDINAMARCA | C29: SECRETARIA DE CIENCIA, TECNOLOGIA E INNOVACIÓN | D29: 2012000100010 | E29: FORTALECIMIENTO DE LAS REGIONES COLOMBIANAS EN SUS CAPACIDADES DE CTI - CUNDINAMARCA | F29: Asignación Ciencia, Tecnología e Innovación | G29: CTEL | H29: 8721806744 | I29: 8721806744 | J29: 0 | K29: 41263 | L29: 2012 | M29: 001 DE 2012 | N29: 15/12/2012 Acta No. 4 | O29: OK | P29: 41662 | Q29: 41369 | R29: 41663 | S29: OK | T29: 41663 | U29: CONTRATADO EN EJECUCIÓN | V29: 0.8603 | W29: 0.9729
A30: 24 | B30: CUNDINAMARCA | C30: SECRETARIA DE CIENCIA, TECNOLOGIA E INNOVACIÓN | D30: 2012000100056 | E30: INVESTIGACIÓN ESTRATEGIAS DE VALORACION Y APROPIACION DE LOS RECURSOS NATURALES MECANISMOS DE ADAPTACION A CAMBIO CLIMATICO. REGION DEL BAJO MAGDALENA | F30: Asignación Ciencia, Tecnología e Innovación | G30: CTEL | H30: 7184175232 | I30: 4100000000 | J30: 3084175232 | K30: 41263 | L30: 2012 | M30: 001 DE 2012 | N30: 20/12/2012 -001 | O30: OK | P30: 41492 | Q30: 41369 | R30: 41569 | S30: OK | T30: 41569 | U30: CERRADO | V30: 1 | W30: 0.9997
A31: 25 | B31: CUNDINAMARCA | C31: SECRETARIA DE CIENCIA, TECNOLOGIA E INNOVACIÓN | D31: 2012000100063 | E31: FORTALECIMIENTO DE LAS CAPACIDADES DE INNOVACIÓN SOCIAL POR MEDIO DEL PARQUE CIENTIFICO EN BOGOTA - CUNDINAMARCA | F31: Asignación Ciencia, Tecnología e Innovación | G31: CTEL | H31: 16942704000 | I31: 8250704000 | J31: 8692000000 | K31: 41263 | L31: 2012 | M31: 001 DE 2012 | N31: 20/12/2012 001 | O31: OK | P31: 41492 | Q31: 41369 | R31: 41578 | S31: OK | T31: 41578 | U31: CERRADO | V31: 1 | W31: 0.9473
A32: 26 | B32: CUNDINAMARCA | C32: SECRETARIA DE CIENCIA, TECNOLOGIA E INNOVACIÓN | D32: 2012000100118 | E32: FORMACION EN CIENCIA, TECNOLOGIA E INNOVACION EN LA COMUNIDAD EDUCATIVA DE LAS INSTITUCIONES EDUCATIVAS OFICIALES DE LOS MUNICIPIOS NO CERTIFICADOS DEL DEPARTAMENTO | F32: Asignación Ciencia, Tecnología e Innovación | G32: CTEL | H32: 22788739251 | I32: 17739839251 | J32: 5048900000 | K32: 41295 | L32: 2013 | M32: 001 DE 2012 | N32: 21/01/2013 002 | O32: OK | P32: 41638 | Q32: 41269 | R32: 41570 | S32: OK | T32: 41570 | U32: CERRADO | V32: 0.9818 | W32: 0.9481
A33: 27 | B33: CUNDINAMARCA | C33: SECRETARIA DE CIENCIA, TECNOLOGIA E INNOVACIÓN | D33: 2012000100144 | E33: INVESTIGACIÓN INVESTIGACION, DESARROLLO Y TRANSFERENCIA TECNOLOGICA EN EL SECTOR AGROPECUARIO Y AGROINDUSTRIAL CON EL FIN DE MEJORAR L TODO EL DEPARTAMENTO, CUNDINAMARCA, CENTRO ORIENTE | F33: Asignación Ciencia, Tecnología e Innovación | G33: CTEL | H33: 50514736439 | I33: 34707000000 | J33: 15807736439 | K33: 41263 | L33: 2012 | M33: 001 DE 2012 | N33: 41263 | O33: OK | P33: 41492 | Q33: 41369 | R33: 41586 | S33: OK | T33: 43329 | U33: CONTRATADO EN EJECUCIÓN | V33: 0.8433 | W33: 0.8217
A34: 28 | B34: CUNDINAMARCA | C34: SECRETARIA DE CIENCIA, TECNOLOGIA E INNOVACIÓN | D34: 2012000100156 | E34: CONSTRUCCIÓN DEL ECOSISTEMA DE INNOVACION TIC PARA EL DEPTO DE CUNDINAMARCA | F34: Asignación Ciencia, Tecnología e Innovación | G34: CTEL | H34: 7088000000 | I34: 5000000000 | J34: 2088000000 | K34: 41263 | L34: 2012 | M34: 001 DE 2012 | N34: 41263 | O34: OK | P34: 41492 | Q34: 41369 | R34: 41948 | S34: OK | T34: 41948 | U34: CERRADO | V34: 0.9898 | W34: 0.9318
A35: 29 | B35: DESENTRALIZADOS | C35: ICCU - GESPROY GB | D35: 2013000050003 | E35: ESTUDIOS Y DISEÑOS PARA EL MEJORAMIENTO DE LA VA VILLAPINZON-TURMEQUE EN LONGITUD DE 11 KMS (K0+00 LOCALIZADO EN VILLAPINZON DEPARTAMENTO DE CUNDINAMARCA | F35: (2013) Fondo de desarrollo regional $245.000.000 | G35: TRANSPORTE | H35: 245000000 | I35: 245000000 | J35: 0 | K35: 41400 | L35: 2013 | M35: 006 DE 2013 | N35: 41571 | O35: OK | P35: 41785 | Q35: 41632 | R35: 41934 | S35: OK | T35: 42023 | U35: CERRADO | V35: 1 | W35: 0.7347
A36: 30 | B36: DESENTRALIZADOS | C36: ICCU - GESPROY GB | D36: 2013000050004 | E36: ESTUDIOS Y DISEÑOS PARA EL MEJORAMIENTO DE LA VA YACOPI - LA VICTORIA CON K0+00 EN YACOPI DEPARTAMENTO DE CUNDINAMARCA | F36: (2013) Fondo de compensación regional $250.000.000 | G36: TRANSPORTE | H36: 250000000 | I36: 250000000 | J36: 0 | K36: 41400 | L36: 2013 | M36: 006 DE 2013 | N36: 41571 | O36: OK | P36: 41785 | Q36: 41632 | R36: 41963 | S36: OK | T36: 41974 | U36: CERRADO | V36: 1 | W36: 0.7491
A37: 31 | B37: CUNDINAMARCA | C37: SECRETARIA DE DESARROLLO E INCLUSIÓN SOCIAL | D37: 2013000050005 | E37: IMPLEMENTACIÓN DEL PROGRAMA DE COMPLEMENTACION ALIMENTARIA Y NUTRICIONAL PARA MENORES DE CINCO AÑOS Y MUJERES GESTANTES Y LACTANTES EN TODO EL DEPARTAMENTO DE CUNDINAMARCA | F37: (2013) Fondo de compensación regional $3.000.000.000 (2013) Propios $94.916.059 (2014) Fondo de compensación regional $3.000.000.000 (2014) Propios $94.916.059 | G37: EDUCACIÓN | H37: 6189832118 | I37: 6000000000 | J37: 189832118 | K37: 41400 | L37: 2013 | M37: 006 DE 2013 | N37: 1-24/10/2013 | O37: OK | P37: 41738 | Q37: 41586 | R37: 41995 | S37: OK | T37: 41967 | U37: CERRADO | V37: 0.9982 | W37: 0.9899
A38: 32 | B38: CUNDINAMARCA | C38: SECRETARIA DE EDUCACIÓN | D38: 2013000050011 | E38: FORTALECIMIENTO DE LA PERMANENCIA DE LOS ESTUDIANTES EN LOS MUNICIPIOS DEL DEPARTAMENTO DE CUNDINAMARCA 2013-2014 CUNDINAMARCA, CENTRO ORIENTE | F38: (2013) Fondo de compensación regional $7.360.387 (2014) Fondo de compensación regional $6.000.000 | G38: EDUCACIÓN | H38: 13360387595 | I38: 13360387595 | J38: 0 | K38: 41400 | L38: 2013 | M38: 006 DE 2013 | N38: 41508 | O38: OK | P38: 41562 | Q38: 41530 | R38: 41827 | S38: OK | T38: 41791 | U38: CERRADO | V38: 0.998 | W38: 0.9234
A39: 33 | B39: CUNDINAMARCA | C39: SECRETARIA DE MINAS, ENERGIA Y GAS | D39: 2013000050026 | E39: CONSTRUCCIÓN REDES ELECTRICAS EN LA ZONA RURAL DE LOS MUNICIPIOS DE PARATEBUENO Y GUTIERREZ EN EL DEPARTAMENTO DE CUNDINAMARCA | F39: (2013) Propios $23.200.000 (2013) SGR $1.045.119.227 | G39: MINAS Y ENERGÍA | H39: 1068319227 | I39: 1045119227 | J39: 23200000 | K39: 41502 | L39: 2013 | M39: 007 DE 2013 | N39: 18/10/2013 009 | O39: OK | P39: 41586 | Q39: 41577 | R39: 41586 | S39: OK | T39: 41586 | U39: CERRADO | V39: 0.4493 | W39: 0.447
A40: 34 | B40: CUNDINAMARCA | C40: SECRETARIA DE AGRICULTURA | D40: 2013000050027 | E40: FORTALECIMIENTO DE LA ACTIVIDAD CAFETERA COMO ESTRATEGIA DE MEJORAMIENTO DE LA PRODUCTIVIDAD Y LA COMPETITIVIDAD EN EL DEPARTAMENTO DE CUNDINAMARCA, CENTRO ORIENTE | F40: (2013) Propios $7.875.984.367 (2013) SGR $1.499.633.914 (2014) Propios $7.880.946.232 (2014) SGR $1.500.366.086 | G40: AGRICULTURA | H40: 18756930869 | I40: 3000000000 | J40: 15756930869 | K40: 41502 | L40: 2013 | M40: 025 DE 2014 | N40: 18/10/2013 17 | O40: OK | P40: 41586 | Q40: 41585 | R40: 41555 | S40: OK | T40: 41586 | U40: CERRADO | V40: 1 | W40: 0.9949
A41: 35 | B41: CUNDINAMARCA | C41: SECRETARIA DE AGRICULTURA | D41: 2013000050028 | E41: FORTALECIMIENTO DEL SUBSECTOR PANELERO EN EL DEPARTAMENTO DE CUNDINAMARCA | F41: (2013) Propios $483.857.674 (2013) SGR $1.299.782.239 (2014) Propios $483.857.674 (2014) SGR $1.299.782.239 | G41: AGRICULTURA | H41: 3427279826 | I41: 2599564478 | J41: 827715348 | K41: 41502 | L41: 2013 | M41: 007 DE 2013 | N41: 18/10/2013 016 | O41: OK | P41: 41586 | Q41: 41585 | R41: 41586 | S41: OK | T41: 41586 | U41: CERRADO | V41: 1 | W41: 0.9996
A42: 36 | B42: DESENTRALIZADOS | C42: ICCU - GESPROY GB | D42: 2013000050043 | E42: MEJORAMIENTO Y REHABILITACION DE LA VIA GUACHETA - CAPELLANIA (SECTOR K0+780 AL K2+240) K0+000 LOCALIZADO EN EL RIO UBATE GUACHET, CUNDINAMARCA, CENTRO ORIENTE | F42: (2014) Fondo de desarrollo regional $1.000.000.000 (2014) Propios $19.047.619 | G42: TRANSPORTE | H42: 1019047619 | I42: 1000000000 | J42: 19047619 | K42: 41639 | L42: 2013 | M42: 015 DE 2013 | N42: 41729 | O42: OK | P42: 41782 | Q42: 41744 | R42: 41806 | S42: OK | T42: 41876 | U42: CERRADO | V42: 1 | W42: 0.9806
A43: 37 | B43: ENTIDAD APORTANTE RECURSOS | C43: BANCO AGRARIO DE COLOMBIA | D43: 2013000050044 | E43: CONSTRUCCIÓN CUNDINAMARCA VISR 2013 TODO EL DEPARTAMENTO, CUNDINAMARCA, CENTRO ORIENTE | G43: AGRICULTURA | H43: 60041780218 | I43: 15888838218 | J43: 44152942000 | K43: 41569 | L43: 2013 | M43: 005 DE 2015 | N43: 41915 | O43: OK | P43: 42024 | Q43: 42024 | R43: 41884 | S43: OK | T43: 41983 | U43: CONTRATADO EN EJECUCIÓN | V43: 0.8102 | W43: 0.8529
A44: 38 | B44: DESENTRALIZADOS | C44: ICCU - GESPROY GB | D44: 2013000050045 | E44: MEJORAMIENTO Y PAVIMENTACIÓN DE LA VIA FOSCA - GUTIERREZ, DESDE EL KM 2+000 AL KM 3+000 (K0+000 LOCALIZADO EN FOSCA), DEPARTAMENTO DE CUNDINAMARCA | F44: (2014) Fondo de desarrollo regional $2.000.000.000 (2015) Propios $534.999.997 | G44: TRANSPORTE | H44: 2534999997 | I44: 2000000000 | J44: 534999997 | K44: 41579 | L44: 2013 | M44: 012 DE 2013 | N44: 41676 | O44: OK | P44: 41785 | Q44: 41632 | R44: 41899 | S44: OK | T44: 41971 | U44: CERRADO | V44: 1 | W44: 0.9745
A45: 39 | B45: CUNDINAMARCA | C45: SECRETARIA DE MINAS, ENERGIA Y GAS | D45: 2013000050046 | E45: IMPLEMENTACIÓN Y MASIFICACION DEL SERVICIO DE GAS COMBUSTIBLE POR REDES PARA LOS MUNICIPIOS DE CAPARRAPI, EL PEÑON, LA PALMA, PAIME, TOPAIPI Y VILLAGOMEZ CUNDINAMARCA | F45: (2013) Fondo de compensación regional $ 2.118.969.154 (2013) Fondo de desarrollo regional $2.118.963.154 (2013) Propios $2.036.375.022 (2014) Propios $9.464.800.188 | G45: MINAS Y ENERGÍA | H45: 6609136508 | I45: 2118963154 | J45: 4490173354 | K45: 41579 | L45: 2013 | M45: 012 DE 2013 | N45: 41676 | O45: OK | P45: 41928 | Q45: 41744 | R45: 41934 | S45: OK | T45: 41934 | U45: CERRADO | V45: 1 | W45: 1
A46: 40 | B46: DESENTRALIZADOS | C46: ICCU - GESPROY GB | D46: 2013000050047 | E46: MEJORAMIENTO Y PAVIMENTACIÓN VIA GUANACAS - EL PEÑON DESDE EL K0+000 AL K2+000 (K0+000 UBICADO EN GUANACAS) MUNICIPIO EL PEÑON, CUNDINAMARCA | F46: (2014) Fondo de desarrollo regional $3.000.000.000 | G46: TRANSPORTE | H46: 3000000000 | I46: 3000000000 | J46: 0 | K46: 41808 | L46: 2014 | M46: 022 DE 2014 | N46: 41887 | O46: OK | P46: 41918 | Q46: 41899 | R46: 41941 | S46: OK | T46: 41985 | U46: CERRADO | V46: 1 | W46: 0.9964
A47: 41 | B47: DESENTRALIZADOS | C47: ICCU - GESPROY GB | D47: 2013000050049 | E47: MEJORAMIENTO Y MANTENIMIENTO DE LA RE VIAL MEDIANTE LA ADQUISICION DE MAQUINARIA AÑO 2013-2014 PARA LOS MUNICIPIOS DEL DEPARTAMENTO DE CUNDINAMARCA | F47: (2013) Fondo de compensación regional $11.008.981.620 (2013) Propios $3.321.872.756 | G47: TRANSPORTE | H47: 14330854376 | I47: 12431431552 | J47: 1899422824 | K47: 41609 | L47: 2013 | M47: 012 DE 2013 | N47: 41676 | O47: OK | P47: 41822 | Q47: 41599 | R47: 41836 | S47: OK | T47: 41884 | U47: CERRADO | V47: 1 | W47: 0.9996
A48: 42 | B48: DESENTRALIZADOS | C48: ICCU - GESPROY GB | D48: 2013000050050 | E48: MEJORAMIENTO Y PAVIMENTACIÓN DE LA VIA SANAME - PUENTE QUETAME DESDE K0+000 AL K1+500 (K0+000 LOCALIZADO EN PUENTE QUEMADO) MUNICIPIO FOSCA, CUNDINAMARCA | F48: (2014) Fondo de Desarrollo regional $3.000.000.000 | G48: TRANSPORTE | H48: 6000000000 | I48: 6000000000 | J48: 0 | K48: 41639 | L48: 2013 | M48: 015 DE 2013 | N48: 41729 | O48: OK | P48: 41782 | Q48: 41744 | R48: 41807 | S48: OK | T48: 41887 | U48: CERRADO | V48: 1 | W48: 0.4921
A49: 43 | B49: CUNDINAMARCA | C49: SECRETARIA DE AMBIENTE | D49: 2013000050051 | E49: FORTALECIMIENTO DE LA GESTION INTEGRAL DE RESIDUOS SOLIDOS, A TRAVES DE SISTEMAS RECIONALES EN LAS PROVINCIAS DE UBATE Y RIONEGRO EN EL DEPARTAMENTO DE CUNDINAMARCA | F49: (2014) Fondo de desarrollo regional $3.000.000.000 | G49: VIVIENDA, CIUDAD Y TERRITORIO | H49: 3000000000 | I49: 3000000000 | J49: 0 | K49: 41579 | L49: 2013 | M49: 012 DE 2013 | N49: 41736 | O49: OK | P49: 41885 | Q49: 41712 | R49: 41954 | S49: OK | T49: 41970 | U49: CERRADO | V49: 0.4828 | W49: 0.474
A50: 44 | B50: CUNDINAMARCA | C50: SECRETARIA DE AGRICULTURA | D50: 2013000050054 | E50: MEJORAMIENTO DE LA PRODUCTIVIDAD Y COMPETITIVIDAD DEL SECTOR CAUCHERO EN EL DEPARTAMENTO DE CUNDINAMARCA | F50: (2014) Fondo de desarrollo regional $878.495.000 (2014) Propios $478.030.000 (2015) Fondo de desarrollo regional $1.580.505.000 (2015) Propios $828.830.000 | G50: AGRICULTURA | H50: 3765860000 | I50: 2459000000 | J50: 1306860000 | K50: 41639 | L50: 2013 | M50: 015 DE 2013 | N50: 06/02/2014 007 | O50: OK | P50: 41948 | Q50: 41935 | R50: 41976 | S50: OK | T50: 41976 | U50: CERRADO | V50: 1 | W50: 1
A51: 45 | B51: CUNDINAMARCA | C51: SECRETARIA DE GOBIERNO | D51: 2013000050056 | E51: PREVENCIN DE INCENDIOS FORESTALES CON LA ADQUISICION DE VEHICULOS 4X4 ACCION RAPIDA TIPO FORESTAL PARA EL DEPARTAMENTO DE CUNDINAMARCA | F51: (2013) Fondo de desarrollo regional $4.000.000.000 | G51: AMBIENTE Y DESARROLLO SOSTENIBLE | H51: 4000000000 | I51: 4000000000 | J51: 0 | K51: 41579 | L51: 2013 | M51: 012 DE 2013 | N51: 41676 | O51: OK | P51: 41723 | Q51: 41579 | R51: 41809 | S51: OK | T51: 41851 | U51: CERRADO | V51: 1 | W51: 0.9999
A52: 46 | B52: CUNDINAMARCA | C52: SECRETARIA DE AGRICULTURA | D52: 2013000050081 | E52: MEJORAMIENTO DE LA PRODUCTIVIDAD, CALIDAD, POSCOSECHA Y MERCADEO DE LAS CADENAS HORTIFRUTCOLA Y AROMATICAS DE CUNDINAMARCA | F52: (2014) Fondo de desarrollo regonal $1.860.300.000 (2014) Propios $ 873.720.000 (2015) Fondo de desarrollo regional $739.700.000 (2015) Propios $1.150.200.000 | G52: AGRICULTURA | H52: 4900400000 | I52: 2600000000 | J52: 2300400000 | K52: 41808 | L52: 2014 | M52: 022 DE 2014 | N52: 41872 | O52: OK | P52: 41964 | Q52: 41935 | R52: 41976 | S52: OK | T52: 41976 | U52: CERRADO | V52: 1 | W52: 1
A53: 47 | B53: CUNDINAMARCA | C53: SECRETARIA DE AGRICULTURA | D53: 2013000050083 | E53: IMPLEMENTACIÓN Y PUESTA EN MARCHA DE UNA PLANTA HOMOGENIZADORA DE MIELES PARA LA PRODUCCION DE PANELA EN CAPARRAPI CUNDINAMARCA, CENTRO ORIENTE | F53: (2014) Fondo de desarrollo regional $2.200.794.931 (2014) Propios $177.000.000 (2015) Fondo de compensación regional $925.447.593 (2015) Propios $196.440.552 | G53: AGRICULTURA | H53: 3322683076 | I53: 3126242524 | J53: 196440552 | K53: 41808 | L53: 2014 | M53: 022 DE 2014 | N53: 41872 | O53: OK | P53: 41948 | Q53: 41935 | R53: 41948 | S53: OK | T53: 41948 | U53: CERRADO | V53: 1 | W53: 1
A54: 48 | B54: DESENTRALIZADOS | C54: ICCU - GESPROY GB | D54: 2013000050094 | E54: MEJORAMIENTO Y REHABILITACION DE LA VIA TABIO - CHIA DEL K1+100 AL K3+200 | F54: (2014) Fondo de desarrollo regional $2.000.000.000 | G54: TRANSPORTE | H54: 2000000000 | I54: 2000000000 | J54: 0 | K54: 41639 | L54: 2013 | M54: 015 DE 2013 | N54: 41729 | O54: OK | P54: 41782 | Q54: 41744 | R54: Sin Dato | S54: OK | T54: Sin Dato | U54: DESAPROBADO | V54: 0 | W54: 0
A55: 49 | B55: CUNDINAMARCA | C55: SECRETARIA DE CIENCIA, TECNOLOGIA E INNOVACIÓN | D55: 2013000100129 | E55: INCREMENTO EN LAS ESTRATEGIAS SUSTENTABLES EN EL USO DEL RECURSO DE ENERGA ELECTRICA PARA LA POBLACION VULNERABLE EN EL DPTO. DE CUNDINAMARCA | F55: Asignación Ciencia, Tecnología e Innovación | G55: CTEL | H55: 5264002961 | I55: 4097083299 | J55: 1166919662 | K55: 41789 | L55: 2014 | M55: 025 DE 2014 | N55: 41789 | O55: OK | P55: 42172 | Q55: 42139 | R55: 42178 | S55: OK | T55: 42178 | U55: CONTRATADO EN EJECUCIÓN | V55: 0.8929 | W55: 0.7572
A56: 50 | B56: CUNDINAMARCA | C56: SECRETARIA DE CIENCIA, TECNOLOGIA E INNOVACIÓN | D56: 2013000100131 | E56: INVESTIGACIÓN ESTIMAR VULNERABILIDAD AL CAMBIO CLIMATICO DE SISTEMAS CAFETEROS Y DISEÑO DE ARREGLOS AGROFORESTALES CON BIOTECNOLOGIA PACHO, TIBACUY, SAN JUAN DE RIO SECO, CUNDINAMARCA | F56: Asignación Ciencia, Tecnología e Innovación | G56: CTEL | H56: 3287867000 | I56: 2622860000 | J56: 665007000 | K56: 41474 | L56: 2013 | M56: 005 DE 2013 | N56: 41626 | O56: OK | P56: 41663 | Q56: 41577 | R56: 41663 | S56: OK | T56: 41663 | U56: CERRADO | V56: 0.9845 | W56: 0.8904
A57: 51 | B57: CUNDINAMARCA | C57: SECRETARIA DE CIENCIA, TECNOLOGIA E INNOVACIÓN | D57: 2013000100149 | E57: INNOVACIÓN EN EL MODELO DE GESTION DE MEDICAMENTO EN EL DEPARTAMENTO DE CUNDINAMARCA FASE II | F57: Asignación Ciencia, Tecnología e Innovación | G57: CTEL | H57: 3079583047 | I57: 2490946916 | J57: 588636131 | K57: 41474 | L57: 2013 | M57: 005 DE 2013 | N57: 41638 | O57: OK | P57: 41579 | Q57: 41547 | R57: 41598 | S57: OK | T57: 41612 | U57: CERRADO | V57: 1 | W57: 1
A58: 52 | B58: CUNDINAMARCA | C58: SECRETARIA DE CIENCIA, TECNOLOGIA E INNOVACIÓN | D58: 2013000100176 | E58: INNOVACIÓN SISTEMA DE PRODUCCION DE FRUTAS/HORTALIZAS FRESCAS/PROCESADAS TIPO EXPORTACION CON TECNOLOGIA BIOLOGICA /INTEGRAL INOCUA SUBACHOQUE, CUNDINAMARCA, CENTRO ORIENTE | F58: Asignación Ciencia, Tecnología e Innovación | G58: CTEL | H58: 9285096292 | I58: 6556945302 | J58: 2728150990 | K58: 41474 | L58: 2013 | M58: 005 DE 2013 | N58: 41656 | O58: OK | P58: 43819 | Q58: 41577 | R58: 41664 | S58: OK | T58: 41887 | U58: TERMINADO | V58: 1 | W58: 0.6871
A59: 53 | B59: CUNDINAMARCA | C59: SECRETARIA DE CIENCIA, TECNOLOGIA E INNOVACIÓN | D59: 2013000100180 | E59: DISEÑO SMART TON: TALENTO E INNOVACION APLICADA AL TERRITORIO | F59: Asignación Ciencia, Tecnología e Innovación | G59: CTEL | H59: 3089954000 | I59: 2497510000 | J59: 592444000 | K59: 41509 | L59: 2013 | M59: 008 DE 2013 | N59: 41583 | O59: OK | P59: 41663 | Q59: 41577 | R59: 41663 | S59: OK | T59: 41663 | U59: CERRADO | V59: 1 | W59: 0.8654
A60: 54 | B60: CUNDINAMARCA | C60: SECRETARIA DE CIENCIA, TECNOLOGIA E INNOVACIÓN | D60: 2013000100215 | E60: FORTALECIMIENTO DE LA GESTIN COMUNITARIA DEL RECURSO HIDRICO, POR MEDIO DE LA DISMINUCION DEL CONSUMO DE ESTE, UTILIZANDO TP Y TICS , CUNDINAMARCA, CENTRO ORIENTE | F60: Asignación Ciencia, Tecnología e Innovación | G60: CTEL | H60: 1811292700 | I60: 1608461700 | J60: 202831000 | K60: 41565 | L60: 2013 | M60: 011 DE 2013 | N60: 41583 | O60: OK | P60: 41782 | Q60: 41709 | R60: 41969 | S60: OK | T60: 41969 | U60: CERRADO | V60: 1 | W60: 0.9074
A61: 55 | B61: CUNDINAMARCA | C61: SECRETARIA DE CIENCIA, TECNOLOGIA E INNOVACIÓN | D61: 2013000100217 | E61: FORTALECIMIENTO DE LA COMPETITIVIDAD DEL SECTOR FLORICULTOR COLOMBIANO MEDIANTE EL USO DE CIENCIA, TECNOLOGA E INNOVACION APLICADAS EN EL DEPARTAMENTO DE CUNDINAMARCA | F61: Asignación Ciencia, Tecnología e Innovación | G61: CTEL | H61: 7204002875 | I61: 4618409839 | J61: 2585593036 | K61: 41789 | L61: 2014 | M61: 025 DE 2014 | N61: 41789 | O61: OK | P61: 42174 | Q61: 42160 | R61: 42178 | S61: OK | T61: 42178 | U61: CERRADO | V61: 1 | W61: 0.9859
A62: 56 | B62: CUNDINAMARCA | C62: SECRETARIA DE CIENCIA, TECNOLOGIA E INNOVACIÓN | D62: 2013000100247 | E62: INVESTIGACIÓN E INNOVACIÓN TECNOLÓGICA Y APROPIACIÓN SOCIAL DE CONOCIMIENTO CIENTÍFICO DE ORQUÍDEAS NATIVAS DE CUNDINAMARCA | F62: Asignación Ciencia, Tecnología e Innovación | G62: CTEL | H62: 3400306874 | I62: 2551931927 | J62: 848374947 | K62: 41856 | L62: 2014 | M62: 027 DE 2014 | N62: 41856 | O62: OK | P62: 42174 | Q62: 42160 | R62: 42179 | S62: OK | T62: 42179 | U62: CERRADO | V62: 0.967 | W62: 0.9526
A63: 57 | B63: CUNDINAMARCA | C63: SECRETARIA DE CIENCIA, TECNOLOGIA E INNOVACIÓN | D63: 2013000100248 | E63: INNOVACIÓN , CIENCIA Y TECNOLOGIA PARA PRODUCTORES DE LECHE EN LA PROVINCIA DE UBATE, CUNDINAMARCA. | F63: Asignación Ciencia, Tecnología e Innovación | G63: CTEL | H63: 11619725567 | I63: 9380319099 | J63: 2239406468 | K63: 41565 | L63: 2013 | M63: 011 DE 2013 | N63: 41626 | O63: OK | P63: 42172 | Q63: 42139 | R63: 42173 | S63: OK | T63: 42178 | U63: TERMINADO | V63: 0.8025 | W63: 0.8197
A64: 58 | B64: ENTIDAD APORTANTE RECURSOS | C64: MUNICIPIO DE MADRID | D64: 2013000050048 | E64: MEJORAMIENTO Y PAVIMENTACIÓN DE LA VIA AJOVER-SANTA CRUZ EN 2 KILOMETROS, MUNICIPIO DE MADRID, CUNDINAMARCA | F64: (2014) Propios $246.944.399 (2014) SGR $2.900.000.000 | G64: TRANSPORTE | H64: 8946944399 | I64: 8700000000 | J64: 246944399 | K64: 41689 | L64: 2014 | M64: 017 DE 2014 | N64: 41564 | O64: OK | P64: 42009 | Q64: 41672 | R64: 42075 | S64: OK | T64: 42264 | U64: CERRADO | V64: 1 | W64: 1
A65: 59 | B65: ENTIDAD APORTANTE RECURSOS | C65: CORMAGDALENA | D65: 20132401060001 | E65: MANTENIMIENTO Y RECUPERACIÓN DE LA NAVEGABILIDAD DEL RIO MAGDALENA | F65: (2015) Fondo de compensación $20.500.000.000 (2015) Nación $40.000.000.000 (2015) Propios $8.000.000.000 (2015) SGR $3.000.000.000 (2016) Nación $40.000.000.000 (2016) Propios $5.000.000.000 (2017) Nación $196.976.000.000 (2017) Propios $5.000.000.000 (2018) Nación $252.432.000.000 (2018) Propios $5.000.000.000 (2019) Nación $286.856.460.806 (2019) Propios $5.000.000.000 (2020) Nación $305.819.344.597 (2020) Propios $5.000.000.000 (2021) Nación $705.891.703.580 (2021) Propios $5.000.000.000 (2022) Nación $727.368.584.690 (2022) Propios $5.000.000.000 (2023) Nación $739.488.782.230 (2024) Nación $471.470.945.699 (2025) Nación $485.615.074.070 (2026) Nación $500.183.526.293 (2027) Nación $515.189.032.081 | G65: TRANSPORTE | H65: 3527443454052 | I65: 117000000000 | J65: 3410443454052 | K65: 41514 | L65: 2013 | M65: 001 DE 2013 | N65: 41631 | O65: OK | P65: 41781 | Q65: 41640 | R65: 41766 | S65: OK | T65: 41895 | U65: CERRADO | V65: 0.045 | W65: 0.0383
A66: 60 | B66: DESENTRALIZADOS | C66: ICCU - GESPROY GB | D66: 2014000050033 | E66: MEJORAMIENTO Y REHABILITACIÓN DE LA VIA TABIO - CHIA DEL K0+000 AL K1+800 | F66: (2014) Fondo de desarrollo regional $2.000.000 (2016) Propios $570.000.000 | G66: TRANSPORTE | H66: 2570000000 | I66: 2000000000 | J66: 570000000 | K66: 41893 | L66: 2014 | M66: 026 DE 2014 | N66: 42003 | O66: OK | P66: 42151 | Q66: 41949 | R66: 42206 | S66: OK | T66: 42244 | U66: CERRADO | V66: 1 | W66: 1
A67: 61 | B67: DESENTRALIZADOS | C67: ICCU - GESPROY GB | D67: 2014257720001 | E67: MEJORAMIENTO Y PAVIMENTACIÓN DE LA VIA SUESCA LA PLAYA - SESQUILE DEPARTAMENTO DE CUNDINAMARCA | G67: TRANSPORTE | H67: 4191000000 | I67: 1391000000 | J67: 2800000000 | K67: 41743 | L67: 2014 | M67: 001 DE 2014 | N67: 41760 | O67: OK | P67: 41669 | Q67: 41632 | R67: 41631 | S67: OK | T67: 41760 | U67: CERRADO | V67: 1 | W67: 0.9867
A68: 62 | B68: CUNDINAMARCA | C68: SECRETARIA DE GOBIERNO | D68: 2014000050010 | E68: CONSTRUCCIÓN DE UN CENTRO DE ATENCION ESPECIALIZADA AL SERVICIO DE ADOLESCENTES INFRACTORES DE LA LEY PENAL EN EL DEPARTAMENTO DE CUNDINAMARCA | F68: (2014) SGR $8.500.000.000 (2015) Propios $760.000.000 | G68: JUSTICIA Y DEL DERECHO | H68: 9260000000 | I68: 8500000000 | J68: 760000000 | K68: 41808 | L68: 2014 | M68: 022 DE 2014 | N68: 42178 | O68: OK | P68: 42174 | Q68: 42139 | R68: 42179 | S68: OK | T68: 42179 | U68: PARA CIERRE | V68: 1 | W68: 1
A69: 63 | B69: ENTIDAD APORTANTE RECURSOS | C69: MUNICIPIO DE VILLETA | D69: 2014000050048 | E69: MEJORAMIENTO Y PAVIMENTACIÓN DE LA VIA VILLETA-PANTANILLO-CORREDOR CHUGUACAL -CAMBAO DEL K0+360 AL K1+060 VILLETA, CUNDINAMARCA, CENTRO ORIENTE | F69: (2015) Fondo de desarrollo regional $1.500.000 (2016) Propios $212.403.426 | G69: TRANSPORTE | H69: 1701612797 | I69: 1489209370 | J69: 212403426.8 | K69: 42089 | L69: 2015 | M69: 033 DE 2015 | N69: 42146 | O69: OK | P69: 42149 | Q69: 42116 | R69: 42185 | S69: OK | T69: 42250 | U69: CERRADO | V69: 1 | W69: 1
A70: 64 | B70: DESENTRALIZADOS | C70: ICCU - GESPROY GB | D70: 2015000050010 | E70: MEJORAMIENTO DE LA VA SAN CAYETANO - COGUA SECTOR K6+670 - K8+366 (K0+000 LOCALIZADO EN EL CASCO URBANO DEL MUNICIPIO DE SAN CAYETANO) CUNDINAMARCA | F70: (2015) Fondo de desarrollo regional $3.000.000 (2016) Propios 796.247.522 | G70: TRANSPORTE | H70: 3796247522 | I70: 3000000000 | J70: 796247522 | K70: 42158 | L70: 2015 | M70: 036 DE 2015 | N70: 42213 | O70: OK | P70: 42243 | Q70: 42216 | R70: 42265 | S70: OK | T70: 42338 | U70: CERRADO | V70: 1 | W70: 0.9876
A71: 65 | B71: DESENTRALIZADOS | C71: ICCU - GESPROY GB | D71: 2015000050013 | E71: MEJORAMIENTO DE LA VA UBAQUE - LOS CEREZOS - CHIPAQUE SECTORES DEL K0+000 AL K2+040 Y DEL K16+000 AL K18+260 (K0+000 LOCALIZADO EN UBAQUE) DEPARTAMENTO DE CUNDINAMARCA | F71: (2015) Fondo de desarrollo regional $4.449.468.121 (2016) Fondo de desarrollo regional $3.550.531.879 | G71: TRANSPORTE | H71: 8000000000 | I71: 8000000000 | J71: =H71-I71 -> 0 | K71: 42159 | L71: 2015 | M71: 036 de 2015 | N71: 42213 | O71: OK | P71: 42236 | Q71: 42216 | R71: 42265 | S71: OK | T71: 42338 | U71: CERRADO | V71: 0.9971 | W71: 0.9875
A72: 66 | B72: CUNDINAMARCA | C72: SECRETARIA DE HABITAT Y VIVIENDA | D72: 2015000050014 | E72: CONSTRUCCIÓN DE VIVIENDAS NUEVAS RURALES VISR 2015 EN EL DEPARTAMENTO DE CUNDINAMARCA-SGR | F72: (2015) Fondo de compensación regional $1.284.769.000 (2015) Fondo de desarrollo regional $5.555.500.782 (2015) Propios $426.626.218 (2016) Propios $32.000.000 (2017) Propios $32.000.000 (2018) Propios $32.000.000 (2019) Propios $32.000.000 (2020) Propios $32.000.000 (2021) Propios $32.000.000 (2022) Propios $32.000.000 (2023) Propios $32.000.000 (2024) Propios $32.000.000 (2025) Propios $32.000.000 | G72: AGRICULTURA | H72: 7588896000 | I72: 6840269782 | J72: 748626218 | K72: 42173 | L72: 2015 | M72: 036 de 2015 | N72: 42158 | O72: OK | P72: 42178 | Q72: 42174 | R72: 42179 | S72: OK | T72: 42179 | U72: CERRADO | V72: 1 | W72: 0.9276
A73: 67 | B73: CUNDINAMARCA | C73: SECRETARIA DE EDUCACIÓN | D73: 2015000050015 | E73: FORTALECIMIENTO DE LA PERMANENCIA DE LOS ESTUDIANTES EN LOS MUNICIPIOS DEL DEPARTAMENTO DE CUNDINAMARCA, CENTRO ORIENTE - 2015 | F73: (2015) Fondo de compensación regional $6.373.797.030 | G73: EDUCACIÓN | H73: 8373797030 | I73: 8373797030 | J73: 0 | K73: 42159 | L73: 2015 | M73: 036 de 2015 | N73: 42297 | O73: OK | P73: 42242 | Q73: 42209 | R73: 42255 | S73: OK | T73: 42255 | U73: CERRADO | V73: 0.9707 | W73: 0.8519
A74: 68 | B74: DESENTRALIZADOS | C74: ICCU - GESPROY GB | D74: 2015000050025 | E74: MEJORAMIENTO Y PAVIMENTACIÓN DE LA TRONCAL DEL CARBON SECTOR K0+000 AL K2+860 (K0+000 LOCALIZADO EN TIERRA NEGRA, MUNICIPIO DE TAUSA), DEPARTAMENTO DE CUNDINAMARCA | F74: (2015) Fondo de desarrollo regional $6.000.000.000 (2016) Propios $1.913.699.780 | G74: TRANSPORTE | H74: 7913699780 | I74: 6000000000 | J74: 1913699780 | K74: 42159 | L74: 2015 | M74: 036 DE 2015 | N74: 42213 | O74: OK | P74: 42236 | Q74: 42584 | R74: 42264 | S74: OK | T74: 42328 | U74: CERRADO | V74: 1 | W74: 1
A75: 69 | B75: CUNDINAMARCA | C75: SECRETARIA DE EDUCACIÓN | D75: 2015000050026 | E75: FORTALECIMIENTO A LA ESTRATEGIA DE ALIMENTACIÓN ESCOLAR PARA MUNICIPIOS NO CERTIFICADOS DEL DEPARTAMENTO DE CUNDINAMARCA, CENTRO ORIENTE | F75: (2015) Fondo de compensación regional $2.100.000.000 | G75: EDUCACIÓN | H75: 2100000000 | I75: 2100000000 | J75: 0 | K75: 42159 | L75: 2015 | M75: 036 de 2015 | N75: 42283 | O75: OK | P75: 42237 | Q75: 42209 | R75: 42317 | S75: OK | T75: 42317 | U75: CERRADO | V75: 1 | W75: 0.8551
A76: 70 | B76: CUNDINAMARCA | C76: SECRETARIA DE AGRICULTURA | D76: 2015000050029 | E76: IMPLEMENTACIÓN Y PUESTA EN MARCHA DE UNA PLANTA HOMOGENIZADORA DE MIELES PARA LA PRODUCCION DE PANELA EN EL MUNICIPIO DE QUIPILE, CUNDINAMARCA, CENTRO ORIENTE | F76: (2015) Fondo de compensación regional $1.707.361.177 (2015) Propios $55.000.000 (2016) Fondo de compensación regional $1.432.150.480 (2016) Propios $201.020.000 | G76: AGRICULTURA | H76: 3395531657 | I76: 3139511657 | J76: 256020000 | K76: 42180 | L76: 2015 | M76: 037 de 25 2015 | N76: 42213 | O76: OK | P76: 42654 | Q76: 42587 | R76: 42709 | S76: OK | T76: 42709 | U76: CERRADO | V76: 1 | W76: 1
A77: 71 | B77: CUNDINAMARCA | C77: SECRETARIA DE AGRICULTURA | D77: 2015000050030 | E77: FORTALECIMIENTO A LA CADENA PRODUCTIVA DEL CACAO EN EL DEPARTAMENTO DE CUNDINAMARCA | F77: (2015) Fondo de compensación regional $1.160.000.000 (2015) Propios $1.053.334.400 (2016) Fondo de compensación regional $40.000.000 | G77: AGRICULTURA | H77: 2253334400 | I77: 1200000000 | J77: 1053334400 | K77: 42159 | L77: 2015 | M77: 036 de 2015 | N77: 42228 | O77: OK | P77: 42227 | Q77: 42213 | R77: 42228 | S77: OK | T77: 42228 | U77: CERRADO | V77: 1 | W77: 1
A78: 72 | B78: CUNDINAMARCA | C78: SECRETARIA DE GOBIERNO | D78: 2015000050031 | E78: ADQUISICIÓN DE VEHICULOS PARA LOS CUERPOS OPERATIVOS (BOMBEROS) PARA LAS PROVINCIAS DEL DEPARTAMENTO DE CUNDINAMARCA | F78: (2015) Fondo de desarrollo regional $3.760.000.000 | G78: AMBIENTE Y DESARROLLO SOSTENIBLE | H78: 3670000000 | I78: 3670000000 | J78: 0 | K78: 42159 | L78: 2015 | M78: 036 de 2015 | N78: 42213 | O78: OK | P78: 42195 | Q78: 42181 | R78: 42303 | S78: OK | T78: 42303 | U78: CERRADO | V78: 1 | W78: 0.98
A79: 73 | B79: CUNDINAMARCA | C79: SECRETARIA DE AGRICULTURA | D79: 2015000050034 | E79: FORTALECIMIENTO DE LA PRODUCTIVIDAD Y COMPETITIVIDAD DEL SECTOR CAUCHERO EN EL DEPARTAMENTO DE CUNDINAMARCA | F79: (2015) Fondo de compensación regional $1.374.200.000 (2015) Propios $658.800.000 (2016) Fondo de compensación regional $125.800.000 | G79: AGRICULTURA | H79: 2158800000 | I79: 1500000000 | J79: 658800000 | K79: 42159 | L79: 2015 | M79: 036 de 2015 | N79: 42234 | O79: OK | P79: 42227 | Q79: 42213 | R79: 42240 | S79: OK | T79: 42240 | U79: CERRADO | V79: 1 | W79: 1
A80: 74 | B80: DESENTRALIZADOS | C80: ICCU - GESPROY GB | D80: 2015000050041 | E80: MEJORAMIENTO DE LA VA UBALA - PALOMAS - MAMBITA - MEDINA (K0+000 UBICADO EN EL SITIO PROFESIONALES MUNICIPIO DE UBALA, DEPARTAMENTO DE CUNDINAMARCA | F80: (2015) Fondo de compensación regional $224.840.000 (2015) Fondo de desarrollo regional $8.649.310.938 (2016) Fondo de compensación regional $2.446.570.751 (2016) Fondo de desarrollo regional $1.342.769.761 (2017) Propios $1.000.000.000 | G80: TRANSPORTE | H80: 13663491451 | I80: 12663491451 | J80: 1000000000 | K80: 42180 | L80: 2015 | M80: 037 DE 2015 | N80: 42213 | O80: OK | P80: 42706 | Q80: 42216 | R80: 42264 | S80: OK | T80: 42326 | U80: CERRADO | V80: 1 | W80: 1
A81: 75 | B81: CUNDINAMARCA | C81: SECRETARIA DE DESARROLLO E INCLUSIÓN SOCIAL | D81: 2015000050048 | E81: IMPLEMENTACIÓN DEL PROGRAMA DE COMPLEMENTACION ALIMENTARIA Y NUTRICIONAL PARA MENORES DE 5 AÑOS, MADRES GESTANTES Y LACTANTES EN TODO EL DEPARTAMENTO DE CUNDINAMARCA 2015 | F81: (2016) Fondo de compensación regional $2.900.000.000 | G81: SALUD Y PROTECCIÓN SOCIAL | H81: 2900000000 | I81: 2900000000 | J81: 0 | K81: 42348 | L81: 2015 | M81: 044 de 2015 | N81: 42348 | O81: OK | P81: 42621 | Q81: 42605 | R81: 42668 | S81: OK | T81: 42692 | U81: CERRADO | V81: 1 | W81: 1
A82: 76 | B82: CUNDINAMARCA | C82: SECRETARIA DE EDUCACIÓN | D82: 2016000050005 | E82: FORTALECIMIENTO DE LA PERMANENCIA DE LOS ESTUDIANTES EN LOS MUNICIPIOS DEL DEPARTAMENTO DE CUNDINAMARCA, CENTRO ORIENTE - 2016 | F82: (2016) SGR $14.963.757.156 | G82: EDUCACIÓN | H82: 14963757156 | I82: 14963757156 | J82: 0 | K82: 42605 | L82: 2016 | M82: 054 DE 2016 | N82: 42606 | O82: OK | P82: 42634 | Q82: 42629 | R82: 42647 | S82: OK | T82: 42647 | U82: CERRADO | V82: 0.967 | W82: 0.5617
A83: 77 | B83: CUNDINAMARCA | C83: SECRETARIA DE EDUCACIÓN | D83: 2016000050014 | E83: FORTALECIMIENTO A LA ESTRATEGIA DE ALIMENTACION ESCOLAR PARA MUNICIPIOS NO CERTIFICADOS DEL DEPARTAMENTO DE CUNDINAMARCA, SGR 2016. | F83: (2016) Fondo de desarrollo regional $12.339.894.658 | G83: EDUCACIÓN | H83: 12339894658 | I83: 12339894658 | J83: 0 | K83: 42625 | L83: 2016 | M83: 055 de 2016 | N83: 42629 | O83: OK | P83: 42634 | Q83: 42633 | R83: 42634 | S83: OK | T83: 42634 | U83: CERRADO | V83: 0.767 | W83: 0.7473
A84: 78 | B84: DESENTRALIZADOS | C84: ICCU - GESPROY GB | D84: 2016000050023 | E84: MANTENIMIENTO DE LA RED VIAL EN AFIRMADO A TRAVS DE LA ADQUISICION DE MAQUINARIA PESADA Y EQUIPO DE TRANSPORTE EN EL DEPARTAMENTO DE CUNDINAMARCA | F84: (2017) SGR $12.992.542.392 (2018) SGR $11.187.275.138 | G84: TRANSPORTE | H84: 24179817530 | I84: 24179817530 | J84: 0 | K84: 43066 | L84: 2017 | M84: 068 de 2017 | N84: 43131 | O84: OK | P84: 43494 | Q84: 43474 | R84: 43277 | S84: OK | T84: 43223 | U84: CERRADO | V84: 0.9133 | W84: 0.6281
A85: 79 | B85: DESENTRALIZADOS | C85: ICCU - GESPROY GB | D85: 2016000050025 | E85: REHABILITACIÓN DE LA VIA BOQUERON - PANDI DEL DEPARTAMENTO DE CUNDINAMARCA | G85: TRANSPORTE | H85: 4991550669 | I85: 4991550669 | J85: 0 | K85: 42825 | L85: 2017 | M85: 061 DE 2017 | N85: 43000 | O85: OK | P85: 42984 | Q85: 42891 | R85: 43021 | S85: OK | T85: 43087 | U85: CERRADO | V85: 1 | W85: 0.9874
A86: 80 | B86: DESENTRALIZADOS | C86: ICCU - GESPROY GB | D86: 2016000050029 | E86: REHABILITACIÓN DE LA VIA LA QUINTA - REPRESA DEL NEUSA, MUNICIPIO DE COGUA, DEPARTAMENTO DE CUNDINAMARCA | F86: (2017) Asginaciones directas $64.456.762 (2017) Fondo de compensación regional $543.119.703 (2017) Fondo de desarrollo regional $4.676.267.432 (2017) Propios $392.423.535 (2018) Fondo de desarrollo regional $341.913.166 (2018) Propios $780.496.134 | G86: TRANSPORTE | H86: 6798676732 | I86: 5625757063 | J86: 1172919669 | K86: 42846 | L86: 2017 | M86: 061 de 2017 | N86: 43000 | O86: OK | P86: 43626 | Q86: 42891 | R86: 43021 | S86: OK | T86: 43098 | U86: CERRADO | V86: 1 | W86: 0.9999
A87: 81 | B87: DESENTRALIZADOS | C87: ICCU - GESPROY GB | D87: 2016000050032 | E87: REHABILITACIÓN DE LA VIA CLUB EL BOSQUE - TIBACUY - CUMACA DEL DEPARTAMENTO DE CUNDINAMARCA | F87: (2017) Fondo de desarrollo regional $2.980.233.374 (2018) Fondo de desarrollo regional $41.916.760 (2018) Propios $1.000.000.000 | G87: TRANSPORTE | H87: 4022150134 | I87: 3022150134 | J87: 1000000000 | K87: 42825 | L87: 2017 | M87: 061 DE 2017 | N87: 43000 | O87: OK | P87: 42984 | Q87: 42891 | R87: 43021 | S87: OK | T87: 43118 | U87: CERRADO | V87: 1 | W87: 0.9998
A88: 82 | B88: ENTIDAD APORTANTE RECURSOS | C88: ALCALDIA MAYOR DE BOGOTA | D88: 2016000050033 | E88: ELABORACIÓN DE LA ENCUESTA MULTIPROPOSITO 2017 : BOGOTA - CUNDINAMARCA | F88: (2017) Propios $521.000.000 (2017) SGR $26.949.969.184 (2018) SGR $ 1.298.345.781 (2019) SGR $281.073.614 | G88: VIVIENDA, CIUDAD Y TERRITORIO | H88: 17282722269 | I88: 16761722269 | J88: 521000000 | K88: 42825 | L88: 2017 | M88: 061 DE 2017 | N88: 42947 | O88: OK | P88: 42872 | Q88: 42872 | R88: 43342 | S88: OK | T88: 43006 | U88: CERRADO | V88: 1 | W88: 0.9995
A89: 83 | B89: CUNDINAMARCA | C89: SECRETARIA DE HABITAT Y VIVIENDA | D89: 2016000050052 | E89: CONSTRUCCIÓN DE VIVIENDAS NUEVAS RURALES EN EL DEPARTAMENTO DE CUNDINAMARCA | F89: (2018) Propios $640.030.220 (2018) SGR $5.173.764.521 (2018) SGR - Asignaciones directas $169.984.284 | G89: AGRICULTURA | H89: 5983779025 | I89: 5343748805 | J89: 640030220.5 | K89: 43090 | L89: 2017 | M89: 069 de 2017 | N89: 43438 | O89: OK | P89: 43523 | Q89: 43507 | R89: 43360 | S89: OK | T89: 43539 | U89: CONTRATADO EN EJECUCIÓN | V89: 0.9999 | W89: 0.9999
A90: 84 | B90: CUNDINAMARCA | C90: SECRETARIA DE CIENCIA, TECNOLOGIA E INNOVACIÓN | D90: 2016000100027 | E90: ANLISIS DE FACTORES GENETICOS, SANITARIOS Y MEDIOAMBIENTALES QUE AFECTAN LAS TASAS DE PREÑEZ A PARTIR DE EMBRIONES IN VITRO EN EL DEPARTAMENTO DE CUNDINAMARCA | F90: Asignación Ciencia, Tecnología e Innovación | G90: CTEL | H90: 8135504363 | I90: 6359045755 | J90: =H90-I90 -> 1776458608 | K90: 43098 | L90: 2017 | M90: 063 DE 2017 | N90: 43277 | O90: OK | P90: 43244 | Q90: 43244 | R90: 43369 | S90: OK | T90: 43369 | U90: TERMINADO | V90: 1 | W90: 0.9967
A91: 85 | B91: CUNDINAMARCA | C91: SUPERVISIÓN / INTERVENTORÍA RAPE - SECRETARIA DE PLANEACIÓN | D91: 2016000050012 | E91: IMPLEMENTACIÓN DE ACCIONES DE CONSERVACION Y RESTAURACION DE LOS COMPLEJOS DE PARAMO, BOSQUE ALTO-ANDINO Y SERVICIOS ECOSISTEMICOS DE LA REGION CENTRAL | F91: (2017) SGR $16.800.086.695 (2018) SGR $15.699.900.587 | G91: AMBIENTE Y DESARROLLO SOSTENIBLE | H91: 32499987282 | I91: =H91 -> 32499987282 | J91: 0 | K91: 42829 | L91: 2017 | M91: 058 DE 2016 | N91: 42999 | O91: OK | P91: 42934 | Q91: 42976 | R91: 43035 | S91: OK | T91: 43070 | U91: CONTRATADO EN EJECUCIÓN | V91: 0.9981 | W91: 0.9988
